Workbook

Sheet Acc. sup (hidden)
A1: Accessoires supérieurs
A3: BARRAGE D'ENTREE
B4: 250 | C4: 500 | D4: 750 | E4: 1000 | F4: 1250 | G4: 1500 | H4: 2000 | I4: 2500 | J4: 3000 | K4: 4000 | L4: 4200
A5: 304L | B5: 53 | C5: 107 | D5: 160 | E5: 212.5 | F5: 266 | G5: 320 | H5: 450 | I5: 563 | J5: 676 | K5: 1375 | L5: 1450 | P5: =J5/6.55957*1.3 -> 133.9721963
A6: 316L | B6: 62.5 | C6: 125 | D6: 187.5 | E6: 250 | F6: 313 | G6: 376.5 | H6: 515 | I6: 645 | J6: 775 | K6: 1600 | L6: 1680
A7: 904L | B7: 172.5 | C7: 345 | D7: 520 | E7: 690 | F7: 863 | G7: 1035 | H7: 1305 | I7: 1632 | J7: 1960 | K7: 4225 | L7: 4440
A8: U45N | B8: =B7*0.54 -> 93.15 | C8: =C7*0.54 -> 186.3 | D8: 280.8 | E8: 372.6 | F8: 466.02 | G8: 558.9 | H8: 704.7 | I8: 881.28 | J8: 1058.4 | K8: 2281.5 | L8: 2397.6
A9: SBR | B9: 123 | C9: 135 | D9: 148 | E9: 163.5 | F9: 165 | G9: 246 | H9: 327.5 | I9: 363 | J9: 400 | K9: 925 | L9: 975
A10: EPDM | B10: 184.5 | C10: 202.5 | D10: 222 | E10: 245 | F10: 247.5 | G10: 369 | H10: 491 | I10: 545 | J10: 600 | K10: 1390 | L10: 1463
A11: BUTYL | B11: 246 | C11: 270 | D11: 296 | E11: 327 | F11: 330 | G11: 492 | H11: 655 | I11: 726 | J11: 800 | K11: 1850 | L11: 1950
A12: MO | B12: 4 | C12: 4 | D12: 4 | E12: 4 | F12: 6 | G12: 6 | H12: 8 | I12: 8 | J12: 8 | K12: 10 | L12: 10
A13: GOULOTTE DE LAVAGE
B14: 250 | C14: 500 | D14: 750 | E14: 1000 | F14: 1250 | G14: 1500 | H14: 2000 | I14: 2500 | J14: 3000 | K14: 4000 | L14: 4200
A15: 304L | B15: 300 | C15: 400 | D15: 600 | E15: 808 | F15: 1545 | G15: 1855 | H15: 1100 | P15: =H15/6.55957*1.3 -> 218.0020946
A16: 316L | B16: 353 | C16: 471 | D16: 706 | E16: 950 | F16: 1820 | G16: 2182 | H16: 1350 | P16: =H16/6.55957*1.3 -> 267.5480253
A17: 904L | B17: 970 | C17: 1295 | D17: 1940 | E17: 2613 | F17: 5000 | G17: 6000 | H17: 5020 | P17: =H17/6.55957*1.3 -> 994.8822865
A18: U45N | B18: =B17*0.54 -> 523.8 | C18: 699.3 | D18: 1047.6 | E18: 1411.02 | F18: 2700 | G18: 3240 | H18: 2710.8 | P18: =H18/6.55957*1.3 -> 537.2364347
A19: PPH | B19: 800 | C19: 875 | D19: 960 | E19: 1060 | F19: 1400 | G19: 1900 | H19: 2900 | P19: =H19/6.55957*1.3 -> 574.732795
A20: TOILE | B20: 65 | C20: 70 | D20: 78 | E20: 100 | F20: 150 | G20: 150 | H20: 200
A21: MO | B21: 15 | C21: 15 | D21: 15 | E21: 15 | F21: 15 | G21: 15 | H21: 20
B22: b56 | C22: b60 | D22: b66 | E22: b62
B23: =IF('Séries 3-4-5'!B56="304L",1,IF('Séries 3-4-5'!B56="316L",2,IF('Séries 3-4-5'!B56="U45N",3,IF('Séries 3-4-5'!B56="904L",4,IF('Séries 3-4-5'!B56="POLYPROPYLENE",5,))))) -> 1 | C23: =IF('Séries 3-4-5'!B59="304L",1,IF('Séries 3-4-5'!B59="316L",2,IF('Séries 3-4-5'!B59="U45N",3,IF('Séries 3-4-5'!B59="904L",4,IF('Séries 3-4-5'!B59="POLYPROPYLENE",5,))))) -> 1 | D23: =IF('Séries 3-4-5'!B65="304L",1,IF('Séries 3-4-5'!B65="316L",2,IF('Séries 3-4-5'!B65="U45N",3,IF('Séries 3-4-5'!B65="904L",4,IF('Séries 3-4-5'!B65="POLYPROPYLENE",5,))))) -> 1 | E23: =IF('Séries 3-4-5'!B61="304L",1,IF('Séries 3-4-5'!B61="316L",2,IF('Séries 3-4-5'!B61="U45N",3,IF('Séries 3-4-5'!B61="904L",4,IF('Séries 3-4-5'!B61="POLYPROPYLENE",5,))))) -> 2
C24: Synthese price list accessories | E24: Code materiel
B25: Matière | C25: Négoce | D25: M.O. | E25: 304L | F25: 1
A26: Wash Feeder | B26: =IF('Séries 3-4-5'!B55="SURV",LOOKUP(B23,C40:D44),LOOKUP(B23,C35:D39)) -> 1144.5 | C26: =IF('Séries 3-4-5'!B55="surv",VLOOKUP(B23,C40:E44,3),VLOOKUP(B23,C35:E39,3)) -> 257.25 | D26: =IF('Séries 3-4-5'!B55="surv",VLOOKUP(B23,C40:F44,4),VLOOKUP(B23,C35:F39,4)) -> 30 | E26: 316L | F26: 2
A27: Carriage | B27: =IF('Séries 3-4-5'!B58="roue",LOOKUP(C23,C45:D48),"select ROUE") -> 682.5 | C27: =IF('Séries 3-4-5'!B58="roue",LOOKUP(C23,C45:E48),"select ROUE") -> 157.5 | D27: =IF('Séries 3-4-5'!B58="roue",VLOOKUP(C23,C45:F48,4),"select ROUE") -> 15 | E27: U45N | F27: 3
A28: Feeder | B28: =IF('Séries 3-4-5'!B64="boit",LOOKUP(D23,C53:D56),LOOKUP(D23,C57:D61)) -> 2677.5 | C28: =IF('Séries 3-4-5'!B64="boit",LOOKUP(D23,C53:E56),LOOKUP(D23,C57:E61)) -> 351.75 | D28: =IF('Séries 3-4-5'!B64="boit",VLOOKUP(D23,C53:F56,4),LOOKUP(D23,C57:F61)) -> 70 | E28: 904L | F28: 4
A29: pendulum dam | B29: =LOOKUP(E23,'Acc. sup'!C49:D52) -> 256.2 | C29: =LOOKUP(E23,'Acc. sup'!C49:E52) -> 126 | D29: =LOOKUP(E23,'Acc. sup'!C49:F52) -> 10 | E29: PPH | F29: 5
A30: COST OF PROCESS ACCESSORIES TO BE REPORTED IN THE "COST LIST"
C31: Width>>> | D31: =IF('Séries 3-4-5'!$B$3=3000,G31,IF('Séries 3-4-5'!$B$3=4000,J31,M31)) -> 4200 | G31: 3000 | J31: 4000 | M31: 4200 | P31: 2000
D32: Matière | E32: Négoce | F32: M.O. | G32: Matière | H32: Négoce | I32: M.O. | J32: Matière | K32: Négoce | L32: M.O. | M32: Matière | N32: Négoce | O32: M.O. | P32: Matière | Q32: Négoce | R32: M.O.
B33: Spéc | C33: Material
D34: 1 | E34: 1 | F34: 1 | G34: 1 | H34: 1 | I34: 1 | J34: 1 | K34: 1 | L34: 1 | M34: 1 | N34: 1 | O34: 1 | P34: 1 | Q34: 1 | R34: 1
A35: Cake wash device | B35: TUBE | C35: 1 | D35: =IF('Séries 3-4-5'!$B$3=3000,G35,IF('Séries 3-4-5'!$B$3=2000,P35,IF('Séries 3-4-5'!$B$3=4000,J35,M35))) -> 1144.5 | E35: =IF('Séries 3-4-5'!$B$3=3000,H35,IF('Séries 3-4-5'!$B$3=2000,Q35,IF('Séries 3-4-5'!$B$3=4000,K35,N35))) -> 257.25 | F35: =IF('Séries 3-4-5'!$B$3=3000,I35,IF('Séries 3-4-5'!$B$3=2000,R35,IF('Séries 3-4-5'!$B$3=4000,L35,O35))) -> 30 | G35: 694 | H35: 50 | I35: 20 | J35: 1090 | K35: 245 | L35: 30 | M35: 1144.5 | N35: 257.25 | O35: 30 | P35: 650 | Q35: 50 | R35: 20 | S35: 694 | T35: 50 | U35: 20 | V35: 1090 | W35: 245 | X35: 30 | Y35: 1144.5 | Z35: 257.25 | AA35: 30
A36: Cake wash device | B36: TUBE | C36: 2 | D36: =IF('Séries 3-4-5'!$B$3=3000,G36,IF('Séries 3-4-5'!$B$3=2000,P36,IF('Séries 3-4-5'!$B$3=4000,J36,M36))) -> 1433.25 | E36: =IF('Séries 3-4-5'!$B$3=3000,H36,IF('Séries 3-4-5'!$B$3=2000,Q36,IF('Séries 3-4-5'!$B$3=4000,K36,N36))) -> 257.25 | F36: =IF('Séries 3-4-5'!$B$3=3000,I36,IF('Séries 3-4-5'!$B$3=2000,R36,IF('Séries 3-4-5'!$B$3=4000,L36,O36))) -> 30 | G36: 870 | H36: 50 | I36: 20 | J36: 1365 | K36: 245 | L36: 30 | M36: 1433.25 | N36: 257.25 | O36: 30 | P36: 720 | Q36: 50 | R36: 20 | S36: 870 | T36: 50 | U36: 20 | V36: 1365 | W36: 245 | X36: 30 | Y36: 1433.25 | Z36: 257.25 | AA36: 30
A37: Cake wash device | B37: TUBE | C37: 3 | D37: =IF('Séries 3-4-5'!$B$3=3000,G37,IF('Séries 3-4-5'!$B$3=2000,P37,IF('Séries 3-4-5'!$B$3=4000,J37,M37))) -> 1297.296 | E37: =IF('Séries 3-4-5'!$B$3=3000,H37,IF('Séries 3-4-5'!$B$3=2000,Q37,IF('Séries 3-4-5'!$B$3=4000,K37,N37))) -> 257.25 | F37: =IF('Séries 3-4-5'!$B$3=3000,I37,IF('Séries 3-4-5'!$B$3=2000,R37,IF('Séries 3-4-5'!$B$3=4000,L37,O37))) -> 30 | G37: =G38*0.54 -> 942.3 | H37: 50 | I37: 20 | J37: =J38*0.54 -> 1235.52 | K37: 245 | L37: 30 | M37: =M38*0.54 -> 1297.296 | N37: 257.25 | O37: 30 | P37: =P38*0.54 -> 942.3 | Q37: 50 | R37: 20
A38: Cake wash device | B38: TUBE | C38: 4 | D38: =IF('Séries 3-4-5'!$B$3=3000,G38,IF('Séries 3-4-5'!$B$3=2000,P38,IF('Séries 3-4-5'!$B$3=4000,J38,M38))) -> 2402.4 | E38: =IF('Séries 3-4-5'!$B$3=3000,H38,IF('Séries 3-4-5'!$B$3=2000,Q38,IF('Séries 3-4-5'!$B$3=4000,K38,N38))) -> 257.25 | F38: =IF('Séries 3-4-5'!$B$3=3000,I38,IF('Séries 3-4-5'!$B$3=2000,R38,IF('Séries 3-4-5'!$B$3=4000,L38,O38))) -> 30 | G38: 1745 | H38: 50 | I38: 20 | J38: 2288 | K38: 245 | L38: 30 | M38: 2402.4 | N38: 257.25 | O38: 30 | P38: 1745 | Q38: 50 | R38: 20 | S38: 1745 | T38: 50 | U38: 30 | V38: 2288 | W38: 245 | X38: 30 | Y38: 2402.4 | Z38: 257.25 | AA38: 30
A39: Cake wash device | B39: TUBE | C39: 5 | D39: =IF('Séries 3-4-5'!$B$3=3000,G39,IF('Séries 3-4-5'!$B$3=2000,P39,IF('Séries 3-4-5'!$B$3=4000,J39,M39))) -> 440 | E39: =IF('Séries 3-4-5'!$B$3=3000,H39,IF('Séries 3-4-5'!$B$3=2000,Q39,IF('Séries 3-4-5'!$B$3=4000,K39,N39))) -> 1200 | F39: =IF('Séries 3-4-5'!$B$3=3000,I39,IF('Séries 3-4-5'!$B$3=2000,R39,IF('Séries 3-4-5'!$B$3=4000,L39,O39))) -> 23 | G39: 370 | H39: 800 | I39: 15.4 | J39: 400 | K39: 1100 | L39: 23 | M39: 440 | N39: 1200 | O39: 23 | P39: 370 | Q39: 800 | R39: 15.4
A40: Cake wash device | B40: SURV | C40: 1 | D40: =IF('Séries 3-4-5'!$B$3=3000,G40,IF('Séries 3-4-5'!$B$3=2000,P40,IF('Séries 3-4-5'!$B$3=4000,J40,M40))) -> 1602.3 | E40: =IF('Séries 3-4-5'!$B$3=3000,H40,IF('Séries 3-4-5'!$B$3=2000,Q40,IF('Séries 3-4-5'!$B$3=4000,K40,N40))) -> 360.15 | F40: =IF('Séries 3-4-5'!$B$3=3000,I40,IF('Séries 3-4-5'!$B$3=2000,R40,IF('Séries 3-4-5'!$B$3=4000,L40,O40))) -> 60 | G40: =G35*1.4 -> 971.6 | H40: =H35*1.4 -> 70 | I40: =I35*2 -> 40 | J40: =J35*1.4 -> 1526 | K40: =K35*1.4 -> 343 | L40: =L35*2 -> 60 | M40: =M35*1.4 -> 1602.3 | N40: =N35*1.4 -> 360.15 | O40: =O35*2 -> 60 | P40: =P35*1.4 -> 910 | Q40: =Q35*1.4 -> 70 | R40: 25 | S40: =S35*1.4 -> 971.6 | T40: =T35*1.4 -> 70 | U40: =U35*2 -> 40 | V40: =V35*1.4 -> 1526 | W40: =W35*1.4 -> 343 | X40: =X35*2 -> 60 | Y40: =Y35*1.4 -> 1602.3 | Z40: =Z35*1.4 -> 360.15 | AA40: =AA35*2 -> 60
A41: Cake wash device | B41: SURV | C41: 2 | D41: =IF('Séries 3-4-5'!$B$3=3000,G41,IF('Séries 3-4-5'!$B$3=2000,P41,IF('Séries 3-4-5'!$B$3=4000,J41,M41))) -> 2006.55 | E41: =IF('Séries 3-4-5'!$B$3=3000,H41,IF('Séries 3-4-5'!$B$3=2000,Q41,IF('Séries 3-4-5'!$B$3=4000,K41,N41))) -> 360.15 | F41: =IF('Séries 3-4-5'!$B$3=3000,I41,IF('Séries 3-4-5'!$B$3=2000,R41,IF('Séries 3-4-5'!$B$3=4000,L41,O41))) -> 60 | G41: =G36*1.4 -> 1218 | H41: =H36*1.4 -> 70 | I41: =I36*2 -> 40 | J41: =J36*1.4 -> 1911 | K41: =K36*1.4 -> 343 | L41: =L36*2 -> 60 | M41: =M36*1.4 -> 2006.55 | N41: =N36*1.4 -> 360.15 | O41: =O36*2 -> 60 | P41: =P36*1.4 -> 1008 | Q41: =Q36*1.4 -> 70 | R41: 25 | S41: =S36*1.4 -> 1218 | T41: =T36*1.4 -> 70 | U41: =U36*2 -> 40 | V41: =V36*1.4 -> 1911 | W41: =W36*1.4 -> 343 | X41: =X36*2 -> 60 | Y41: =Y36*1.4 -> 2006.55 | Z41: =Z36*1.4 -> 360.15 | AA41: =AA36*2 -> 60
A42: Cake wash device | B42: SURV | C42: 3 | D42: =IF('Séries 3-4-5'!$B$3=3000,G42,IF('Séries 3-4-5'!$B$3=2000,P42,IF('Séries 3-4-5'!$B$3=4000,J42,M42))) -> 1816.2144 | E42: =IF('Séries 3-4-5'!$B$3=3000,H42,IF('Séries 3-4-5'!$B$3=2000,Q42,IF('Séries 3-4-5'!$B$3=4000,K42,N42))) -> 360.15 | F42: =IF('Séries 3-4-5'!$B$3=3000,I42,IF('Séries 3-4-5'!$B$3=2000,R42,IF('Séries 3-4-5'!$B$3=4000,L42,O42))) -> 60 | G42: =G43*0.54 -> 1319.22 | H42: =H37*1.4 -> 70 | I42: =I37*2 -> 40 | J42: =J43*0.54 -> 1729.728 | K42: =K37*1.4 -> 343 | L42: =L37*2 -> 60 | M42: =M43*0.54 -> 1816.2144 | N42: =N37*1.4 -> 360.15 | O42: =O37*2 -> 60 | P42: =P43*0.54 -> 1319.22 | Q42: =Q37*1.4 -> 70 | R42: 25
A43: Cake wash device | B43: SURV | C43: 4 | D43: =IF('Séries 3-4-5'!$B$3=3000,G43,IF('Séries 3-4-5'!$B$3=2000,P43,IF('Séries 3-4-5'!$B$3=4000,J43,M43))) -> 3363.36 | E43: =IF('Séries 3-4-5'!$B$3=3000,H43,IF('Séries 3-4-5'!$B$3=2000,Q43,IF('Séries 3-4-5'!$B$3=4000,K43,N43))) -> 360.15 | F43: =IF('Séries 3-4-5'!$B$3=3000,I43,IF('Séries 3-4-5'!$B$3=2000,R43,IF('Séries 3-4-5'!$B$3=4000,L43,O43))) -> 60 | G43: =G38*1.4 -> 2443 | H43: =H38*1.4 -> 70 | I43: =I38*2 -> 40 | J43: =J38*1.4 -> 3203.2 | K43: =K38*1.4 -> 343 | L43: =L38*2 -> 60 | M43: =M38*1.4 -> 3363.36 | N43: =N38*1.4 -> 360.15 | O43: =O38*2 -> 60 | P43: =P38*1.4 -> 2443 | Q43: =Q38*1.4 -> 70 | R43: 25 | S43: =S38*1.4 -> 2443 | T43: =T38*1.4 -> 70 | U43: =U38*2 -> 60 | V43: =V38*1.4 -> 3203.2 | W43: =W38*1.4 -> 343 | X43: =X38*2 -> 60 | Y43: =Y38*1.4 -> 3363.36 | Z43: =Z38*1.4 -> 360.15 | AA43: =AA38*2 -> 60
A44: Cake wash device | B44: SURV | C44: 5 | D44: =IF('Séries 3-4-5'!$B$3=3000,G44,IF('Séries 3-4-5'!$B$3=2000,P44,IF('Séries 3-4-5'!$B$3=4000,J44,M44))) -> 370 | E44: =IF('Séries 3-4-5'!$B$3=3000,H44,IF('Séries 3-4-5'!$B$3=2000,Q44,IF('Séries 3-4-5'!$B$3=4000,K44,N44))) -> 1500 | F44: =IF('Séries 3-4-5'!$B$3=3000,I44,IF('Séries 3-4-5'!$B$3=2000,R44,IF('Séries 3-4-5'!$B$3=4000,L44,O44))) -> 23 | G44: 370 | H44: 1000 | I44: 15 | J44: 370 | K44: 1400 | L44: 23 | M44: 370 | N44: 1500 | O44: 23 | P44: 370 | Q44: 1000 | R44: 15
A45: Cariage for accessories | B45: ROUE | C45: 1 | D45: =IF('Séries 3-4-5'!$B$3=3000,G45,IF('Séries 3-4-5'!$B$3=2000,P45,IF('Séries 3-4-5'!$B$3=4000,J45,M45))) -> 682.5 | E45: =IF('Séries 3-4-5'!$B$3=3000,H45,IF('Séries 3-4-5'!$B$3=2000,Q45,IF('Séries 3-4-5'!$B$3=4000,K45,N45))) -> 157.5 | F45: =IF('Séries 3-4-5'!$B$3=3000,I45,IF('Séries 3-4-5'!$B$3=2000,R45,IF('Séries 3-4-5'!$B$3=4000,L45,O45))) -> 15 | G45: 299 | H45: 150 | I45: 10 | J45: 650 | K45: 150 | L45: 15 | M45: 682.5 | N45: 157.5 | O45: 15 | P45: 130 | Q45: 150 | R45: 10 | S45: 299 | T45: 150 | U45: 10 | V45: 650 | W45: 150 | X45: 15 | Y45: 682.5 | Z45: 157.5 | AA45: 15
A46: Cariage for accessories | B46: ROUE | C46: 2 | D46: =IF('Séries 3-4-5'!$B$3=3000,G46,IF('Séries 3-4-5'!$B$3=2000,P46,IF('Séries 3-4-5'!$B$3=4000,J46,M46))) -> 1249.5 | E46: =IF('Séries 3-4-5'!$B$3=3000,H46,IF('Séries 3-4-5'!$B$3=2000,Q46,IF('Séries 3-4-5'!$B$3=4000,K46,N46))) -> 157.5 | F46: =IF('Séries 3-4-5'!$B$3=3000,I46,IF('Séries 3-4-5'!$B$3=2000,R46,IF('Séries 3-4-5'!$B$3=4000,L46,O46))) -> 15 | G46: 620 | H46: 150 | I46: 10 | J46: 1190 | K46: 150 | L46: 15 | M46: 1249.5 | N46: 157.5 | O46: 15 | P46: 150 | Q46: 150 | R46: 10 | S46: 620 | T46: 150 | U46: 10 | V46: 1190 | W46: 150 | X46: 15 | Y46: 1249.5 | Z46: 157.5 | AA46: 15
A47: Cariage for accessories | B47: ROUE | C47: 3 | D47: =IF('Séries 3-4-5'!$B$3=3000,G47,IF('Séries 3-4-5'!$B$3=2000,P47,IF('Séries 3-4-5'!$B$3=4000,J47,M47))) -> 1009.26 | E47: =IF('Séries 3-4-5'!$B$3=3000,H47,IF('Séries 3-4-5'!$B$3=2000,Q47,IF('Séries 3-4-5'!$B$3=4000,K47,N47))) -> 157.5 | F47: =IF('Séries 3-4-5'!$B$3=3000,I47,IF('Séries 3-4-5'!$B$3=2000,R47,IF('Séries 3-4-5'!$B$3=4000,L47,O47))) -> 15 | G47: =G48*0.54 -> 501.66 | H47: 150 | I47: 10 | J47: =J48*0.54 -> 961.2 | K47: 150 | L47: 15 | M47: =M48*0.54 -> 1009.26 | N47: 157.5 | O47: 15 | P47: =P48*0.54 -> 256.5 | Q47: 150 | R47: 10
A48: Cariage for accessories | B48: ROUE | C48: 4 | D48: =IF('Séries 3-4-5'!$B$3=3000,G48,IF('Séries 3-4-5'!$B$3=2000,P48,IF('Séries 3-4-5'!$B$3=4000,J48,M48))) -> 1869 | E48: =IF('Séries 3-4-5'!$B$3=3000,H48,IF('Séries 3-4-5'!$B$3=2000,Q48,IF('Séries 3-4-5'!$B$3=4000,K48,N48))) -> 157.5 | F48: =IF('Séries 3-4-5'!$B$3=3000,I48,IF('Séries 3-4-5'!$B$3=2000,R48,IF('Séries 3-4-5'!$B$3=4000,L48,O48))) -> 15 | G48: 929 | H48: 150 | I48: 10 | J48: 1780 | K48: 150 | L48: 15 | M48: 1869 | N48: 157.5 | O48: 15 | P48: 475 | Q48: 150 | R48: 10 | S48: 929 | T48: 150 | U48: 10 | V48: 1780 | W48: 150 | X48: 15 | Y48: 1869 | Z48: 157.5 | AA48: 15
A49: pendulum dam | B49: EPDM | C49: 1 | D49: =IF('Séries 3-4-5'!$B$3=3000,G49,IF('Séries 3-4-5'!$B$3=2000,P49,IF('Séries 3-4-5'!$B$3=4000,J49,M49))) -> 222.6 | E49: =IF('Séries 3-4-5'!$B$3=3000,H49,IF('Séries 3-4-5'!$B$3=2000,Q49,IF('Séries 3-4-5'!$B$3=4000,K49,N49))) -> 126 | F49: =IF('Séries 3-4-5'!$B$3=3000,I49,IF('Séries 3-4-5'!$B$3=2000,R49,IF('Séries 3-4-5'!$B$3=4000,L49,O49))) -> 10 | G49: 134 | H49: 51 | I49: 8 | J49: 212 | K49: 120 | L49: 10 | M49: 222.6 | N49: 126 | O49: 10 | P49: 450 | Q49: 51 | R49: 8 | S49: 134 | T49: 51 | U49: 8 | V49: 212 | W49: 120 | X49: 10 | Y49: 222.6 | Z49: 126 | AA49: 10
A50: pendulum dam | B50: EPDM | C50: 2 | D50: =IF('Séries 3-4-5'!$B$3=3000,G50,IF('Séries 3-4-5'!$B$3=2000,P50,IF('Séries 3-4-5'!$B$3=4000,J50,M50))) -> 256.2 | E50: =IF('Séries 3-4-5'!$B$3=3000,H50,IF('Séries 3-4-5'!$B$3=2000,Q50,IF('Séries 3-4-5'!$B$3=4000,K50,N50))) -> 126 | F50: =IF('Séries 3-4-5'!$B$3=3000,I50,IF('Séries 3-4-5'!$B$3=2000,R50,IF('Séries 3-4-5'!$B$3=4000,L50,O50))) -> 10 | G50: 154 | H50: 51 | I50: 8 | J50: 244 | K50: 120 | L50: 10 | M50: 256.2 | N50: 126 | O50: 10 | P50: 515 | Q50: 51 | R50: 8 | S50: 154 | T50: 51 | U50: 8 | V50: 244 | W50: 120 | X50: 10 | Y50: 256.2 | Z50: 126 | AA50: 10
A51: pendulum dam | B51: EPDM | C51: 3 | D51: =IF('Séries 3-4-5'!$B$3=3000,G51,IF('Séries 3-4-5'!$B$3=2000,P51,IF('Séries 3-4-5'!$B$3=4000,J51,M51))) -> 474.579 | E51: =IF('Séries 3-4-5'!$B$3=3000,H51,IF('Séries 3-4-5'!$B$3=2000,Q51,IF('Séries 3-4-5'!$B$3=4000,K51,N51))) -> 126 | F51: =IF('Séries 3-4-5'!$B$3=3000,I51,IF('Séries 3-4-5'!$B$3=2000,R51,IF('Séries 3-4-5'!$B$3=4000,L51,O51))) -> 10 | G51: =G52*0.54 -> 210.6 | H51: 51 | I51: 8 | J51: =J52*0.54 -> 451.98 | K51: 120 | L51: 10 | M51: =M52*0.54 -> 474.579 | N51: 126 | O51: 10 | P51: =P52*0.54 -> 704.7 | Q51: 51 | R51: 8
A52: pendulum dam | B52: EPDM | C52: 4 | D52: =IF('Séries 3-4-5'!$B$3=3000,G52,IF('Séries 3-4-5'!$B$3=2000,P52,IF('Séries 3-4-5'!$B$3=4000,J52,M52))) -> 878.85 | E52: =IF('Séries 3-4-5'!$B$3=3000,H52,IF('Séries 3-4-5'!$B$3=2000,Q52,IF('Séries 3-4-5'!$B$3=4000,K52,N52))) -> 126 | F52: =IF('Séries 3-4-5'!$B$3=3000,I52,IF('Séries 3-4-5'!$B$3=2000,R52,IF('Séries 3-4-5'!$B$3=4000,L52,O52))) -> 10 | G52: 390 | H52: 51 | I52: 8 | J52: 837 | K52: 120 | L52: 10 | M52: 878.85 | N52: 126 | O52: 10 | P52: 1305 | Q52: 51 | R52: 8 | S52: 390 | T52: 51 | U52: 8 | V52: 837 | W52: 120 | X52: 10 | Y52: 878.85 | Z52: 126 | AA52: 10
A53: slurry feeder: | B53: BOIT | C53: 1 | D53: =IF('Séries 3-4-5'!$B$3=3000,G53,IF('Séries 3-4-5'!$B$3=2000,P53,IF('Séries 3-4-5'!$B$3=4000,J53,M53))) -> 2352 | E53: =IF('Séries 3-4-5'!$B$3=3000,H53,IF('Séries 3-4-5'!$B$3=2000,Q53,IF('Séries 3-4-5'!$B$3=4000,K53,N53))) -> 2362.5 | F53: =IF('Séries 3-4-5'!$B$3=3000,I53,IF('Séries 3-4-5'!$B$3=2000,R53,IF('Séries 3-4-5'!$B$3=4000,L53,O53))) -> 100 | G53: 2112 | H53: 1215 | I53: 80 | J53: 2240 | K53: 2250 | L53: 100 | M53: 2352 | N53: 2362.5 | O53: 100 | P53: 1100 | Q53: 1215 | R53: 70 | S53: 2112 | T53: 335 | U53: 70 | V53: 2240 | W53: 2250 | X53: 100 | Y53: 2352 | Z53: 2362.5 | AA53: 100
A54: slurry feeder: | B54: BOIT | C54: 2 | D54: =IF('Séries 3-4-5'!$B$3=3000,G54,IF('Séries 3-4-5'!$B$3=2000,P54,IF('Séries 3-4-5'!$B$3=4000,J54,M54))) -> 2661.75 | E54: =IF('Séries 3-4-5'!$B$3=3000,H54,IF('Séries 3-4-5'!$B$3=2000,Q54,IF('Séries 3-4-5'!$B$3=4000,K54,N54))) -> 2362.5 | F54: =IF('Séries 3-4-5'!$B$3=3000,I54,IF('Séries 3-4-5'!$B$3=2000,R54,IF('Séries 3-4-5'!$B$3=4000,L54,O54))) -> 100 | G54: 2490 | H54: 1215 | I54: 80 | J54: 2535 | K54: 2250 | L54: 100 | M54: 2661.75 | N54: 2362.5 | O54: 100 | P54: 1300 | Q54: 1215 | R54: 70 | S54: 2490 | T54: 335 | U54: 80 | V54: 2535 | W54: 2250 | X54: 100 | Y54: 2661.75 | Z54: 2362.5 | AA54: 100
A55: slurry feeder: | B55: BOIT | C55: 3 | D55: =IF('Séries 3-4-5'!$B$3=3000,G55,IF('Séries 3-4-5'!$B$3=2000,P55,IF('Séries 3-4-5'!$B$3=4000,J55,M55))) -> 4402.755 | E55: =IF('Séries 3-4-5'!$B$3=3000,H55,IF('Séries 3-4-5'!$B$3=2000,Q55,IF('Séries 3-4-5'!$B$3=4000,K55,N55))) -> 2362.5 | F55: =IF('Séries 3-4-5'!$B$3=3000,I55,IF('Séries 3-4-5'!$B$3=2000,R55,IF('Séries 3-4-5'!$B$3=4000,L55,O55))) -> 100 | G55: 1215 | H55: 1215 | I55: 80 | J55: =J56*0.54 -> 4193.1 | K55: 2250 | L55: 100 | M55: =M56*0.54 -> 4402.755 | N55: 2362.5 | O55: 100 | P55: =P56*0.54 -> 1944 | Q55: 1215 | R55: 70
A56: slurry feeder: | B56: BOIT | C56: 4 | D56: =IF('Séries 3-4-5'!$B$3=3000,G56,IF('Séries 3-4-5'!$B$3=2000,P56,IF('Séries 3-4-5'!$B$3=4000,J56,M56))) -> 8153.25 | E56: =IF('Séries 3-4-5'!$B$3=3000,H56,IF('Séries 3-4-5'!$B$3=2000,Q56,IF('Séries 3-4-5'!$B$3=4000,K56,N56))) -> 4200 | F56: =IF('Séries 3-4-5'!$B$3=3000,I56,IF('Séries 3-4-5'!$B$3=2000,R56,IF('Séries 3-4-5'!$B$3=4000,L56,O56))) -> 120 | G56: 6890 | H56: 2250 | I56: 100 | J56: 7765 | K56: 4000 | L56: 120 | M56: 8153.25 | N56: 4200 | O56: 120 | P56: 3600 | Q56: 2250 | R56: 100 | S56: 6890 | T56: 2250 | U56: 100 | V56: 7765 | W56: 4000 | X56: 120 | Y56: 8153.25 | Z56: 4200 | AA56: 120
A57: slurry feeder: | B57: QDC | C57: 1 | D57: =IF('Séries 3-4-5'!$B$3=3000,G57,IF('Séries 3-4-5'!$B$3=2000,P57,IF('Séries 3-4-5'!$B$3=4000,J57,M57))) -> 2677.5 | E57: =IF('Séries 3-4-5'!$B$3=3000,H57,IF('Séries 3-4-5'!$B$3=2000,Q57,IF('Séries 3-4-5'!$B$3=4000,K57,N57))) -> 351.75 | F57: =IF('Séries 3-4-5'!$B$3=3000,I57,IF('Séries 3-4-5'!$B$3=2000,R57,IF('Séries 3-4-5'!$B$3=4000,L57,O57))) -> 70 | G57: 2223 | H57: 335 | I57: 56 | J57: 2550 | K57: 335 | L57: 70 | M57: 2677.5 | N57: 351.75 | O57: 70 | P57: 650 | Q57: 335 | R57: 28 | S57: 2223 | T57: 335 | U57: 80 | V57: 2550 | W57: 335 | X57: 100 | Y57: 2677.5 | Z57: 351.75 | AA57: 100
A58: slurry feeder: | B58: QDC | C58: 2 | D58: =IF('Séries 3-4-5'!$B$3=3000,G58,IF('Séries 3-4-5'!$B$3=2000,P58,IF('Séries 3-4-5'!$B$3=4000,J58,M58))) -> 4263 | E58: =IF('Séries 3-4-5'!$B$3=3000,H58,IF('Séries 3-4-5'!$B$3=2000,Q58,IF('Séries 3-4-5'!$B$3=4000,K58,N58))) -> 351.75 | F58: =IF('Séries 3-4-5'!$B$3=3000,I58,IF('Séries 3-4-5'!$B$3=2000,R58,IF('Séries 3-4-5'!$B$3=4000,L58,O58))) -> 70 | G58: 2490 | H58: 335 | I58: 56 | J58: 4060 | K58: 335 | L58: 70 | M58: 4263 | N58: 351.75 | O58: 70 | P58: 720 | Q58: 335 | R58: 28 | S58: 2490 | T58: 335 | U58: 80 | V58: 4060 | W58: 335 | X58: 100 | Y58: 4263 | Z58: 351.75 | AA58: 100
A59: slurry feeder: | B59: QDC | C59: 3 | D59: =IF('Séries 3-4-5'!$B$3=3000,G59,IF('Séries 3-4-5'!$B$3=2000,P59,IF('Séries 3-4-5'!$B$3=4000,J59,M59))) -> 2616.705 | E59: =IF('Séries 3-4-5'!$B$3=3000,H59,IF('Séries 3-4-5'!$B$3=2000,Q59,IF('Séries 3-4-5'!$B$3=4000,K59,N59))) -> 351.75 | F59: =IF('Séries 3-4-5'!$B$3=3000,I59,IF('Séries 3-4-5'!$B$3=2000,R59,IF('Séries 3-4-5'!$B$3=4000,L59,O59))) -> 70 | G59: =G60*0.54 -> 1906.2 | H59: 335 | I59: 56 | J59: =J60*0.54 -> 2492.1 | K59: 335 | L59: 70 | M59: =M60*0.54 -> 2616.705 | N59: 351.75 | O59: 70 | P59: =P60*0.54 -> 945 | Q59: 335 | R59: 28
A60: slurry feeder: | B60: QDC | C60: 4 | D60: =IF('Séries 3-4-5'!$B$3=3000,G60,IF('Séries 3-4-5'!$B$3=2000,P60,IF('Séries 3-4-5'!$B$3=4000,J60,M60))) -> 4845.75 | E60: =IF('Séries 3-4-5'!$B$3=3000,H60,IF('Séries 3-4-5'!$B$3=2000,Q60,IF('Séries 3-4-5'!$B$3=4000,K60,N60))) -> 351.75 | F60: =IF('Séries 3-4-5'!$B$3=3000,I60,IF('Séries 3-4-5'!$B$3=2000,R60,IF('Séries 3-4-5'!$B$3=4000,L60,O60))) -> 70 | G60: 3530 | H60: 335 | I60: 56 | J60: 4615 | K60: 335 | L60: 70 | M60: 4845.75 | N60: 351.75 | O60: 70 | P60: 1750 | Q60: 335 | R60: 28 | S60: 3530 | T60: 335 | U60: 80 | V60: 4615 | W60: 335 | X60: 100 | Y60: 4845.75 | Z60: 351.75 | AA60: 100
A61: slurry feeder: | B61: QDC | C61: 5 | D61: =IF('Séries 3-4-5'!$B$3=3000,G61,IF('Séries 3-4-5'!$B$3=2000,P61,IF('Séries 3-4-5'!$B$3=4000,J61,M61))) -> 505.05 | E61: =IF('Séries 3-4-5'!$B$3=3000,H61,IF('Séries 3-4-5'!$B$3=2000,Q61,IF('Séries 3-4-5'!$B$3=4000,K61,N61))) -> 6090 | F61: =IF('Séries 3-4-5'!$B$3=3000,I61,IF('Séries 3-4-5'!$B$3=2000,R61,IF('Séries 3-4-5'!$B$3=4000,L61,O61))) -> 30 | G61: 481 | H61: 3050 | I61: 20 | J61: 481 | K61: 5800 | L61: 30 | M61: 505.05 | N61: 6090 | O61: 30 | P61: 750 | Q61: 3050 | R61: 20 | S61: 481 | T61: 3050 | U61: 20 | V61: 481 | W61: 5800 | X61: 30 | Y61: 505.05 | Z61: 6090 | AA61: 30

Sheet Access (hidden)
A1: ACCESSOIRES
A3: Equipement pneumatique: | C3: 6000 | D3: 10
C4: 250 | D4: 500 | E4: 750 | F4: 1000 | G4: 1250 | H4: 1500 | I4: 2000 | J4: 2500 | K4: 3000 | L4: 4000 | M4: 4200
A5: Equipement électrique: | C5: II | D5: SERIE 3 | E5: SERIE 4 | F5: SERIE 5
B6: Matière | C6: 250 | D6: 300 | E6: 1000 | F6: 1500
B7: Négoce | C7: 2500 | D7: 3000 | E7: 3350 | F7: 3500
B8: MO | D8: 40 | E8: 40 | F8: 40
A15: Vérin pneuride | C15: 12x2 | D15: 10x2 | E15: 8x2 | F15: 6x2 | G15: 8x3
B16: Matière | C16: 1300 | D16: 850 | E16: 650 | F16: 590 | G16: 750
B17: Négoce | C17: 1300 | D17: 845 | E17: 635.5 | F17: 454 | G17: 705

Sheet Gr de Cde (hidden)
A1: Groupe de Commande:
A3: Tarif BREVINI:
A5: Couple | B5: 0.37 | C5: 0.55 | D5: 0.75 | E5: 1.1 | F5: 1.5 | G5: 2.2 | H5: 3 | I5: 4 | J5: 5.5 | K5: 7.5 | L5: 11 | M5: 15 | N5: 18.5 | O5: 22 | P5: 30 | Q5: 37 | R5: 45 | S5: 55 | T5: 75 | U5: 90 | V5: 110 | W5: 132 | X5: 160
B6: 1386 | C6: 1386 | D6: 1386 | E6: 1386 | F6: 1785 | G6: 1785 | H6: 2450 | I6: 2450 | J6: 2835 | K6: 4017 | L6: 4380 | M6: 4900 | N6: 6600 | O6: 6600 | P6: 8120 | Q6: 8120 | R6: 11900 | S6: 14280 | T6: 18150 | U6: 19250 | V6: 19250 | W6: 28512 | X6: 35000
F17: CALCUL DE LA PUISSANCE D'UN MOTEUR
A20: COUPLE EN Nm: | E20: ='Séries 3-4-5'!B77 -> 2319.944184
A22: VITESSE MAXI EN Tr/mn : | E22: ='Séries 3-4-5'!B78 -> 0.1926437516
F23: Rendement | J23: declassement
A24: Formule | B24: P en kw= | C24: C(newton)x N(rpm) / 9550 | E24: =ROUND(E20*E22/9550,3) -> 0.047 | F24: /0,85 | G24: Puissance absorbée moteur: | I24: =E24/0.85 -> 0.05529411765 | J24: x 1,15
A26: Type de moteur | E26: =LOOKUP(I24*1.15,A33:A58,B33:B58) -> 0.25 | F26: Kw | G26: Prix B3 | H26: =ROUNDUP((LOOKUP(E26,B33:B58,C33:C58))*1.2*0.5,0) -> 1077 | I26: =H26/6.55 -> 164.4274809
G28: Prix B5 | H28: =ROUNDUP((LOOKUP(E26,B33:B58,D33:D58))*1.2*0.5,0) -> 1193
G30: Variateur de fréquence | H30: =ROUNDUP((LOOKUP(E26,B33:B58,E33:E58)),0) -> 0
A33: 0 | B33: 0.25 | C33: 1794 | D33: 1987 | G33: M1
A34: 0.25 | B34: 0.37 | C34: 1827 | D34: 2020 | E34: 2100 | G34: M2
A35: 0.37 | B35: 0.55 | C35: 1908 | D35: 2101 | E35: 2100 | G35: M3
A36: 0.55 | B36: 0.75 | C36: 2025 | D36: 2218 | E36: 2100 | G36: M4
A37: 0.75 | B37: 1.1 | C37: 2222 | D37: 2415 | E37: 3042 | G37: M5
A38: 1.1 | B38: 1.5 | C38: 2488 | D38: 2681 | E38: 3744 | G38: M6
A39: 1.5 | B39: 2.2 | C39: 2984 | D39: 3262 | E39: 4420 | G39: M7
A40: 2.2 | B40: 3 | C40: 3471 | D40: 3749 | E40: 6292 | G40: M8
A41: 3 | B41: 4 | C41: 4130 | D41: 4455 | E41: 6292 | G41: M9
A42: 4 | B42: 5.5 | C42: 4998 | D42: 5395 | E42: 7488 | G42: M10
A43: 5.5 | B43: 7.5 | C43: 6225 | D43: 6622 | E43: 8840 | G43: M11
A44: 7.5 | B44: 11 | C44: 8688 | D44: 9496 | E44: 12298 | G44: M12
A45: 11 | B45: 15 | C45: 10910 | D45: 11718 | E45: 15455 | G45: M13
A46: 15 | B46: 18.5 | C46: 13189 | D46: 14226 | E46: 20262 | G46: M14
A47: 18.5 | B47: 22 | C47: 15618 | D47: 16655 | E47: 20262 | G47: M15
A48: 22 | B48: 30 | C48: 20940 | D48: 22259 | E48: 26280 | G48: M16
A49: 30 | B49: 37 | C49: 25336 | D49: 27163 | E49: 31746 | G49: M17
A50: 37 | B50: 45 | C50: 30427 | D50: 32254 | E50: 34776 | G50: M18
A51: 45 | B51: 55 | C51: 36905 | D51: 39230 | E51: 41676 | G51: M19
A52: 55 | B52: 75 | C52: 50364 | D52: 53628 | E52: 51336 | G52: M20
A53: 75 | B53: 90 | C53: 60390 | D53: 63654 | E53: 59616 | G53: M21
A54: 90 | B54: 110 | C54: 71496 | D54: 75893 | E54: 71760 | G54: M22
A55: 110 | B55: 132 | C55: 85032 | D55: 89429 | E55: 82248 | G55: M23
A56: 132 | B56: 160 | C56: 99922 | D56: 104319 | E56: 94668 | G56: M24
A57: 160 | B57: 200 | C57: 135000 | D57: 139397 | E57: 110000 | G57: M25
A58: 200 | B58: 250 | C58: 172800 | D58: 183168 | G58: M26

Sheet Lavage (hidden)
A1: Lavage et évacuation gâteau
A5: Matière | B5: POLYPROPYLENE | C5: 304L | D5: 316L | E5: U45N | F5: 904L
A6: 250 | B6: 1330 | C6: 3050 | D6: 3570 | E6: =F6*0.54 -> 5319 | F6: 9850
A7: 500 | B7: 1860 | C7: 5000 | D7: 5850 | E7: =F7*0.54 -> 8694 | F7: 16100
A8: 750 | B8: 2420 | C8: 6910 | D8: 8130 | E8: 12096 | F8: 22400
A9: 1000 | B9: 2940 | C9: 7720 | D9: 9080 | E9: 13483.8 | F9: 24970
A10: 1250 | B10: 4518 | C10: 14300 | D10: 16810 | E10: 25002 | F10: 46300
A11: 1500 | B11: 4470 | C11: 16575 | D11: 19500 | E11: 28957.5 | F11: 53625
A12: 2000 | B12: 4912 | C12: 19835 | D12: 23335 | E12: 34652.88 | F12: 64172
A13: 2500 | B13: 5415 | C13: 24440 | D13: 28750 | E13: 42695.1 | F13: 79065
A14: 3000 | B14: 6810 | C14: 31365 | D14: 36900 | E14: 54796.5 | F14: 101475
A15: 4000 | B15: 7670 | C15: 41725 | D15: 49085 | E15: 72900 | F15: 135000
A16: 4200 | B16: 8055 | C16: 43815 | D16: 51540 | E16: 76545 | F16: 141750
A18: Négoce | B18: POLYPROPYLENE | C18: 304L | D18: 316L | E18: U45N | F18: 904L
A19: 250 | B19: 18950 | C19: 9900 | D19: 9900 | E19: 9900 | F19: 9900
A20: 500 | B20: 20233 | C20: 9900 | D20: 9900 | E20: 9900 | F20: 9900
A21: 750 | B21: 21700 | C21: 9900 | D21: 9900 | E21: 9900 | F21: 9900
A22: 1000 | B22: 23700 | C22: 9900 | D22: 9900 | E22: 9900 | F22: 9900
A23: 1250 | B23: 27675 | C23: 10000 | D23: 10000 | E23: 10000 | F23: 10000
A24: 1500 | B24: 31200 | C24: 10000 | D24: 10000 | E24: 10000 | F24: 10000
A25: 2000 | B25: 34535 | C25: 10000 | D25: 10000 | E25: 10000 | F25: 10000
A26: 2500 | B26: 41200 | C26: 10000 | D26: 10000 | E26: 10000 | F26: 10000
A27: 3000 | B27: 44700 | C27: 10000 | D27: 10000 | E27: 10000 | F27: 10000
A28: 4000 | B28: 84800 | C28: 12000 | D28: 12000 | E28: 12000 | F28: 12000
A29: 4200 | B29: 89050 | C29: 12000 | D29: 12000 | E29: 12000 | F29: 12000
A31: MO | B31: POLYPROPYLENE | C31: 304L | D31: 316L | E31: U45N | F31: 904L
A32: 250 | B32: 30 | C32: 80 | D32: 80 | E32: 80 | F32: 80
A33: 500 | B33: 40 | C33: 100 | D33: 100 | E33: 100 | F33: 100
A34: 750 | B34: 47.5 | C34: 110 | D34: 110 | E34: 110 | F34: 110
A35: 1000 | B35: 50 | C35: 120 | D35: 120 | E35: 120 | F35: 120
A36: 1250 | B36: 50 | C36: 120 | D36: 120 | E36: 120 | F36: 120
A37: 1500 | B37: 50 | C37: 120 | D37: 120 | E37: 120 | F37: 120
A38: 2000 | B38: 58 | C38: 184 | D38: 184 | E38: 184 | F38: 184
A39: 2500 | B39: 60 | C39: 200 | D39: 200 | E39: 200 | F39: 200
A40: 3000 | B40: 60 | C40: 200 | D40: 200 | E40: 200 | F40: 200
A41: 4000 | B41: 65 | C41: 265 | D41: 265 | E41: 265 | F41: 265
A42: 4200 | B42: 65 | C42: 265 | D42: 265 | E42: 265 | F42: 265

Sheet Elec1 (hidden)
G2: "Projet"
C3: Filtration Rate | D3: 0.111 | E3: t/h/m²
C4: Filter Size | D4: =AA32/D3 -> 0 | E4: m²
U5: WASH WATER 3 | X5: WR 3
U6: Flow rate design | W6: T/h
U7: Flow rate design | W7: m3/h
U8: Density | W8: t/m3
U11: WASH WATER 2 | X11: WR 2
U12: Flow rate design | W12: T/h
C13: SLURRY | U13: Flow rate design | W13: m3/h
C14: Slurry Flow rate design | D14: =D15/D18 ->  | E14: m3/h | U14: Density | W14: t/m3
C15: Slurry Flow rate design | D15: =D17/D16 ->  | E15: T/h
C16: Solids | E16: %
C17: Solids flow design | E17: T/h | U17: WASH WATER 1 | X17: WR 1
C18: Slurry density | E18: t/m3 | U18: Flow rate design | W18: T/h
C19: Liquid density | E19: t/m3 | U19: Flow rate design | W19: m3/h
C20: Solids density | E20: t/m3 | U20: Density | W20: t/m3
C21: Temperature | E21: °C
Z30: TOTAL CAKE PRODUCTION
Z31: Cake flow rate design | AA31: =AA32/(1-AA33) -> 0 | AB31: T/h
Z32: Dry cake flow rate design | AA32: =D17 -> 0 | AB32: T/h
Z33: Moisture | AB33: %
E34: MOTHER LIQUOR | I34: WASH FILTRATE 3 | M34: WASH FILTRATE 2 | Q34: WASH FILTRATE 1
E35: Flow rate design | F35: =D15-AA31 ->  | G35: t/h | I35: Flow rate design | K35: T/h | M35: Flow rate design | O35: T/h | Q35: Flow rate design | S35: T/h
E36: Flow rate design | F36: =F35/F37 ->  | G36: m3/h | I36: Flow rate design | K36: m3/h | M36: Flow rate design | O36: m3/h | Q36: Flow rate design | S36: m3/h
E37: Density | G37: t/m3 | I37: Density | K37: t/m3 | M37: Density | O37: t/m3 | Q37: Density | S37: t/m3
B45: Flowrate | C45: Power | D45: Regulation
B46: 25 | C46: 11 | D46: No
D47: VFD
D48: Valve
D52: NO | E52: LSH
E53: LLH
D55: VFD | E55: Transmetteur
D56: Valve | E56: Transmetteur

Sheet Elec2 (hidden)
F2: serie 1 | G2: serie 2 | H2: serie 3 largeur bande <2 et long bav <20 | J2: si long bav >20, vitesse max <20 | K2: si long bav >20, vitesse max >20
D3: Filtre
D4: Instrumentation - STANDARD | F4: Nbre | G4: Nbre | H4: Nbre | J4: Nbre | K4: Nbre | U4: Repère Instrum | V4: BJ | W4: Transmetteur | X4: Nombre débitmètre | Y4: sans débitmètre | Z4: Type débitmètre | AA4: Type épaisseur | AB4: Débitmètre Lavage Toile & Bande
C5: OU | D5: Boîtier d'arrêt d'urgence | F5: 1 | G5: 0 | H5: 0 | J5: 0 | K5: 0 | N5: Standard mais client peut demander plus | U5: Plastique | V5: Polyester | W5: Oui | X5: 0 | Y5: N/A | Z5: Gemu | AA5: Pepperl & Fuchs | AB5: Krohne
D6: Arrêt d'urgence à cable | F6: 0 | G6: 2 | H6: 2 | J6: 2 | K6: 2 | N6: Standard mais client peut demander plus | U6: Inox | V6: Inox | W6: Non | X6: 1 | Z6: Krohne | AA6: Endress Hauser | AB6: Endress Hauser
D7: Détecteur de surcouple | F7: 0 | G7: 0 | H7: 1 | J7: 1 | K7: 1 | X7: 2
D8: Capteur de dérive toile | F8: 0 | G8: 2 | H8: 2 | J8: 2 | K8: 2 | X8: 3
D9: Capteur de dérive bande | F9: 0 | G9: 0 | H9: 2 | J9: 2 | K9: 2 | X9: 4
D10: Capteur de rotation toile | F10: 0 | G10: 0 | H10: 1 | J10: 1 | K10: 1
D11: Capteur de tension toile | F11: 0 | G11: 2 | H11: 2 | J11: 2 | K11: 2 | X11: Régulation | Y11: Non
D12: Capteur de rupture courroies boîte à vide | F12: 0 | G12: 0 | H12: 0 | J12: 2 | K12: 2 | T12: 0 | X12: Non | Y12: LSH
D13: Pressostat pression air comprimé | F13: 1 | G13: 1 | H13: 1 | J13: 1 | K13: 1 | T13: 1 | X13: VFD | Y13: LSL
D14: Pressostat pression eau de lavage toile et bande | F14: 0 | G14: 1 | H14: 1 | J14: 1 | K14: 1 | X14: Vanne | Y14: LSH + LSL
D15: Débitmètre - Lubrification BAV | F15: 0 | G15: 1 | H15: 2 | J15: 2 | K15: 2 | N15: Gemu ou Krohne | X15: Flotteur
D16: Débitmètre - Lubrification TABLE | F16: 0 | G16: 0 | H16: 0 | J16: 0 | K16: 2 | N16: Gemu ou Krohne | X16: Type Extraction | Y16: Barométrique | Z16: Forcée | AA16: Krogh | AB16: CapteurFRP
D17: TOTAL STANDARD FILTRE | F17: =SUM(F5:F16) -> 2 | G17: =SUM(G5:G16) -> 9 | H17: =SUM(H5:H16) -> 14 | J17: =SUM(J5:J16) -> 16 | K17: =SUM(K5:K16) -> 18 | X17: Barométrique | Y17: Ultrason | Z17: Pression Différentielle | AA17: Pression Différentielle | AB17: Pression Différentielle
X18: Krogh | Z18: Sonde Capacitive | AA18: Sonde Capacitive | AB18: Radar Filoguidé
X19: Forcée | Z19: Radar Filoguidé | AA19: Radar Filoguidé
X21: OptionUltrason | Y21: OptionLSHLSL | Z21: Norme Exécution Vanne Contrôle
X23: Standard | Y23: Lame vibrante 316L | Z23: DIN PN16
D24: IINSTRUM | E24: Filtre | F24: Qté | X24: Bride Raccordement | Y24: Lame et bride revêtue PTFE | Z24: ANSI 150 lbs
E25: Boîte de jonction | F25: 1 | G25: Polyester | H25: Matériau Boîte de jonction
E26: Cablage | F26: 1 | G26: Plastique | H26: Matériau Etiquetage
E27: Boîtier d'arrêt d'urgence | F27: =IF(Calculations!I9="SERIE 1",1,0) -> 0 | X27: Capot Protection 316Ti
E28: Arrêt d'urgence à cable | F28: =IF(Calculations!I9="SERIE 1",0,2) -> 2 | X28: Bride Raccordement + Capot Protection 316Ti
E29: Détecteur de surcouple | F29: =IF(OR(Calculations!I9="SERIE 1",Calculations!I9="SERIE 2"),0,1) -> 0
E30: Capteur de dérive toile | F30: =IF(Calculations!I9="SERIE 1",0,2) -> 2 | X30: Tension PAV
E31: Capteur de dérive bande | F31: =IF(OR(Calculations!I9="SERIE 1",Calculations!I9="SERIE 2"),0,2) -> 0 | X31: LV
E32: Capteur de rotation toile | F32: =IF(OR(Calculations!I9="SERIE 1",Calculations!I9="SERIE 2"),0,1) -> 0 | X32: MV
E33: Capteur de tension toile | F33: =IF(Calculations!I9="SERIE 1",0,2) -> 2
E34: Capteur de rupture courroies boîte à vide | F34: =IF(OR(Calculations!I9="SERIE 1",Calculations!I9="SERIE 2"),0,IF(AND(Calculations!I9="SERIE 3",Calculations!E9<2000,Calculations!G9<20000),0,2)) -> 0
E35: Pressostat pression air comprimé | F35: 1
E36: Pressostat pression eau de lavage toile et bande | F36: =IF(Calculations!I9="SERIE 1",0,1) -> 1 | I36: Transmetteur
E37: Débitmètre - Lubrification BAV | F37: =IF(Calculations!I9="SERIE 1",0,IF(Calculations!I9="SERIE 2",1,2)) -> 1 | G37: =Calculations!E41/F37 -> 80 | H37: Gemu | I37: Non
E38: Débitmètre - Lubrification TABLE | F38: =IF(AND(Calculations!G9>=20000,Calculations!F25>=20),2,0) -> 0 | G38: =IF(F38=0,"N/A",SUM(Calculations!Q39:Q40)/F38) -> N/A | H38: N/A | I38: Non
E39: Débitmètre - Lavage Toile & Bande | F39: 0 | G39: =Calculations!G41 -> 2.98 | H39: Krohne | I39: Non
E40: Capteur de niveau Pulpe - Lame Vibrante | F40: 0
E41: Transmetteur épaisseur gâteau | F41: 0 | H41: Pepperl & Fuchs
E43: TOTAL Filtre | F43: =SUM(F27:F41) -> 9
E45: Accessoires | F45: Qté | G45: Débit (m3/h) | H45: Puissance (kW) | I45: Matériau Ballon | J45: Type Extraction | K45: Régulation | L45: Norme Exécution Vanne Contrôle | M45: Option Vanne - Positionneur type HART | N45: Type Capteur Niveau | O45: Option Capteur Niveau | P45: Transmetteur Pression
E46: Ballon 1 - Pompe 1 | F46: 1 | I46: =Calculations!$C$44 -> 304L | J46: =Calculations!$D$44 -> krogh | K46: Non | L46: N/A | M46: N/A | N46: LSL | O46: N/A | P46: Oui | Q46: Définir règle pour option capteur LSL LSH
E47: Ballon 2 - Pompe 2 | F47: 1 | I47: =Calculations!$C$44 -> 304L | J47: =Calculations!$D$44 -> krogh | K47: VFD | L47: N/A | M47: N/A | N47: Pression Différentielle | O47: Lame vibrante 316L | Q47: Définir règle pour option capteur LSL LSH
E48: Ballon 3 - Pompe 3 | F48: 1 | I48: =Calculations!$C$44 -> 304L | J48: =Calculations!$D$44 -> krogh | K48: Vanne | L48: N/A | M48: N/A | N48: Ultrason | O48: Lame vibrante 316L | Q48: Définir règle pour option capteur LSL LSH
E49: Ballon 4 - Pompe 4 | F49: 1 | I49: =Calculations!$C$44 -> 304L | J49: =Calculations!$D$44 -> krogh | K49: Vanne | L49: N/A | M49: N/A | N49: Pression Différentielle | O49: Lame vibrante 316L | Q49: Définir règle pour option capteur LSL LSH
F51: Qté | G51: Débit (m3/h) | H51: Puissance (kW) | I51: Régulation | J51: Type Capteur | K51: Option Capteur
E52: Pompe 5 | F52: 1 | G52: =Calculations!G41*1.1 -> 3.278 | I52: Flotteur | J52: LSH + LSL | K52: Standard
E53: Pompe 6 | F53: 1 | G53: relier au débit AL | I53: VFD | J53: Ultrason | K53: Standard
F55: Qté | G55: Débit (m3/h) | H55: Puissance (kW) | I55: Tension (V)
E56: Pompe 7 - PAV | F56: 1 | G56: =Calculations!N11 -> 200 | H56: ='PàV Nash Fonte Mot.400V'!M111 ->  | I56: LV
F58: Débit | G58: Régulation | H58: Débitmètre | I58: Norme Exécution Vanne Contrôle | J58: Option Vanne - Positionneur type HART
E59: Wash 1 | G59: Non | H59: Non | I59: N/A | J59: N/A
E60: Wash 2 | G60: Oui | H60: Oui | I60: DIN PN16 | J60: Oui
E61: Wash 3 | G61: Oui | H61: Oui | I61: DIN PN16 | J61: Non
E63: Divers (Agitateur, Ventilateur, Rouleau Presseur…) | F63: Qté | G63: Puissance (kW)
E64: Divers 1
E65: Divers 2
E66: Divers 3
D69: ELECTRICITE | E69: Cellule de Puissance | F69: OUI/NON - condition définie par le scope
E70: Puissance Totale UTILE (kW) | F70: =Calculations!H73+F46*H46+F47*H47+F48*H48+F49*H49+F52*H52+F53*H53+F56*H56+F64*G64+F65*G65+F66*G66 -> 
E71: Socle Hauteur 100 | F71: Non
E72: Socle Hauteur 200 | F72: Oui
E73: Kit d'éclairage et fin de course porte | F73: Oui
E74: Kit de ventilation et grille de sortie | F74: Oui
E75: Poignée type confort avec serrure à clé | F75: Oui | J75: Scope | K75: INSTRUM SEUL | L75: Sélectionner Coffret Local Type Maintenance + Boîte de jonction + Cablage + Repères Cablage
K76: ELECTRICITE-AUTOMATISME + Moteur FAB | L76: Pareil qu'au-dessus + Départ Moteur Filtre + Cellule de puissance + Cellule de distrib + Cellule Automate + Automate Programmable Indus + Coffret Local Multifonction
E77: Cellule de Distribution | F77: OUI/NON - condition définie par le scope | K77: ELECTRICITE-AUTOMATISME + Moteur FAB + Accessoires | L77: Pareil qu'au-dessus + Départ Moteur Filtre + + Départ Moteurs Accessoires + Cellule de puissance + Cellule de distrib + Cellule Automate + Automate Programmable Indus + Coffret Local Multifonction
E78: Puissance Totale Installée (kW) | F78: =F70*1.3 ->  | K78: AUTOMATISME SEUL | L78: Cellule Automate + Automate Programmable Indus + Coffret Local Multifonction
E79: Socle Hauteur 100 | F79: =F71 -> Non | K79: LCP seul
E80: Socle Hauteur 200 | F80: =F72 -> Oui
E81: Kit d'éclairage et fin de course porte | F81: =F73 -> Oui
E82: Poignée type confort avec serrure à clé | F82: =F75 -> Oui
D85: AUTOMATISME | E85: Cellule Automate | F85: OUI/NON - condition définie par le scope
E86: Socle Hauteur 100 | F86: =F79 -> Non
E87: Socle Hauteur 200 | F87: =F80 -> Oui
E88: Kit d'éclairage et fin de course porte | F88: =F81 -> Oui
E89: Poignée type confort avec serrure à clé | F89: =F82 -> Oui
E91: Automate programmable | F91: OUI/NON - condition définie par le scope
E93: Coffret de Commande Locale
E94: Type | F94: Maintenance ou Multifonction - condition définie par le scope

Sheet Project Specs (hidden)
N1: PROJECT SPECIFICATION | AS1: Français | AT1: English
N2: =IF(AD4="Français",AL3,AR3) -> FILTRE A BANDE | AD2: =Calculations!H3 -> rev4 | AP2: Rév. 0 | AR2: Rev. 0
AL3: FILTRE A BANDE | AR3: HORIZONTAL BELT FILTER
AD4: Français | AL4: Français | AR4: English
A5: Client : | D5: =Calculations!C2 -> CARESTER | U5: =IF(AD4="Français",AP5,AV5) -> N° commande : | AA5: =IF(KSNr=0," "," "&KSNr) -> Lxyyyy | AP5: N° commande : | AV5: Order N° :
A6: =IF(AD4="Français",AL6,AR6) -> Type de filtre : | H6: Philippe | AA6: =IF(AD4="Français",AP6,AV6) -> Référence client : | AB6: =Calculations!C4 -> CAREMAG | AL6: Type de filtre : | AP6: Référence client : | AR6: Filter type : | AV6: Client reference :
A7: =IF(AD4="Français",AL7,AR7) -> Identique à / similaire à : | AA7: =IF(AD4="Français",AP7,AV7) -> Référence PID de l'Offre : | AB7: =Calculations!C3 -> 726789 | AL7: Identique à / similaire à : | AP7: Référence PID de l'Offre : | AR7: Identical to / Similar to : | AV7: Offer's PID reference :
A9: =IF(AD4="Français",AL9,AR9) -> Dimensions Filtre | H9: =IF(AD4="Français",AM9,AS9) -> Surface | I9: =Calculations!C9 -> 2 | L9: m² | P9: =IF(AD4="Français",AN9,AT9) -> Largeur | Q9: =Calculations!E9/1000 -> 0.5 | T9: m | AB9: =IF(AD4="Français",AO9,AU9) -> Longueur boite à vide | AC9: =Calculations!G9/1000 -> 4 | AF9: m | AL9: Dimensions Filtre | AM9: Surface | AN9: Largeur | AO9: Longueur boite à vide | AR9: Filter dimensions | AS9: Area | AT9: Width | AU9: Length under vacuum
A10: =IF(AD4="Français",AL10,AR10) -> Vitesse linéaire Filtre | H10: Min | I10: =Calculations!H25 -> 0.03270645953 | L10: m/min | P10: Max | Q10: =Calculations!F25 -> 0.3924775143 | T10: m/min | AL10: Vitesse linéaire Filtre | AR10: Belt speed
A12: =IF(AD4="Français",AL12,AR12) -> Charactéristiques Produit filtré | AL12: Charactéristiques Produit filtré | AR12: Slurry Characteristics
H14: Temp. | L14: °C | P14: pH
A16: =IF(AD4="Français",AL16,AR16) -> Brides | H16: =IF(AD4="Français",AM16,AS16) -> Norme brides | P16: =IF(AD4="Français",AN16,AT16) -> Type brides | Z16: =IF(AD4="Français",AO16,AU16) -> Certification CE | AA16: =IF('Offre NEW'!H55=0,"","X") ->  | AD16: =IF(AD4="Français",AP16,AV16) -> Autre | AL16: Brides | AM16: Norme brides | AN16: Type brides | AO16: Certification CE | AP16: Autre | AR16: Flanges | AS16: Flanges norm | AT16: Flanges type | AU16: European Conformity (EC) | AV16: Other
A18: =IF(AD4="Français",AL18,AR18) -> Alimentation Moteurs | H18: =IF(AD4="Français",AM18,AS18) -> Tension | L18: V | P18: =IF(AD4="Français",AN18,AT18) -> Fréquence | T18: Hz | AL18: Alimentation Moteurs | AM18: Tension | AN18: Fréquence | AR18: Power details | AS18: Voltage | AT18: Frequency
A20: =IF(AD4="Français",AL20,AR20) -> Spécifique | AL20: Spécifique | AR20: Comments
A22: =IF(AD4="Français",AL22,AR22) -> Peinture | AL22: Peinture | AR22: Painting
F23: RAL 5012 | L23: =IF(AD4="Français",AN23,AT23) -> Autre RAL | X23: =IF(AD4="Français",AO23,AU23) -> Ep. Mini. Imposée | AB23: µm | AN23: Autre RAL | AO23: Ep. Mini. Imposée | AT23: Other RAL : | AU23: minimum thickness
A25: =IF(AD4="Français",AL25,AR25) -> Spécifique | AL25: Spécifique | AR25: Comments
A28: =IF(AD4="Français",AL28,AR28) -> Bati | AL28: Bati | AR28: Frame
H29: =IF(AD4="Français",AM29,AS29) -> Série | I29: =Calculations!I9 -> SERIE 2 | P29: =IF(AD4="Français",AN29,AT29) -> Matière Bâti | Q29: =Calculations!H22 -> 304L | X29: =IF(AD4="Français",AO29,AU29) -> Matière boulonnerie | Y29: =Calculations!J24 -> 304 | AB29: =IF(AD4="Français",AP29,AV29) -> Peinture | AM29: Série | AN29: Matière Bâti | AO29: Matière boulonnerie | AP29: Peinture | AS29: Series | AT29: Material of the frame | AU29: Material of bolt & nuts | AV29: Painting
G30: =IF(AD4="Français",AM30,AS30) -> Longerons | O30: =IF(AD4="Français",AN30,AT30) -> Réhausses | W30: =IF(AD4="Français",AO30,AU30) -> Fers de transport | AM30: Longerons | AN30: Réhausses | AO30: Fers de transport | AS30: Stringers | AT30: Raised edges | AU30: Transport beams
H31: =IF(AD4="Français",AM31,AS31) -> Calage pour scellement | P31: =IF(AD4="Français",AN31,AT31) -> Chevilles scellement | AM31: Calage pour scellement | AN31: Chevilles scellement | AS31: Shimming | AT31: Anchor bolts
A33: =IF(AD4="Français",AL33,AR33) -> Spécifique | AL33: Spécifique | AR33: Comments
A35: =IF(AD4="Français",AL35,AR35) -> Parcours toile & bande | AL35: Parcours toile & bande | AR35: Cloth & Belt run | AX35: 0
A36: =IF(AD4="Français",AL36,AR36) -> Bande | H36: =IF($AD$4="Français",AM36,AS36) -> Matière | I36: =Calculations!H23 -> EPDM | P36: =IF($AD$4="Français",AN36,AT36) -> Epaisseur | Q36: =Calculations!E24 -> 18.5 | T36: mm | X36: =IF($AD$4="Français",AO36,AU36) -> Nombre de plis | Y36: 4 | AL36: Bande | AM36: Matière | AN36: Epaisseur | AO36: Nombre de plis | AR36: Belt | AS36: Material | AT36: Thickness | AU36: Number of plies | AX36: 60
A37: =IF(AD4="Français",AL37,AR37) -> Talons | H37: =IF($AD$4="Français",AM37,AS37) -> Matière | I37: =Calculations!E53 -> 304L | P37: =IF($AD$4="Français",AN37,AT37) -> Hauteur | Q37: =Calculations!A9 -> 70 | X37: =IF($AD$4="Français",AO37,AU37) -> Ht. Réhausse talons | Y37: 60 | AB37: mm | AF37: =IF($AD$4="Français",AP37,AV37) -> Matière réhausse | AG37: =IF(Y37=0,"",I37) -> 304L | AL37: Talons | AM37: Matière | AN37: Hauteur | AO37: Ht. Réhausse talons | AP37: Matière réhausse | AR37: Belt curbs | AS37: Material | AT37: Height | AU37: Raised edges height | AV37: Material
A39: =IF(AD4="Français",AL39,AR39) -> Toile | H39: Type jonction | P39: Référence | AF39: =IF($AD$4="Français",AP39,AV39) -> Matière toile | AL39: Toile | AM39: Type jonction | AN39: Référence | AP39: Matière toile | AR39: Cloth | AS39: Junction type | AT39: Reference | AV39: Cloth material
A41: =IF(AD4="Français",AL41,AR41) -> Rouleau d'entrée | H41: Matière | I41: =IF(Calculations!H12="Basic ou option",Calculations!E12,Calculations!H12) -> 304L | P41: Revêtement | X41: Ø | Y41: =IF(Calculations!I9="SERIE 2",'Série 2'!B42,'Séries 3-4-5'!B42) -> 219 | AF41: Qté | AG41: =IF(Calculations!I9="SERIE 2",'Série 2'!B44,'Séries 3-4-5'!B44) -> 1 | AL41: Rouleau d'entrée | AM41: Matière | AN41: Revêtement | AP41: Qté | AR41: Inlet roller | AS41: Material | AT41: Lining | AV41: Qty
A42: =IF(AD4="Français",AL42,AR42) -> Rouleaux support toile | H42: Matière | I42: =I43 -> 304L | P42: Revêtement | X42: Ø | Y42: =IF(Calculations!I9="SERIE 2",'Série 2'!B30,'Séries 3-4-5'!B30) -> 60 | AF42: Qté | AG42: =IF(Calculations!I9="SERIE 2",'Série 2'!B32,'Séries 3-4-5'!B32) -> 2 | AL42: Rouleaux support toile | AM42: Matière | AN42: Revêtement | AP42: Qté | AR42: Cloth support rollers | AS42: Material | AT42: Lining | AV42: Qty
A43: =IF(AD4="Français",AL43,AR43) -> Rouleaux retour toile | H43: Matière | I43: =IF(Calculations!H20="Basic ou option",Calculations!E20,Calculations!H20) -> 304L | P43: Revêtement | X43: Ø | Y43: =IF(Calculations!I9="SERIE 2",'Série 2'!B27,'Séries 3-4-5'!B27) -> 60 | AF43: Qté | AG43: =IF(Calculations!I9="SERIE 2",'Série 2'!B29,'Séries 3-4-5'!B29) -> 8 | AL43: Rouleaux retour toile | AM43: Matière | AN43: Revêtement | AP43: Qté | AR43: Return circuit cloth rollers | AS43: Material | AT43: Lining | AV43: Qty
A44: =IF(AD4="Français",AL44,AR44) -> Rouleaux sortie toile | H44: Matière | I44: =IF(Calculations!H15="Basic ou option",Calculations!E15,Calculations!H15) -> 304L | P44: Revêtement | X44: Ø | Y44: =IF(Calculations!I9="SERIE 2",'Série 2'!B33,'Séries 3-4-5'!B33) -> 60 | AF44: Qté | AG44: =IF(Calculations!I9="SERIE 2",'Série 2'!B35,'Séries 3-4-5'!B35) -> 1 | AL44: Rouleaux sortie toile | AM44: Matière | AN44: Revêtement | AP44: Qté | AR44: Outlet rollers | AS44: Material | AT44: Lining | AV44: Qty
A45: =IF(AD4="Français",AL45,AR45) -> Rouleau débatissage | H45: Matière | I45: =I44 -> 304L | P45: Revêtement | X45: Ø | Y45: =IF(Calculations!I9="SERIE 2",'Série 2'!B36,'Séries 3-4-5'!B36) -> 60 | AF45: Qté | AG45: =IF(Calculations!I9="SERIE 2",'Série 2'!B38,'Séries 3-4-5'!B38) -> 1 | AL45: Rouleau débatissage | AM45: Matière | AN45: Revêtement | AP45: Qté | AR45: Discharge roller | AS45: Material | AT45: Lining | AV45: Qty
A46: =IF(AD4="Français",AL46,AR46) -> Rouleaux support bande | H46: Matière | I46: =IF(Calculations!H19="Basic ou option",Calculations!E19,Calculations!H19) -> 304L | P46: Revêtement | X46: Ø | Y46: =IF(Calculations!I9="SERIE 2",'Série 2'!B24,'Séries 3-4-5'!B24) -> 219 | AF46: Qté | AG46: =IF(Calculations!I9="SERIE 2",'Série 2'!B26,'Séries 3-4-5'!B26) -> 3 | AL46: Rouleaux support bande | AM46: Matière | AN46: Revêtement | AP46: Qté | AR46: Belt support roller | AS46: Material | AT46: Lining | AV46: Qty
A47: =IF(AD4="Français",AL47,AR47) -> Rouleau guidage toile | H47: Matière | I47: =I44 -> 304L | P47: Revêtement | X47: Ø | Y47: =IF(Calculations!I9="SERIE 2","",'Séries 3-4-5'!B39) ->  | AF47: Type guidage | AG47: =IF(Calculations!I9="SERIE 2","Pinch rolls","JUD") -> Pinch rolls | AL47: Rouleau guidage toile | AM47: Matière | AN47: Revêtement | AP47: Type guidage | AR47: Cloth tracking roller | AS47: Material | AT47: Lining | AV47: Tracking type
A48: =IF(AD4="Français",AL48,AR48) -> Tambour moteur | H48: Matière | I48: Acier S235JR | P48: Revêtement | Q48: SBR | X48: Ø | Y48: =Calculations!K9 -> 630 | AF48: Entrain. Droit/Gauche | AL48: Tambour moteur | AM48: Matière | AN48: Revêtement | AP48: Entrain. Droit/Gauche | AR48: Head pulley | AS48: Material | AT48: Lining | AV48: Motor right/left
A49: =IF(AD4="Français",AL49,AR49) -> Tambour libre | H49: Matière | I49: Acier S235JR | P49: Revêtement | Q49: SBR | X49: Ø | Y49: =Y48 -> 630 | AF49: Revêtement arbres | AG49: =IF(AD4="Français","caoutchouc vulcanisé à chaud","hot vulcanized rubber") -> caoutchouc vulcanisé à chaud | AL49: Tambour libre | AM49: Matière | AN49: Revêtement | AP49: Revêtement arbres | AR49: Tail pulley | AS49: Material | AT49: Lining | AV49: Shaft lining
A50: =IF(AD4="Français",AL50,AR50) -> Rouleaux guidage bande | P50: Qté Galets Simple | AF50: =IF($AD$4="Français",AP50,AV50) -> Qté Galets Double | AL50: Rouleaux guidage bande | AN50: Qté Galets Simple | AP50: Qté Galets Double | AR50: Belt tracking roller | AT50: Qty of single roller belt tracking | AV50: Qty of double roller belt tracking
K51: =IF(AD4="Français",AM51,AS51) -> Rouleau déplisseur toile | R51: =IF(AD4="Français",AN51,AT51) -> Paliers Inox | X51: =IF(AD4="Français",AO51,AU51) -> Capotage paliers | AF51: =IF(AD4="Français",AP51,AV51) -> Système graissage paliers | AM51: Rouleau déplisseur toile | AN51: Paliers Inox | AO51: Capotage paliers | AP51: Système graissage paliers | AS51: Cloth dewrinkling roller | AT51: Stainless steel bearing blocks | AU51: Bearing blocks cover | AV51: Bearing blocks Lub system
A53: =IF(AD4="Français",AL53,AR53) -> Spécifique | AL53: Spécifique | AR53: Comments
A55: =IF(AD4="Français",AL55,AR55) -> Groupe de commande | AL55: Groupe de commande | AR55: Filter Drive
A56: =IF(AD4="Français",AL56,AR56) -> Réducteur | H56: =IF(AD4="Français",AM56,AS56) -> Puissance Absorbée | I56: =Calculations!N25 -> 0,06 kW | L56: kW | P56: =IF(AD4="Français",AN56,AT56) -> Couple | Q56: =Calculations!N26 -> 2319.944184 | T56: Nm | X56: =IF($AD$4="Français",AO56,AU56) -> Facteur Service | Y56: 1.3 | AL56: Réducteur | AM56: Puissance Absorbée | AN56: Couple | AO56: Facteur Service | AR56: Gear box | AS56: Absorbed power | AT56: Output torque | AU56: Service Factor
H57: =IF(AD4="Français",AM57,AS57) -> Puissance Installée | I57: =Calculations!R25 -> 0,37 kW | L57: kW | W57: =IF(AD4="Français",AN57,AT57) -> Vitesse réducteur arbre lent : | X57: Min | Y57: =Calculations!H26 -> 0.01605364597 | AB57: rpm | AF57: Max | AG57: =Calculations!F26 -> 0.1926437516 | AJ57: rpm | AM57: Puissance Installée | AN57: Vitesse réducteur arbre lent : | AS57: Installed power | AT57: Pulley speed
A59: =IF(AD4="Français",AL59,AR59) -> Spécifique | AL59: Spécifique | AR59: Comments
A61: =IF(AD4="Français",AL61,AR61) -> Boite à vide | AL61: Boite à vide | AR61: Vacuum box
A62: =IF($AD$4="Français",AL62,AR62) -> Tronçons | H62: =IF(AD4="Français",AM62,AS62) -> Matière | I62: =Calculations!H11 -> 304L | P62: =IF(AD4="Français",AN62,AT62) -> Section | Q62: =IF(Calculations!I9=2,'Série 2'!B46,'Séries 3-4-5'!B46) -> 140 | X62: =IF(AD4="Français",AO62,AU62) -> Revêtement interne | AF62: =IF(AD4="Français",AP62,AV62) -> Double enveloppe | AL62: Tronçons | AM62: Matière | AN62: Section | AO62: Revêtement interne | AP62: Double enveloppe | AR62: Vacuum box sections | AS62: Material | AT62: Section | AU62: Internal lining | AV62: Double jacket | AX62: Clipper
A63: =IF($AD$4="Français",AL63,AR63) -> Sorties | H63: DN | I63: =Calculations!H29 -> 65 | P63: =IF(AD4="Français",AN63,AT63) -> Qté | Q63: =Calculations!R36 -> 4 | X63: =IF(AD4="Français",AO63,AU63) -> Matière Tuyauteries | Y63: =Calculations!E30 -> 304L | AF63: =IF(AD4="Français",AP63,AV63) -> Nbre de zones | AG63: =Calculations!S31 -> 3 | AL63: Sorties | AN63: Qté | AO63: Matière Tuyauteries | AP63: Nbre de zones | AR63: Outlet | AT63: Qty | AU63: Pipe connect. material | AV63: Number of sections | AX63: Welded
H64: =IF(AD4="Français",AM64,AS64) -> Matière Courroies | I64: =IF(AD4="Français","caoutchouc + PE","Rubber with PE") -> caoutchouc + PE | P64: =IF(AD4="Français",AN64,AT64) -> Décristallisation | X64: Lubrification | Y64: =IF(Calculations!C9>15,"X","") ->  | AF64: =IF(AD4="Français",AP64,AV64) -> Matière réglettes | AG64: CERAMP | AM64: Matière Courroies | AN64: Décristallisation | AP64: Matière réglettes | AS64: Wear belts material | AT64: Decrystallization | AV64: Strips material
A66: =IF(AD4="Français",AL66,AR66) -> Spécifique | AL66: Spécifique | AR66: Comments
A68: =IF(AD4="Français",AL68,AR68) -> Lavage toile & bande et évacuation | AL68: Lavage toile & bande et évacuation | AR68: Cloth&belt wash and discharge
AM69: Matière nourrice de lavage | AN69: Qté débitmètre table | AO69: Qté débitmètre BAV | AP69: Matière vannes | AS69: Material washing manifold | AT69: Qty flowmeter table | AU69: Qty Flowmeter VB | AV69: Material valves
H70: =IF($AD$4="Français",AM69,AS69) -> Matière nourrice de lavage | I70: ='OFFRE TECHNIQUE'!R691 -> 304L | P70: =IF($AD$4="Français",AN69,AT69) -> Qté débitmètre table | Q70: =IF(Calculations!P39="Oui",2,"") -> 2 | X70: =IF($AD$4="Français",AO69,AU69) -> Qté débitmètre BAV | Y70: 2 | AF70: =IF($AD$4="Français",AP69,AV69) -> Matière vannes | AG70: cast iron | AL70: Lavage T&B | AM70: Diam. Buses toile | AN70: Diam. Buses bande | AO70: Débit lavage total | AP70: Matière buses | AR70: Cloth&Belt wash | AS70: DN Cloth Nozzles | AT70: DN Belt Nozzles | AU70: Total wash flow | AV70: Nozzle material | AX70: 1
A71: =IF($AD$4="Français",AL70,AR70) -> Lavage T&B | H71: =IF($AD$4="Français",AM70,AS70) -> Diam. Buses toile | I71: =IF(Calculations!D38="CM 04 F - dia 1,3",1.3,IF(Calculations!D38="CM 06 F - dia 1,6",1.6,2)) -> 1.3 | P71: =IF($AD$4="Français",AN70,AT70) -> Diam. Buses bande | Q71: =IF(Calculations!D40="CM 03 F - dia 1,1",1.1,IF(Calculations!D40="CM 04 F - dia 1,3",1.3,IF(Calculations!D40="CM 06 F - dia 1,6",1.6,2))) -> 1.1 | X71: =IF($AD$4="Français",AO70,AU70) -> Débit lavage total | Y71: =Calculations!G41 -> 2.98 | AB71: m3/h | AF71: =IF($AD$4="Français",AP70,AV70) -> Matière buses | AG71: ='OFFRE TECHNIQUE'!R647 -> PVDF | AL71: Lubrification BAV | AM71: Débit mini | AN71: Débit maxi | AR71: VB Lubrification | AS71: Min. Flow | AT71: Max. Flow | AX71: 2
A72: =IF($AD$4="Français",AL71,AR71) -> Lubrification BAV | H72: Débit mini | I72: =Calculations!C41 -> 20 | L72: l/h | P72: Débit maxi | Q72: =Calculations!E41 -> 80 | T72: l/h | AL72: Courroies de table | AM72: Débit Lavage | AN72: Diam. Buses | AR72: Table Wear Belt | AS72: Wash flow | AT72: DN nozzles | AX72: 3
A73: Courroies de table | H73: Débit Lavage | I73: =IF(Calculations!P39="Oui",Calculations!Q39,"") -> 55.2 | L73: l/h | P73: Diam. Buses | X73: Débit Lubrification | Y73: =IF(Calculations!P40="Oui",Calculations!Q40,"") ->  | AB73: l/h | AM73: Matière bacs de récupération eaux | AN73: Grattoir fixe | AO73: Grattoir ressorts | AP73: Grattoir contre poids | AS73: Water recovery tank material | AT73: Fixed scraper | AU73: Spring scraper | AV73: Counterweight scraper | AX73: 4
H74: Matière bacs de récupération eaux | I74: =IF('Offre NEW'!H41=1,'Offre NEW'!D41,"") ->  | O74: =IF($AD$4="Français",AN73,AT73) -> Grattoir fixe | T74: =IF($AD$4="Français",AO73,AU73) -> Grattoir ressorts | Z74: =IF($AD$4="Français",AP73,AV73) -> Grattoir contre poids | AF74: =IF($AD$4="Français",AP74,AV74) -> Matière lame grattoir | AG74: ='OFFRE TECHNIQUE'!R666 -> Polyurethane | AM74: Matière trémie décharge | AN74: Matières rampes | AP74: Matière lame grattoir | AS74: Discharge hopper material | AT74: Ramps material | AV74: Scraper blade material
H75: Matière trémie décharge | I75: ='OFFRE TECHNIQUE'!R665 -> 304L | P75: Matières rampes | Q75: =IF(Calculations!H18="Basic ou option",Calculations!E18,H18) -> 304L
A77: =IF($AD$4="Français",AL77,AR77) -> Spécifique | AL77: Spécifique | AR77: Remarks
A79: =IF($AD$4="Français",AL79,AR79) -> Accessoires supérieurs | AL79: Accessoires supérieurs | AR79: Process equipment
A80: =IF($AD$4="Français",AL80,AR80) -> Barrage d'entrée | H80: =IF($AD$4="Français",AM80,AS80) -> Matière bavette | I80: Rubber | P80: =IF($AD$4="Français",AN80,AT80) -> Matière support | Q80: =Calculations!E11 -> 304L | AB80: =IF($AD$4="Français",AP80,AV80) -> Bavettes latérales zone alimentation | AL80: Barrage d'entrée | AM80: Matière bavette | AN80: Matière support | AP80: Bavettes latérales zone alimentation | AR80: Entrance dam | AS80: Dam material | AT80: Support Material | AV80: Feeding zone Side Dams
A81: =IF($AD$4="Français",AL81,AR81) -> Alimentateur | H81: =IF($AD$4="Français",AM81,AS81) -> Type | I81: =Calculations!Q12 -> QDC | P81: =IF($AD$4="Français",AN81,AT81) -> Qté | Q81: 1 | U81: DN | V81: =Calculations!M27 -> 9.841751706 | AB81: =IF($AD$4="Français",AP81,AV81) -> Matière corps | AC81: =Calculations!E11 -> 304L | AL81: Alimentateur | AM81: Type | AN81: Qté | AP81: Matière corps | AR81: Feeder | AS81: Type | AT81: Qty | AV81: Body Material
H82: Collecteur alimentation | P82: =IF($AD$4="Français",AN82,AT82) -> Gouttières latérales zone alim. | AB82: =IF($AD$4="Français",AP82,AV82) -> Matière revêtement interne alimentateur | AM82: Collecteur alimentation | AN82: Gouttières latérales zone alim. | AP82: Matière revêtement interne alimentateur | AS82: Manifold feeding | AT82: Feed. Zone side gutters | AV82: Feeder coating material
H83: Spécifique | AM83: Spécifique | AS83: Remarks
A85: Goulottes de lavage | H85: Type | I85: =Calculations!Q13 -> OVER | P85: =IF($AD$4="Français",AN85,AT85) -> Qté | Q85: =Calculations!R11 -> 3 | V85: =IF($AD$4="Français",AO85,AU85) -> Chariot | AL85: Goulottes de lavage | AM85: Type | AN85: Qté | AO85: Chariot | AR85: Washing feeders | AS85: Type | AT85: Qty | AU85: Trolley
H86: Matière | I86: =IF(Calculations!H14="Basic ou option",Calculations!E14,H14) -> 304L | O86: =IF($AD$4="Français",AN86,AT86) -> DN Goulottes: | P86: DN1 | Q86: =Calculations!S28 -> 20 | U86: DN2 | V86: =IF(Q85=1,"",Q86) -> 20 | AA86: DN3 | AB86: =IF(Q85=1,"",IF(Q85=2,"",Q86)) -> 20 | AF86: DN4 | AG86: =IF(Q85=4,Q86,"") ->  | AM86: Matière | AN86: DN Goulottes: | AS86: Material | AT86: DN feed:
H88: Spécifique | AM88: Spécifique | AS88: Remarks
A90: Barrage pendulaire | H90: Matière bavette | I90: ='OFFRE TECHNIQUE'!R774 -> Rubber | P90: =IF($AD$4="Français",AN90,AT90) -> Matière support | Q90: ='OFFRE TECHNIQUE'!R775 -> 304L | U90: =IF($AD$4="Français",AO90,AU90) -> Qté | AL90: Barrage pendulaire | AM90: Matière bavette | AN90: Matière support | AO90: Qté | AR90: Pendular dam | AS90: Dam Material | AT90: Support Material | AU90: Qty
A91: Rouleau presseur | H91: Matière rlx | P91: =IF($AD$4="Français",AN91,AT91) -> Matière support | U91: Vmin | Y91: rpm | AA91: Vmax | AE91: rpm | AF91: P | AJ91: kW | AL91: Rouleau presseur | AM91: Matière rlx | AN91: Matière support | AR91: Pressing roller | AS91: Roller Material | AT91: Support Material
A92: Rouleau batteur | H92: Matière rlx | P92: Matière lanières | U92: Vmin | Y92: rpm | AA92: Vmax | AE92: rpm | AF92: P | AJ92: kW | AL92: Rouleau batteur | AM92: Matière rlx | AN92: Matière lanières | AR92: Beating roller | AS92: Roller Material | AT92: Straps Material
A93: Caisson vapeur | H93: =IF($AD$4="Français",AM93,AS93) -> Matière | P93: =IF($AD$4="Français",AN93,AT93) -> Matière support | AL93: Caisson vapeur | AM93: Matière | AN93: Matière support | AR93: Steam hood | AS93: Material | AT93: Support Material
A95: Spécifique | AL95: Spécifique | AR95: Remarks
A97: Table support bande | AL97: Table support bande | AN97: Type Réglettes : | AO97: Plates | AR97: Belt support table | AT97: Sliding strips Type: | AU97: Plates
H98: =IF($AD$4="Français",AM98,AS98) -> Matière Fers | P98: =IF($AD$4="Français",AN98,AT98) -> Matière Réglettes | Q98: HMWPE | W98: =IF($AD$4="Français",AN97,AT97) -> Type Réglettes : | Y98: =IF($AD$4="Français",AO97,AU97) -> Plates | AC98: =IF($AD$4="Français",AO98,AU98) -> Epaulement | AH98: =IF($AD$4="Français",AP98,AV98) -> Lubrification | AM98: Matière Fers | AN98: Matière Réglettes | AO98: Epaulement | AP98: Lubrification | AS98: Support irons material | AT98: Sliding strips Material | AU98: Support | AV98: Lubrification
H99: =IF($AD$4="Français",AM99,AS99) -> Table à galets | P99: =IF($AD$4="Français",AN99,AT99) -> Dim. courroies | Q99: =Calculations!R77 -> 30 mm x 5 mm | AC99: =IF($AD$4="Français",AO99,AU99) -> Contre poids tension courroies | AM99: Table à galets | AN99: Dim. courroies | AO99: Contre poids tension courroies | AS99: Rolling table | AT99: Support Belt Dim. | AU99: Support belt tensionning counterweight
A101: Spécifique | AL101: Spécifique | AR101: Remarks
A103: Collecteur à filtrats | W103: =IF($AD$4="Français",AO103,AU103) -> DN de Sorties | AL103: Collecteur à filtrats | AO103: DN de Sorties | AR103: Filtrate manifold | AU103: Outside pipe DN
H104: =IF($AD$4="Français",AM104,AS104) -> Matière | I104: =IF(N104=0,"",'Offre NEW'!D27) -> 304L | M104: =IF($AD$4="Français",AN104,AT104) -> Qté | N104: ='Offre NEW'!H27 -> 1 | Q104: DN1 | R104: =IF(Calculations!S31>0,Calculations!G44,"") -> 65 | V104: DN2 | W104: =IF(Calculations!S31>1,Calculations!G44,"") -> 65 | AA104: DN3 | AB104: =IF(Calculations!S31>2,Calculations!G44,"") -> 65 | AF104: DN4 | AG104: =IF(Calculations!S31>3,Calculations!G44,"") ->  | AM104: Matière | AN104: Qté | AS104: Material | AT104: Qty
A105: Supportage collecteurs | I105: =IF($AD$4="Français",AM105,AS105) -> Sur filtre | N105: =IF($AD$4="Français",AN105,AT105) -> Indépendant | V105: =IF($AD$4="Français",AO105,AU105) -> Matière supports | AD105: =IF($AD$4="Français",AP105,AV105) -> Chevilles scellement | AL105: Supportage collecteurs | AM105: Sur filtre | AN105: Indépendant | AO105: Matière supports | AP105: Chevilles scellement | AR105: Manifold Support | AS105: On Filter | AT105: Independant | AU105: Support Material | AV105: Anchor bolts
A107: Spécifique | AL107: Spécifique | AR107: Remarks
A109: Hotte | AL109: Hotte | AR109: Fume hood
H110: =IF($AD$4="Français",AM110,AS110) -> Matière hotte | S110: =IF($AD$4="Français",AN110,AT110) -> Ouvertures latérales souples | AA110: =IF($AD$4="Français",AO110,AU110) -> Ouvertures latérales rigides | AM110: Matière hotte | AN110: Ouvertures latérales souples | AO110: Ouvertures latérales rigides | AS110: Hood material | AT110: Flexible side widows | AU110: Rigid side windows
A112: Spécifique | AL112: Spécifique | AR112: Remarks
A114: Récupération des égoutures | AL114: Récupération des égoutures | AR114: Drip pan
H115: =IF($AD$4="Français",AM115,AS115) -> Matière | P115: =IF($AD$4="Français",AN115,AT115) -> DN sortie | AM115: Matière | AN115: DN sortie | AS115: Material | AT115: Outside pipe DN
A117: Spécifique | AL117: Spécifique | AR117: Remarks
A119: Protections grillagées | AL119: Protections grillagées | AR119: Safety guards
H120: =IF($AD$4="Français",AM120,AS120) -> Matière grilles | I120: Rèsine | P120: =IF($AD$4="Français",AN120,AT120) -> Matière supports | Q120: 316L | AA120: =IF($AD$4="Français",AO120,AU120) -> Langue texte panneaux sécurité | AM120: Matière grilles | AN120: Matière supports | AO120: Langue texte panneaux sécurité | AS120: Guards Material | AT120: Support material | AU120: Security information panel language
A122: Spécifique | AL122: Spécifique | AR122: Remarks
A124: Outillage spécial | AL124: Outillage spécial | AR124: Special tools
H125: =IF($AD$4="Français",AM125,AS125) -> Machine ultrasons soudure toile | O125: =IF($AD$4="Français",AN125,AT125) -> Fer à découper toile | S125: =IF($AD$4="Français",AO125,AU125) -> Tension | W125: V | AB125: =IF($AD$4="Français",AP125,AV125) -> Fer U de soudage toile | AM125: Machine ultrasons soudure toile | AN125: Fer à découper toile | AO125: Tension | AP125: Fer U de soudage toile | AS125: Ultrasonic cloth welding machine | AT125: Cutting cloth iron | AU125: Voltage | AV125: U Iron welding cloth
H126: =IF($AD$4="Français",AM126,AS126) -> Rouleau tendeur | O126: =IF($AD$4="Français",AN126,AT126) -> Matière rouleau tendeur | AB126: =IF($AD$4="Français",AP126,AV126) -> Outillage boite à vide | AM126: Rouleau tendeur | AN126: Matière rouleau tendeur | AP126: Outillage boite à vide | AS126: Tensionning rollers | AT126: Tensionning roller material | AV126: Vacuum box tools
A128: Spécifique | AL128: Spécifique | AR128: Remarks
A130: Ballons Séparateurs | AL130: Ballons Séparateurs | AR130: Filtrate Receivers
A131: Ballon N°1 | H131: =IF($AD$4="Français",AM131,AS131) -> Matière | I131: =Calculations!C44 -> 304L | M131: Ø | N131: =Calculations!E44 -> 500 | R131: =IF($AD$4="Français",AN131,AT131) -> Type | S131: =Calculations!D44 -> krogh | Y131: =IF($AD$4="Français",AO131,AU131) -> Pieds support | AF131: =IF($AD$4="Français",AP131,AV131) -> Matière pieds support | AL131: Ballon N°1 | AM131: Matière | AN131: Type | AO131: Pieds support | AP131: Matière pieds support | AR131: Filtrate receiver N°1 | AS131: Material | AT131: Type | AU131: Supporting legs | AV131: Supporting legs Material
H132: =IF($AD$4="Français",AM132,AS132) -> Qté Détecteurs de niveau | R132: =IF($AD$4="Français",AN132,AT132) -> Transmetteur niveau différentiel | Y132: =IF($AD$4="Français",AO132,AU132) -> Transmetteur pression | AF132: =IF($AD$4="Français",AP132,AV132) -> Chevilles scellement | AM132: Qté Détecteurs de niveau | AN132: Transmetteur niveau différentiel | AO132: Transmetteur pression | AP132: Chevilles scellement | AS132: Level Detector Qty | AT132: Differential Level transmitter | AU132: Pressure Transmitter | AV132: Anchor bolts
A134: Ballon N°2 | H134: Matière | I134: =IF(1<Calculations!$S$31,'Project Specs'!I131:K131,"") -> 304L | M134: Ø | N134: =IF(1<Calculations!$S$31,'Project Specs'!N131:P131,"") -> 500 | R134: =IF($AD$4="Français",AN134,AT134) -> Type | S134: =IF(1<Calculations!$S$31,'Project Specs'!S131:U131,"") -> krogh | Y134: Pieds support | AF134: Matière pieds support | AL134: Ballon N°2 | AM134: Matière | AN134: Type | AO134: Pieds support | AP134: Matière pieds support | AR134: Filtrate receiver N°2 | AS134: Material | AT134: Type | AU134: Supporting legs | AV134: Supporting legs Material
H135: Qté Détécteurs de niveau | R135: =IF($AD$4="Français",AN135,AT135) -> Transmetteur niveau différentiel | Y135: Transmetteur pression | AF135: Chevilles scellement | AM135: Qté Détécteurs de niveau | AN135: Transmetteur niveau différentiel | AO135: Transmetteur pression | AP135: Chevilles scellement | AS135: Level Detector Qty | AT135: Differential Level transmitter | AU135: Pressure Transmitter | AV135: Anchor bolts
A137: Ballon N°3 | H137: Matière | I137: =IF(2<Calculations!$S$31,'Project Specs'!I134:K134,"") -> 304L | M137: Ø | N137: =IF(2<Calculations!$S$31,'Project Specs'!N134:P134,"") -> 500 | R137: =IF($AD$4="Français",AN137,AT137) -> Type | S137: =IF(2<Calculations!$S$31,'Project Specs'!S134:U134,"") -> krogh | Y137: Pieds support | AF137: Matière pieds support | AL137: Ballon N°3 | AM137: Matière | AN137: Type | AO137: Pieds support | AP137: Matière pieds support | AR137: Filtrate receiver N°3 | AS137: Material | AT137: Type | AU137: Supporting legs | AV137: Supporting legs Material
H138: Qté Détécteurs de niveau | R138: =IF($AD$4="Français",AN138,AT138) -> Transmetteur niveau différentiel | Y138: Transmetteur pression | AF138: Chevilles scellement | AM138: Qté Détécteurs de niveau | AN138: Transmetteur niveau différentiel | AO138: Transmetteur pression | AP138: Chevilles scellement | AS138: Level Detector Qty | AT138: Differential Level transmitter | AU138: Pressure Transmitter | AV138: Anchor bolts
A140: Ballon N°4 | H140: Matière | I140: =IF(3<Calculations!$S$31,'Project Specs'!I137:K137,"") ->  | M140: Ø | N140: =IF(3<Calculations!$S$31,'Project Specs'!N137:P137,"") ->  | R140: =IF($AD$4="Français",AN140,AT140) -> Type | S140: =IF(3<Calculations!$S$31,'Project Specs'!S137:U137,"") ->  | Y140: Pieds support | AF140: Matière pieds support | AL140: Ballon N°4 | AM140: Matière | AN140: Type | AO140: Pieds support | AP140: Matière pieds support | AR140: Filtrate receiver N°4 | AS140: Material | AT140: Type | AU140: Supporting legs | AV140: Supporting legs Material
H141: =IF($AD$4="Français",AM141,AS141) -> Qté Détécteurs de niveau | R141: =IF($AD$4="Français",AN141,AT141) -> Transmetteur niveau différentiel | Y141: =IF($AD$4="Français",AO141,AU141) -> Transmetteur pression | AF141: =IF($AD$4="Français",AP141,AV141) -> Chevilles scellement | AM141: Qté Détécteurs de niveau | AN141: Transmetteur niveau différentiel | AO141: Transmetteur pression | AP141: Chevilles scellement | AS141: Level Detector Qty | AT141: Differential Level transmitter | AU141: Pressure Transmitter | AV141: Anchor bolts
A144: Spécifique | AL144: Spécifique | AR144: Remarks
A146: =IF($AD$4="Français",AL146,AR146) -> Cyclone | AL146: Cyclone | AR146: Cyclone
H147: =IF($AD$4="Français",AM147,AS147) -> Matière | I147: =IF(Calculations!C46="Exclu","",Calculations!C46) -> 304L | M147: Ø | N147: =IF(I147="","",Calculations!E46) -> 200 | U147: =IF($AD$4="Français",AN147,AT147) -> Chevilles scellement | Y147: =IF($AD$4="Français",AO147,AU147) -> Pieds support | AF147: =IF($AD$4="Français",AP147,AV147) -> Matière pieds support | AM147: Matière | AN147: Chevilles scellement | AO147: Pieds support | AP147: Matière pieds support | AS147: Material | AT147: Anchor bolts | AU147: Supporting legs | AV147: Supporting legs Material
A149: Spécifique | AL149: Spécifique | AR149: Remarks
A151: Laveur de gaz | AL151: Laveur de gaz | AR151: Scrubber
H152: =IF($AD$4="Français",AM152,AS152) -> Matière ballon | I152: =IF(Calculations!C48="Exclu","",Calculations!C48) ->  | M152: Ø | N152: =IF(I152="","",Calculations!E48) ->  | R152: =IF($AD$4="Français",AN152,AT152) -> DN buses | Y152: =IF($AD$4="Français",AO152,AU152) -> Pieds support | AF152: =IF($AD$4="Français",AP152,AV152) -> Matière pieds support | AM152: Matière ballon | AN152: DN buses | AO152: Pieds support | AP152: Matière pieds support | AS152: Filtrate receiver Material | AT152: Nozzles DN | AU152: Supporting legs | AV152: Supporting legs Material
R153: =IF($AD$4="Français",AN153,AT153) -> Matière buses | S153: =I152 ->  | AF153: =IF($AD$4="Français",AP153,AV153) -> Chevilles scellement | AN153: Matière buses | AP153: Chevilles scellement | AT153: Nozzles Material | AV153: Anchor bolts
A155: Spécifique | AL155: Spécifique | AR155: Remarks
A157: Bac récupération lavage toile & bande | AL157: Bac récupération lavage toile & bande | AO157: Fond conique | AR157: Cloth&belt wash water tank | AU157: Conical tank
H158: =IF($AD$4="Français",AM158,AS158) -> Matière | I158: =IF('Offre NEW'!H41>0,'Offre NEW'!D41,"") ->  | M158: Ø | R158: =IF($AD$4="Français",AN158,AT158) -> Ht | V158: mm | Y158: =IF($AD$4="Français",AO158,AU158) -> Fond plat | AC158: =IF($AD$4="Français",AO157,AU157) -> Fond conique | AG158: =IF($AD$4="Français",AP158,AV158) -> Couvercle | AM158: Matière | AN158: Ht | AO158: Fond plat | AP158: Couvercle | AS158: Material | AT158: Height | AU158: Circular tank | AV158: Cover
H159: =IF($AD$4="Français",AM159,AS159) -> Qté Détécteurs de niveau | R159: =IF($AD$4="Français",AN159,AT159) -> Transmetteur niveau | Y159: =IF($AD$4="Français",AO159,AU159) -> EV Appoint d'eau | AG159: =IF($AD$4="Français",AP159,AV159) -> Vanne flotteur Appoint d'eau | AM159: Qté Détécteurs de niveau | AN159: Transmetteur niveau | AO159: EV Appoint d'eau | AP159: Vanne flotteur Appoint d'eau | AS159: Level detector qty | AT159: Level transmitter | AU159: Addition of water Solenoid valve | AV159: Addition of water float valve
R160: Bac agité | AG160: =IF($AD$4="Français",AP160,AV160) -> Chevilles scellement | AN160: Bac agité | AP160: Chevilles scellement | AT160: Agitator in tank | AV160: Anchor bolts
A162: Spécifique | AL162: Spécifique | AR162: Remarks
A164: Bac récupération eau pompe à vide | AL164: Bac récupération eau pompe à vide | AR164: Vaccum pump collecting tank
H165: =IF($AD$4="Français",AM165,AS165) -> Matière | I165: =IF('Offre NEW'!H40>0,'Offre NEW'!D40,"") ->  | M165: Ø | N165: =IF(I165="","",'Offre NEW'!E40) ->  | R165: =IF($AD$4="Français",AN165,AT165) -> Ht | V165: mm | AC165: =IF($AD$4="Français",AO165,AU165) -> Chevilles scellement | AG165: =IF($AD$4="Français",AP165,AV165) -> Couvercle | AM165: Matière | AN165: Ht | AO165: Chevilles scellement | AP165: Couvercle | AS165: Material | AT165: Height | AU165: Anchor bolts | AV165: Cover
H166: =IF($AD$4="Français",AM166,AS166) -> Qté Détecteurs de niveau | R166: =IF($AD$4="Français",AN166,AT166) -> Transmetteur niveau | Y166: =IF($AD$4="Français",AO166,AU166) -> EV Appoint d'eau | AG166: =IF($AD$4="Français",AP166,AV166) -> Vanne flotteur Appoint d'eau | AM166: Qté Détecteurs de niveau | AN166: Transmetteur niveau | AO166: EV Appoint d'eau | AP166: Vanne flotteur Appoint d'eau | AS166: Level detector qty | AT166: Level transmitter | AU166: Addition of water Solenoid valve | AV166: Addition of water float valve
A168: Spécifique | AL168: Spécifique | AR168: Remarks
A170: Bac de pied barométrique | AL170: Bac de pied barométrique | AR170: Barometric filtrate seal tank
H171: =IF($AD$4="Français",AM171,AS171) -> Matière | I171: =IF(Calculations!D44="barometrique",I131,"") ->  | M171: Ø | N171: =IF(I171="","",'Offre NEW'!E36) ->  | R171: =IF($AD$4="Français",AN171,AT171) -> Ht | V171: mm | AA171: =IF($AD$4="Français",AO171,AU171) -> Qté bacs | AB171: =IF(Calculations!W44="barometrique",Calculations!S31,"0") -> 0 | AM171: Matière | AN171: Ht | AO171: Qté bacs | AS171: Material | AT171: Height | AU171: Tank Qty
H172: =IF($AD$4="Français",AM172,AS172) -> Qté Détecteurs de niveau | R172: =IF($AD$4="Français",AN172,AT172) -> Transmetteur niveau | AC172: =IF($AD$4="Français",AO172,AU172) -> Chevilles scellement | AG172: =IF($AD$4="Français",AP172,AV172) -> Couvercle | AM172: Qté Détecteurs de niveau | AN172: Transmetteur niveau | AO172: Chevilles scellement | AP172: Couvercle | AS172: Level detector qty | AT172: Level transmitter | AU172: Anchor bolts | AV172: Cover
A174: Spécifique | AL174: Spécifique | AR174: Remarks
A176: Pompe à vide | AL176: Pompe à vide | AR176: Vacuum pump
A177: Pompe | H177: =IF($AD$4="Français",AM177,AS177) -> Débit air | I177: =IF('Offre NEW'!H49>0,Calculations!N11,"") -> 200 | L177: m3/h | P177: =IF($AD$4="Français",AN177,AT177) -> Vide | Q177: =IF(I177="","",'VAC PUMP'!R8) -> 400 | T177: mmHg | X177: =IF($AD$4="Français",AO177,AU177) -> T° entrée Gaz | Y177: =IF(I177="","",'VAC PUMP'!R12) -> 40 | AB177: °C | AF177: =IF($AD$4="Français",AP177,AV177) -> T° eau anneau | AG177: =IF(I177="","",'VAC PUMP'!R13) -> 30 | AJ177: °C | AL177: Pompe | AM177: Débit air | AN177: Vide | AO177: T° entrée Gaz | AP177: T° eau anneau | AR177: Pump | AS177: Air Flow | AT177: Vacuum | AU177: T° Gaz Entrance | AV177: T° Water ring
H178: =IF($AD$4="Français",AM178,AS178) -> Matière corps | I178: =IF(I177="","",'VAC PUMP'!R6) -> Carbon steel & cast-iron | P178: =IF($AD$4="Français",AN178,AT178) -> Matière rotor | X178: =IF($AD$4="Français",AO178,AU178) -> Matière manifold entrée | AF178: =IF($AD$4="Français",AP178,AV178) -> Matière séparateur | AM178: Matière corps | AN178: Matière rotor | AO178: Matière manifold entrée | AP178: Matière séparateur | AS178: Body Material | AT178: Rotor Material | AU178: Entrance Manifold Material | AV178: Separator Material
H179: Pompe montée sur skid | P179: Matière chassis | X179: Chevilles scellement | AF179: Ballon séparateur | AM179: Pompe montée sur skid | AN179: Matière chassis | AO179: Chevilles scellement | AP179: Ballon séparateur | AS179: Pump on skid | AT179: Frame material | AU179: Anchor bolts | AV179: Filtrate receiver
H180: Pompe anneau liquide | P180: Matière piping | Z180: =IF($AD$4="Français",AO180,AU180) -> Circuit fermé anneau liquide | AF180: Echangeur | AM180: Pompe anneau liquide | AN180: Matière piping | AO180: Circuit fermé anneau liquide | AP180: Echangeur | AS180: Liquid ring pump | AT180: Pipping Material | AU180: Recirculating water ring | AV180: Exchanger
H181: Vanne auto alim eau | P181: Vanne manu réglage débit | T181: =IF($AD$4="Français",AO182,AU182) -> Filtre Y | X181: Manomètre | AD181: =IF($AD$4="Français",AP181,AV181) -> Vacuomètre | AM181: Vanne auto alim eau | AN181: Vanne manu réglage débit | AO181: Manomètre | AP181: Vacuomètre | AS181: Water automatic valve | AT181: Manual valve for flow | AU181: Manometer | AV181: Vacuum Gauge
H182: Soupape casse vide | P182: Transmission poulies/courroie | AM182: Soupape casse vide | AN182: Transmission poulies/courroie | AO182: Filtre Y | AS182: Vacuum breaking valve | AT182: V-Belt transmission | AU182: Y filter
A183: Moteur | H183: =IF($AD$4="Français",AM183,AS183) -> Tension | I183: =IF(I177="","",'VAC PUMP'!R22) -> 400 | L183: V | P183: =IF($AD$4="Français",AN183,AT183) -> Fréquence | Q183: =IF(I177="","",'VAC PUMP'!R23) -> 50 | T183: Hz | X183: =IF($AD$4="Français",AO183,AU183) -> Puissance | Y183: =IF(I177="","",'VAC PUMP'!R21) -> 5.5 | AB183: kW | AL183: Moteur | AM183: Tension | AN183: Fréquence | AO183: Puissance | AR183: Motor | AS183: Voltage | AT183: Frenquency | AU183: Power
A185: Spécifique | AL185: Spécifique | AR185: Remarks
A187: Pompes à filtrat | AL187: Pompes à filtrat | AR187: Filtrate pumps
A188: Pompe 1 | H188: =IF($AD$4="Français",AM188,AS188) -> Débit | I188: =IF('Offre NEW'!H43>0,'Offre NEW'!F43,"") -> 2 | L188: m3/h | P188: =IF($AD$4="Français",AN188,AT188) -> HMT | Q188: =IF(I188="","",30) -> 30 | T188: m | X188: =IF($AD$4="Français",AO188,AU188) -> Puissance | Y188: =IF('Offre NEW'!H43>0,'Offre NEW'!G43,"") -> 2.2 | AB188: kW | AF188: =IF($AD$4="Français",AP188,AV188) -> Matière pompe | AG188: =IF('Offre NEW'!H43>0,'Offre NEW'!D43,"") -> 316L | AL188: Pompe 1 | AM188: Débit | AN188: HMT | AO188: Puissance | AP188: Matière pompe | AR188: Pump 1 | AS188: Flow | AT188: HMT | AU188: Power | AV188: Pump material
H189: =IF($AD$4="Français",AM189,AS189) -> Type | I189: =IF(I188="","",'FILTRATE PUMP 1&2&3'!L5) -> Centrifugal - Krogh Type Pump | P189: =IF($AD$4="Français",AN189,AT189) -> Etanchéité arbre | Z189: Variation de fréquence | AM189: Type | AN189: Etanchéité arbre | AO189: Variation de fréquence | AS189: Type | AT189: Shaft Seal | AU189: VFD
H190: Chassis support | K190: Skid | P190: Matière chassis | Z190: Fourniture piping | AF190: =IF($AD$4="Français",AP190,AV190) -> Matière piping | AM190: Chassis support | AN190: Matière chassis | AO190: Fourniture piping | AP190: Matière piping | AS190: Support Frame | AT190: Frame Material | AU190: Incl. piping | AV190: Piping material
H191: Pompe secours | R191: =IF($AD$4="Français",AN191,AT191) -> Fourniture vannes manu | Z191: Vanne de régulation débit | AM191: Pompe secours | AN191: Fourniture vannes manu | AO191: Vanne de régulation débit | AS191: Spare pump | AT191: With manual valve | AU191: Flow control valve
A193: Spécifique | AL193: Spécifique | AR193: Remarks
A195: Pompe 2 | H195: =IF($AD$4="Français",AM195,AS195) -> Débit | I195: =IF('Offre NEW'!H44>0,'Offre NEW'!F44,"") -> 2 | L195: m3/h | P195: =IF($AD$4="Français",AN195,AT195) -> HMT | Q195: =IF(I195="","",30) -> 30 | T195: m | X195: =IF($AD$4="Français",AO195,AU195) -> Puissance | Y195: =IF('Offre NEW'!H44>0,'Offre NEW'!G44,"") -> 2.2 | AB195: kW | AF195: =IF($AD$4="Français",AP195,AV195) -> Matière pompe | AG195: =IF('Offre NEW'!H44>0,'Offre NEW'!D44,"") -> 316L | AL195: Pompe 2 | AM195: Débit | AN195: HMT | AO195: Puissance | AP195: Matière pompe | AR195: Pump 2 | AS195: Flow | AT195: HMT | AU195: Power | AV195: Pump material
H196: =IF($AD$4="Français",AM196,AS196) -> Type | I196: =IF(I188="","",'FILTRATE PUMP 2'!J4) -> Centrifugal | P196: =IF($AD$4="Français",AN196,AT196) -> Etanchéité arbre | Z196: =IF($AD$4="Français",AO196,AU196) -> Variation de fréquence | AM196: Type | AN196: Etanchéité arbre | AO196: Variation de fréquence | AS196: Type | AT196: Sealing shaft | AU196: VFD
H197: Chassis support | K197: Skid | P197: Matière chassis | Z197: Fourniture piping | AF197: =IF($AD$4="Français",AP197,AV197) -> Matière piping | AM197: Chassis support | AN197: Matière chassis | AO197: Fourniture piping | AP197: Matière piping | AS197: Support Frame | AT197: Frame Material | AU197: Incl. piping | AV197: Piping material
H198: Pompe secours | R198: =IF($AD$4="Français",AN198,AT198) -> Fourniture vannes manu | Z198: =IF($AD$4="Français",AO198,AU198) -> Vanne de régulation débit | AM198: Pompe secours | AN198: Fourniture vannes manu | AO198: Vanne de régulation débit | AS198: Spare pump | AT198: With manual valve | AU198: Flow control valve
A200: Spécifique | AL200: Spécifique | AR200: Remarks
A202: Pompe 3 | H202: =IF($AD$4="Français",AM202,AS202) -> Débit | I202: =IF('Offre NEW'!H45>0,'Offre NEW'!F45,"") -> 2 | L202: m3/h | P202: =IF($AD$4="Français",AN202,AT202) -> HMT | Q202: =IF(I202="","",30) -> 30 | T202: m | X202: =IF($AD$4="Français",AO202,AU202) -> Puissance | Y202: =IF('Offre NEW'!H45>0,'Offre NEW'!G45,"") -> 2.2 | AB202: kW | AF202: =IF($AD$4="Français",AP202,AV202) -> Matière pompe | AG202: =IF('Offre NEW'!H45>0,'Offre NEW'!D45,"") -> 316L | AL202: Pompe 3 | AM202: Débit | AN202: HMT | AO202: Puissance | AP202: Matière pompe | AR202: Pump 3 | AS202: Flow | AT202: HMT | AU202: Power | AV202: Pump material
H203: =IF($AD$4="Français",AM203,AS203) -> Type | I203: =IF(I188="","",'FILTRATE PUMP 3'!J4) -> Centrifugal | P203: =IF($AD$4="Français",AN203,AT203) -> Etanchéité arbre | Z203: =IF($AD$4="Français",AO203,AU203) -> Variation de fréquence | AM203: Type | AN203: Etanchéité arbre | AO203: Variation de fréquence | AS203: Type | AT203: Sealing shaft | AU203: VFD
H204: Chassis support | K204: Skid | P204: Matière chassis | Z204: Fourniture piping | AF204: =IF($AD$4="Français",AP204,AV204) -> Matière piping | AM204: Chassis support | AN204: Matière chassis | AO204: Fourniture piping | AP204: Matière piping | AS204: Support Frame | AT204: Frame Material | AU204: Incl. piping | AV204: Piping material
H205: Pompe secours | R205: =IF($AD$4="Français",AN205,AT205) -> Fourniture vannes manu | Z205: =IF($AD$4="Français",AO205,AU205) -> Vanne de régulation débit | AM205: Pompe secours | AN205: Fourniture vannes manu | AO205: Vanne de régulation débit | AS205: Spare pump | AT205: With manual valve | AU205: Flow control valve
A207: Spécifique | AL207: Spécifique | AR207: Remarks
A209: Pompe 4 | H209: =IF($AD$4="Français",AM209,AS209) -> Débit | I209: =IF('Offre NEW'!H46>0,'Offre NEW'!F46,"") ->  | L209: m3/h | P209: =IF($AD$4="Français",AN209,AT209) -> HMT | Q209: =IF(I209="","",30) ->  | T209: m | X209: =IF($AD$4="Français",AO209,AU209) -> Puissance | Y209: =IF('Offre NEW'!H46>0,'Offre NEW'!G46,"") ->  | AB209: kW | AF209: =IF($AD$4="Français",AP209,AV209) -> Matière pompe | AG209: =IF('Offre NEW'!H46>0,'Offre NEW'!D46,"") ->  | AL209: Pompe 4 | AM209: Débit | AN209: HMT | AO209: Puissance | AP209: Matière pompe | AR209: Pump 4 | AS209: Flow | AT209: HMT | AU209: Power | AV209: Pump material
H210: =IF($AD$4="Français",AM210,AS210) -> Type | I210: =IF(I188="","",'FILTRATE PUMP 4'!J4) -> Centrifugal | P210: =IF($AD$4="Français",AN210,AT210) -> Etanchéité arbre | Z210: =IF($AD$4="Français",AO210,AU210) -> Variation de fréquence | AM210: Type | AN210: Etanchéité arbre | AO210: Variation de fréquence | AS210: Type | AT210: Sealing shaft | AU210: VFD
H211: Chassis support | K211: Skid | P211: Matière chassis | Z211: Fourniture piping | AF211: =IF($AD$4="Français",AP211,AV211) -> Matière piping | AM211: Chassis support | AN211: Matière chassis | AO211: Fourniture piping | AP211: Matière piping | AS211: Support Frame | AT211: Frame Material | AU211: Incl. piping | AV211: Piping material
H212: Pompe secours | R212: =IF($AD$4="Français",AN212,AT212) -> Fourniture vannes manu | Z212: =IF($AD$4="Français",AO212,AU212) -> Vanne de régulation débit | AM212: Pompe secours | AN212: Fourniture vannes manu | AO212: Vanne de régulation débit | AS212: Spare pump | AT212: With manual valve | AU212: Flow control valve
A214: =IF($AD$4="Français",AL214,AR214) -> Spécifique | AL214: Spécifique | AR214: Remarks
A216: Pompes lavage toile & bande | AL216: Pompes lavage toile & bande | AR216: Cloth & belt wash pumps
H217: =IF($AD$4="Français",AM217,AS217) -> Débit | I217: =IF('Offre NEW'!H48>0,'Offre NEW'!F48,"") ->  | L217: m3/h | P217: =IF($AD$4="Français",AN217,AT217) -> HMT | T217: m | X217: =IF($AD$4="Français",AO217,AU217) -> Puissance | Y217: =IF('Offre NEW'!H48>0,'Offre NEW'!G48,"") ->  | AB217: kW | AF217: =IF($AD$4="Français",AP217,AV217) -> Matière pompe | AG217: =IF('Offre NEW'!H48>0,'Offre NEW'!D48,"") ->  | AL217: Pompe | AM217: Débit | AN217: HMT | AO217: Puissance | AP217: Matière pompe | AS217: Flow | AT217: HMT | AU217: Power | AV217: Pump material
H218: =IF($AD$4="Français",AM218,AS218) -> Type | P218: =IF($AD$4="Français",AN218,AT218) -> Etanchéité arbre | Z218: =IF($AD$4="Français",AO218,AU218) -> Variation de fréquence | AM218: Type | AN218: Etanchéité arbre | AO218: Variation de fréquence | AS218: Type | AT218: Sealing shaft | AU218: VFD
H219: Chassis support | K219: Skid | P219: Matière chassis | Z219: Fourniture piping | AF219: =IF($AD$4="Français",AP219,AV219) -> Matière piping | AM219: Chassis support | AN219: Matière chassis | AO219: Fourniture piping | AP219: Matière piping | AS219: Support Frame | AT219: Frame Material | AU219: Incl. piping | AV219: Piping material
H220: Pompe secours | R220: =IF($AD$4="Français",AN220,AT220) -> Fourniture vannes manu | Z220: =IF($AD$4="Français",AO220,AU220) -> Vanne de régulation débit | AM220: Pompe secours | AN220: Fourniture vannes manu | AO220: Vanne de régulation débit | AS220: Spare pump | AT220: With manual valve | AU220: Flow control valve
A222: Spécifique | AL222: Spécifique | AR222: Remarks
A224: Pompes lavage gateau | AL224: Pompes lavage gateau | AR224: Cake washing pumps
H225: =IF($AD$4="Français",AM225,AS225) -> Débit | L225: m3/h | P225: =IF($AD$4="Français",AN225,AT225) -> HMT | T225: m | X225: =IF($AD$4="Français",AO225,AU225) -> Puissance | AB225: kW | AF225: =IF($AD$4="Français",AP225,AV225) -> Matière pompe | AL225: Pompe | AM225: Débit | AN225: HMT | AO225: Puissance | AP225: Matière pompe | AS225: Flow | AT225: HMT | AU225: Power | AV225: Pump material
H226: =IF($AD$4="Français",AM226,AS226) -> Type | P226: =IF($AD$4="Français",AN226,AT226) -> Etanchéité arbre | Z226: =IF($AD$4="Français",AO226,AU226) -> Variation de fréquence | AM226: Type | AN226: Etanchéité arbre | AO226: Variation de fréquence | AS226: Type | AT226: Sealing shaft | AU226: VFD
H227: Chassis support | K227: Skid | P227: Matière chassis | Z227: Fourniture piping | AF227: =IF($AD$4="Français",AP227,AV227) -> Matière piping | AM227: Chassis support | AN227: Matière chassis | AO227: Fourniture piping | AP227: Matière piping | AS227: Support Frame | AT227: Frame Material | AU227: Incl. piping | AV227: Piping material
H228: =IF($AD$4="Français",AM228,AS228) -> Pompe secours | R228: =IF($AD$4="Français",AN228,AT228) -> Fourniture vannes manu | Z228: =IF($AD$4="Français",AO228,AU228) -> Vanne de régulation débit | AM228: Pompe secours | AN228: Fourniture vannes manu | AO228: Vanne de régulation débit | AS228: Spare pump | AT228: With manual valve | AU228: Flow control valve
A230: Spécifique | AL230: Spécifique | AR230: Remarks
A232: Rampe haute pression lavage toile | AL232: Rampe haute pression lavage toile | AR232: Cloth washing High pressure ramp
H233: =IF($AD$4="Français",AM233,AS233) -> Matière poutre et bras | P233: =IF($AD$4="Français",AN233,AT233) -> Matière rampe | X233: =IF($AD$4="Français",AO233,AU233) -> Ø buses | AF233: =IF($AD$4="Français",AP233,AV233) -> Matière buses | AM233: Matière poutre et bras | AN233: Matière rampe | AO233: Ø buses | AP233: Matière buses | AS233: Beam Material | AT233: Ramp Material | AU233: Nozzles DN | AV233: Nozzles material
A234: Pompe HP | H234: =IF($AD$4="Français",AM234,AS234) -> Débit | L234: m3/h | P234: =IF($AD$4="Français",AN234,AT234) -> Pression | T234: bar | X234: =IF($AD$4="Français",AO234,AU234) -> Puissance | AB234: kW | AF234: =IF($AD$4="Français",AP234,AV234) -> Matière pompe | AL234: Pompe HP | AM234: Débit | AN234: Pression | AO234: Puissance | AP234: Matière pompe | AR234: HP Pump | AS234: Flow | AT234: Pressure | AU234: Power | AV234: Pump Material
A235: Moto-réducteur rampe | H235: Puissance | L235: kW | W235: =IF($AD$4="Français",AN235,AT235) -> Fourniture flexible entre rampe et pompe HP | AL235: Moto-réducteur rampe | AM235: Puissance | AN235: Fourniture flexible entre rampe et pompe HP | AR235: Ramp Gearmotor | AS235: Power | AT235: with Flexible hose btw Ramp & HP pump
A237: Spécifique | AL237: Spécifique | AR237: Remarks
A239: Tuyauteries de liaison | AL239: Tuyauteries de liaison | AO239: Fourniture supports | AR239: Interconnecting piping | AU239: with support
G240: =IF($AD$4="Français",AM240,AS240) -> Fourniture tuyauteries de vide | L240: =IF($AD$4="Français",AM240,AS240) -> Fourniture tuyauteries de vide | T240: =IF($AD$4="Français",AO239,AU239) -> Fourniture supports | AA240: =IF($AD$4="Français",AO240,AU240) -> Fourniture vannes manu | AF240: =IF($AD$4="Français",AP240,AV240) -> Matière vannes | AM240: Fourniture tuyauteries de vide | AN240: Matière tuyauterie | AO240: Fourniture vannes manu | AP240: Matière vannes | AS240: With vacuum piping | AT240: Piping Material | AU240: With manual valves | AV240: Valves material
AA241: Fourniture clapets | AF241: =IF($AD$4="Français",AP241,AV241) -> Matière clapets | AO241: Fourniture clapets | AP241: Matière clapets | AU241: With return valves | AV241: Return valves material
G243: =IF($AD$4="Français",AM243,AS243) -> Fourniture tuyauteries de lavage | L243: =IF($AD$4="Français",AM243,AS243) -> Fourniture tuyauteries de lavage | T243: =IF($AD$4="Français",AO239,AU239) -> Fourniture supports | AA243: Fourniture vannes manu | AF243: Matière vannes | AM243: Fourniture tuyauteries de lavage | AN243: Matière tuyauterie | AO243: Fourniture vannes manu | AP243: Matière vannes | AS243: With vacuum piping | AT243: Piping Material | AU243: With manual valves | AV243: Valves material
AA244: =IF($AD$4="Français",AO244,AU244) -> Fourniture clapets | AF244: =IF($AD$4="Français",AP244,AV244) -> Matière clapets | AO244: Fourniture clapets | AP244: Matière clapets | AU244: With return valves | AV244: Return valves material
A246: Spécifique | AL246: Spécifique | AR246: Remarks
A248: Instrumentation sur filtre | AL248: Instrumentation sur filtre | AR248: Instrumentation on Filter
K249: =IF($AD$4="Français",AM249,AS249) -> Matière tubes passage câbles sur filtre | T249: =IF($AD$4="Français",AN249,AT249) -> Cables elec standard | AA249: =IF($AD$4="Français",AO249,AU249) -> Cables elec specifique | AM249: Matière tubes passage câbles sur filtre | AN249: Cables elec standard | AO249: Cables elec specifique | AS249: Material pipe for cable on filter | AT249: Elec. Standard Cable | AU249: Elec. Specific Cable
F250: =IF($AD$4="Français",AL250,AR250) -> Capteur surcouple | M250: =IF($AD$4="Français",AM250,AS250) -> Capteurs dérive bande | T250: Capteurs dérive toile | AA250: Capteurs tension toile | AH250: =IF($AD$4="Français",AP250,AV250) -> Capteur rotation toile | AL250: Capteur surcouple | AM250: Capteurs dérive bande | AN250: Capteurs dérive toile | AO250: Capteurs tension toile | AP250: Capteur rotation toile | AR250: Overtorque sensor | AS250: Belt Misalignment | AT250: Cloth Misalignment | AU250: Cloth tensionning | AV250: Cloth run off
F251: =IF($AD$4="Français",AL251,AR251) -> Capteurs rupture courroies | T251: Arrêts d'urgence à cable | AA251: Arrêts d'urgence BP | AF251: =IF($AD$4="Français",AP251,AV251) -> Qté AU | AL251: Capteurs rupture courroies | AN251: Arrêts d'urgence à cable | AO251: Arrêts d'urgence BP | AP251: Qté AU | AR251: Belt support breaking sensor | AT251: Emergency stop cable | AU251: Button emergency stop | AV251: AU Qty
I252: =IF($AD$4="Français",AL252,AR252) -> Pression eau de lavage : | M252: =IF($AD$4="Français",AM252,AS252) -> Pressostat | T252: Transmetteur | AA252: =IF($AD$4="Français",AO252,AU252) -> Manomètre | AL252: Pression eau de lavage : | AM252: Pressostat | AN252: Transmetteur | AO252: Manomètre | AR252: Wash water pressure: | AS252: Pressure indicator | AT252: transmitter | AU252: Manometer
I253: =IF($AD$4="Français",AL253,AR253) -> Pression air comprimé : | M253: =IF($AD$4="Français",AM253,AS253) -> Pressostat | T253: =IF($AD$4="Français",AN253,AT253) -> Transmetteur | AL253: Pression air comprimé : | AM253: Pressostat | AN253: Transmetteur | AR253: Air pressure: | AS253: Pressure indicator | AT253: transmitter
I254: =IF($AD$4="Français",AL254,AR254) -> Débit lavage toile & bande : | K254: =IF($AD$4="Français",AM254,AS254) -> Type | R254: =IF($AD$4="Français",AN254,AT254) -> Matière | X254: =IF($AD$4="Français",AO254,AU254) -> Qté | AF254: =IF($AD$4="Français",AP254,AV254) -> Marque | AL254: Débit lavage toile & bande : | AM254: Type | AN254: Matière | AO254: Qté | AP254: Marque | AR254: Cloth and belt flow : | AS254: Type | AT254: Material | AU254: Qty | AV254: Brand
I255: =IF($AD$4="Français",AL255,AR255) -> Débit lubrification courroies boite à vide : | K255: Type | R255: =IF($AD$4="Français",AN255,AT255) -> Matière | X255: =IF($AD$4="Français",AO255,AU255) -> Qté | AF255: Marque | AL255: Débit lubrification courroies boite à vide : | AM255: Type | AN255: Matière | AO255: Qté | AP255: Marque | AR255: Lubrification Vacuum box belt flow: | AS255: Type | AT255: Material | AU255: Qty | AV255: Brand
I256: =IF($AD$4="Français",AL256,AR256) -> Débit lubrification courroies table : | K256: =IF($AD$4="Français",AM256,AS256) -> Type | R256: Matière | X256: Qté | AF256: =IF($AD$4="Français",AP256,AV256) -> Marque | AL256: Débit lubrification courroies table : | AM256: Type | AN256: Matière | AO256: Qté | AP256: Marque | AR256: Lubrification Belt table support flow: | AS256: Type | AT256: Material | AU256: Qty | AV256: Brand
K257: Qté Transmetteur épaisseur gateau | T257: =IF($AD$4="Français",AN257,AT257) -> Débordement pulpe | X257: =IF($AD$4="Français",AO257,AU257) -> Type | AM257: Qté Transmetteur épaisseur gateau | AN257: Débordement pulpe | AO257: Type | AS257: Cake thickness transmitter Qty | AT257: Slurry overflow | AU257: Type
A259: Spécifique | AL259: Spécifique | AR259: Remarks
A261: Equipement électrique | AL261: Equipement électrique | AR261: Electrical equipment
A262: Boite de jonction sur filtre | K262: =IF($AD$4="Français",AM262,AS262) -> Matière | AL262: Boite de jonction sur filtre | AM262: Matière | AR262: Junction box on filter | AS262: Material
A264: Pupitre de commande local | K264: =IF($AD$4="Français",AM264,AS264) -> Matière | T264: =IF($AD$4="Français",AN264,AT264) -> Boutons poussoirs | Z264: =IF($AD$4="Français",AO264,AU264) -> Afficheur vitesse | AL264: Pupitre de commande local | AM264: Matière | AN264: Boutons poussoirs | AO264: Afficheur vitesse | AR264: Local control panel | AS264: Material | AT264: Button | AU264: Speed indicator
T265: Interface Opérateur graphique | X265: =IF($AD$4="Français",AO265,AU265) -> Marque | AN265: Interface Opérateur graphique | AO265: Marque | AT265: Graphic operator interface | AU265: Brand
A267: Armoire électrique | K267: Matière | T267: =IF($AD$4="Français",AN267,AT267) -> Automate Programmable | X267: Marque | AL267: Armoire électrique | AM267: Matière | AN267: Automate Programmable | AO267: Marque | AR267: Electrical cabinet | AS267: Material | AT267: PLC | AU267: Brand
I269: =IF($AD$4="Français",AM269,AS269) -> Départ puissance entrainement filtre | O269: =IF($AD$4="Français",AN269,AT269) -> Variateur de fréquence | X269: Alimentation générale armoire : | AB269: V | AE269: Hz | AF269: =IF($AD$4="Français",AP269,AV269) -> Régime | AM269: Départ puissance entrainement filtre | AN269: Variateur de fréquence | AO269: Alimentation générale armoire : | AP269: Régime | AS269: Filter motor starter | AT269: VFD | AU269: Globel power | AV269: engine speed
I270: =IF($AD$4="Français",AM270,AS270) -> Départs puissance pompes lavage&filtrats | O270: Variateur de fréquence | X270: Alimentation Secourue : | AB270: V | AE270: Hz | AM270: Départs puissance pompes lavage&filtrats | AN270: Variateur de fréquence | AO270: Alimentation Secourue : | AS270: Filtrate pump motor starter | AT270: VFD | AU270: Emergency power
I271: =IF($AD$4="Français",AM271,AS271) -> Départ puissance pompe à vide | O271: =IF($AD$4="Français",AN271,AT271) -> Variateur de fréquence | X271: =IF($AD$4="Français",AO271,AU271) -> Tension télécommande : | AB271: V | AE271: Hz | AF271: =IF($AD$4="Français",AP271,AV271) -> AC/CC | AM271: Départ puissance pompe à vide | AN271: Variateur de fréquence | AO271: Tension télécommande : | AP271: AC/CC | AS271: Vacuum pump motor starter | AT271: VFD | AU271: remote control power | AV271: AC/CC
A273: Spécifique | AL273: Spécifique | AR273: Remarks

Sheet Planning standard (hidden)
A1: MONTH | B1: 1 | F1: 2 | J1: 3 | O1: 4 | S1: 5 | W1: 6 | AB1: 7 | AF1: 8 | AK1: 9 | AO1: 10 | AS1: 11 | AX1: 12 | BB1: 13
A2: WEEK | B2: 1 | C2: =1+B2 -> 2 | D2: =1+C2 -> 3 | E2: 4 | F2: 5 | G2: 6 | H2: 7 | I2: 8 | J2: 9 | K2: 10 | L2: 11 | M2: 12 | N2: 13 | O2: 14 | P2: 15 | Q2: 16 | R2: 17 | S2: 18 | T2: 19 | U2: 20 | V2: 21 | W2: 22 | X2: 23 | Y2: 24 | Z2: 25 | AA2: 26 | AB2: 27 | AC2: 28 | AD2: 29 | AE2: 30 | AF2: 31 | AG2: 32 | AH2: 33 | AI2: 34 | AJ2: 35 | AK2: 36 | AL2: 37 | AM2: 38 | AN2: 39 | AO2: 40 | AP2: 41 | AQ2: 42 | AR2: 43 | AS2: 44 | AT2: 45 | AU2: 46 | AV2: 47 | AW2: 48 | AX2: 49 | AY2: 50 | AZ2: 51 | BA2: 52 | BB2: =1+BA2 -> 53 | BC2: =1+BB2 -> 54 | BD2: =1+BC2 -> 55 | BE2: =1+BD2 -> 56
A3: DESIGNATION
A5: PURCHASE ORDER | B5: ▲
A7: TECHNICAL KOM IN HASLER GROUP | C7: ▲
A9: DESIGN
A10: - Mechanical Design & Details Engineering
A11: - Electrical & Instrumentation Engineering | T11: 9 weeks
A14: PROCUREMENTS / MANUFACTURING
A15: - Rubber Belt - SBR | X15: 14 - 16 weeks
A16: - Filter Gear Box Units with motors
A17: - Frame & Accessories
A18: - Cloth & Belt Support Rollers
A19: - Bearing blocks housing
A20: - Pulleys
A21: - Vacuum Box
A22: - Upper Accessories
A23: - Fume hood
A26: Set of Instrument and Valves
A27: - Instruments & Valves
A30: Electrical & Control Cabinet
A31: - Electrical & Control Cabinet" | AH31: 12 weeks
A32: - LCP
A33: - Junction Box
A36: AUXILIARY EQUIPMENT
A37: - Filtrate Manifold
A38: - Filtrate Receivers
A39: - Vacuum Pump | AL39: 12 - 16 weeks
A40: - Wash & Filtrate Pumps
A43: MANUFACTURING LE MELE/SARTHE
A44: - Rubber belt N°1 grooving
A47: PACKING | AM47: 1 - 3 weeks depending of filter size + customer spec
A49: EXW HASLER PLANT - LE MELE SUR SARTHE | AK49: ▲
A51: TRANSPORT
A53: ERECTION
A55: COLD & HOT COMMISSIONING
A62: OBSERVATIONS : | AN62: CUSTOMER : | AR62: =Calculations!C2 -> CARESTER
AN64: PROJECT : | AR64: =Calculations!C4 -> CAREMAG
O66: Révision | S66: 0 | V66: 1 | Y66: 2 | AB66: 3 | AE66: 4 | AH66: 5 | AK66: 6 | AN66: PLANNING : | BD66: Pl. Réf: | BF66: =Calculations!C3 -> 726789
O67: Date

Sheet I 27200 (Carbonate)
G2: Flowsheet CAREMAG - 2B5 - Tb
B3: Uniquement pour info car choix taille par le client | C3: Filtration Rate | D3: ='[34]Synthèse essai'!J9 -> 182.8673345 | E3: kg/h/m²
C4: Filter Size | D4: =D17/(D3/1000) -> 0.08995592377 | E4: m²
C5: Selected Size | D5: 2 | E5: m² | S5: WASH WATER 3 | V5: WR 3
C6: Calculated filtration rate | D6: =D17/D5 -> 0.008225 | E6: t/h/m² | S6: Flow rate design | T6: =T7*T8 -> 0.0251685 | U6: T/h | V6: =T7/T34 -> 1.5
S7: Flow rate design | T7: =L35 -> 0.024675 | U7: m3/h
B8: Pire cas pour Tb slurry | S8: Density | T8: 1.02 | U8: t/m3
S11: WASH WATER 2 | V11: WR 2
S12: Flow rate design | T12: =T13*T14 -> 0.0251685 | U12: T/h | V12: =T13/T34 -> 1.5
C13: SLURRY | S13: Flow rate design | T13: =P35 -> 0.024675 | U13: m3/h
C14: Slurry Flow rate design | D14: =D15/D18 -> 0.3286384977 | E14: m3/h | S14: Density | T14: 1.02 | U14: t/m3
C15: Slurry Flow rate design | D15: 0.35 | E15: T/h
C16: Solids | D16: 0.047 | E16: %
C17: Solids flow design | D17: =D15*D16 -> 0.01645 | E17: T/h | S17: WASH WATER 1 | V17: WR 1
C18: Slurry density | D18: 1.065 | E18: t/m3 | S18: Flow rate design | T18: =T19*T20 -> 0.0251685 | U18: T/h | V18: 1.5
C19: Liquid density | E19: t/m3 | S19: Flow rate design | T19: =V18*T34 -> 0.024675 | U19: m3/h
C20: Solids density | E20: t/m3 | S20: Density | T20: 1.02 | U20: t/m3
C21: Temperature | D21: 50 | E21: °C
B31: Données client
S32: TOTAL CAKE PRODUCTION
G33: MOTHER LIQUOR | K33: WASH FILTRATE 2 | O33: WASH FILTRATE 1 | S33: Cake flow rate design | T33: =T34/(1-T35) -> 0.041125 | U33: T/h
G34: Flow rate design | H34: =D15-T33+T6 -> 0.3340435 | I34: t/h | K34: Flow rate design | L34: =L35*L36 -> 0.0251685 | M34: T/h | O34: Flow rate design | P34: =P35*P36 -> 0.0251685 | Q34: T/h | S34: Dry cake flow rate design | T34: =D17 -> 0.01645 | U34: T/h
G35: Flow rate design | H35: =H34/H36 -> 0.3274936275 | I35: m3/h | K35: Flow rate design | L35: =T13 -> 0.024675 | M35: m3/h | O35: Flow rate design | P35: =T19 -> 0.024675 | Q35: m3/h | S35: Moisture | T35: 0.6 | U35: %
G36: Density | H36: 1.02 | I36: t/m3 | K36: Density | L36: 1.02 | M36: t/m3 | O36: Density | P36: 1.02 | Q36: t/m3
B45: Design température : 100°C

Sheet Simulation zones
B10: 4000 mm
B18: 3200 mm | AH18: 300mm | AK18: 500 mm
B26: 2800 mm | AD26: 400 mm | AH26: 800 mm
E40: Alimentation + Lavage 1
E47: Lavage 2
E54: Lavage 3 + Séchage (avec SteamBox)

Sheet Calculations
A1: File N° | B1: =C3&"_"&K10&"_"&H3 -> 726789_2B5_rev4 | E1: Filter N° | G1: 03 | T1: =IF(AND(Q8="BàV sorties droites (DN150)",OR(I9="SERIE 1",I9="SERIE 2")),"Warning!! IMPOSSIBLE CHOICE, no straight pipes available, correction needed",IF(AND(A9=120,S7="oui"),"Talons de 120 mm et réhausses!! CHOIX IMPOSSIBLE, à corriger",IF(AND(I9<>"SERIE 1",H11="PPH-typePilote"),"Warning!! PPH-typePilote vacuum box not available for this size!! Change choice line 11",IF(AND(I9="SERIE 1",H11="PPH-typePilote"),"Pilote filter for process studies is selected",IF(I9="SERIE 1","Warning!! The filter selected is Serial 1 for industrial application, not a pilote unit?? See line 11",IF(AND(A9=70,S7="oui"),"Warning!! Filter will be equiped with raising edge in the feed zone!!",IF(E29>18,"VALEUR ANORMALE POUR LA BOITE à VIDE","VOUS SELECTIONNEZ UN FILTRE STANDARD"))))))) -> Warning!! Filter will be equiped with raising edge in the feed zone!! | X1: listMatiéres | Y1: Exclu | Z1: Boite à vide | AA1: Roul Embarra | AB1: Aliment | AC1: GoulGatea | AD1: RoulSortie | AE1: DechaGat | AF1: GoulLavToi | AG1: RampLavag | AH1: RoulRetBande | AI1: RoulRetoutoil | AJ1: SuppBAV | AK1: Bati | AL1: Boulons | AM1: Bande | AO1: n/a | AP1: n/a | AS1: Hotte
A2: Client | C2: CARESTER | E2: Revision offre | G2: 4 | J2: Industry | K2: Mining & Metal | R2: =TODAY() -> 2025-04-25 | X2: 304L | Y2: 1 | Z2: 304L | AA2: 304L | AB2: 304L | AC2: 304L | AD2: 304L | AE2: 304L | AF2: 304L | AG2: 304L | AH2: 304L | AI2: 304L | AJ2: 304L | AK2: E24 | AL2: AISI 304 | AM2: Naturel | AN2: 1 | AO2: 20 | AP2: 3/4" | AQ2: 0 | AS2: Longueur | AT2: =R55 -> 7130
A3: File-Project N° | C3: 726789 | E3: Offer Number | G3: =K10&"-"&H3 -> 2B5-rev4 | H3: ="rev"&G2 -> rev4 | J3: Product ref | K3: Tb slurry filtration | Q3: Step frame N°/meter | X3: 316L | Y3: 2 | Z3: 316L | AA3: 316L | AB3: 316L | AC3: 316L | AD3: 316L | AE3: 316L | AF3: 316L | AG3: 316L | AH3: 316L | AI3: 316L | AJ3: 316L | AK3: 304L | AL3: AISI 316 | AM3: SBR | AN3: 2 | AO3: 25 | AP3: 1" | AQ3: 1 | AS3: Largeur HT | AT3: =R54 -> 1150
A4: Ref. client | C4: CAREMAG | I4: Fill above product name or " your " | Q4: =VLOOKUP(B7,[31]FabSpecification!$A$2:$H$810,8) -> 2 x 2 | X4: U45N | Y4: 3 | Z4: U45N | AA4: U45N | AB4: U45N | AC4: U45N | AD4: 316L | AE4: 316L | AF4: 316L | AG4: 316L | AH4: 316L | AI4: 316L | AJ4: 316L | AK4: 316L | AM4: EPDM | AN4: 3 | AO4: 32 | AP4: 1"1/4 | AQ4: 2 | AS4: Débit théorique | AT4: =ROUNDUP(((((AT2/1000)*(AT3/1000))*1.5)*100),-2) -> 1300
A5: =IF(A9=120,"120 mm curb have to be motivated?? preferably choice 70 mm with PPH raising in the feed zone","To produce a specification, fill the red values") -> To produce a specification, fill the red values | U5: HAUTEUR PULPE | X5: E24 | Y5: 4 | Z5: Titane | AD5: 316L | AE5: 316L | AF5: 316L | AG5: 316L | AH5: 316L | AI5: 316L | AJ5: 316L | AK5: U45N | AM5: Butyl | AN5: 4 | AO5: 40 | AP5: 1"1/2 | AQ5: 3 | AS5: Nbre connection | AT5: =IF(AND(AT2>=1,AT2<=5000),1,IF(AND(AT2>=5000,AT2<=9999),2,IF(AND(AT2>=10000,AT2<=14999),3,IF(AND(AT2>=15000,AT2<=19999),4,IF(AND(AT2>=20000,AT2<=24999),5,6))))) -> 2
A6: =T1 -> Warning!! Filter will be equiped with raising edge in the feed zone!! | X6: 904L | Y6: 5 | Z6: 904L | AA6: 904L | AB6: 904L | AC6: 904L | AD6: 316L | AE6: 316L | AF6: 316L | AG6: 316L | AH6: 316L | AI6: 316L | AJ6: 316L | AK6: AISI 317L | AM6: Neoprene | AN6: 5 | AO6: 50 | AP6: 2" | AQ6: 4 | AS6: Diamètre sélectionné | AT6: =IF(AND(AT8>=0,AT8<=49),50,IF(AND(AT8>=50,AT8<=99),100,IF(AND(AT8>=100,AT8<=149),150,IF(AND(AT8>=150,AT8<=199),200,IF(AND(AT8>=200,AT8<=249),250,IF(AND(AT8>=250,AT8<=299),300,IF(AND(AT8>=300,AT8<=349),350,IF(AND(AT8>=350,AT8<=399),400,IF(AND(AT8>=400,AT8<=449),450,IF(AND(AT8>=450,AT8<=499),500,IF(AND(AT8>=500,AT8<=599),600,700))))))))))) -> 200
A7: Selection du filtre | B7: 2 / 500 / 70 / SERIE 2 | K7: Prevoir des rehausses sur talons de 70 = 130 | S7: oui | U7: Longeur zone formation | V7: =X24*R15/60 -> 9.484873262 | W7: m | X7: SANICRO | Y7: 6 | Z7: SANICRO | AA7: SANICRO 28 | AB7: SANICRO 28 | AC7: SANICRO 28 | AD7: 316L | AE7: 316L | AF7: 316L | AG7: 316L | AH7: 316L | AI7: 316L | AJ7: 316L | AK7: 904L | AM7: Nitrile | AN7: 6 | AO7: 65 | AQ7: 5 | AS7: Vitesse de l'air | AT7: 10
A8: TALONS | C8: SURFACE | E8: LARGEUR | G8: LONGEUR BàV | I8: BATI | K8: Ø TAMBOUR | Q8: BàV sorties coudées | U8: Surface zone formation | V8: =V7*E9/1000 -> 4.742436631 | W8: m² | X8: SVR | Y8: 7 | Z8: SVR | AA8: Acier caoutchouté | AB8: POLYPROPYLENE | AC8: POLYPROPYLENE | AD8: Acier caoutchouté | AE8: POLYPROPYLENE | AF8: POLYPROPYLENE | AG8: 316L | AH8: Acier caoutchouté | AI8: Acier caoutchouté | AJ8: 316L | AN8: 7 | AO8: 80 | AP8: 3"1/2 | AQ8: 6 | AS8: Diamètre théorique | AT8: =ROUNDUP(SQRT((AT4)/(AT5*AT7*3600)/3.14*4)*1000,-1) -> 160
A9: =VLOOKUP($B$7,[31]FabSpecification!$A$2:$J$810,3,FALSE) -> 70 | C9: =VLOOKUP(B7,[31]FabSpecification!$A$2:$J$810,4,FALSE) -> 2 | E9: =VLOOKUP($B$7,[31]FabSpecification!$A$2:$J$810,6,FALSE) -> 500 | G9: =VLOOKUP($B$7,[31]FabSpecification!$A$2:$J$810,5,FALSE) -> 4000 | I9: =VLOOKUP($B$7,[31]FabSpecification!$A$2:$J$810,2,FALSE) -> SERIE 2 | K9: =VLOOKUP($B$7,[31]FabSpecification!$A$2:$J$810,7,FALSE) -> 630 | N9: Connection en | S9: metric | U9: temps formation | V9: =R15/3600 -> 0.4833333333 | W9: h | X9: POLYPROPYLENE | Y9: 8 | Z9: PPH-typePilote | AA9: POLYPROPYLENEEE | AB9: CAOUT | AD9: 0 | AE9: 0 | AF9: 0 | AO9: 100 | AP9: 4" | AQ9: 7
A10: MATIERES >?? SELECTION | E10: MATIERES DU DEVIS | H10: CHOIX MATIERES | K10: =(C9)&"B"&(E9/100) -> 2B5 | N10: m3/h | P10: dépression mbar | R10: # DE GOULOTTES | U10: Volume pulpe | V10: =N15*V9 -> 0.1588419405 | W10: m3 | X10: CAOUT | Y10: 9 | AA10: choisir valeur | AB10: choisir valeur | AC10: choisir valeur | AD10: choisir valeur | AE10: choisir valeur | AF10: choisir valeur | AG10: choisir valeur | AH10: choisir valeur | AI10: choisir valeur | AJ10: choisir valeur | AO10: 125 | AQ10: 8
A11: BOITE A VIDE | E11: =$H$11 -> 304L | H11: 304L | K11: POMPE à VIDE | N11: =100*C9 -> 200 | P11: 800 | R11: 3 | U11: Hauteur pulpe | V11: =V10/V8*1000 -> 33.49374022 | W11: mm | X11: Basic ou option | AA11: EN-S235JR | AM11: 200 | AO11: 150 | AP11: 6" | AQ11: 9
A12: ROULEAU D'ENTRE | E12: =IF(OR(AND(H11="SVR",H12="Basic ou option"),AND(H11="Titane",H12="Basic ou option")),"CAOUT",IF(H12="Basic ou option",H11,H12)) -> 304L | H12: Basic ou option | K12: TYPE ALIMENTATEUR | N12: N/A | Q12: QDC | X12: PPH-typePilote | Y12: 9 | AB12: Basic ou option | AC12: Titane | AD12: 7 | AE12: Basic ou option | AM12: 400 | AO12: 200 | AP12: 8" | AQ12: 10
A13: ALIMENTATEUR | E13: =IF(OR(AND(H11="SVR",H13="Basic ou option"),AND(H11="Titane",H13="Basic ou option")),"POLYPROPYLENE",IF(H13="Basic ou option",H11,H13)) -> 304L | H13: Basic ou option | K13: TYPE DE GOULOTTE | Q13: OVER | Z13: 304L | AB13: 304L | AC13: 304L | AD13: 1 | AE13: 304L | AM13: 500 | AO13: 250 | AP13: 10" | AQ13: 12
A14: GOULOTTE | E14: =IF(OR(AND(H11="SVR",H14="Basic ou option"),AND(H11="Titane",H14="Basic ou option")),"POLYPROPYLENE",IF(H14="Basic ou option",H11,H14)) -> 304L | H14: Basic ou option | N14: m3/h | P14: sp.gr | Q14: t/h | R14: cycle sec | S14: % | U14: POMPES EXTRACTION | V14: m3/h | Z14: 304L | AB14: 316L | AC14: 316L | AD14: 2 | AE14: 316L | AF14: Si(Bouton 19 Copie 2!X=1;(Index($AA$2:$AA$10;$V$11));(Index(X2:X10;$V30-1))) | AM14: 600 | AO14: 300 | AP14: 12" | AQ14: 14
A15: ROULEAUX DE SORTIE | E15: =IF(OR(AND(H11="SVR",H15="Basic ou option"),AND(H11="Titane",H15="Basic ou option")),"CAOUT",IF(OR(AND(H11="U45N",H15="Basic ou option"),AND(H11="904L",H15="Basic ou option")),"316L",IF(H15="Basic ou option",H11,H15))) -> 304L | H15: Basic ou option | K15: PULPE / CYCLE FORM | N15: ='I 27200 (Carbonate)'!D14 -> 0.3286384977 | P15: ='I 27200 (Carbonate)'!D18 -> 1.065 | Q15: =N15*P15 -> 0.35 | R15: 1740 | S15: =ROUNDDOWN(R15/$R$23*100,2) -> 189.69 | T15: =IF(S15=0,0,1) -> 1 | U15: POMPE 1 | V15: 20 | AB15: U45N | AC15: U45N | AD15: 3 | AE15: U45N | AM15: 800 | AO15: 350 | AP15: 14" | AQ15: 15
A16: TREMIE DE DECHARGE | E16: =IF(OR(AND(H11="SVR",H16="Basic ou option"),AND(H11="Titane",H16="Basic ou option")),"POLYPROPYLENE",IF(OR(AND(H11="U45N",H16="Basic ou option"),AND(H11="904L",H16="Basic ou option")),"316L",IF(H16="Basic ou option",H11,H16))) -> 304L | H16: Basic ou option | K16: SOLIDES | N16: Approximative | P16: 2.8 | Q16: ='I 27200 (Carbonate)'!D17 -> 0.01645 | U16: POMPE 2 | V16: 30 | Z16: N/A | AB16: E24 | AC16: E24 | AD16: 4 | AE16: E24 | AM16: 1000 | AO16: 400 | AP16: 16" | AQ16: 16
A17: GOULOTTE LAVAGE TOILE | E17: =IF(OR(AND(H11="SVR",H17="Basic ou option"),AND(H11="Titane",H17="Basic ou option")),"POLYPROPYLENE",IF(OR(AND(H11="U45N",H17="Basic ou option"),AND(H11="904L",H17="Basic ou option")),"316L",IF(H17="Basic ou option",H11,H17))) -> 304L | H17: Basic ou option | K17: FILTRATE | N17: ='I 27200 (Carbonate)'!H35 -> 0.3274936275 | P17: ='I 27200 (Carbonate)'!H36 -> 1.02 | Q17: =N17*P17 -> 0.3340435 | U17: POMPE 3 | V17: 50 | Z17: FRP | AB17: 904L | AC17: 904L | AD17: 5 | AE17: 904L | AM17: 1200 | AO17: 450 | AP17: 18" | AQ17: 17
A18: RAMPES LAVAGE TOILE | E18: =IF(OR(AND(H11="SVR",H18="Basic ou option"),AND(H11="Titane",H18="Basic ou option"),AND(H11="U45N",H18="Basic ou option"),AND(H11="904L",H18="Basic ou option")),"316L",IF(H18="Basic ou option",H11,H18)) -> 304L | H18: Basic ou option | K18: IF LAVAGEING & ML SEPARATED , CONSIDER INTERZONE | R18: 5 | S18: =ROUNDDOWN(R18/$R$23*100,2) -> 0.54 | U18: POMPE 4 | V18: 400 | Z18: 304L | AB18: SANICRO 28 | AC18: SANICRO 28 | AD18: 6 | AE18: SANICRO 28 | AM18: 1400 | AO18: 500 | AP18: 20" | AQ18: 18
A19: ROULEAUX SOUTIEN BANDE | E19: =IF(OR(AND(H11="SVR",H19="Basic ou option"),AND(H11="Titane",H19="Basic ou option")),"CAOUT",IF(OR(AND(H11="U45N",H19="Basic ou option"),AND(H11="904L",H19="Basic ou option")),"316L",IF(H19="Basic ou option",H11,H19))) -> 304L | H19: Basic ou option | K19: LAVAGE 1 / CYCLE | N19: ='I 27200 (Carbonate)'!T7 -> 0.024675 | P19: 1.1 | Q19: =N19*P19 -> 0.0271425 | R19: 16.5 | S19: =ROUNDDOWN((AB32+AC32)/$R$23*100,2) -> 2.34 | T19: =IF(S19=0,0,1) -> 1 | AB19: SVR | AC19: SVR | AD19: 7 | AE19: Titane | AM19: 1600 | AO19: 600 | AP19: 24" | AQ19: 20
A20: ROULEAUX RETOUR TOILE | E20: =IF(OR(AND(H11="SVR",H20="Basic ou option"),AND(H11="Titane",H20="Basic ou option")),"CAOUT",IF(OR(AND(H11="U45N",H20="Basic ou option"),AND(H11="904L",H20="Basic ou option")),"316L",IF(H20="Basic ou option",H11,H20))) -> 304L | H20: Basic ou option | K20: LAVAGE 2 / CYCLE | N20: ='I 27200 (Carbonate)'!T13 -> 0.024675 | P20: 1.1 | Q20: =N20*P20 -> 0.0271425 | R20: 16.5 | S20: =ROUNDDOWN((AD32+AE32)/$R$23*100,2) -> 2.34 | T20: =IF(S20=0,0,1) -> 1 | U20: Palier Fonte | AB20: POLYPROPYLENE | AC20: POLYPROPYLENE | AD20: 8 | AM20: 1800 | AO20: 700 | AP20: 27" | AQ20: 22
A21: SUPPORT BàV | E21: =IF(OR(AND(H11="SVR",H21="Basic ou option"),AND(H11="Titane",H21="Basic ou option"),AND(H11="U45N",H21="Basic ou option"),AND(H11="904L",H21="Basic ou option")),"316L",IF(H21="Basic ou option",H11,H21)) -> 304L | H21: Basic ou option | K21: LAVAGE 3 / CYCLE | N21: ='I 27200 (Carbonate)'!T19 -> 0.024675 | P21: 1.1 | Q21: =N21*P21 -> 0.0271425 | R21: 16.5 | S21: =ROUNDDOWN(R21/$R$23*100,2) -> 1.79 | T21: =IF(S21=0,0,1) -> 1 | AB21: Acier caoutchouté | AC21: Acier caoutchouté | AD21: 10 | AM21: 2000 | AO21: 800 | AP21: 32" | AQ21: 24
A22: TABLE / | B22: / BATI | C22: 304L | E22: =H22 -> 304L | H22: 304L | K22: ESSORAGE | R22: 30 | S22: =ROUNDDOWN(R22/$R$23*100,2) -> 3.27 | V22: Vitesse bande | W22: Standard | X22: =((G9/1000)/(R23/60)) -> 0.2616516762 | Y22: 40 | Z22: Hz | AB22: Titane | AC22: Basic ou option | AD22: 11 | AM22: 2200
A23: BANDE | E23: =H23 -> EPDM | H23: EPDM | K23: TOTAL CYCLE | N23: do not change Thickness load | R23: =AH32/2 -> 917.25 | S23: =ROUNDDOWN(R23/$R$23*100,2) -> 100 | W23: Maxi | X23: =X22*Y23/Y22 -> 0.3924775143 | Y23: 60 | Z23: Hz | AC23: PPH-typePilote | AD23: 9 | AM23: 2400
A24: EPAISSEUR BANDE MM | E24: =H61 -> 18.5 | F24: BOULON, MATIERE | J24: =IF(OR(E22="E24",E22="304L"),"304","316") -> 304 | K24: Hauteur Gâteau | N24: =A9-10 -> 60 | P24: InterZone | R24: 5 | T24: =SUM(T15:T21) -> 4 | W24: Nominal | X24: =X22*Y24/Y22 -> 0.3270645953 | Y24: 50 | Z24: Hz | AD24: 4 | AM24: 2600
A25: VITESSE DE LA BANDE m/min | E25: maxi | F25: =X23 -> 0.3924775143 | G25: mini | H25: =F25/J25 -> 0.03270645953 | I25: Ratio | J25: 12 | K25: PUISSANCE ABSORBEE | N25: =IF(R26="Kw",H72 & " kW",J72 & " HP") -> 0,06 kW | Q25: Inst. | R25: =IF(R26="kW",H73 & " kW",J73 & " HP") -> 0,37 kW | AM25: 2800
A26: VITESSE DU TAMBOUR RPM | E26: maxi | F26: =F25/((H62/1000)*PI()) -> 0.1926437516 | G26: mini | H26: =F26/J25 -> 0.01605364597 | K26: COUPLE A L'ARBRE | N26: =H71*10 -> 2319.944184 | R26: kW | AM26: 3000
A27: ALIMENTATEUR/ VITESSE m/s | E27: 1.2 | G27: NOMBRE DIA | I27: =IF(AND($Q$12="QDC",$E$9>1500),2,IF(AND($Q$12="QDC",$E$9<=1500),1,IF(AND($Q$12<>"QDC",$E$9>=2000),2,1))) -> 1 | J27: DIAMETRE THEORITIQUE | M27: =SQRT((N15/I27*4)/(3600*PI()*E27))*1000 -> 9.841751706 | O27: DIAMETRE RETENUE | S27: 20 | T27: debit Lavage | AJ27: Ø de boite à vide autorisé
A28: GOULOTTE LAVAGE / VITESSE m/s | E28: 1.8 | G28: NOMBRE DIA | I28: 1 | J28: DIAMETRE THEORITIQUE | M28: =SQRT((T28/I28*4)/(3600*PI()*E28))*1000 -> 2.201892626 | O28: DIAMETRE RETENUE | S28: 20 | T28: =QUARTILE(N19:N21,4) -> 0.024675 | X28: coef fuite | Y28: En Essorage | AJ28: Choix | AK28: Serie 3, 4, 5 | AL28: Serie 2 SS | AM28: Serie 1 | AN28: Pilote | AO28: Serie 2 SVR
A29: PICAGES Bàv / VITESSE m/s | E29: 20 | F29: ="DN"&H29 -> DN65 | H29: 65 | J29: REDUCTEUR | M29: =IF($N$26<610,"USOCOME","BREVINI") -> BREVINI | O29: Courroies BàV | R29: =R76&" mm" -> 38 mm | X29: 0.35 | Y29: 0.65 | AJ29: =IF(AND($I$9="SERIE 1",H$11<>$AC$23),AM29,IF(AND($I$9="SERIE 1",H$11=$AC$23),AN29,IF(AND($I$9="SERIE 2",OR(H$11<>$AC$19,H$11<>$AC$12)),AL29,IF(AND($I$9="SERIE 2",OR(H$11=$AC$19,H$11=$AC$12)),AO29,AK29)))) -> 50 | AK29: 50 | AL29: 50 | AM29: 65 | AN29: 20 | AO29: 50
A30: TUYAU INTERNE /MATIERE | E30: =IF(OR(AND(H11="SVR",F30="Basic ou option"),AND(H11="Titane",F30="Basic ou option")),"POLYPROPYLENE",IF(F30="Basic ou option",H11,F30)) -> 304L | F30: Basic ou option | H30: DRIP PAN | I30: N/A | J30: CAILLEBOTIS | K30: Courroies Table | M30: =R77 -> 30 mm x 5 mm | O30: Tension de courroies | R30: =IF(G9>20001,"OUI","NON") -> NON | X30: calcul collecteur | Z30: collecteur1 | AB30: collecteur2 | AD30: collecteur3 | AF30: collecteur4 | AJ30: =IF(AND($I$9="SERIE 1",H$11=$AC$23),AM30,IF(AND($I$9="SERIE 1",H$11<>$AC$23),AN30,IF(AND($I$9="SERIE 2",OR(H$11=$AC$19,H$11=$AC$12)),AO30,IF(AND($I$9="SERIE 2",OR(H$11<>AC$19,H$11<>AC$12)),AL30,AK30)))) -> 65 | AK30: 65 | AL30: 65 | AO30: 75
A31: COLLECTEUR / MATIERE | E31: =IF(OR(AND(H11="SVR",F31="Basic ou option"),AND(H11="Titane",F31="Basic ou option")),"CAOUT",IF(F31="Basic ou option",H11,F31)) -> 304L | F31: Basic ou option | H31: WALKWAYS | I31: N/A | J31: N/A | K31: Vitesse (m/s) dans tuyau vide | O31: 28 | P31: nbre ballons | S31: 3 | Z31: Form | AA31: interzone | AB31: Lavag1 | AC31: interzone | AD31: Lavag | AE31: interzone | AF31: Lavag3 | AG31: essorag | AH31: Cycle _ % | AJ31: =IF(AND($I$9="SERIE 1",H$11=$AC$23),AM31,IF(AND($I$9="SERIE 1",H$11<>$AC$23),AN31,IF(AND($I$9="SERIE 2",OR(H$11=$AC$19,H$11=$AC$12)),AO31,IF(AND($I$9="SERIE 2",OR(H$11<>AC$19,H$11<>AC$12)),AL31,AK31)))) -> 80 | AK31: 80 | AL31: 80 | AO31: 90
A32: NOURRICE Ø CHOIX | E32: 65 | G32: DIAMETRE THEORITIQUE | J32: =Z46 -> 42.92603281 | K32: DIA VERS PàV | N32: 65 | P32: DIAMETRE THEORIQUE | S32: =SQRT((N11/3600)*4/(PI()*O31))*1000 -> 50.26200292 | X32: time sec | Z32: =R15 -> 1740 | AA32: =R18 -> 5 | AB32: =$R$19 -> 16.5 | AC32: =IF(AD32=0,0,R24) -> 5 | AD32: =R20 -> 16.5 | AE32: =IF(AF32=0,0,R24) -> 5 | AF32: =R21 -> 16.5 | AG32: =R22 -> 30 | AH32: =SUM(Z32:AG32) -> 1834.5 | AI32: TOTAL | AJ32: =IF(AND($I$9="SERIE 1",H$11=$AC$23),AM32,IF(AND($I$9="SERIE 1",H$11<>$AC$23),AN32,IF(AND($I$9="SERIE 2",OR(H$11=$AC$19,H$11=$AC$12)),AO32,IF(AND($I$9="SERIE 2",OR(H$11<>AC$19,H$11<>AC$12)),AL32,AK32)))) -> 100 | AK32: 100 | AL32: 100
A33: # Piquage / zone theo | F33: zone 1 | H33: =Z45 -> 1 | I33: zone 2 | K33: =AB45 -> 1 | L33: zone 3 | N33: =AD45 -> 1 | O33: zone 4 | Q33: =AF45 -> 1 | R33: Preconisé | U33: Longueur totale tronçons | X33: % surf. zone filtrante | Z33: =Z$32/$AH$32*100 -> 94.84873262 | AA33: =AA$32/$AH$32*100 -> 0.2725538294 | AB33: 0.899427637 | AC33: 0.2725538294 | AD33: 0.899427637 | AE33: 0.2725538294 | AF33: 0.899427637 | AG33: 1.635322976 | AH33: =SUM(Z33:AG33) -> 100 | AI33: ="à "&X29 -> à 0,35 | AJ33: =IF(AND($I$9="SERIE 1",H$11=$AC$23),AM33,IF(AND($I$9="SERIE 1",H$11<>$AC$23),AN33,IF(AND($I$9="SERIE 2",OR(H$11=$AC$19,H$11=$AC$12)),AO33,IF(AND($I$9="SERIE 2",OR(H$11<>AC$19,H$11<>AC$12)),AL33,AK33)))) -> 125 | AK33: 125 | AL33: 125 | AQ33: on all sides of the filter + 2 stairs | AV33: en entier du filtre + 2 Escaliers
A34: Long. manifold(s) /Section(s) mm | F34: { | H34: =IF(S31=1," ",IF(S31=3,$Z$49,$Z$50)) -> 3851.73 | I34: =IF(S31=1,"",IF(S31=3,AA49,"}{")) ->  | J34: =IF(S31=4,AB48,IF(S31=3,AB49," ")) ->  | K34: =IF(S31=1,$AC$51,"") ->  | L34: =IF(S31=4,"}{",IF(S31=3,"}{"," ")) -> }{ | M34: =IF(S31=4,$AD$48,IF(S31=3,AD49,IF(S31=2,$AD$50," "))) -> 46.87 | N34: =IF(S31=3,$AE$49," ") -> }{ | O34: =IF(S31=4,"}{"," ") ->  | P34: =IF(S31=4,AF48,IF(S31=3,AF49," ")) -> 101 | Q34: } | R34: =ROUNDUP((H33+K33+N33+Q33),0) -> 4 | U34: =SUM(F34:Q34)/1000 -> 3.9996 | X34: debit d'air par zone | Z34: =($N$11*$X$29*((Z33)/100)) -> 66.39411284 | AA34: 0.1907876806 | AB34: 0.6295993459 | AC34: 0.1907876806 | AD34: 0.6295993459 | AE34: 0.1907876806 | AF34: 0.6295993459 | AG34: 1.144726083 | AH34: =SUM(Z34:AG34) -> 70 | AJ34: =IF(AND($I$9="SERIE 1",H$11=$AC$23),AM34,IF(AND($I$9="SERIE 1",H$11<>$AC$23),AN34,IF(AND($I$9="SERIE 2",OR(H$11=$AC$19,H$11=$AC$12)),AO34,IF(AND($I$9="SERIE 2",OR(H$11<>AC$19,H$11<>AC$12)),AL34,AK34)))) -> 0 | AK34: 150 | AQ34: L shape, on one side of the filter + 2 stairs | AV34: forme en L, sur un côté du filtre + 2 Escaliers
A35: Choix Longueur / # Piquage | F35: Nbre choisi | H35: =H33 -> 1 | I35: Nbre choisi | K35: =K33 -> 1 | L35: Nbre choisi | N35: =N33 -> 1 | O35: Nbre choisi | Q35: =Q33 -> 1 | R35: Total choisi | X35: % surf. essorage | AA35: =AA33/$AH$35*100 -> 11.11111111 | AC35: =AC33/$AH$35*100 -> 11.11111111 | AE35: =AE33/$AH$35*100 -> 11.11111111 | AG35: =AG33/$AH$35*100 -> 66.66666667 | AH35: =AA33+AC33+AE33+AG33 -> 2.452984464 | AI35: ="à "&Y29 -> à 0,65 | AQ35: on one side of the filter + 2 stairs | AV35: sur un côté du filtre + 2 escaliers
A36: !!! value for information, The number of connection & length of section have to be adjusted accordingdly !!! | R36: =H35+K35+N35+Q35 -> 4 | U36: =U34/12 -> 0.3333 | X36: debit essorage | AA36: =(($N$11*$Y$29)*AA35)/100 -> 14.44444444 | AC36: =(($N$11*$Y$29)*AC35)/100 -> 14.44444444 | AE36: =(($N$11*$Y$29)*AE35)/100 -> 14.44444444 | AG36: =(($N$11*$Y$29)*AG35)/100 -> 86.66666667 | AH36: =AA36+AC36+AE36+AG36 -> 130
A37: EXPRIMER DEBIT EN | D37: m3/h | E37: =IF(D37="m3/h",1,IF(D37="gpm",4.4028,0.58858)) -> 1 | J37: =IF(AND(G9>20000.1, F25*G9<402000),"Belt LAVAGE recommended",IF(F25*G9>402000,"Belt lubrication recommended","lub or LAVAGE as per process conditions")) -> lub or LAVAGE as per process conditions | R37: =IF(D37="m3/h",1,IF(D37="gpm",0.0044028,0.58858)) -> 1 | S37: Montage | X37: debit liquide x 10 | Z37: =$N17*10 -> 3.274936275 | AB37: =N19*10 -> 0.24675 | AD37: =N20*10 -> 0.24675 | AF37: =N21*10 -> 0.24675 | AH37: =Z37+AB37+AD37+AF37 -> 4.015186275 | AK37: N/A
A38: 2 opérations côté gâteau | D38: CM 04 F - dia 1,3 | G38: =IF(A38="2 in operation cake side",ROUND((L38*2*60*H75/1000*E37),2),ROUND((L38*1*60*H75/1000*E37),2))*2 -> 1.54 | H38: =$D$37 -> m3/h | J38: 3 | K38: =J38 & " bar" -> 3 bar | L38: =IF(K38="3 bar",VLOOKUP(D38,[31]Données!E2:I5,3,TRUE),VLOOKUP(D38,[31]Données!E1:I5,4,TRUE)) -> 1.6 | M38: Courroies table | S38: MONT | T38: PRE= erected on site | X38: debit / zone | Z38: =Z34+AA34+AA36+Z37 -> 84.30428124 | AB38: =AB34+AC34+AC36+AB37 -> 15.51158147 | AD38: =AD34+AE34+AE36+AD37 -> 15.51158147 | AF38: =AF34+AG34+AG36+AF37 -> 88.6877421 | AH38: =AH34+AH36+AH37 -> 204.0151863 | AI38: =Z38+AB38+AD38+AF38 -> 204.0151863 | AK38: PPH
A39: 1 Côté opposé | D39: CM 03 F - dia 1,1 | G39: =ROUND(L39*1*60*H75/1000*E37,2) -> 0.58 | H39: =$D$37 -> m3/h | J39: 3 | K39: =J39 & " bar" -> 3 bar | L39: =IF(K39="3 bar",VLOOKUP(D39,[31]Données!E2:I5,3,TRUE),VLOOKUP(D39,[31]Données!E2:I6,5,TRUE)) -> 1.2 | M39: Lavage | P39: Oui | Q39: =IF(P39="Oui",ROUND(RIGHT($R$68,1)*2*13.8*R37,3),"Non!") -> 55.2 | R39: =IF(D37="m3/h","l/h",D37) -> l/h | T39: MONT= erected in factory before delivery | X39: Dia collect | Y39: 4 | Z39: =SQRT((Z38*4/($E$29*3600))/PI())*1000 -> 38.61122906 | AB39: =SQRT((AB38*4/($E$29*3600))/(3.1416))*1000 -> 16.56213584 | AD39: =SQRT((AD38*4/($E$29*3600))/(3.1416))*1000 -> 16.56213584 | AF39: =SQRT((AF38*4/($E$29*3600))/(3.1416))*1000 -> 39.60227202 | AH39: =QUARTILE(Z39:AF39,4) -> 39.60227202 | AK39: 316L | AN39: Palier Fonte
A40: bande, 2 rampes | D40: CM 03 F - dia 1,1 | G40: =ROUND(2*L40*1*60*H76/1000*E37,2) -> 0.86 | H40: =$D$37 -> m3/h | J40: 3 | K40: =J40 & " bar" -> 3 bar | L40: =IF(K40="3 bar",VLOOKUP(D40,[31]Données!E2:I5,3,TRUE),VLOOKUP(D40,[31]Données!E2:I5,5,TRUE)) -> 1.2 | M40: Lubrification | P40: Non | Q40: =IF(P40="Oui",ROUND(($G$9/10000)*12*(RIGHT($R$68,1)*2)*R37,3),"Non!") -> Non! | R40: =IF(D37="m3/h","l/h",D37) -> l/h | X40: Dia collect | Y40: 3 | Z40: =IF(T24=S31+1,SQRT(((Z38+AB38)*4/($E$29*3600))/(3.1416))*1000,SQRT(((Z38)*4/($E$29*3600))/(3.1416))*1000) -> 42.01342484 | AB40: =IF(T24=S31+1," ",SQRT(((AB38)*4/($E$29*3600))/(3.1416))*1000) ->  | AD40: =SQRT(((AD38+AF38)*4/($E$29*3600))/(3.1416))*1000 -> 42.92603281 | AH40: =QUARTILE(Z40:AF40,4) -> 42.92603281 | AN40: Palier Inox
A41: lubrification courroies BàV | C41: =IF(D37="m3/h",(ROUND(($G$9/10000)*50,3)),(ROUND(($G$9/10000)*50*E37/1000,3))) -> 20 | D41: =IF(D37="m3/h","l/h",D37) -> l/h | E41: =IF(D37="m3/h",(ROUND(($G$9/10000)*200,3)),(ROUND(($G$9/10000)*200*E37/1000,3))) -> 80 | F41: =IF(D37="m3/h","l/h",D37) -> l/h | G41: =G38+G39+G40 -> 2.98 | H41: =$D$37 -> m3/h | X41: Dia collect | Y41: 2 | Z41: =SQRT(((Z38)*4/($E$29*3600))/(3.1416))*1000 -> 38.61118391 | AB41: =SQRT(((AB38+AD38+AF38)*4/($E$29*3600))/(3.1416))*1000 -> 46.01031011 | AH41: =QUARTILE(Z41:AF41,4) -> 46.01031011 | AN41: Palier PP
A42: Cotation | B42: Metric | I42: Calcul Dia. | K42: Débit | M42: 21 | N42: Vitesse | P42: 1.8 | Q42: = | R42: =ROUND(SQRT(M42*4/(3600*P42*PI()))*1000,0) -> 64 | X42: Dia collect | Y42: 1 | Z42: =SQRT(((Z38+AB38+AD38+AF38)*4/($E$29*3600))/(PI()))*1000 -> 60.0648033 | AH42: =QUARTILE(Z42:AF42,4) -> 60.0648033 | AK42: N/A
C43: matiere | E43: Dia mm | G43: Dia-A mm | I43: Dia-B mm | K43: Dia-C mm | M43: Dia-D mm | O43: Detec. Niveau / Nbre | R43: Pieds support | X43: Dia collect | Y43: 5 | AK43: =IF('Offre NEW'!C3="GB","on all sides of the filter + 2 stairs","en entier du filtre + 2 escaliers") -> on all sides of the filter + 2 stairs
A44: Ballons | C44: 304L | D44: krogh | E44: 500 | G44: 65 | I44: 65 | K44: 32 | M44: n/a | O44: Oui | P44: 1 | R44: Non | T44: =IF(O44="Yes","DN 50 (2'')"&" Nbre: "& P44,"Excluded") -> Excluded | V44: =IF(R44="Yes","Included","Excluded") -> Excluded | X44: Dia collect | Y44: 6 | AK44: =IF('Offre NEW'!C3="GB","L shape, on one side of the filter + 2 stairs","forme en L, sur un côté du filtre + 2 escaliers") -> L shape, on one side of the filter + 2 stairs
A45: Ø calculée - vitesse m/s | D45: 1.2 | E45: =ROUND(Z46*SQRT(E29/D45),0) -> 175 | G45: =E32 -> 65 | I45: =N32 -> 65 | K45: =ROUND(SQRT(N17*4/(3600*0.6*PI()))*1000,0) -> 14 | X45: Nomb piquage | Z45: =ROUNDUP((Z39/$H$29)^2,0) -> 1 | AB45: =ROUNDUP((AB39/$H$29)^2,0) -> 1 | AD45: =ROUNDUP((AD39/$H$29)^2,0) -> 1 | AF45: =ROUNDUP((AF39/$H$29)^2,0) -> 1 | AK45: =IF('Offre NEW'!C3="GB","on one side of the filter + 2 stairs","sur un côté du filtre + 2 escaliers") -> on one side of the filter + 2 stairs
A46: Cyclone (Moisture trap) | C46: 304L | E46: 200 | G46: 65 | I46: 65 | K46: 40 | M46: n/a | O46: Non | P46: 0 | R46: Non | T46: =IF(O46="Yes","DN 50 (2'')"&" Nbre: "& P46,"Excluded") -> Excluded | V46: =IF(R46="Yes","Included","Excluded") -> Excluded | X46: Choix du diaTheorique | Z46: =IF(S31=1,AH42,IF(S31=2,AH41,IF(S31=3,AH40,IF(S31=4,AH39,"FALSE")))) -> 42.92603281 | AA46: =VLOOKUP(ROUNDUP(Z46,0),AO3:AQ19,3,TRUE) -> 3 | AB46: =SQRT((N11*4/($O$31*3600))/(3.1416))*1000 -> 50.26194416 | AC46: =VLOOKUP(ROUNDUP(AB46,0),AO3:AQ19,3,TRUE) -> 4
A47: Ø calculée - vitesse m/s | D47: 1.8 | E47: =ROUND(S32*SQRT(O31/D47),0) -> 198 | G47: =N32 -> 65 | I47: =N32 -> 65 | K47: TBD | X47: Diametre approchant | Z47: =VLOOKUP(ROUNDUP(Z46,0),AO2:AO21,1,TRUE) -> 40 | AA47: =IF(Z47>(Z46*0.95),AA46,AA46+1) -> 4 | AB47: =VLOOKUP(CEILING(AB46,2),AO2:AO21,1,TRUE) -> 50 | AC47: =IF(AB47>(AB46*0.95),AC46,AC46+1) -> 4
A48: Laveur (Scrubber) | C48: Exclu | D48: barometrique | E48: 200 | G48: 65 | I48: 65 | K48: 20 | M48: 20 | O48: Non | P48: 0 | R48: Non | T48: =IF(O48="Yes","DN 50 (2'')"&" Nbre: "& P48,"Excluded") -> Excluded | V48: =IF(R48="Yes","Included","Excluded") -> Excluded | X48: Longueur section | Z48: =ROUNDDOWN($G$9*(($Z$33+$AA$33)/100),0) -> 3804 | AA48: }{ | AB48: =ROUNDDOWN($G$9*((AB$33+$AC$33)/100),0) -> 46 | AC48: }{ | AD48: =ROUNDDOWN($G$9*((AD$33+AE$33)/100),0) -> 46 | AE48: }{ | AF48: =ROUNDDOWN($G$9*((AF$33+AG$33)/100),0) -> 101 | AH48: =SUM(Z48:AG48) -> 3997
A49: Ø calculée - vitesse m/s | D49: 1.8 | E49: =ROUND(S32*SQRT(O31/D49),0) -> 198 | G49: =G47 -> 65 | I49: =I47 -> 65 | K49: =ROUND(SQRT(P51*4/(3600*0.6*PI()))*1000,0) -> 17 | M49: =SQRT((P51*4)/(3600*PI()*E28))*1000 -> 9.74925704 | P49: Gaz temperature | R49: 65 | S49: 0 | Z49: =IF(T24=S31+1,ROUNDDOWN($G$9*(($Z$33+$AA$33+AB33+AC33)/100),2),ROUNDDOWN($G$9*((Z33+AA33)/100),0)) -> 3851.73 | AA49: =IF(T24=S31+1," ","}{") ->  | AB49: =IF(T24=S31+1," ",ROUNDDOWN($G$9*(($AB$33+$AC$33)/100),0)) ->  | AC49: =IF($T$24=$S$31+1,"}{"," ") -> }{ | AD49: =IF(T24=S31+1,ROUNDDOWN($G$9*(($AD$33+$AE$33)/100),2)," ") -> 46.87 | AE49: =IF($T$24=$S$31+1,"}{"," ") -> }{ | AF49: =IF(T24=S31+1,ROUNDDOWN($G$9*((AF33+AG33)/100),0),ROUNDDOWN($G$9*((AD33+AE33+AF33+AG33)/100),0)) -> 101 | AH49: =SUM(Z49:AG49) -> 3999.6 | AL49: (0,85m width - L shape, on one side of filter + 2 stairs)
A50: Tension initiale T0 | E50: kg | F50: =((2.15+1)/(2.15-1))*$H$70*1.25 -> 1997.750543 | H50: =F50/2 -> 998.8752717 | I50: /brin | J50: =F50*1.05 -> 2097.638071 | K50: maxi | M50: A la Rupture | O50: =200*R62*(F58+210)/10000 -> 42.6 | P50: Scrubbing flow | R50: Safety factor | S50: =O50/(J51/1000) -> 29.75439584 | Z50: =ROUNDDOWN($G$9*(($Z$33+$AA$33)/100),0) -> 3804 | AA50: }{ | AD50: =ROUNDDOWN($G$9*((AB33+AC33+AD33+AE33+AF33+AG33)/100),0) -> 195 | AH50: =SUM(Z50:AG50) -> 3999
A51: Tension initiale T1 | E51: kg | F51: =$H$70*1.25*(1+(1/(2.15-1))) -> 1363.544022 | H51: couple + 5% | J51: =F51*1.05 -> 1431.721223 | K51: maxi | L51: kW à arbre moteur | P51: ='Dimens. scrubber'!B16 -> 0.4837354649 | Q51: ='Dimens. scrubber'!C16 -> m3/h | AC51: =ROUNDDOWN($G$9,0) -> 4000 | AH51: =SUM(Z51:AG51) -> 4000
A52: Tension initiale T2 | E52: kg | F52: =$H$70*1.25*(1/(2.15-1)) -> 634.2065217 | J52: =F52*(H73/H72) -> 3910.940217 | K52: maxi | L52: =((N26*F26)/716)*0.736/10 -> 0.04594066268 | O52: Cloth L x l (approx.) | R52: =((($G$9/1000)*2)+15) -> 23 | S52: =(($E$9/1000)+0.24) -> 0.74
A53: BELT SUPPORT FRAME | E53: =IF(I53="basic ou option",C22,I53) -> 304L | I53: 304L | N53: surface | R53: =C9 -> 2 | T53: =ROUND(R53*10.764,2) -> 21.53 | V53: =IF(B42="Metric",R53&" m2",T53&" sq.ft" &" ("&R53&" m2)" ) -> 2 m2 | X53: =IF(OR(E9=3000,E9=4200),I9&"."&LEFT(E9,1),I9) -> SERIE 2 | Z53: =Z37/10 -> 0.3274936275 | AB53: =AB37/10 -> 0.024675 | AD53: =AD37/10 -> 0.024675 | AF53: =AF37/10 -> 0.024675 | AH53: Débit 1
A54: CALCUL GROUPE | L54: ListPuiss | N54: Largeur HT | R54: =E9+X54 -> 1150 | T54: =ROUND(R54*3.2808/1000,3) -> 3.773 | V54: =IF(B42="Metric",R54&" mm",T54&" ft" &" ("&R54&" mm)" ) -> 1150 mm | X54: =HLOOKUP(X53,[31]FabSpecification!M26:AE29,2,FALSE) -> 650 | Z54: =IF(T24=S31+1,(Z37+AB37)/10,Z37/10) -> 0.3521686275 | AB54: =IF(T24=S31+1," ",AB37/10) ->  | AD54: =IF(T24=S31+1,AD37/10," ") -> 0.024675 | AF54: =IF(T24=S31+1,AF37/10,(AD37+AF37)/10) -> 0.024675 | AH54: Débit 2
A55: GATEAU = Ht TALONS / Densite | H55: =A9 -> 70 | J55: =(P15+P16)/2 -> 1.9325 | L55: 0.37 | N55: Long HT | R55: =X55+G9 -> 7130 | T55: =ROUND(R55*3.2808/1000,3) -> 23.392 | V55: =IF(B42="Metric",R55&" mm",T55&" ft" &" ("&R55&" mm)" ) -> 7130 mm | W55: 0.5 | X55: =HLOOKUP(X53,[31]FabSpecification!M26:AE29,3,FALSE) -> 3130 | Z55: =Z37/10 -> 0.3274936275 | AD55: =(AB37+AD37+AF37)/10 -> 0.074025 | AH55: Débit 3
A56: VIDE bar | H56: 0.8 | J56: BAR | L56: 0.5 | M56: =IF($H$72*1.15>L56,M57,L56) -> 0.5 | N56: Haut HT | R56: =X56 -> 1560 | T56: =ROUND(R56*3.2808/1000,3) -> 5.118 | V56: =IF(B42="Metric",R56&" mm",T56&" ft" &" ("&R56&" mm)" ) -> 1560 mm | W56: 0.75 | X56: =HLOOKUP(X53,[31]FabSpecification!M26:AE29,4,FALSE) -> 1560 | AC56: =(Z37+AB37+AD37+AF37)/10 -> 0.4015186275 | AH56: Débit 4
A57: CEF FROTTEMENT | H57: 0.3 | L57: 0.75 | M57: =IF($H$72*1.15>L57,M58,L57) -> 0.75 | N57: Poids | R57: =B7 -> 2 / 500 / 70 / SERIE 2 | W57: 1
A58: LARGEUR BANDE (L+0,1) | F58: =E9 -> 500 | H58: =E9/1000+0.1 -> 0.6 | J58: M | L58: 1.1 | M58: 1.1 | N58: Lav toil | T58: =ROUND(F58*3.2808/1000,3) -> 1.64 | V58: =IF(B42="Metric",F58&" mm",T58&" ft" &" ("&F58&" mm)" ) -> 500 mm | W58: 1.5
A59: ESPACE COURROIES | H59: 4.8 | J59: CM | L59: 1.5 | M59: 1.5 | N59: Lav band | W59: 2
A60: LONG SOUS VIDE | F60: =G9 -> 4000 | H60: =G9/10 -> 400 | J60: CM | L60: 2.2 | M60: 2.2 | N60: Epai ban sup | R60: =HLOOKUP(E9,[31]FabSpecification!M5:AF8,2,TRUE) -> 10 | T60: =ROUND(F60*3.2808/1000,3) -> 13.123 | V60: =IF(B42="Metric",F60&" mm",T60&" ft" &" ("&F60&" mm)" ) -> 4000 mm | W60: 3
A61: EPAISSEUR BANDE MM | H61: =HLOOKUP(E9,[31]FabSpecification!M5:AF8,4,TRUE) -> 18.5 | J61: MM | L61: 3 | M61: 3 | N61: Epai ban inf | R61: =HLOOKUP(E9,[31]FabSpecification!M5:AF8,3,TRUE) -> 4 | W61: 5
A62: DIA ENROUL TAMBOUR MM | F62: =K9 -> 630 | H62: =K9+(H61) -> 648.5 | J62: MM | L62: 4 | M62: 4 | N62: Nbre pli | R62: =HLOOKUP(E9,[31]FabSpecification!M5:AF9,5,TRUE) -> 3 | T62: =ROUND(F62*3.2808/1000,3) -> 2.067 | V62: =IF(B42="Metric",F62&" mm",T62&" ft" &" ("&F62&" mm)" ) -> 630 mm | W62: 5 | X62: LongBandeSupTT
A63: V MAX BANDE | H63: =F25 -> 0.3924775143 | J63: M/MM | L63: 5.5 | M63: 5.5 | N63: pds ban / Longueur | R63: =ROUND((T63*(E9+210))*H61/1000000,0) -> 171 | T63: =X63+(G9*2) -> 13000 | W63: 7.5 | X63: =HLOOKUP(F62,[31]FabSpecification!M32:U34,2,TRUE) -> 5000
A64: V MINI BANDE | H64: =H25 -> 0.03270645953 | J64: M/MM | L64: 7.5 | M64: 7.5 | N64: pas rain | R64: =HLOOKUP(E9,[31]FabSpecification!M5:AF12,6,TRUE) -> 14 | W64: 10
A65: V ROT TAMB | H65: =F26 -> 0.1926437516 | J65: T/MN | L65: 11 | M65: 11 | N65: larg rain | R65: =HLOOKUP(E9,[31]FabSpecification!M5:AF12,7,TRUE) -> 7 | W65: 15
A66: V ROT TAMB MINI | H66: =H26 -> 0.01605364597 | J66: T/MN | L66: 15 | M66: 15 | N66: prof rain | R66: =HLOOKUP(E9,[31]FabSpecification!M5:AF12,8,TRUE) -> 7 | W66: 20
A67: SURF /S VIDE | H67: =H59*H60 -> 1920 | J67: CM2 | L67: 18.5 | M67: 18.5 | N67: trou | R67: =HLOOKUP(E9,[31]FabSpecification!M5:AF13,9,TRUE) -> 6 x 10 | W67: 25
A68: EFFORT BANDE + GATEAU | H68: =(H58*((H60/100)+1))*((H61*1.1)+(N24*J55))*H57 -> 122.67 | J68: DaN | L68: 22 | M68: 22 | N68: sup band | R68: =HLOOKUP(E9,[31]FabSpecification!M5:AF24,11,TRUE) -> 2 x 2 | V68: LargeurBande | W68: 30
A69: EFFORT DU AU VIDE | H69: =H67*P11/1000*0.3 -> 460.8 | J69: DaN | L69: 30 | M69: 30 | N69: Ø roul emb / sup band | R69: =IF(OR(A9=70,A9=50),HLOOKUP(V69,[31]FabSpecification!M5:AF25,12,TRUE),HLOOKUP(V69,[31]FabSpecification!M5:AF24,13,TRUE)) -> 219 | T69: =IF(OR(A9=70,A9=50),HLOOKUP(V69,[31]FabSpecification!M5:AF25,14,TRUE),HLOOKUP(V69,[31]FabSpecification!M5:AF24,15,TRUE)) -> 219 | V69: =IF(AND(E9=1250,I9="SERIE 3"),E9+1,IF(AND(E9=1500,I9="SERIE 3"),E9+1,E9)) -> 500 | W69: 40
A70: EFFORT TANGENTIEL | H70: =(H68+H69) -> 583.47 | J70: DaN | L70: 37 | M70: 37 | N70: Ø roul sortie gat | R70: =HLOOKUP(E9,[31]FabSpecification!M5:AF20,16,TRUE) -> 60.3 | W70: 50
A71: COUPLE AVEC 1,25 COEF | H71: =(H70*(H62/2)*1.25/1000)*0.981 -> 231.9944184 | J71: MDaN | L71: 45 | M71: 45 | N71: Ø roul Guidage / support | R71: =HLOOKUP(E9,[31]FabSpecification!M22:AF23,2,TRUE) -> 60.3 | T71: =HLOOKUP(V69,[31]FabSpecification!M22:AF23,2,TRUE) -> 60.3 | W71: 60
A72: PUISSANCE MECA Re 0,85 | H72: =ROUND((H71*H65*PI())/(30*0.85*100),2) -> 0.06 | J72: =ROUND(H72/0.736,2) -> 0.08 | L72: 55 | M72: 55 | N72: Ø roul dèbat | R72: =HLOOKUP(E9,[31]FabSpecification!M5:AF21,17,TRUE) -> 60.3 | T72: Matière | V72: =IF(E9<2000,E15,"CS hard rubber lined") -> 304L | W72: 75
A73: PUISSANCE MOTEUR | H73: =IF(H72*1.15>L55,M56,L55) -> 0.37 | J73: =VLOOKUP(H73,L55:W79,12) -> 0.5 | L73: 75 | M73: 75 | N73: Nbre roul guid bande | R73: =ROUNDUP(R75/2,0)+1 -> 3 | W73: 100
L74: 90 | M74: 90 | N74: TRéMIE | R74: =VLOOKUP($B$7,[31]FabSpecification!$A$2:$J$810,8,FALSE) -> 2 x 2
A75: Nombre sprayeur par rampe toile | H75: =INT((E9+200)/100)+1 -> 8 | L75: 110 | M75: 110 | N75: NbrePoteauRoul bande | R75: =V75+1 -> 3 | T75: NbrePasBati | V75: =VLOOKUP($B$7,[31]FabSpecification!$A$2:$J$810,10,FALSE) -> 2 | W75: 150
A76: Nombre sprayeur par rampe bande | H76: =INT((E9)/100)+1 -> 6 | L76: 132 | M76: 132 | N76: Largeur courroies BaV | R76: =IF(H60>3401,T76,IF(I9="SERIE 1",V76,U76)) -> 38 | T76: 48 | U76: 38 | V76: 28 | W76: 200
A77: Nbre piquage bavide pilote | H77: =IF(I9<>"SERIE 1",R36,IF(G9=1400,14,28)) -> 4 | L77: 160 | M77: 160 | N77: Largeur courroies table | R77: =IF(E9<1001,U77,IF(AND(E9<1501,E9>1001),V77,IF(E9>1999,T77))) -> 30 mm x 5 mm | T77: 50 mm x 5,8 mm | U77: 30 mm x 5 mm | V77: 28 mm x 7 mm | W77: 200
L78: 200 | M78: 200 | N78: Diametre guide bande | R78: =IF(I9="SERIE 1",T78,U78) -> 100 | T78: 50 | U78: 100 | W78: 250
L79: 250 | M79: 250 | W79: 300

Sheet Séries 3-4-5 (hidden)
A1: DEVIS FILTRE A BANDE | B1: DATA | C1: =C5*2 -> 8 | L1: ="B"&B3/100 -> B5 | Q1: X HOG | V1: Long Pas | AC1: =IF(B3=3000,AC4:AC62,IF(B3=4000,AD4:AD52,IF(B3=2000,AA4:AA35,AE4:AE61))) ->  | AE1: =IF(B3=3000,AC4:AC62,IF(B3=4000,AD4:AD52,AE4:AE61)) -> 
A2: Date du devis | B2: =Calculations!R2 -> 2025-04-25 | D2: Quote # | E2: =Calculations!C3&"-"&Calculations!H3 -> 726789-rev4 | G2: Client : | H2: =Calculations!C2 -> CARESTER | L2: =Surface&"B"&B3/100 -> 2B5 | Q2: F RUT | U2: LgBaV | V2: 4 | W2: 3.5 | X2: 3 | Y2: NbrPas | Z2: NbrePas/LongPas | AA2: Largeur sous vide
A3: belt width | B3: =Calculations!E9 -> 500 | D3: Made by : | E3: X HOG | G3: Qty of filter: | I3: 1 | Q3: J BEG | AA3: 2000 | AB3: 2500 | AC3: 3000 | AD3: 4000 | AE3: 4200 | AF3: 4500
A4: Surface | B4: =Calculations!C9 -> 2 | C4: m2 | D4: Arbre revêtu | Q4: G BUF | U4: 7 | W4: 2 | Y4: =SUM(V4:X4) -> 2 | Z4: =W4 &" x "& W2 -> 2 x 3,5 | AA4: =$AA$3/1000*U4 -> 14 | AB4: =$AB$3/1000*U4 -> 17.5
A5: Pulleys diameter | B5: =IF(B6="SERIE 3",935,IF(B6="SERIE 4",1210,1400)) -> 935 | C5: =ROUND((Surface/B3)*1000,2) -> 4 | D5: Non | Q5: J ENG | U5: 10 | W5: 2 | X5: 1 | Y5: 3 | Z5: =X5&" x "&X2&" & "&W5&" x "&W2 -> 1 x 3 & 2 x 3,5 | AA5: 20 | AB5: 25 | AC5: 30
A6: =IF(B5=1400,"WARNING expansive filter versus","Frame and pulley size selection") -> Frame and pulley size selection | B6: =IF(AND(B3<2501,C5<18.45),"SERIE 3",IF(AND(B3<4001,C5<34.9),"SERIE 4","SERIE 5")) -> SERIE 3 | D6: Carter de Palier | L6: 304L | M6: 304L | Q6: F BOUQUET | U6: 10.5 | W6: 3 | Y6: =SUM(V6:X6) -> 3 | Z6: =W6 &" x "& $W$2 -> 3 x 3,5 | AA6: =$AA$3/1000*U6 -> 21 | AB6: =$AB$3/1000*U6 -> 26.25 | AC6: 31.5
A7: detail engineering hour | B7: 300 | C7: h | D7: Non | E7: Légende : | G7: Fill these cells | J7: =EVEN((SUM(B9:B11))/2) ->  | L7: 316L | M7: 316L | U7: 11 | V7: 1 | W7: 2 | Y7: 3 | Z7: =W7 &" x "& $W$2 &" & "& V7 &" x "& $V$2 -> 2 x 3,5 & 1 x 4 | AA7: =$AA$3/1000*U7 -> 22 | AB7: 27.5 | AC7: =$AC$3/1000*U7 -> 33
B8: =IF((((B10)*3.5+(B11)*4+(B9)*3)*B3*0.001)=Surface,"RIGHT","WRONG") ->  | D8: Chlorure | G8: Automatic | L8: 904L | M8: 904L | N8: Process | O8: Roller | P8: Frame | Q8: Feeder | R8: Belt | S8: B à V | U8: 12.5 | W8: 1 | X8: 3 | Y8: 4 | Z8: 3 x 3 & 1 x 3,5 | AA8: 25 | AB8: 31.25 | AC8: =$AC$3/1000*U8 -> 37.5
A9: Intermediate frame pace of 3000 | B9: =VLOOKUP(C5,U4:X52,4) ->  | D9: Oui | G9: Choice Menu | L9: 50X5 | M9: E24 | N9: 304L | O9: 304L | P9: 304L | Q9: 304L | R9: SBR | S9: 140 | U9: 14 | W9: 4 | Y9: 4 | Z9: =W9 &" x "& $W$2 -> 4 x 3,5 | AA9: 28 | AB9: 35 | AC9: =$AC$3/1000*U9 -> 42 | AD9: =$AD$3/1000*U9 -> 56
A10: Intermediate frame pace of 3500 | B10: =VLOOKUP(C5,U4:X52,3) ->  | L10: 40X7 | N10: 316L | O10: 316L | P10: 316L | Q10: 316L | R10: EPDM | S10: 170 | U10: 14.5 | V10: 1 | W10: 3 | Y10: 4 | Z10: =W10 &" x "& $W$2 &" & "& V10 &" x "& $V$2 -> 3 x 3,5 & 1 x 4 | AA10: 29 | AB10: 36.25 | AC10: 43.5 | AD10: =$AD$3/1000*U10 -> 58
A11: Intermediate frame pace of 4000 | B11: =VLOOKUP(C5,U4:X52,2) ->  | D11: Number of step to be reported | G11: Your selection is: | L11: 30X7 | N11: 904L | O11: CAOUT | Q11: U45N | R11: SBRLT | U11: 15 | V11: 2 | W11: 2 | Y11: 4 | Z11: =W11 &" x "& $W$2 &" & "& V11 &" x "& $V$2 -> 2 x 3,5 & 2 x 4 | AA11: 30 | AB11: 37.5 | AC11: 45 | AD11: 60
D12: =LOOKUP(C5,U4:Z76) ->  | G12: =IF((((B10)*3.5+(B11)*4+(B9)*3)*B3*0.001)=B4,"RIGHT, continue selection","WRONG, correct values in the green screen") ->  | L12: ALIAS | N12: U45N | O12: E24 | Q12: 904L | R12: NITRILE | U12: 16.5 | W12: 3 | X12: 2 | Y12: 5 | Z12: 2 x 3 & 3 x 3,5 | AA12: 33 | AB12: 41.25 | AC12: 49.5 | AD12: 66
A13: Frame material | B13: =Calculations!E22 -> 304L | L13: DUNL | N13: SVR | O13: 904L | P13: E24 | Q13: PPH | U13: 17.5 | W13: 5 | Y13: 5 | Z13: =W13 &" x "& $W$2 -> 5 x 3,5 | AA13: 35 | AB13: 43.75 | AC13: 52.5 | AD13: 70
A14: Belt support table material | B14: =IF(B13="E24","304L",B13) -> 304L | D14: IF YOU SELECT A SURFACE ABOVE 36 in 2 meter WIDE or 99 1n 3 meter WIDE, BE SURE THAT THE TORQUE IS NOT HIGHER THAN RECOMMENDED see (Note) | L14: SBR | O14: U45N | Q14: Type de Feeder Lavage | R14: Curb | S14: Equipement Pneumatique et electrique | U14: 18 | V14: 1 | W14: 4 | Y14: 5 | Z14: =W14 &" x "& $W$2 &" & "& V14 &" x "& $V$2 -> 4 x 3,5 & 1 x 4 | AA14: 36 | AB14: 45 | AC14: 54 | AD14: 72
A15: belt support size | B15: 50X5 | L15: EPDM | Q15: TUBE | R15: 70 | S15: INOX | U15: 18.5 | V15: 2 | W15: 3 | Y15: 5 | Z15: =W15 &" x "& $W$2 &" & "& V15 &" x "& $V$2 -> 3 x 3,5 & 2 x 4 | AA15: 37 | AB15: 46.25 | AC15: 55.5 | AD15: 74
Q16: SURV | R16: 120 | S16: STD | U16: 19 | V16: 3 | W16: 2 | Y16: 5 | Z16: =W16 &" x "& $W$2 &" & "& V16 &" x "& $V$2 -> 2 x 3,5 & 3 x 4 | AA16: 38 | AB16: 47.5 | AC16: 57 | AD16: 76
A17: belt material | B17: =Calculations!E23 -> EPDM | E17: Guidage Bande | G17: =IF(C5<20,H17,I17) ->  | H17: =((ROUNDUP(SUM(B9:B11)/2,0))*2)+4 ->  | I17: =((ROUNDUP(SUM(B9:B11)/2,0))*6) ->  | Q17: QDC | S17: US | U17: 20 | V17: 5 | Z17: 5 x 4 | AA17: 40 | AB17: 50 | AC17: 60 | AD17: 80
A18: edge curb height | B18: =Calculations!A9 -> 70 | C18: =IF(B18=70,"T7","T12") -> T7 | E18: =LARGE(B10:B11,1) ->  | F18: =PERCENTILE(B10:B11,1) ->  | Q18: Type Alimentation slurry | S18: Bolting | U18: 21 | W18: 6 | Y18: 6 | Z18: =W18 &" x "& $W$2 -> 6 x 3,5 | AA18: 42 | AB18: 52.5 | AC18: 63 | AD18: 84
A19: curb material | B19: SBR | Q19: QDC | S19: 304 | U19: 21.5 | V19: 1 | W19: 5 | Y19: 6 | Z19: =W19 &" x "& $W$2 &" & "& V19 &" x "& $V$2 -> 5 x 3,5 & 1 x 4 | AA19: 43 | AB19: 53.75 | AC19: 64.5 | AD19: 86
A20: lining material | B20: SBR | Q20: BOIT | S20: 316 | U20: 22 | V20: 2 | W20: 4 | Y20: 6 | Z20: =W20 &" x "& $W$2 &" & "& V20 &" x "& $V$2 -> 4 x 3,5 & 2 x 4 | AA20: 44 | AB20: 55 | AC20: 66 | AD20: 88
A21: skirting above curb (rehausse talon) | B21: 0 | Q21: BOIT | S21: 904L | U21: 22.5 | V21: 3 | W21: 3 | Y21: 6 | Z21: =W21 &" x "& $W$2 &" & "& V21 &" x "& $V$2 -> 3 x 3,5 & 3 x 4 | AA21: 45 | AB21: 56.25 | AC21: 67.5 | AD21: 90
C22: Indicate IF ANY length (meter) of curb need to be raised | S22: Taille connection de la Boite à vide | U22: 23 | V22: 4 | W22: 2 | Y22: 6 | Z22: =W22 &" x "& $W$2 &" & "& V22 &" x "& $V$2 -> 2 x 3,5 & 4 x 4 | AA22: 46 | AB22: 57.5 | AC22: 69 | AD22: 92
A23: quantity of belt guide rollers | B23: =G17 ->  | S23: 80 | U23: 24.5 | W23: 7 | Y23: 7 | Z23: =W23 &" x "& $W$2 -> 7 x 3,5 | AA23: 49 | AB23: 61.25 | AC23: 73.5 | AD23: 98
A24: belt support roller: Ø | B24: =HLOOKUP(B3,N31:S40,IF(B18=70,4,5)) ->  | F24: Steel cost basis buying on storage in France | S24: 100 | U24: 25 | V24: 1 | W24: 6 | Y24: 7 | Z24: =W24 &" x "& $W$2 &" & "& V24 &" x "& $V$2 -> 6 x 3,5 & 1 x 4 | AA24: 50 | AB24: 62.5 | AC24: 75 | AD24: 100
A25: belt support rollers Material | B25: =Calculations!E19 -> 304L | D25: Steel | E25: corective factor | F25: original 2003 | G25: updated cost | H25: 2004 | I25: revised | J25: Nov 2005 updated | S25: 125 | U25: 25.5 | V25: 2 | W25: 5 | Y25: 7 | Z25: =W25 &" x "& $W$2 &" & "& V25 &" x "& $V$2 -> 5 x 3,5 & 2 x 4 | AC25: 76.5 | AD25: 102
A26: belt support rollers Qty | B26: =SUM(B8:B11)+1 ->  | D26: E24 | E26: =G26/F26 -> 1.657894737 | F26: 0.76 | G26: 1.26 | I26: 2002-10-17 | J26: 1 | S26: 150 | U26: 26 | V26: 3 | W26: 4 | Y26: 7 | Z26: =W26 &" x "& $W$2 &" & "& V26 &" x "& $V$2 -> 4 x 3,5 & 3 x 4 | AC26: 78 | AD26: 104
A27: Cloth return rollers Ø | B27: =HLOOKUP(B3,N31:S40,9) ->  | D27: 304L | E27: 1.590909091 | F27: 2.2 | G27: 3.5 | H27: 2.86 | I27: 2003-01-11 | J27: 2.3 | S27: 200 | U27: 26.5 | V27: 4 | W27: 3 | Y27: 7 | Z27: =W27 &" x "& $W$2 &" & "& V27 &" x "& $V$2 -> 3 x 3,5 & 4 x 4 | AC27: 79.5 | AD27: 106
A28: Cloth return rollers Material | B28: =Calculations!E20 -> 304L | D28: 304 | E28: 1.590909091 | F28: 2.2 | G28: 3.5 | H28: 2.86 | I28: 2003-01-11 | J28: 2.3 | U28: 27 | V28: 5 | W28: 2 | Y28: 7 | Z28: =W28 &" x "& $W$2 &" & "& V28 &" x "& $V$2 -> 2 x 3,5 & 5 x 4 | AC28: 81 | AD28: 108
A29: Cloth return rollers Qty | B29: 8 | D29: 316L | E29: 2.068965517 | F29: 2.9 | G29: 6 | H29: 3.77 | I29: 2002-10-11 | J29: 3.91 | U29: 28 | W29: 8 | Y29: 8 | Z29: =W29 &" x "& $W$2 -> 8 x 3,5 | AC29: 84 | AD29: 112
A30: Cloth support rollers Ø | B30: =HLOOKUP(B3,N31:S40,8) ->  | C30: =IF(B30=168.3,1683,B30) ->  | D30: 316 | E30: 2.068965517 | F30: 2.9 | G30: 6 | H30: 3.77 | I30: 2002-10-11 | J30: 3.91 | L30: Tableau des diamètres de rouleaux | U30: 28.5 | V30: 1 | W30: 7 | Y30: 8 | Z30: =W30 &" x "& $W$2 &" & "& V30 &" x "& $V$2 -> 7 x 3,5 & 1 x 4 | AC30: 85.5 | AD30: 114
A31: Cloth support rollers Material | B31: =Calculations!E20 -> 304L | D31: U45N | E31: 1.75 | F31: 4 | G31: 7 | H31: 5.2 | I31: 2003-01-11 | J31: 6.1 | L31: Largeur | N31: 2000 | O31: 2500 | P31: 3000 | Q31: 4000 | R31: 4200 | S31: 4500 | U31: 29 | V31: 2 | W31: 6 | Y31: 8 | Z31: 6 x 3,5 & 2 x 4 | AC31: 87 | AD31: 116
A32: Cloth support rollers Qty | B32: =SUM(B8:B11) ->  | D32: 904L | E32: 1.710526316 | F32: 7.6 | G32: 13 | H32: 9.88 | I32: 2003-01-11 | J32: 11.24 | L32: RoulEmba T70 | N32: 273 | O32: 273 | P32: 273 | Q32: 273 | R32: 273 | U32: 29.5 | V32: 3 | W32: 5 | Y32: 8 | Z32: 5 x 3,5 & 3 x 4 | AC32: 88.5 | AD32: 118
A33: Cloth exit rollers Ø | B33: =HLOOKUP(B3,N31:S40,6) ->  | D33: CAOUT | E33: 1.3 | F33: CSRL | L33: RoulEmba T120 | N33: 355 | O33: 355 | P33: 355 | Q33: 355 | R33: 355 | U33: 30 | V33: 4 | W33: 4 | Y33: 8 | Z33: 4 x 3,5 & 4 x 4 | AC33: 90 | AD33: 120
A34: Cloth exit rollers Material | B34: =Calculations!E15 -> 304L | D34: POLYPROPYLENE | E34: 1.3 | I34: In blue = estimated | L34: RoulSuppBanT70 | N34: 273 | O34: 273 | P34: 273 | Q34: 355 | R34: 355 | U34: 30.5 | V34: 5 | W34: 3 | Y34: 8 | Z34: 3 x 3,5 & 5 x 4 | AD34: 122
A35: Cloth exit rollers Qty | B35: 2 | D35: SVR | E35: 1.3 | L35: RoulSuppBanT120 | N35: 355 | O35: 355 | P35: 355 | Q35: 406 | R35: 406 | U35: 31 | V35: 6 | W35: 2 | Y35: 8 | Z35: 2 x 3,5 & 6 x 4 | AD35: 124
A36: Cloth discharge rollers Ø | B36: =HLOOKUP(B3,N31:S40,7) ->  | D36: SBRLT | E36: 1.05 | L36: RoulToilSortGat | N36: 168.3 | O36: 168.3 | P36: 168.3 | Q36: 273 | R36: 273 | U36: 31.5 | W36: 9 | Y36: 9 | Z36: =W36 &" x "& $W$2 -> 9 x 3,5 | AD36: 126
A37: Cloth discharge rollers Material | B37: =Calculations!E15 -> 304L | D37: SBR | E37: 1.05 | L37: RoulToilDechGat | N37: 168.3 | O37: 168.3 | P37: 168.3 | Q37: 168.3 | R37: 168.3 | U37: 32 | V37: 1 | W37: 8 | Y37: 9 | Z37: =W37 &" x "& $W$2 &" & "& V37 &" x "& $V$2 -> 8 x 3,5 & 1 x 4 | AD37: 128
A38: Cloth discharge rollers Qty | B38: 1 | D38: EPDM | E38: 1.05 | L38: RoulSuppToile | N38: 168.3 | O38: 168.3 | P38: 168.3 | Q38: 273 | R38: 273 | U38: 32.5 | V38: 2 | W38: 7 | Y38: 9 | Z38: 7 x 3,5 & 2 x 4 | AD38: 130
A39: Cloth guiding rollers Ø | B39: =B27 ->  | D39: PLAS | E39: 1.3 | L39: RoulRenvoi | N39: 168.3 | O39: 168.3 | P39: 219 | Q39: 273 | R39: 273 | U39: 33 | V39: 3 | W39: 6 | Y39: 9 | Z39: 6 x 3,5 & 3 x 4 | AD39: 132
A40: Cloth guiding RL rollers. Material | B40: =Calculations!E20 -> 304L | D40: MONT | E40: 1.3 | L40: RoulGuide | N40: 192 | O40: 192 | P40: 233 | Q40: 287 | R40: 287 | U40: 33.5 | V40: 4 | W40: 5 | Y40: 9 | Z40: 5 x 3,5 & 4 x 4 | AD40: 134
A41: Cloth guiding RL rollers. Qty | B41: =IF(E5="II",0,1) -> 1 | D41: PRE | E41: 1.3 | U41: 34 | V41: 5 | W41: 4 | Y41: 9 | Z41: 4 x 3,5 & 5 x 4 | AD41: 136
A42: Cloth form rollers. Ø | B42: =HLOOKUP(B3,N31:S40,IF(B18=70,2,3)) ->  | D42: Other | E42: 1.3 | U42: 34.5 | V42: 6 | W42: 3 | Y42: 9 | Z42: 3 x 3,5 & 6 x 4 | AD42: 138
A43: Cloth form rollers. Material | B43: =Calculations!E12 -> 304L | U43: 35 | V43: 7 | W43: 2 | Y43: 9 | Z43: 2 x 3,5 & 7 x 4 | AE43: =$AE$3/1000*U43 -> 147 | AF43: =$AF$3/1000*U43 -> 157.5
A44: Cloth form rollers. Qty | B44: 1 | D44: CAOUT = rubber lined | U44: 35.5 | V44: 1 | W44: 9 | Y44: 10 | Z44: 9 x 3,5 & 1 x 4 | AE44: =$AE$3/1000*U44 -> 149.1 | AF44: =$AF$3/1000*U44 -> 159.75
A45: roller bearing | B45: =(B26+B29+B32+B35+B38+B41)*2 ->  | D45: SVR = fiber galss polyester renforced | U45: 36 | V45: 2 | W45: 8 | Y45: 10 | Z45: 8 x 3,5 & 2 x 4 | AE45: 151.2 | AF45: 162
A46: vacuum box 140: Section | B46: 140 | U46: 36.5 | V46: 3 | W46: 7 | Y46: 10 | Z46: 7 x 3,5 & 3 x 4 | AE46: 153.3 | AF46: 164.25
A47: vacuum box 140: Material | B47: =Calculations!E11 -> 304L | D47: Note; Be care!!! the body "170" is only dedicated to the high liquid / gaz to be drain (eg. Bicarbonate) do not use without process agreement. Only available in steel. Note Option is available for straight pipe and up to ND 200 | M47: EPDM | U47: 37 | V47: 4 | W47: 6 | Y47: 10 | Z47: 6 x 3,5 & 4 x 4 | AE47: 155.4 | AF47: 166.5
A48: support of VB Material | B48: =Calculations!E21 -> 304L | L48: DN150 | M48: E000000568-7023 | P48: Oui | U48: 37.5 | V48: 5 | W48: 5 | Y48: 10 | Z48: 5 x 3,5 & 5 x 4 | AE48: 157.5 | AF48: 168.75
A49: vacuum box 140: connection DN | B49: =Calculations!H29 -> 65 | L49: DN125 | M49: E000000758-7023 | P49: Non | U49: 38 | V49: 6 | W49: 4 | Y49: 10 | Z49: 4 x 3,5 & 6 x 4 | AE49: 159.6 | AF49: 171
A50: vacuum box 140: qty of connection | B50: =Calculations!R36 -> 4 | L50: DN100 | M50: E000000947-7023 | U50: 38.5 | V50: 7 | W50: 3 | Y50: 10 | Z50: 3 x 3,5 & 7 x 4 | AE50: 161.7 | AF50: 173.25
A51: vacuum box 140: Qty internal baffle | B51: =Calculations!R11 -> 3 | L51: DN80 | M51: E000000715-7023 | U51: 39.5 | V51: 2 | W51: 9 | Y51: 11 | Z51: 9 x 3,5 & 2 x 4 | AE51: 165.9 | AF51: 177.75
A52: cake discharge / washing Material | B52: =Calculations!E16 -> 304L | U52: 40 | V52: 3 | W52: 8 | Y52: 11 | Z52: 8 x 3,5 & 3 x 4 | AE52: 168 | AF52: 180
A53: entrance dam support Material | B53: 316L | L53: =IF(B49=150,M48,IF(B49=125,M49,IF(B49=100,M50,M51))) -> E000000715-7023
A54: apron for dam, Material | B54: =IF(B17="SBRLT","SBR",B17) -> EPDM | D54: SURV = overflow | F54: TUB = spreader pipe | H54: QDC = fish tail
A55: cake wash device Type | B55: =Calculations!Q13 -> OVER
A56: cake wash device Material | B56: =Calculations!E14 -> 304L
A57: cake wash device Qty | B57: =Calculations!R11 -> 3 | P57: PE | Q57: S
A58: carriage Type | B58: ROUE | P58: PP | Q58: C
A59: carriage Material | B59: =B56 -> 304L
A60: carriage Qty | B60: =B57 -> 3
A61: pendulum dam support Material | B61: =B53 -> 316L | J61: 1 | K61: 2 | L61: 3 | M61: 4 | N61: 5 | O61: 6 | P61: 7 | Q61: 8 | R61: 9 | S61: 10 | T61: 11 | U61: 12 | V61: 13
A62: pendulum dam apron Material | B62: =B54 -> EPDM | J62: 0 | K62: 1 | L62: 1 | M62: 2 | N62: 2 | O62: 3 | P62: 3 | Q62: 4 | R62: 4 | S62: 5 | T62: 5 | U62: 6 | V62: 6
A63: pendulum dam Qty | B63: =B57+1 -> 4 | D63: QDC = fish tail | F63: BOIT = box
A64: slurry feeder Type | B64: =Calculations!Q12 -> QDC | J64: Nombre de tensions courroie BAV | N64: =HLOOKUP(SUM(B9:B11),J61:V62,2) -> 
A65: slurry feeder Material | B65: =Calculations!E13 -> 304L | J65: Nombre de galets retour BAV | N65: =(SUM(B9:B11)+N64)*2 -> 
A66: slurry feeder Qty | B66: 1 | D66: Not available in automatic: | G66: Option for SS materail
A67: Equipment pneumatic: Type | B67: STD | C67: A penser (US, AFSUD, NAMIBIE, Canada….) | D67: Not available in automatic: | G67: Option for US normes
A68: Equipment électric: Type | B68: STD | C68: A penser (US, AFSUD, NAMIBIE, Canada….)
A69: bolting | B69: 316
A70: bellow 12 x 2: Qty | B70: 0
A71: bellow 10 x 2: Qty | B71: 2
A72: bellow 8 x 3: Qty | B72: =B26 -> 
A73: bellow 8 x 2: Qty | B73: 2
A74: oil & grease | B74: 1
A75: Protection | B75: 1
A76: torque arm | B76: 1
A77: gear unit torque | B77: =Calculations!N26 -> 2319.944184 | C77: Nm | D77: NOTE: torque limited @ 21800 Nm for 2 m above 36 m²
A78: gear unit, maximum rpm at pulley shaft | B78: =Calculations!F26 -> 0.1926437516 | C78: Tr/mn | D78: NOTE: torque limited @ 62300 Nm for 3 m above 99 m²
A79: Motor | B79: ='Gr de Cde'!E26 -> 0.25 | C79: =VLOOKUP(B79,'Gr de Cde'!B33:G58,6) -> M1
A80: freqency invertor | B80: =B79 -> 0.25
A81: filter cloth | B81: 1 | D81: PRE = erected on site | G81: MONT = erected in factory before delivery | L81: PRE
A82: pre-erection or erection in factory | B82: =Calculations!S38 -> MONT | L82: MONT
A83: sliding belt lubrication set | B83: 1 | L83: 1
A84: Basic minimum safety guard grid | B84: 1 | C84: ERECTION ( "MONT" ) IN FACTORY CAN BE SELECTED ONLY FOR FILTER SMALLER THAN 51 SQM | L84: 0
C85: Select 1 if existing, (see in the technical,data sheet)
A88: Filtering Cloth
A89: Material | B89: PE
A90: Type | B90: S
A92: CALCULTION OF ERECTION IN FACTORY
A93: Long BaV | B93: =Surface/B3*1000 -> 4 | D93: mat kg | E93: mat cout | F93: heure fab | G93: montage | H93: collage talon
A94: Long filtre | B94: =B93+5 -> 9 | D94: =((B96+B97)+(B98*SUM(B10:B11))) ->  | E94: =D94*B101 ->  | F94: =D94*B95/60 ->  | G94: =B99+(B100*SUM(B10:B11)) ->  | H94: =HLOOKUP(B3,Band!B13:G30,IF(B18=Band!A25,17,18),0) -> 
A95: mn/kg | B95: 1.5 | C95: ??
A96: poids/m acier renfort Bati entrée | B96: 730
A97: poids/m acier renfort Bati sortie | B97: 690
A98: poids/m acier renfort Bati inter | B98: 390 | C98: ??
A99: part fixe tete et queue temps mont | B99: 260 | C99: ?? | D99: 110+150 | E99: entrée + sortie
A100: part variablebati inter temps mont | B100: 75 | C100: ?? | D100: 75 | E100: par pas
A101: prix kg base | B101: 0.76

Sheet Série 2
A1: DEVIS FILTRE A BANDE | B1: DATA | D1: Quote # | E1: ='Séries 3-4-5'!E2:F2 -> 726789-rev4 | G1: Client : | H1: ='Séries 3-4-5'!H2:I2 -> CARESTER | N1: II | O1: 500 | Q1: A. LEVEQUE | T1: LgBaV | U1: 4 | V1: 3.5 | W1: 3 | X1: 2.5 | Y1: 2 | Z1: NbrPas | AB1: NbrePas/LongPas
A2: Date du devis | B2: ='Séries 3-4-5'!B2 -> 2025-04-25 | D2: Made by : | E2: T. DUBRULLE | G2: Qty of filter: | I2: 1 | N2: III | O2: 750 | Q2: Y. BEIGNET | Z2: 1 | AB2: 1 x 1,4 | AE2: 500 | AF2: 750 | AG2: 1000 | AH2: 1250 | AI2: 1500
N3: IV A | O3: 1000 | Q3: F RUTH | T3: 2 | Y3: 1 | Z3: 1 | AB3: 1 x 2
D4: Série : | E4: II | N4: IV B | O4: 1250 | Q4: C.PARENTI | T4: 2.5 | X4: 1 | Z4: 1 | AB4: 1 x 2,5
A5: belt width | B5: =Calculations!E9 -> 500 | L5: 304L | M5: 304L | O5: 1500 | Q5: R COOMB | T5: 2.8 | Z5: 1 | AB5: 1 x 2,8 | AF5: 1.5 | AG5: 2 | AH5: 3.125 | AI5: 4.5
A6: Surface | B6: =Calculations!C9 -> 2 | C6: m2 | E6: Légende : | G6: Fill these cells | L6: 316L | M6: 316L | Q6: T. DUBRULLE | T6: 3 | W6: 1 | Z6: 1 | AB6: 1 x 3 | AE6: 1 | AF6: 1.875 | AG6: 2.5 | AH6: 3.75 | AI6: 5.25
A7: Pulleys diameter | B7: 630 | C7: =ROUND((Surface2/B5)*1000,1) -> 4 | G7: Choice menu | L7: 904L | M7: 904L | Q7: GAO | T7: 3.5 | V7: 1 | Z7: 1 | AB7: 1 x 3,5 | AE7: 1.25 | AF7: 2.25 | AG7: 3 | AH7: 4.375 | AI7: 6
G8: Auto values | L8: 50X5 | M8: E24 | T8: 4 | Y8: 2 | Z8: 2 | AB8: 2 x 2 | AE8: 1.5 | AF8: 2.625 | AG8: 3.5 | AH8: 5 | AI8: 6.75
L9: 40X7 | T9: 4.5 | X9: 1 | Y9: 1 | Z9: 2 | AB9: 2,5 + 2 | AE9: 1.75 | AF9: 3 | AG9: 4 | AH9: 5.625 | AI9: 7.5
B10: =IF((((B11)*2+(B12)*2.5+(B13)*3+(B14)*3.5)*B5*0.001)=B6,"RIGHT","WRONG") -> RIGHT | D10: Number of step to be reported | G10: Your selection is: | T10: 5 | X10: 2 | Z10: 2 | AA10: 2,5 x 2 | AB10: 2,5 x 2 | AC10: 5 | AE10: 2 | AF10: 3.375 | AG10: 4.5 | AH10: 6.25 | AI10: 8.25
A11: frame pace of 2000 | B11: =VLOOKUP(C7,T2:Y30,6) -> 2 | C11: 2 | D11: =LOOKUP(C7,T1:AB80) -> 2 x 2 | G11: =IF(C7=C11*B11+C12*B12+C13*B13+C14*B14,"RIGHT, continue selection","WRONG, correct values in the green screen") -> RIGHT, continue selection | L11: PPH | T11: 5.5 | W11: 1 | X11: 1 | Z11: 2 | AA11: & 1 x 3 & 1 x 2,5 | AB11: 1 x 3 & 1 x 2,5 | AE11: 2.25 | AF11: 3.75 | AG11: 5 | AH11: 6.875 | AI11: 9
A12: frame pace of 2500 | B12: =VLOOKUP(C7,T2:Y30,5) -> 0 | C12: 2.5 | L12: DUNL | T12: 6 | W12: 2 | Z12: 2 | AA12: & 2 x 3 | AB12: 2 x 3 | AC12: 6 | AE12: 2.5 | AF12: 4.125 | AG12: 5.5 | AH12: 7.5 | AI12: 9.75
A13: frame pace of 3000 | B13: =VLOOKUP(C7,T2:Y30,4) -> 0 | C13: 3 | D13: IF YOU SELECT A SURFACE ABOVE 13,13 IN 1,25 METER WIDE OR 15,75 IN 1,5 METER WIDE? BE SURE THAT THE TORQUE IS NOT HIGHER THAN RECOMMENDED see (Note) | L13: SBR | T13: 6.5 | V13: 1 | W13: 1 | Z13: 2 | AA13: & 1 x 3,5 & 1 x 3 | AB13: 1 x 3,5 & 1 x 3 | AE13: 2.75 | AF13: 4.5 | AG13: 6 | AH13: 8.125 | AI13: 10.5
A14: frame pace of 3500 | B14: =VLOOKUP(C7,T2:Y30,3) -> 0 | C14: 3.5 | L14: EPDM | T14: 7 | V14: 2 | Z14: 2 | AA14: & 2 x 3,5 | AB14: 2 x 3,5 | AC14: 7 | AE14: 3 | AF14: 4.875 | AG14: 6.5 | AH14: 8.75 | AI14: 11.25
L15: 70 | N15: II | O15: III | P15: IV A | Q15: IV B | T15: 7.5 | X15: 3 | Z15: 3 | AA15: & 3 x 2,5 | AB15: 3 x 2,5 | AC15: 7.5 | AF15: 5.25 | AG15: 7 | AH15: 9.375 | AI15: 12
A16: Frame material | B16: ='Séries 3-4-5'!B13 -> 304L | C16: 3 | L16: 120 | M16: 12X2 | Q16: 2 | T16: 8 | W16: 1 | X16: 2 | Z16: 3 | AA16: & 1 x 3 & 2 x 2,5 | AB16: 1 x 3 & 2 x 2,5 | AF16: 5.625 | AG16: 7.5 | AH16: 10 | AI16: 12.75
A17: Choice of main belt support wear belt | B17: DUNL | L17: 410 | M17: 10X2 | O17: 2 | P17: 2 | T17: 8.5 | W17: 2 | X17: 1 | Z17: 3 | AA17: & 2 x 3 & 1 x 2,5 | AB17: 2 x 3 & 1 x 2,5 | AG17: 8 | AH17: 10.625 | AI17: 13.5
A18: belt material | B18: ='Séries 3-4-5'!B17 -> EPDM | C18: 5 | L18: 630 | M18: 8X3 | O18: =$B$26 -> 3 | P18: =$B$26 -> 3 | Q18: =$B$26 -> 3 | T18: 9 | W18: 3 | Z18: 3 | AA18: & 3 x 3 | AB18: 3 x 3 | AC18: 9 | AG18: 8.5 | AH18: 11.25 | AI18: 14.25
A19: edge curb height | B19: ='Séries 3-4-5'!B18 -> 70 | L19: 935 | M19: 8X2 | O19: 2 | P19: 2 | Q19: 2 | T19: 9.5 | V19: 1 | W19: 2 | Z19: 3 | AA19: & 1 x 3,5 & 2 x 3 | AB19: 1 x 3,5 & 2 x 3 | AG19: 9 | AH19: 11.875 | AI19: 15
A20: curb material | B20: =B18 -> EPDM | L20: 1210 | M20: 6X2 | N20: =$B$26+2 -> 5 | T20: 10 | V20: 2 | W20: 1 | Z20: 3 | AA20: & 2 x 3,5 & 1 x 3 | AB20: 2 x 3,5 & 1 x 3 | AG20: 9.5 | AH20: 12.5 | AI20: 15.75
A21: skirting above curb (rehausse talon) | B21: 0 | C21: Indicate IF ANY length (meter) of curb need to be raised | L21: 1400 | T21: 10.5 | V21: 3 | Z21: 3 | AA21: & 3 x 3,5 | AB21: 3 x 3,5 | AC21: 10.5 | AG21: 10 | AH21: 13.125 | AI21: 16.5
A22: lining material | B22: SBR | L22: 219 | T22: 11 | W22: 2 | X22: 2 | Z22: 3 | AA22: 2 x 4 & 1 x 3 | AB22: 2 x 3 & 2 x 2,5 | AG22: 10.5 | AH22: 13.75 | AI22: 17.25
A23: quantity of belt guide rollers | B23: =EVEN(SUM(B11:B14)+4) -> 6 | L23: 273 | T23: 11.5 | W23: 3 | X23: 1 | Z23: 3 | AA23: 2 x 4 & 1 x 3,5 | AB23: 3 x 3 & 1 x 2,5 | AH23: 14.375 | AI23: 18
A24: belt support roller: Ø | B24: 219 | F24: Steel cost basis buying on storage in France | L24: 355 | T24: 12 | W24: 4 | Z24: 3 | AA24: 3 x 4 | AB24: 4 x 3 | AC24: 12 | AH24: 15 | AI24: 18.75
A25: belt support rollers Material | B25: ='Séries 3-4-5'!B25 -> 304L | C25: 2 | D25: Steel | E25: corective factor | F25: original 2003 | G25: updated cost | H25: 2004 | I25: revised | J25: Nov 2005 updated | L25: 406 | T25: 12.5 | V25: 1 | W25: 3 | Z25: 4 | AA25: & 1 x 3,5 & 3 x 3 | AB25: 1 x 3,5 & 3 x 3 | AH25: 15.625 | AI25: 19.5
A26: belt support rollers Qty | B26: =SUM(B11:B14)+1 -> 3 | D26: E24 | E26: =G26/F26 -> 1.657894737 | F26: 0.76 | G26: 1.26 | I26: 2002-10-17 | J26: 1 | L26: 304L | T26: 13 | V26: 2 | W26: 2 | Z26: 4 | AA26: & 2 x 3,5 & 2 x 3 | AB26: 2 x 3,5 & 2 x 3 | AI26: 20.25
A27: Cloth return rollers Ø | B27: =IF(B5<1250,60,88.9) -> 60 | D27: 304L | E27: 1.590909091 | F27: 2.2 | G27: 3.5 | H27: 2.86 | I27: 2003-05-09 | J27: 2.3 | L27: 316L | T27: 13.5 | V27: 3 | W27: 1 | Z27: 4 | AA27: & 3 x 3,5 & 1 x 3 | AB27: 3 x 3,5 & 1 x 3 | AI27: 21
A28: Cloth return rollers Material | B28: ='Séries 3-4-5'!B28 -> 304L | C28: 2 | D28: 304 | E28: 1.590909091 | F28: 2.2 | G28: 3.5 | H28: 2.86 | I28: 2003-05-09 | J28: 2.3 | L28: 904L | T28: 14 | V28: 4 | Z28: 4 | AA28: & 4 x 3,5 | AB28: 4 x 3,5 | AC28: 14
A29: Cloth return rollers Qty | B29: 8 | D29: 316L | E29: 2.068965517 | F29: 2.9 | G29: 6 | H29: 3.77 | I29: 2003-05-09 | J29: 3.91 | L29: CAOUT | T29: 14.5 | W29: 4 | X29: 1 | Z29: 4 | AA29: 1 x 4 & 3 x 3,5 | AB29: 1 x 2,5 & 4 x 3
A30: Cloth support rollers Ø | B30: =B27 -> 60 | D30: 316 | E30: 2.068965517 | F30: 2.9 | G30: 6 | H30: 3.77 | I30: 2003-05-09 | J30: 3.91 | L30: 60 | T30: 15 | W30: 5 | Z30: 4 | AA30: 3 x 4 & 1 x 3 | AB30: 5 x 3
A31: Cloth support rollers Material | B31: =B28 -> 304L | D31: U45N | E31: 1.75 | F31: 4 | G31: 7 | H31: 5.2 | I31: 2003-05-09 | J31: 6.1 | L31: 114
A32: Cloth support rollers Qty | B32: =SUM(B11:B14) -> 2 | D32: 904L | E32: 1.710526316 | F32: 7.6 | G32: 13 | H32: 9.88 | I32: 2003-05-09 | J32: 11.24 | L32: 168
A33: Cloth exit rollers Ø | B33: =B30 -> 60 | D33: CAOUT | E33: 1.3 | F33: CSRL | L33: 219
A34: Cloth exit rollers Material | B34: =B31 -> 304L | D34: POLYPROPYLENE | E34: 1.3 | I34: In blue = estimated | L34: 273
A35: Cloth exit rollers Qty | B35: 1 | D35: SVR | E35: 1.3 | L35: 8
A36: Cloth discharge rollers Ø | B36: =B33 -> 60 | D36: SBRLT | E36: 1.05 | L36: 9
A37: Cloth discharge rollers Material | B37: ='Séries 3-4-5'!B37 -> 304L | C37: 2 | D37: SBR | E37: 1.05 | L37: 11
A38: Cloth discharge rollers Qty | B38: 1 | D38: EPDM | E38: 1.05 | L38: 60
A39: lining material | D39: PLAS | E39: 1.3
A40: quantity of belt guide rollers | D40: MONT | E40: 1.3 | L40: 168
D41: PRE | E41: 1.3 | L41: 219 | M41: 1 | N41: 2 | O41: 3 | P41: 4 | Q41: 5
A42: Cloth form rollers. Ø | B42: 219 | D42: Other | E42: 1.3 | L42: 273 | M42: process | N42: Roller | O42: Frame | P42: feeder | Q42: Belt
A43: Cloth form rollers. Material | B43: ='Séries 3-4-5'!B43 -> 304L | C43: 2 | L43: U45N | M43: 304L | N43: 304L | O43: 304L | P43: 304L | Q43: SBRLT
A44: Cloth form rollers. Qty | B44: 1 | L44: 304L | M44: 316L | N44: 316L | O44: 316L | P44: 316L | Q44: SBR
A45: roller bearing | B45: =(B26+B29+B32+B35+B38+B41)*2 -> 30 | L45: 316L | M45: 904L | N45: 904L | O45: 904L | P45: 904L | Q45: EPDM
A46: vacuum box Section (SVR only for U shape) | B46: =IF(B47="SVR","U",110) -> 110 | D46: =IF(B46=L47,"Select SVR as Material??","Select Steel as Material??") -> Select Steel as Material?? | L46: 904L | M46: U45N | N46: U45N | O46: U45N | P46: U45N
A47: vacuum box Material | B47: ='Séries 3-4-5'!B47 -> 304L | C47: 1 | D47: CAOUT = rubber lined | L47: U | M47: SVR | N47: CAOUT | O47: E24 | P47: PPH
A48: support of VB Material | B48: ='Séries 3-4-5'!B48 -> 304L | C48: 3 | D48: SVR = fiber galss polyester renforced | L48: 110
A49: vacuum box connection DN | B49: ='Séries 3-4-5'!B49 -> 65 | D49: =IF(B46=L47,"Select adapted dia.??","") ->  | L49: 140
A50: vacuum box qty of connection | B50: ='Séries 3-4-5'!B50 -> 4 | L50: 304L
A51: vacuum box Qty internal baffle | B51: ='Séries 3-4-5'!B51 -> 3 | L51: 316L
A52: cake discharge / washing Material | B52: =Calculations!E16 -> 304L | C52: 4 | L52: 904L
A53: entrance dam support Material | B53: ='Séries 3-4-5'!B53 -> 316L | C53: 3 | E53: =D46 -> Select Steel as Material?? | L53: SVR
A54: apron for dam, Material | B54: ='Séries 3-4-5'!B54 -> EPDM | L54: 40
A55: cake wash device Type | B55: ='Séries 3-4-5'!B55 -> OVER | D55: SURV = overflow | F55: TUB = spreader pipe | H55: QDC = fish tail | L55: 50
A56: cake wash device Material | B56: ='Séries 3-4-5'!B56 -> 304L | C56: 4 | L56: 65
A57: cake wash device Qty | B57: ='Séries 3-4-5'!B57 -> 3 | L57: 80
A58: carriage Type | B58: PATI | L58: 100
A59: carriage Material | B59: 316L | C59: 3 | L59: 125
A60: carriage Qty | B60: =B57 -> 3
A61: pendulum dam support Material | B61: =B53 -> 316L | L61: 304L
A62: pendulum dam apron Material | B62: =B54 -> EPDM | L62: 316L
A63: pendulum dam Qty | B63: =B57+1 -> 4 | L63: 904L
A64: slurry feeder Type | B64: ='Séries 3-4-5'!B64 -> QDC | D64: QDC = fish tail | F64: BOIT = box | L64: PPH
A65: slurry feeder Material | B65: ='Séries 3-4-5'!B65 -> 304L | C65: 4 | L65: TUBE
A66: slurry feeder Qty | B66: 1 | L66: SURV
A67: Equipment pneumatic: Type | B67: STD | D67: Option for SS materail not available | L67: QDC
A68: Equipment électric: Type | B68: STD | D68: Option for US normes | L68: ROUE
A69: bolting | B69: ='Séries 3-4-5'!B69 -> 316 | L69: PEMO
A70: bellow 12 x 2: Qty | B70: =HLOOKUP(E4,N15:Q20,2) -> 0 | L70: PATI
A71: bellow 10 x 2: Qty | B71: =HLOOKUP(E4,N15:Q20,3) -> 0 | L71: QDC
A72: bellow 8 x 3: Qty | B72: =HLOOKUP(E4,N15:Q20,4) -> 0 | L72: BOIT
A73: bellow 8 x 2: Qty | B73: =HLOOKUP(E4,N15:Q20,5) -> 0 | L73: STD
A74: bellow 6 x 2: Qty | B74: =HLOOKUP(E4,N15:Q20,6) -> 5 | L74: INOX
A75: oil & grease | B75: 1 | L75: STD
A76: Protection | B76: 1 | L76: US
A77: torque arm | B77: 1 | L77: 304
A78: gear unit torque | B78: ='Séries 3-4-5'!B77 -> 2319.944184 | C78: Nm | D78: NOTE: torque limited @ 7300 Nm for 1.25 m above 13,13 m² | L78: 316
A79: gear unit, maximum rpm at pulley shaft | B79: ='Séries 3-4-5'!B78 -> 0.1926437516 | C79: Tr/mn | D79: NOTE: torque limited @ 7900 Nm for 1,50 m above 15,75 m² | L79: 904L
A80: Motor | B80: ='Séries 3-4-5'!B79 -> 0.25 | L80: PRE
A81: freqency invertor | B81: ='Séries 3-4-5'!B80 -> 0.25 | L81: MONT
A82: filter cloth | B82: 1 | L82: 1
A83: pre-assembly (PRE) or erection in factory (MONT) | B83: =Calculations!S38 -> MONT | D83: PRE = erected on site | G83: MONT = erected in factory before delivery | L83: 0
A85: Basic minimum safety guard grid | B85: 1
A94: CALCULTION OF ERECTION IN FACTORY
A95: Long BaV | B95: =Surface2/B5*1000 -> 4 | D95: mat kg | E95: mat cout | F95: heure fab | G95: montage | H95: collage talon
A96: Long filtre | B96: =B95+0.4 -> 4.4 | D96: =B96*B98*2 -> 1078.88 | E96: =D96*B101 -> 819.9488 | F96: =D96*B97/60 -> 26.972 | G96: =B99+(B100*SUM(B11:B14)) -> 330 | H96: =HLOOKUP(B5,Band2!B16:M33,IF(B19=Band2!A28,17,18),0) -> 27.9372
A97: mn/kg | B97: 1.5 | C97: ??
A98: poids/m acier renfort | B98: 122.6 | C98: ??
A99: part fixe mont | B99: 190 | C99: ?? | D99: 90+100 | E99: entrée + sortie
A100: part variable mont | B100: 70 | C100: ?? | D100: 70 | E100: par pas
A101: prix kg base | B101: 0.76

Sheet Cost list (hidden)
O1: Managed your cost
P2: French GM | Q2: (Local) GM | R2: French Hour cost | S2: (local) Hour cost
B3: N° DU DEVIS : | C3: ='Séries 3-4-5'!E2 -> 726789-rev4 | D3: ="- "&'Séries 3-4-5'!B4&"B"&('Séries 3-4-5'!B3/100) -> - 2B5 | G3: Client | I3: ='Séries 3-4-5'!H2 -> CARESTER | M3: ='Séries 3-4-5'!B8 ->  | O3: 1 | P3: 1 | Q3: 1 | R3: 60 | S3: 45 | T3: Rev. | U3: 0 | AA3: detail of cost sharing France / local
B4: Ph. LE BIGOT => | C4: ='Séries 3-4-5'!E3 -> X HOG | E4: local basic | F4: For | G4: Surface : | I4: ='Séries 3-4-5'!B4 -> 2 | J4: Largeur | L4: ='Séries 3-4-5'!B3 -> 500 | M4: Spécifications | O4: =CONCATENATE(G11,"+",G31,"+",G14,"+","T",D15,"+",H35,"G","+",D51,"KW","+",H52,"VF") -> 304L+304L+EPDM+T70+3G+0,25KW+1VF | U4: ='Séries 3-4-5'!B2 -> 2025-04-25 | Z4: French | AA4: Local | AB4: French | AC4: Local | AD4: French | AE4: Local | AF4: French | AG4: Local
A5: S/E | F5: local | I5: Material | J5: Buyout | K5: Corrective | L5: Updated | M5: Buyout | O5: Total (1) Material + buyout | P5: Labour | Q5: Labour | S5: Total (2) | U5: Final cost without engineering | V5: Final cost including engineering | X5: data | Z5: incl 1,149 | AA5: incl. 1,149 | AB5: Total (1) Material + buyout | AC5: Total (1) Material + buyout | AD5: Labour | AE5: Labour | AF5: Total (2) | AG5: Total (2)
B6: Désignation | D6: Spéc | F6: fill the | G6: Mat | H6: Qty | I6: Unit cost | J6: Unit cost | K6: factor | L6: material | N6: Qty | P6: Unit | Q6: Total | R6: Taux | S6: Labour | T6: Marg | W6: Désignation | X6: Spéc | Y6: =G6 -> Mat | Z6: France | AA6: Local | AD6: Total | AE6: Total | AF6: labour | AG6: labour
F7: cell | G7: Spec | M7: 1 | Q7: 1 | X7: Dia. | Z7: no engineering | AD7: hours | AE7: hours | AF7: cost | AG7: cost
A8: ENG | B8: Etudes | H8: 1 | J8: 11500 | L8: =I8*$L$66 -> 0 | M8: =J8*$M$7 -> 11500 | N8: 1 | O8: =(L8+M8)*N8 -> 11500 | P8: 80 | Q8: =P8*N8 -> 80 | R8: 44 | S8: 0 | T8: =IF(F8="",$P$3,$Q$3) -> 1 | U8: 0 | V8: 0 | W8: =B8 -> Etudes | Z8: =U8 -> 0 | AB8: =O8 -> 11500 | AD8: =Q8 -> 80 | AF8: =S8 -> 0
A9: ENG | B9: customisazion second filter and following | H9: 1 | J9: 5100 | L9: =I9*$L$66 -> 0 | M9: =J9*$M$7 -> 5100 | N9: ='Séries 3-4-5'!$I$3-1 -> 0 | O9: =(L9+M9)*N9 -> 0 | P9: =IF(N9>0.5,40,0) -> 0 | Q9: =P9*N9 -> 0 | R9: 44 | S9: =Q9*R9 -> 0 | T9: =IF(F9="",$P$3,$Q$3) -> 1 | U9: =(O9)*T9 -> 0 | V9: =(S9)*T9 -> 0 | W9: customisazion second filter and following | Z9: =U9 -> 0 | AA9: =IF(F9="","",U9) ->  | AB9: =IF($F9="",O9,"") -> 0 | AC9: =IF($F9="","",O9) ->  | AD9: =IF($F9="",Q9,"") -> 0 | AE9: =IF($F9="","",Q9) ->  | AF9: =IF($F9="",S9,"") -> 0 | AG9: =IF($F9="","",S9) -> 
B10: Other customisazion | H10: 1 | L10: =I10*$L$66 -> 0 | M10: =J10*$M$7 -> 0 | N10: ='Séries 3-4-5'!$I$3 -> 1 | O10: =(L10+M10)*N10 -> 0 | P10: 0 | Q10: =P10*N10 -> 0 | R10: 44 | S10: 0 | T10: =IF(F10="",$P$3,$Q$3) -> 1 | U10: =(O10)*T10 -> 0 | V10: =(S10)*T10 -> 0 | W10: Other customisazion | Z10: =U10 -> 0 | AA10: =IF(F10="","",U10) ->  | AB10: =IF($F10="",O10,"") -> 0 | AC10: =IF($F10="","",O10) ->  | AD10: =IF($F10="",Q10,"") -> 0 | AE10: =IF($F10="","",Q10) ->  | AF10: =IF($F10="",S10,"") -> 0 | AG10: =IF($F10="","",S10) -> 
A11: 01 | B11: frame | E11: # | F11: 0 | G11: ='Séries 3-4-5'!B13 -> 304L | H11: 1 | I11: =IF(G11="E24",Char!N24,(HLOOKUP(G11,Char!I6:M24,19,0))/6.55957) ->  | J11: =((IF(Char!$B$84=0,0,HLOOKUP(L4,Char!B84:M90,6,0)))/6.55957) -> 0 | K11: =IF(G11="",'Séries 3-4-5'!$E$42,(VLOOKUP(G11,'Séries 3-4-5'!$D$26:$E$42,2,0))) -> 1.590909091 | L11: =I11*K11 ->  | M11: =J11*$M$7 -> 0 | N11: ='Séries 3-4-5'!$I$3 -> 1 | O11: =(L11+M11)*N11 ->  | P11: =IF(G11="E24",Char!O24,Char!M24) ->  | Q11: =P11*N11*$Q$7 ->  | R11: =IF($F11="",$R$3,$S$3) -> 45 | T11: =IF(F11="",$P$3,$Q$3) -> 1 | U11: =(O11+S11)*T11 ->  | W11: frame | X11: =D11 -> 0 | Y11: =G11 -> 304L | Z11: =IF(F11="",U11,"") ->  | AA11: =IF(F11="","",U11) ->  | AB11: =IF($F11="",O11,"") ->  | AC11: =IF($F11="","",O11) ->  | AD11: =IF($F11="",Q11,"") ->  | AE11: =IF($F11="","",Q11) ->  | AF11: =IF($F11="",S11,"") ->  | AG11: =IF($F11="","",S11) -> 
A12: 18 | B12: belt support steel beam | F12: 0 | G12: ='Séries 3-4-5'!B14 -> 304L | H12: =LOOKUP(L4,Tabl!A21:A44,Tabl!B21:B44) -> 4 | I12: =Tabl!K88 ->  | K12: =IF(G12="",'Séries 3-4-5'!$E$42,(VLOOKUP(G12,'Séries 3-4-5'!$D$26:$E$42,2,0))) -> 1.590909091 | L12: =I12*K12 ->  | M12: =J12*$M$7 -> 0 | N12: ='Séries 3-4-5'!$I$3 -> 1 | O12: =(L12+M12)*N12 ->  | P12: =Tabl!J89 ->  | Q12: =P12*N12*$Q$7 ->  | R12: 45 | S12: =Q12*R12 ->  | T12: 1 | U12: =(O12+S12)*T12 ->  | W12: belt support steel beam | X12: 0 | Y12: 304L | Z12: =IF(F12="",U12,"") ->  | AA12: =IF(F12="","",U12) ->  | AB12: =IF($F12="",O12,"") ->  | AC12: =IF($F12="","",O12) ->  | AD12: =IF($F12="",Q12,"") ->  | AE12: =IF($F12="","",Q12) ->  | AF12: =IF($F12="",S12,"") ->  | AG12: =IF($F12="","",S12) -> 
A13: 18 | B13: wear belt and plastic rail | D13: ='Séries 3-4-5'!B15 -> 50X5 | F13: 0 | H13: =LOOKUP(L4,Tabl!A21:A44,Tabl!B21:B44) -> 4 | J13: =Tabl!K89 ->  | K13: =IF(G13="",'Séries 3-4-5'!$E$42,(VLOOKUP(G13,'Séries 3-4-5'!$D$26:$E$42,2,0))) -> 1.3 | L13: 0 | M13: =J13*$M$7 ->  | N13: ='Séries 3-4-5'!$I$3 -> 1 | Q13: =P13*N13*$Q$7 -> 0 | R13: 45 | S13: 0 | T13: 1 | U13: =(O13+S13)*T13*0.8 ->  | V13: Korea | W13: wear belt and plastic rail | X13: 50X5 | Y13: 0 | AE13: 0 | AG13: 0
A14: 04 | B14: rubber belt + grooving + pinching | G14: ='Séries 3-4-5'!B17 -> EPDM | H14: 1 | I14: =(VLOOKUP(G14,Band!I22:O23,7,0)) ->  | J14: =(VLOOKUP(G14,Band!A22:H24,8,0)) ->  | K14: =IF(G14="",'Séries 3-4-5'!$E$42,(VLOOKUP(G14,'Séries 3-4-5'!$D$26:$E$42,2,0))) -> 1.05 | N14: ='Séries 3-4-5'!$I$3 -> 1 | P14: =HLOOKUP(L4,Band!B13:G27,15,0) ->  | R14: 60 | T14: 1 | U14: =J14*1.5*1.05 ->  | V14: =(I14+$S$14)*$T$14 ->  | W14: rubber belt + grooving + pinching | X14: 0 | Y14: EPDM
A15: 04 | B15: edge curb | D15: ='Séries 3-4-5'!B18 -> 70 | F15: 0 | G15: ='Séries 3-4-5'!B19 -> SBR | H15: 1 | J15: =(HLOOKUP(L4,Band!B13:G26,IF(D15=Band!A25,13,14),0))/6.55957 ->  | K15: =IF(G15="",'Séries 3-4-5'!$E$42,(VLOOKUP(G15,'Séries 3-4-5'!$D$26:$E$42,2,0))) -> 1.05 | L15: 0 | N15: ='Séries 3-4-5'!$I$3 -> 1 | P15: 0 | Q15: 0 | R15: 45 | S15: 0 | T15: 1 | U15: =(O15+S15)*T15*1.05 ->  | W15: edge curb | X15: 70 | Y15: SBR | AE15: 0 | AG15: 0
A16: 03 | B16: ="drive pulley"&" "&'Séries 3-4-5'!$B$20 -> drive pulley SBR | D16: ='Séries 3-4-5'!$B$5 -> 935 | E16: # | F16: 0 | H16: 1 | I16: =(HLOOKUP($L$4,Tamb!$B$3:$M$9,2,0))/6.55957 -> 152.4490172 | J16: =(HLOOKUP($L$4,Tamb!$B$3:$M$9,3,0))/6.55957 -> 897.9247115 | K16: =IF(G16="",'Séries 3-4-5'!$E$42,(VLOOKUP(G16,'Séries 3-4-5'!$D$26:$E$42,2,0))) -> 1.3 | L16: 198.1837224 | M16: 897.9247115 | N16: ='Séries 3-4-5'!$I$3 -> 1 | O16: 1096.108434 | P16: =HLOOKUP($L$4,Tamb!$B$3:$M$9,6,0) -> 32 | Q16: 32 | R16: 45 | S16: 1440 | T16: 1 | U16: =(O16+S16)*T16*2 -> 5072.216868 | W16: drive pulley SBR | X16: 935 | Y16: 0 | AA16: 5072.216868 | AC16: 1096.108434 | AE16: 32 | AG16: 1440
A17: 02 | B17: ="idler pulley"&" "&'Séries 3-4-5'!$B$20 -> idler pulley SBR | D17: ='Séries 3-4-5'!$B$5 -> 935 | E17: # | F17: 0 | H17: 1 | I17: =(HLOOKUP($L$4,Tamb!$B$3:$M$9,4,0))/6.55957 -> 106.7143121 | J17: =(HLOOKUP($L$4,Tamb!$B$3:$M$9,5,0))/6.55957 -> 708.8879302 | K17: =IF(G17="",'Séries 3-4-5'!$E$42,(VLOOKUP(G17,'Séries 3-4-5'!$D$26:$E$42,2,0))) -> 1.3 | L17: 138.7286057 | M17: 708.8879302 | N17: ='Séries 3-4-5'!$I$3 -> 1 | O17: 847.6165358 | P17: =HLOOKUP($L$4,Tamb!$B$3:$M$9,7,0) -> 28 | Q17: 28 | R17: 45 | S17: 1260 | T17: 1 | U17: =(O17+S17)*T17*2 -> 4215.233072 | W17: idler pulley SBR | X17: 935 | Y17: 0 | AA17: 4215.233072 | AC17: 847.6165358 | AE17: 28 | AG17: 1260
A18: 02/03 | B18: pulleys bearing | F18: 0 | H18: 1 | J18: =(HLOOKUP($L$4,Tamb!$B$3:$M$10,8,0))/6.55957 -> 487.8368552 | K18: =IF(G18="",'Séries 3-4-5'!$E$42,(VLOOKUP(G18,'Séries 3-4-5'!$D$26:$E$42,2,0))) -> 1.3 | L18: 0 | M18: 487.8368552 | N18: ='Séries 3-4-5'!$I$3 -> 1 | O18: 487.8368552 | P18: 5 | Q18: 5 | R18: 45 | S18: 225 | T18: 1 | U18: =(O18+S18)*T18*1.1 -> 784.1205407 | W18: pulleys bearing | X18: 0 | Y18: 0 | AA18: 784.1205407 | AC18: 487.8368552 | AE18: 5 | AG18: 225
A19: 05 | B19: belt guide rollers | F19: 0 | H19: ='Séries 3-4-5'!B23 ->  | J19: =(136*H19)/6.55957 ->  | K19: =IF(G19="",'Séries 3-4-5'!$E$42,(VLOOKUP(G19,'Séries 3-4-5'!$D$26:$E$42,2,0))) -> 1.3 | L19: 0 | N19: ='Séries 3-4-5'!$I$3 -> 1 | Q19: 0 | R19: 45 | S19: 0 | T19: 1 | U19: =(O19+S19)*T19*1.1 ->  | W19: belt guide rollers | X19: 0 | Y19: 0 | AE19: 0 | AG19: 0
A20: 06 | B20: belt support rollers | D20: ='Séries 3-4-5'!B24 ->  | E20: # | F20: O | G20: ='Séries 3-4-5'!B25 -> 304L | H20: ='Séries 3-4-5'!B26 ->  | I20: =((INDEX(Roul!Q5:BE9,MATCH(D20,Roul!Q6:Q10,0)+1,MATCH($L$4&G20,Roul!R5:BE5,0)+1))*H20)/6.55957 ->  | J20: =((INDEX(Roul!Q10:BE14,MATCH(D20,Roul!Q11:Q14,0)+1,MATCH(L4&G20,Roul!R10:BE10,0)+1))*H20)/6.55957 ->  | K20: =IF(G20="",'Séries 3-4-5'!$E$42,(VLOOKUP(G20,'Séries 3-4-5'!$D$26:$E$42,2,0))) -> 1.590909091 | N20: ='Séries 3-4-5'!$I$3 -> 1 | O20: =(L20+M20)*N20 ->  | P20: =(LOOKUP(D20,Roul!$P$45:$P$51,Roul!$Q$45:$Q$51))*H20 ->  | R20: 45 | T20: 1 | U20: =(O20+S20)*T20*1.2 ->  | W20: belt support rollers | Y20: 304L
A21: 09 | B21: cloth support roller type 1 | D21: ='Séries 3-4-5'!B27 ->  | E21: # | F21: O | G21: ='Séries 3-4-5'!B28 -> 304L | H21: ='Séries 3-4-5'!B29 -> 8 | I21: =((INDEX(Roul!Q15:BE20,MATCH(D21,Roul!Q16:Q20,0)+1,MATCH(L4&G21,Roul!R15:BE15,0)+1))*H21)/6.55957 ->  | J21: =((INDEX(Roul!Q21:BE26,MATCH(D21,Roul!Q22:Q26,0)+1,MATCH(L4&G21,Roul!R21:BE21,0)+1))*H21)/6.55957 ->  | K21: =IF(G21="",'Séries 3-4-5'!$E$42,(VLOOKUP(G21,'Séries 3-4-5'!$D$26:$E$42,2,0))) -> 1.590909091 | N21: ='Séries 3-4-5'!$I$3 -> 1 | P21: =(LOOKUP(D21,Roul!$P$45:$P$51,Roul!$Q$45:$Q$51))*H21 ->  | R21: 45 | T21: 1 | U21: =(O21+S21)*T21*1.2 ->  | W21: cloth support roller type 1 | Y21: 304L
A22: 09 | B22: cloth support roller type 2 | D22: ='Séries 3-4-5'!B30 ->  | E22: # | F22: O | G22: ='Séries 3-4-5'!B31 -> 304L | H22: ='Séries 3-4-5'!B32 ->  | I22: =(IF(H22=0,0,(INDEX(Roul!Q15:BE20,MATCH(D22,Roul!Q16:Q20,0)+1,MATCH(L4&G22,Roul!R15:BE15,0)+1))*H22))/6.55957 ->  | J22: =(IF(H22=0,0,(INDEX(Roul!Q21:BE26,MATCH(D22,Roul!Q22:Q26,0)+1,MATCH(L4&G22,Roul!R21:BE21,0)+1))*H22))/6.55957 ->  | K22: =IF(G22="",'Séries 3-4-5'!$E$42,(VLOOKUP(G22,'Séries 3-4-5'!$D$26:$E$42,2,0))) -> 1.590909091 | N22: ='Séries 3-4-5'!$I$3 -> 1 | P22: =IF(H22=0,0,(LOOKUP(D22,Roul!$P$45:$P$51,Roul!$Q$45:$Q$51))*H22) ->  | R22: 45 | T22: 1 | U22: =(O22+S22)*T22*1.2 ->  | W22: cloth support roller type 2 | Y22: 304L
A23: 14 | B23: cloth discharge end support roller | D23: ='Séries 3-4-5'!B33 ->  | E23: # | F23: O | G23: ='Séries 3-4-5'!B34 -> 304L | H23: ='Séries 3-4-5'!B35 -> 2 | I23: =((INDEX(Roul!Q15:BE20,MATCH(D23,Roul!Q16:Q20,0)+1,MATCH(L4&G23,Roul!R15:BE15,0)+1))*H23)/6.55957 ->  | J23: =((INDEX(Roul!Q21:BE26,MATCH(D23,Roul!Q22:Q26,0)+1,MATCH(L4&G23,Roul!R21:BE21,0)+1))*H23)/6.55957 ->  | K23: =IF(G23="",'Séries 3-4-5'!$E$42,(VLOOKUP(G23,'Séries 3-4-5'!$D$26:$E$42,2,0))) -> 1.590909091 | N23: ='Séries 3-4-5'!$I$3 -> 1 | P23: =(LOOKUP(D23,Roul!$P$45:$P$51,Roul!$Q$45:$Q$51))*H23 ->  | R23: 45 | T23: 1 | U23: =(O23+S23)*T23*1.2 ->  | W23: cloth discharge end support roller | Y23: 304L
A24: 09 | B24: cake discharge roller | D24: ='Séries 3-4-5'!B36 ->  | E24: # | F24: O | G24: ='Séries 3-4-5'!B37 -> 304L | H24: ='Séries 3-4-5'!B38 -> 1 | I24: =IF('Séries 3-4-5'!B37="CAOUT",(HLOOKUP($L$4,Roul!T45:AC48,2,0))/6.55957,'Cost list'!I23/2) ->  | J24: =IF('Séries 3-4-5'!B37="CAOUT",(HLOOKUP($L$4,Roul!T45:AC48,3,0))/6.55957,'Cost list'!J23/2) ->  | K24: =IF(G24="",'Séries 3-4-5'!$E$42,(VLOOKUP(G24,'Séries 3-4-5'!$D$26:$E$42,2,0))) -> 1.590909091 | N24: ='Séries 3-4-5'!$I$3 -> 1 | P24: =IF('Séries 3-4-5'!B37="CAOU",HLOOKUP($L$4,Roul!T45:AC48,4,0),'Cost list'!P23/2) ->  | R24: 45 | T24: 1 | U24: =(O24+S24)*T24 ->  | W24: cake discharge roller | Y24: 304L
A25: 08 | B25: Guiding roller (angular) | D25: ='Séries 3-4-5'!B39 ->  | E25: # | F25: O | G25: ='Séries 3-4-5'!B40 -> 304L | H25: ='Séries 3-4-5'!B41 -> 1 | I25: =(IF(H25=0,0,(INDEX(Roul!Q35:BE38,MATCH(D25,Roul!Q36:Q38,0)+1,MATCH(L4&G25,Roul!R35:BE35,0)+1))*H25))/6.55957 ->  | J25: =(IF(H25=0,0,(INDEX(Roul!Q39:BE42,MATCH(D25,Roul!Q40:Q42,0)+1,MATCH(L4&G25,Roul!R39:BE39,0)+1))*H25))/6.55957 ->  | K25: =IF(G25="",'Séries 3-4-5'!$E$42,(VLOOKUP(G25,'Séries 3-4-5'!$D$26:$E$42,2,0))) -> 1.590909091 | N25: ='Séries 3-4-5'!$I$3 -> 1 | P25: =IF(H25=0,0,(LOOKUP(D25,Roul!$P$45:$P$51,Roul!$Q$45:$Q$51))*H25) ->  | R25: 45 | T25: 1 | U25: =(O25+S25)*T25*1.4 ->  | W25: Guiding roller (angular) | Y25: 304L
A26: 16 | B26: entrance / cloth form roller | D26: ='Séries 3-4-5'!B42 ->  | E26: # | F26: O | G26: ='Séries 3-4-5'!B43 -> 304L | H26: ='Séries 3-4-5'!B44 -> 1 | I26: =((INDEX(Roul!Q27:BE30,MATCH(D26,Roul!Q28:Q30,0)+1,MATCH(L4&G26,Roul!R27:BE27,0)+1))*H26)/6.55957 ->  | J26: =((INDEX(Roul!Q31:BE34,MATCH(D26,Roul!Q32:Q34,0)+1,MATCH(L4&G26,Roul!R31:BE31,0)+1))*H26)/6.55957 ->  | K26: =IF(G26="",'Séries 3-4-5'!$E$42,(VLOOKUP(G26,'Séries 3-4-5'!$D$26:$E$42,2,0))) -> 1.590909091 | N26: ='Séries 3-4-5'!$I$3 -> 1 | P26: =(LOOKUP(D26,Roul!$P$45:$P$51,Roul!$Q$45:$Q$51))*H26 ->  | R26: 45 | T26: 1 | U26: =(O26+S26)*T26*1.6 ->  | W26: entrance / cloth form roller | Y26: 304L
A27: 06/08/09/14 | B27: roller bearing | F27: 0 | H27: ='Séries 3-4-5'!B45 ->  | J27: =((IF(L4<4000,H27*270,(H20*326+(H21+H22+H23+H24+H25)*270)*2)))/6.55957 ->  | K27: =IF(G27="",'Séries 3-4-5'!$E$42,(VLOOKUP(G27,'Séries 3-4-5'!$D$26:$E$42,2,0))) -> 1.3 | L27: 0 | N27: ='Séries 3-4-5'!$I$3 -> 1 | P27: =H27*0.15 ->  | R27: 45 | T27: 1 | W27: roller bearing | X27: 0 | Y27: 0
A28: 02/03/08/10 | B28: miscelleneaous for guiding & tensioning | F28: 0 | J28: =((HLOOKUP(L4,Char!B57:M64,5,0))/6.55957)+((HLOOKUP(L4,Char!B66:M73,5,0))/6.55957) -> 1299.627872 | K28: =IF(G28="",'Séries 3-4-5'!$E$42,(VLOOKUP(G28,'Séries 3-4-5'!$D$26:$E$42,2,0))) -> 1.3 | L28: 0 | M28: =J28*$M$7 -> 1299.627872 | N28: ='Séries 3-4-5'!$I$3 -> 1 | O28: =(L28+M28)*N28 -> 1299.627872 | Q28: =P28*N28*$Q$7 -> 0 | R28: 45 | S28: =Q28*R28 -> 0 | T28: 1 | U28: =(O28+S28)*T28 -> 1299.627872 | W28: miscelleneaous for guiding & tensioning | X28: 0 | Y28: 0 | AA28: 1299.627872 | AC28: 1299.627872 | AE28: 0 | AG28: 0
A29: 08 | B29: cloth guiding device | E29: # | F29: 0 | G29: ='Séries 3-4-5'!B13 -> 304L | H29: 1 | I29: =(INDEX(Char!A57:M62,MATCH(G29,Char!A58:A62,0)+1,MATCH(L4,Char!B57:M57,0)+1))/6.55957 -> 91.46941034 | K29: =IF(G29="",'Séries 3-4-5'!$E$42,(VLOOKUP(G29,'Séries 3-4-5'!$D$26:$E$42,2,0))) -> 1.590909091 | L29: 145.5195165 | M29: 0 | N29: ='Séries 3-4-5'!$I$3 -> 1 | O29: 145.5195165 | P29: =HLOOKUP(L4,Char!A57:M64,8,0) -> 40 | Q29: 40 | R29: 45 | S29: 1800 | T29: 1 | U29: 1945.519516 | W29: cloth guiding device | X29: 0 | Y29: 304L | AA29: 1945.519516 | AC29: 145.5195165 | AE29: 40 | AG29: 1800
A30: 10 | B30: cloth tensionning device | E30: # | F30: 0 | G30: ='Séries 3-4-5'!B13 -> 304L | H30: 1 | I30: =(INDEX(Char!A66:M71,MATCH(G30,Char!A67:A71,0)+1,MATCH(L4,Char!B66:M66,0)+1))/6.55957 -> 320.1429362 | K30: =IF(G30="",'Séries 3-4-5'!$E$42,(VLOOKUP(G30,'Séries 3-4-5'!$D$26:$E$42,2,0))) -> 1.590909091 | L30: 509.3183076 | M30: 0 | N30: ='Séries 3-4-5'!$I$3 -> 1 | O30: 509.3183076 | P30: =HLOOKUP(L4,Char!B66:M73,8,0) -> 40 | Q30: 40 | R30: 45 | S30: 1800 | T30: 1 | U30: 2309.318308 | W30: cloth tensionning device | X30: 0 | Y30: 304L | AA30: 2309.318308 | AC30: 509.3183076 | AE30: 40 | AG30: 1800
A31: 13 | B31: vacuum box | D31: ='Séries 3-4-5'!B46 -> 140 | G31: ='Séries 3-4-5'!B47 -> 304L | I31: =('B. à V.'!B87)/6.55957 ->  | J31: =(LOOKUP(L4,'B. à V.'!A90:A91,'B. à V.'!B90:B91))/6.55957 -> 152.4490172 | K31: =IF(G31="",'Séries 3-4-5'!$E$42,(VLOOKUP(G31,'Séries 3-4-5'!$D$26:$E$42,2,0))) -> 1.590909091 | M31: 152.4490172 | N31: ='Séries 3-4-5'!$I$3 -> 1 | O31: =(L31+M31)*N31 ->  | P31: ='B. à V.'!C87 ->  | R31: 60 | S31: =Q31*R31 ->  | T31: 1 | U31: =(O31+S31)*T31 ->  | W31: vacuum box | X31: 140 | Y31: 304L
B32: V.Box support + dia + qty connection | D32: ='Séries 3-4-5'!B49 -> 65 | G32: ='Séries 3-4-5'!B48 -> 304L | H32: ='Séries 3-4-5'!B50 -> 4 | L32: 0 | R32: 60 | T32: 1 | W32: V.Box support + dia + qty connection | X32: 65 | Y32: 304L | Z32: 0 | AB32: 0 | AD32: 0 | AF32: 0
A33: 11/14 | B33: C & B wash device + discharge device | E33: # | F33: 0 | G33: ='Séries 3-4-5'!B52 -> 304L | H33: 1 | I33: =(INDEX(Lavage!A5:F16,MATCH('Cost list'!L4,Lavage!A6:A16,0)+1,MATCH('Cost list'!G33,Lavage!B5:F5,0)+1))/6.55957 -> 762.2450862 | J33: =(INDEX(Lavage!A18:F29,MATCH('Cost list'!L4,Lavage!A19:A29,0)+1,MATCH('Cost list'!G33,Lavage!B18:F18,0)+1))/6.55957 -> 1509.245271 | K33: =IF(G33="",'Séries 3-4-5'!$E$42,(VLOOKUP(G33,'Séries 3-4-5'!$D$26:$E$42,2,0))) -> 1.590909091 | L33: 1212.662637 | M33: =J33*$M$7 -> 1509.245271 | N33: ='Séries 3-4-5'!$I$3 -> 1 | O33: 2721.907908 | P33: =INDEX(Lavage!A31:F42,MATCH('Cost list'!L4,Lavage!A32:A42,0)+1,MATCH('Cost list'!G33,Lavage!B31:F31,0)+1) -> 100 | Q33: =P33*N33*$Q$7 -> 100 | R33: 45 | S33: 4500 | T33: 1 | U33: =(O33+S33)*T33*0.7*1.15 -> 5813.635866 | W33: C & B wash device + discharge device | X33: 0 | Y33: 304L | AA33: 5813.635866 | AC33: 2721.907908 | AE33: 100 | AG33: 4500
A34: 15 | B34: Form zone apron dam | D34: ='Séries 3-4-5'!B54 -> EPDM | E34: # | F34: 0 | G34: ='Séries 3-4-5'!B53 -> 316L | H34: 1 | I34: =(INDEX('Acc. sup'!A4:L11,MATCH('Cost list'!G34,'Acc. sup'!A5:A11,0)+1,MATCH('Cost list'!L4,'Acc. sup'!B4:L4,0)+1))/6.55957 -> 19.05612715 | J34: =(INDEX('Acc. sup'!A4:L11,MATCH('Cost list'!D34,'Acc. sup'!A5:A11,0)+1,MATCH('Cost list'!L4,'Acc. sup'!B4:L4,0)+1))/6.55957 -> 30.87092599 | K34: =IF(G34="",'Séries 3-4-5'!$E$42,(VLOOKUP(G34,'Séries 3-4-5'!$D$26:$E$42,2,0))) -> 2.068965517 | L34: 39.42646998 | M34: 30.87092599 | N34: ='Séries 3-4-5'!$I$3 -> 1 | O34: 70.29739597 | P34: =HLOOKUP(L4,'Acc. sup'!A4:L12,9,0) -> 4 | Q34: 4 | R34: 45 | S34: 180 | T34: 1 | U34: =(O34+S34)*T34*1.25 -> 312.871745 | W34: Form zone apron dam | X34: EPDM | Y34: 316L | AA34: 312.871745 | AC34: 70.29739597 | AE34: 4 | AG34: 180
A35: 20 | B35: cake wash feeder | D35: ='Séries 3-4-5'!B55 -> OVER | E35: # | F35: 0 | G35: ='Séries 3-4-5'!B56 -> 304L | H35: ='Séries 3-4-5'!B57 -> 3 | I35: ='Acc. sup'!B26 -> 1144.5 | J35: ='Acc. sup'!C26 -> 257.25 | K35: =IF(G35="",'Séries 3-4-5'!$E$42,(VLOOKUP(G35,'Séries 3-4-5'!$D$26:$E$42,2,0))) -> 1.590909091 | L35: =I35*K35*H35 -> 5462.386364 | M35: =J35*$M$7*H35 -> 771.75 | N35: ='Séries 3-4-5'!$I$3 -> 1 | O35: 6234.136364 | P35: ='Acc. sup'!D26 -> 30 | Q35: =P35*N35*$Q$7*H35 -> 90 | R35: 45 | S35: 4050 | T35: 1 | U35: =(O35+S35)*T35*1.5 -> 15426.20455 | W35: cake wash feeder | X35: OVER | Y35: 304L | AA35: 15426.20455 | AC35: 6234.136364 | AE35: 90 | AG35: 4050
A36: 20 | B36: cake wash feeder carriages | D36: ='Séries 3-4-5'!B58 -> ROUE | E36: # | F36: 0 | G36: ='Séries 3-4-5'!B59 -> 304L | H36: ='Séries 3-4-5'!B60 -> 3 | I36: ='Acc. sup'!B27 -> 682.5 | J36: ='Acc. sup'!C27 -> 157.5 | K36: =IF(G36="",'Séries 3-4-5'!$E$42,(VLOOKUP(G36,'Séries 3-4-5'!$D$26:$E$42,2,0))) -> 1.590909091 | L36: =I36*K36*H36 -> 3257.386364 | M36: =J36*$M$7*H36 -> 472.5 | N36: ='Séries 3-4-5'!$I$3 -> 1 | O36: 3729.886364 | P36: ='Acc. sup'!D27 -> 15 | Q36: =P36*N36*$Q$7*H36 -> 45 | R36: 45 | S36: 2025 | T36: 1 | U36: =(O36+S36)*T36*1.5 -> 8632.329545 | W36: cake wash feeder carriages | X36: ROUE | Y36: 304L | AA36: 8632.329545 | AC36: 3729.886364 | AE36: 45 | AG36: 2025
A37: 19 | B37: wash zone pendulum apron dam | D37: ='Séries 3-4-5'!B62 -> EPDM | E37: # | F37: 0 | G37: ='Séries 3-4-5'!B61 -> 316L | H37: ='Séries 3-4-5'!B63 -> 4 | I37: =I34 -> 19.05612715 | J37: =J34/1.2 -> 25.72577166 | K37: =IF(G37="",'Séries 3-4-5'!$E$42,(VLOOKUP(G37,'Séries 3-4-5'!$D$26:$E$42,2,0))) -> 2.068965517 | L37: =I37*K37*H37 -> 157.7058799 | M37: =J37*$M$7*H37 -> 102.9030866 | N37: ='Séries 3-4-5'!$I$3 -> 1 | O37: 260.6089665 | P37: =P34 -> 4 | Q37: =P37*N37*$Q$7*H37 -> 16 | R37: 45 | S37: 720 | T37: 1 | U37: =(O37+S37)*T37*1.25 -> 1225.761208 | W37: wash zone pendulum apron dam | X37: EPDM | Y37: 316L | AA37: 1225.761208 | AC37: 260.6089665 | AE37: 16 | AG37: 720
A38: 12 | B38: pulp feeder | D38: ='Séries 3-4-5'!B64 -> QDC | E38: # | F38: 0 | G38: ='Séries 3-4-5'!B65 -> 304L | H38: ='Séries 3-4-5'!B66 -> 1 | I38: ='Acc. sup'!B28 -> 2677.5 | J38: ='Acc. sup'!C28 -> 351.75 | K38: =IF(G38="",'Séries 3-4-5'!$E$42,(VLOOKUP(G38,'Séries 3-4-5'!$D$26:$E$42,2,0))) -> 1.590909091 | L38: =I38*K38*H38 -> 4259.659091 | M38: =J38*$M$7*H38 -> 351.75 | N38: ='Séries 3-4-5'!$I$3 -> 1 | O38: 4611.409091 | P38: ='Acc. sup'!D28 -> 70 | Q38: =P38*N38*$Q$7*H38 -> 70 | R38: 45 | S38: 3150 | T38: 1 | U38: =(O38+S38)*T38*IF(AND(Calculations!Q12="BOIT",Calculations!N12="Type phosphate"),2,IF(AND(Calculations!Q12="BOIT",Calculations!N12="Type Bicar"),3,1)) -> 7761.409091 | W38: pulp feeder | X38: QDC | Y38: 304L | AA38: 7761.409091 | AC38: 4611.409091 | AE38: 70 | AG38: 3150
A39: 40 | B39: pneumatic cabinet + pneumatic acc. | D39: ='Séries 3-4-5'!B67 -> STD | E39: # | F39: 0 | H39: 1 | J39: =(Access!C3)/6.55957 -> 914.6941034 | K39: =IF(G39="",'Séries 3-4-5'!$E$42,(VLOOKUP(G39,'Séries 3-4-5'!$D$26:$E$42,2,0))) -> 1.3 | L39: 0 | M39: 914.6941034 | N39: ='Séries 3-4-5'!$I$3 -> 1 | O39: 914.6941034 | P39: =Access!D3 -> 10 | Q39: 10 | R39: 45 | S39: 450 | T39: 1 | U39: 5000 | W39: pneumatic cabinet + pneumatic acc. | X39: STD | Y39: 0 | AA39: 5000 | AC39: 914.6941034 | AE39: 10 | AG39: 450
A40: 51/60 | B40: junction box + electrical set of equip. | D40: ='Séries 3-4-5'!B68 -> STD | E40: # | F40: 0 | H40: 1 | I40: =HLOOKUP('Séries 3-4-5'!B6,Access!C5:F8,2) -> 300 | J40: =HLOOKUP('Séries 3-4-5'!B6,Access!C5:F8,3) -> 3000 | K40: =IF(G40="",'Séries 3-4-5'!$E$42,(VLOOKUP(G40,'Séries 3-4-5'!$D$26:$E$42,2,0))) -> 1.3 | L40: 390 | M40: 3000 | N40: ='Séries 3-4-5'!$I$3 -> 1 | O40: 3390 | P40: =HLOOKUP('Séries 3-4-5'!B6,Access!C5:F8,4) -> 40 | Q40: 40 | R40: 45 | S40: 1800 | T40: 1 | U40: =(O40+S40)*T40 -> 5190 | W40: junction box + electrical set of equip. | X40: STD | Y40: 0 | AA40: 5190 | AC40: 3390 | AE40: 40 | AG40: 1800
A41: 01 | B41: bolting | E41: # | F41: 0 | G41: ='Séries 3-4-5'!B69 -> 316 | H41: 1 | J41: =VLOOKUP(G41,Char!B94:C96,2) -> 2800 | K41: =IF(G41="",'Séries 3-4-5'!$E$42,(VLOOKUP(G41,'Séries 3-4-5'!$D$26:$E$42,2,0))) -> 2.068965517 | L41: 0 | M41: 2800 | N41: ='Séries 3-4-5'!$I$3 -> 1 | O41: 2800 | Q41: 0 | R41: 45 | S41: 0 | T41: 1 | U41: 2800 | W41: bolting | X41: 0 | Y41: 316 | AA41: 2800 | AC41: 2800 | AE41: 0 | AG41: 0
A42: 10 | B42: pneumetic bellow | D42: =IF('Séries 3-4-5'!B70>1,"12x2","10x2") -> 10x2 | F42: 0 | H42: =IF(D42="10x2",'Séries 3-4-5'!B71,'Séries 3-4-5'!B70) -> 2 | I42: =((HLOOKUP(D42,Access!C15:F17,2,0))*H42)/6.55957 -> 259.1633293 | J42: =((HLOOKUP(D42,Access!C15:F17,3,0))*H42)/6.55957 -> 257.6388391 | K42: =IF(G42="",'Séries 3-4-5'!$E$42,(VLOOKUP(G42,'Séries 3-4-5'!$D$26:$E$42,2,0))) -> 1.3 | L42: 336.9123281 | M42: 257.6388391 | N42: ='Séries 3-4-5'!$I$3 -> 1 | O42: 594.5511672 | Q42: 0 | R42: 45 | S42: 0 | T42: 1 | U42: 594.5511672 | W42: pneumetic bellow | X42: 10x2 | Y42: 0 | AA42: 594.5511672 | AC42: 594.5511672 | AE42: 0 | AG42: 0
A43: 08 | B43: pneumetic bellow | D43: =IF('Séries 3-4-5'!B73>1,"8x2","6x2") -> 8x2 | F43: 0 | H43: =IF(D43="8x2",'Séries 3-4-5'!B73,'Séries 3-4-5'!#REF!) -> 2 | I43: =((HLOOKUP(D43,Access!C15:F17,2,0))*H43)/6.55957 -> 198.1837224 | J43: =((HLOOKUP(D43,Access!C15:F17,3,0))*H43)/6.55957 -> 193.7627009 | K43: =IF(G43="",'Séries 3-4-5'!$E$42,(VLOOKUP(G43,'Séries 3-4-5'!$D$26:$E$42,2,0))) -> 1.3 | L43: 257.6388391 | M43: 193.7627009 | N43: ='Séries 3-4-5'!$I$3 -> 1 | O43: 451.40154 | Q43: 0 | R43: 45 | S43: 0 | T43: 1 | U43: 451.40154 | W43: pneumetic bellow | X43: 8x2 | Y43: 0 | AA43: 451.40154 | AC43: 451.40154 | AE43: 0 | AG43: 0
A44: 13 | B44: pneumetic bellow | D44: 8X3 | F44: 0 | H44: ='Séries 3-4-5'!B72 ->  | I44: =Access!G16*'Cost list'!H44/6.55957 ->  | J44: =Access!G17*'Cost list'!H44/6.55957 ->  | K44: =IF(G44="",'Séries 3-4-5'!$E$42,(VLOOKUP(G44,'Séries 3-4-5'!$D$26:$E$42,2,0))) -> 1.3 | M44: =J44*$M$7 ->  | N44: ='Séries 3-4-5'!$I$3 -> 1 | O44: =(L44+M44)*N44 ->  | Q44: =P44*N44*$Q$7 -> 0 | R44: 45 | S44: =Q44*R44 -> 0 | T44: 1 | W44: pneumetic bellow | X44: 8X3 | Y44: 0 | AE44: 0 | AG44: 0
A45: 44 | B45: oil and grease | E45: # | F45: 0 | H45: 1 | J45: 380 | K45: =IF(G45="",'Séries 3-4-5'!$E$42,(VLOOKUP(G45,'Séries 3-4-5'!$D$26:$E$42,2,0))) -> 1.3 | L45: =I45*K45 -> 0 | M45: 380 | N45: ='Séries 3-4-5'!$I$3 -> 1 | O45: 380 | Q45: 0 | R45: 45 | S45: 0 | T45: 1 | U45: 380 | W45: oil and grease | X45: 0 | Y45: 0 | AA45: 380 | AC45: 380 | AE45: 0 | AG45: 0
A46: 44 | B46: Cartouche perma | E46: # | F46: 0 | H46: 1 | J46: =(H27+4)*32 ->  | K46: 1.3 | L46: =I46*K46 -> 0 | M46: =J46*$M$7 ->  | N46: 1 | O46: =(L46+M46)*N46 ->  | Q46: =P46*N46*$Q$7 -> 0 | R46: 45 | S46: =Q46*R46 -> 0 | T46: =IF(F46="",$P$3,$Q$3) -> 1 | U46: =(O46+S46)*T46 ->  | W46: =B46 -> Cartouche perma | X46: =D46 -> 0 | Y46: =G46 -> 0 | Z46: =IF(F46="",U46,"") ->  | AA46: =IF(F46="","",U46) ->  | AB46: =IF($F46="",O46,"") ->  | AC46: =IF($F46="","",O46) ->  | AD46: =IF($F46="",Q46,"") ->  | AE46: =IF($F46="","",Q46) -> 0 | AF46: =IF($F46="",S46,"") ->  | AG46: =IF($F46="","",S46) -> 0
A47: 46 | B47: Peinture palier | F47: 0 | H47: 1 | J47: =(46+4)*100 -> 5000 | K47: =IF(G47="",'Séries 3-4-5'!$E$42,(VLOOKUP(G47,'Séries 3-4-5'!$D$26:$E$42,2,0))) -> 1.3 | L47: 0 | M47: 5000 | N47: ='Séries 3-4-5'!$I$3 -> 1 | O47: 5000 | Q47: 0 | R47: 45 | S47: 0 | T47: 1 | U47: 5000 | W47: Peinture palier | X47: 0 | Y47: 0 | AA47: 5000 | AC47: 5000 | AE47: 0 | AG47: 0
A48: 46 | B48: Passivation boîteà vide et table | E48: # | F48: 0 | H48: 1 | J48: =Tabl!P88*0.75+IF(G31<>"SVR",('Séries 3-4-5'!B9+'Séries 3-4-5'!B10+'Séries 3-4-5'!B11)*150*0.75,0) ->  | K48: =IF(G48="",'Séries 3-4-5'!$E$42,(VLOOKUP(G48,'Séries 3-4-5'!$D$26:$E$42,2,0))) -> 1.3 | L48: 0 | N48: ='Séries 3-4-5'!$I$3 -> 1 | O48: =(L48+M48)*N48 ->  | Q48: =P48*N48*$Q$7 -> 0 | R48: 45 | S48: =Q48*R48 -> 0 | T48: 1 | W48: Passivation boîteà vide et table | X48: 0 | Y48: 0 | AA48: 0 | AE48: 0 | AG48: 0
A49: 03 | B49: reducer torque arm | E49: # | F49: 0 | G49: ='Séries 3-4-5'!B13 -> 304L | H49: 1 | I49: =(INDEX(Char!A75:M82,MATCH(G49,Char!A76:A82,0)+1,MATCH(L4,Char!B75:M75,0)+1))/6.55957 -> 38.8744994 | J49: =(HLOOKUP(L4,Char!B75:M82,5,0))/6.55957 -> 125.7704392 | K49: =IF(G49="",'Séries 3-4-5'!$E$42,(VLOOKUP(G49,'Séries 3-4-5'!$D$26:$E$42,2,0))) -> 1.590909091 | L49: 61.84579449 | M49: 125.7704392 | N49: ='Séries 3-4-5'!$I$3 -> 1 | O49: 187.6162337 | P49: =HLOOKUP(L4,Char!B75:M82,8,0) -> 10 | Q49: 10 | R49: 45 | S49: 450 | T49: 1 | U49: =(O49+S49)*T49*1.2 -> 765.1394805 | W49: reducer torque arm | X49: 0 | Y49: 304L | AA49: 765.1394805 | AC49: 187.6162337 | AE49: 10 | AG49: 450
A50: 03 | B50: planetary reducer "BREVINI" | D50: ='Séries 3-4-5'!B77 -> 2319.944184 | F50: 0 | H50: 1 | J50: =HLOOKUP(D51,'Gr de Cde'!B5:X6,2,0) ->  | K50: =IF(G50="",'Séries 3-4-5'!$E$42,(VLOOKUP(G50,'Séries 3-4-5'!$D$26:$E$42,2,0))) -> 1.3 | L50: 0 | N50: ='Séries 3-4-5'!$I$3 -> 1 | Q50: 0 | R50: 45 | S50: 0 | T50: 1 | U50: =(O50+S50)*T50*1.2 ->  | W50: planetary reducer "BREVINI" | X50: 2319.944184 | Y50: 0 | AE50: 0 | AG50: 0
A51: 03 | B51: Motor | D51: ='Gr de Cde'!E26 -> 0.25 | E51: # | F51: 0 | H51: 1 | J51: =('Gr de Cde'!H26)/6.55957 -> 164.1875916 | K51: =IF(G51="",'Séries 3-4-5'!$E$42,(VLOOKUP(G51,'Séries 3-4-5'!$D$26:$E$42,2,0))) -> 1.3 | L51: 0 | M51: 164.1875916 | N51: ='Séries 3-4-5'!$I$3 -> 1 | O51: =(L51+M51)*N51 -> 164.1875916 | Q51: 0 | R51: 45 | S51: 0 | T51: 1 | U51: =(O51+S51)*T51*1.2 -> 197.0251099 | W51: Motor | X51: 0.25 | Y51: 0 | AA51: 197.0251099 | AC51: 164.1875916 | AE51: 0 | AG51: 0
A52: 03 | B52: frequency variator | D52: =D51 -> 0.25 | E52: # | F52: 0 | H52: 1 | J52: =(H52*'Gr de Cde'!H30)/6.55957 -> 0 | K52: =IF(G52="",'Séries 3-4-5'!$E$42,(VLOOKUP(G52,'Séries 3-4-5'!$D$26:$E$42,2,0))) -> 1.3 | L52: 0 | M52: 0 | N52: ='Séries 3-4-5'!$I$3 -> 1 | O52: =(L52+M52)*N52 -> 0 | Q52: 0 | R52: 45 | S52: 0 | T52: 1 | U52: =(O52+S52)*T52*1.2 -> 0 | W52: frequency variator | X52: 0.25 | Y52: 0 | AA52: 0 | AC52: 0 | AE52: 0 | AG52: 0
A53: 07 | B53: filtering cloth | F53: 0 | H53: 1 | J53: =(Toile!C10)/6.55957 ->  | K53: =IF(G53="",'Séries 3-4-5'!$E$42,(VLOOKUP(G53,'Séries 3-4-5'!$D$26:$E$42,2,0))) -> 1.3 | L53: 0 | N53: ='Séries 3-4-5'!$I$3 -> 1 | Q53: 0 | R53: 45 | S53: 0 | T53: 1 | W53: filtering cloth | X53: 0 | Y53: 0 | AE53: 0 | AG53: 0
A54: PRESTA | B54: labelling + shiping preparation France | G54: ='Séries 3-4-5'!B82 -> MONT | H54: 1 | K54: =IF(G54="",'Séries 3-4-5'!$E$42,(VLOOKUP(G54,'Séries 3-4-5'!$D$26:$E$42,2,0))) -> 1.3 | L54: 0 | M54: =J54*$M$7 -> 0 | N54: ='Séries 3-4-5'!$I$3 -> 1 | O54: =(L54+M54)*N54 -> 0 | P54: =IF(G55="MONT",80,80) -> 80 | Q54: =P54*N54*$Q$7 -> 80 | R54: 60 | S54: =Q54*R54 -> 4800 | T54: 1 | W54: labelling + shiping preparation France | X54: 0 | Y54: MONT | Z54: 0 | AB54: 0 | AD54: 80 | AF54: 4800
A55: 12/15/19/20 | B55: =IF(G55="PRE","pre-assembly + labelling","full erection in factory + reinforcement") -> full erection in factory + reinforcement | E55: # | G55: ='Séries 3-4-5'!B82 -> MONT | H55: 1 | I55: 0 | K55: 1.3 | L55: 0 | M55: =J55*$M$7 -> 0 | N55: 1 | O55: =(L55+M55)*N55 -> 0 | P55: =IF(G55="MONT",'Séries 3-4-5'!F94+'Séries 3-4-5'!G94+'Séries 3-4-5'!H94,120) ->  | Q55: =P55*N55*$Q$7 ->  | R55: 60 | S55: =Q55*R55 ->  | T55: 1 | W55: full erection in factory + reinforcement | X55: 0 | Y55: MONT | Z55: 0 | AB55: 0
B56: =IF((IF(F55<>"",1,0))+(IF(G55="MONT",1,0))=2,"ADD cost of supervisor","N/A") -> N/A | F56: o | L56: 0 | M56: =J56*$M$7 -> 0 | O56: =(L56+M56)*N56 -> 0 | Q56: =P56*N56*$Q$7 -> 0 | R56: 45 | S56: =Q56*R56 -> 0 | T56: 1 | U56: =(O56+S56)*T56 -> 0 | W56: N/A | X56: 0 | Y56: 0 | AA56: 0 | AC56: 0 | AE56: 0 | AG56: 0
B57: Sourcing shipping up to erection site | F57: o | G57: ='Séries 3-4-5'!B82 -> MONT | H57: 1 | J57: =IF(G57="MONT",U58*5/100,0) ->  | L57: =I57*K57 -> 0 | M57: =J57*$M$7 ->  | N57: 1 | O57: =(L57+M57)*N57 ->  | Q57: =P57*N57*$Q$7 -> 0 | R57: 45 | S57: =Q57*R57 -> 0 | T57: =IF(F57="",$P$3,$Q$3) -> 1 | U57: =(O57+S57)*T57 ->  | W57: Sourcing shipping up to erection site | X57: =D57 -> 0 | Y57: MONT | AA57: =IF(F57="","",U57) ->  | AB57: =IF($F57="",O57,"") ->  | AC57: =IF($F57="","",O57) ->  | AD57: =IF($F57="",Q57,"") ->  | AE57: =IF($F57="","",Q57) -> 0 | AF57: =IF($F57="",S57,"") ->  | AG57: =IF($F57="","",S57) -> 0
B58: TOTAL PART LOCALE : | F58: o | U58: =SUM(AA8:AA56) ->  | V58: =U58+U57 ->  | W58: TOTAL PART LOCALE : | AC58: =SUM(AC8:AC56) ->  | AE58: =SUM(AE8:AE56) ->  | AG58: =SUM(AG8:AG56) -> 
B59: TOTAL PART FRANCE : | U59: =SUM(Z8:Z57) ->  | V59: =U59+SUM(V8:V10) ->  | W59: TOTAL PART FRANCE : | Z59: =U60-U58 ->  | AA59: =U60-U59 ->  | AB59: =SUM(AB8:AB56) ->  | AD59: =SUM(AD8:AD56) ->  | AF59: =SUM(AF8:AF56) -> 
B60: TOTAL : | U60: =SUM(U8:U57) ->  | V60: =V58+V59 ->  | W60: =U58+U59 -> 
B61: =B3 -> N° DU DEVIS : | C61: =C3 -> 726789-rev4 | D61: =D3 -> - 2B5 | G61: =G3 -> Client | I61: =I3 -> CARESTER | T61: =T3 -> Rev. | U61: =U3 -> 0
B62: Ph. LE BIGOT => | C62: =C4 -> X HOG | E62: local basic | F62: For | G62: =G4 -> Surface : | I62: 2 | J62: Largeur | L62: 500 | M62: Spécifications | O62: 304L+304L+EPDM+T70+3G+0,25KW+1VF | U62: =U4 -> 2025-04-25 | Z62: French | AA62: Local | AB62: French | AC62: Local | AD62: French | AE62: Local | AF62: French | AG62: Local
F63: local | I63: Material | J63: Buyout | K63: Corrective | L63: Updated | M63: Buyout | O63: Total (1) Material + buyout | P63: Labour | Q63: Labour | S63: Total (2) | U63: Final cost without engineering | V63: Final cost including engineering | X63: data | Z63: incl 1,149 | AA63: incl. 1,149 | AB63: Total (1) Material + buyout | AC63: Total (1) Material + buyout | AD63: Labour | AE63: Labour | AF63: Total (2) | AG63: Total (2)
B64: Désignation | D64: Spéc | F64: fill the | G64: Mat | H64: Qty | I64: Unit cost | J64: Unit cost | K64: factor | L64: material | N64: Qty | P64: Unit | Q64: Total | R64: Taux | S64: Labour | T64: Marg | W64: Désignation | X64: Spéc | Z64: France | AA64: Local | AD64: Total | AE64: Total | AF64: labour | AG64: labour
F65: cell | G65: Spec | L65: 1 | M65: 1 | Q65: 1 | X65: Dia. | AD65: hours | AE65: hours | AF65: cost | AG65: cost
B66: Specific accessories / options to be add if required per filter | W66: =B66 -> Specific accessories / options to be add if required per filter
A67: 51 | B67: Cloth and belt flow meter | D67: Option | G67: ABB | H67: 0 | J67: 990 | L67: =I67*$L$65*H67 -> 0 | M67: =J67*$M$65*H67 -> 0 | N67: ='Séries 3-4-5'!$I$3 -> 1 | O67: =(L67+M67)*N67 -> 0 | Q67: =P67*N67*$Q$7*H67 -> 0 | R67: =IF($F67="",$R$3,$S$3) -> 60 | S67: =Q67*R67 -> 0 | T67: =IF(F67="",$P$3,$Q$3) -> 1 | U67: =H67*(O67+S67)*T67 -> 0 | W67: Cloth and belt flow meter | X67: =D67 -> Option | Z67: =U67 -> 0 | AB67: =O67 -> 0 | AD67: =Q67 -> 0 | AF67: =S67 -> 0
A68: 51 | B68: Cake wash flowmeter | D68: Option | G68: ABB | H68: 0 | J68: 990 | L68: =I68*$L$65*H68 -> 0 | M68: =J68*$M$65*H68 -> 0 | N68: ='Séries 3-4-5'!$I$3 -> 1 | O68: 0 | Q68: =P68*N68*$Q$7*H68 -> 0 | R68: 60 | S68: 0 | T68: 1 | U68: =H68*(O68+S68)*T68 -> 0 | W68: Cake wash flowmeter | X68: Option | Z68: =IF(F68="",U68,"") -> 0 | AA68: =IF(F68="","",U68) ->  | AB68: =IF($F68="",O68,"") -> 0 | AC68: =IF($F68="","",O68) ->  | AD68: =IF($F68="",Q68,"") -> 0 | AE68: =IF($F68="","",Q68) ->  | AF68: =IF($F68="",S68,"") -> 0 | AG68: =IF($F68="","",S68) -> 
A69: 51 | B69: Cloth run off & overtorque | D69: Option | H69: 0 | I69: 50 | J69: 83 | L69: 0 | M69: 0 | N69: ='Séries 3-4-5'!$I$3 -> 1 | O69: 0 | P69: 10 | Q69: 0 | R69: 60 | S69: 0 | T69: 1 | U69: 0 | W69: Cloth run off & overtorque | X69: Option | Z69: =U69 -> 0 | AB69: =O69 -> 0 | AD69: =Q69 -> 0 | AF69: =S69 -> 0
A70: 01 | B70: skirting above curb (Per meter) | E70: # | F70: 0 | G70: PPH | H70: 0 | I70: 25 | J70: 10 | L70: 0 | M70: 0 | N70: ='Séries 3-4-5'!B21*'Séries 3-4-5'!I3 -> 0 | O70: =H70*(L70+M70)*N70 -> 0 | P70: 7 | Q70: 0 | R70: 45 | S70: 0 | T70: 1 | U70: 0 | W70: skirting above curb (Per meter) | X70: 0 | Z70: =IF(F70="",U70,"") ->  | AA70: =IF(F70="","",U70) -> 0 | AB70: =IF($F70="",O70,"") ->  | AC70: =IF($F70="","",O70) -> 0 | AD70: =IF($F70="",Q70,"") ->  | AE70: =IF($F70="","",Q70) -> 0 | AF70: =IF($F70="",S70,"") ->  | AG70: =IF($F70="","",S70) -> 0
A71: 13 | B71: water injection into the vacuum box | D71: Option | H71: 0 | L71: 0 | M71: 0 | N71: ='Séries 3-4-5'!$I$3 -> 1 | O71: 0 | P71: 0 | Q71: 0 | R71: 60 | S71: 0 | T71: 1 | U71: 0 | W71: water injection into the vacuum box | X71: Option | Z71: 0 | AB71: 0 | AD71: 0 | AF71: 0
A72: 13 | B72: Double vacuum box & associated hole | D72: Option | H72: 0 | L72: 0 | M72: 0 | N72: ='Séries 3-4-5'!$I$3 -> 1 | O72: 0 | P72: 0 | Q72: 0 | R72: 60 | S72: 0 | T72: 1 | U72: 0 | W72: Double vacuum box & associated hole | X72: Option | Z72: 0 | AB72: 0 | AD72: 0 | AF72: 0
A73: 13 | B73: option straight filtrate pipes | D73: Option | H73: 0 | L73: 0 | M73: 0 | N73: ='Séries 3-4-5'!$I$3 -> 1 | O73: 0 | P73: 0 | Q73: 0 | R73: 60 | S73: 0 | T73: 1 | U73: 0 | W73: option straight filtrate pipes | X73: Option | Z73: 0 | AB73: 0 | AD73: 0 | AF73: 0
A74: 01 | B74: Side gutter cost per step of frame | D74: Option | E74: # | F74: 0 | G74: 304L | H74: 0 | L74: 0 | M74: 0 | N74: ='Séries 3-4-5'!$I$3 -> 1 | O74: =(L74+M74)*N74 -> 0 | P74: 10 | Q74: 0 | R74: 45 | S74: 0 | T74: 1 | U74: 0 | W74: Side gutter cost per step of frame | X74: Option | AA74: 0 | AC74: 0 | AE74: 0 | AG74: 0
A75: 02/03 | B75: Stainless steel shaft lining | D75: Option | E75: # | F75: 0 | H75: 0 | L75: 0 | M75: 0 | N75: ='Séries 3-4-5'!$I$3 -> 1 | O75: =(L75+M75)*N75 -> 0 | P75: 2 | Q75: 0 | R75: 45 | S75: 0 | T75: 1 | U75: 0 | W75: Stainless steel shaft lining | X75: Option | AA75: 0 | AC75: 0 | AE75: 0 | AG75: 0
A76: 40 | B76: Pneumatic tubing made of SS | D76: Option | E76: # | F76: 0 | H76: 0 | L76: 0 | M76: 0 | N76: ='Séries 3-4-5'!$I$3 -> 1 | O76: =(L76+M76)*N76 -> 0 | P76: 3 | Q76: 0 | R76: 45 | S76: 0 | T76: 1 | U76: =H76*(O76+S76)*T76 -> 0 | W76: Pneumatic tubing made of SS | X76: Option | AA76: 0 | AC76: 0 | AE76: 0 | AG76: 0
A77: 51 | B77: Ultrasonic control cake thickeness | D77: Option | H77: 0 | I77: 200 | J77: 850 | L77: 0 | M77: 0 | N77: ='Séries 3-4-5'!$I$3 -> 1 | O77: =(L77+M77)*N77 -> 0 | P77: 5 | Q77: 0 | R77: 60 | S77: =Q77*R77 -> 0 | T77: 1 | U77: =H77*(O77+S77)*T77 -> 0 | W77: Ultrasonic control cake thickeness | X77: Option | Z77: 0 | AB77: 0 | AD77: 0 | AF77: 0
A78: 51 | B78: Wear belt breaking sensor | D78: Option | H78: 0 | L78: 0 | M78: 0 | N78: ='Séries 3-4-5'!$I$3 -> 1 | O78: =(L78+M78)*N78 -> 0 | P78: 3 | Q78: 0 | R78: 60 | S78: =Q78*R78 -> 0 | T78: 1 | U78: =H78*(O78+S78)*T78 -> 0 | Z78: 0 | AB78: 0 | AD78: 0 | AF78: 0
A79: 18 | B79: Additional cost for "roller belt support | D79: Option | E79: # | F79: 0 | H79: 0 | L79: 0 | M79: 0 | N79: ='Séries 3-4-5'!$I$3 -> 1 | O79: 0 | P79: 0 | Q79: 0 | R79: 45 | S79: 0 | T79: 1 | U79: 0 | AA79: 0 | AC79: 0 | AE79: 0 | AG79: 0
W80: 0 | X80: 0 | Z80: 0 | AB80: 0 | AD80: 0 | AF80: 0
B81: 1 | C81: GRAND TOTAL FILTRE LOCAL PART | U81: =SUM(AA67:AA80)+V58 ->  | V81: =U81 ->  | W81: TOTAL LOCAL PART
B82: 2 | C82: GRAND TOTAL FILTRE FRENCH PART | U82: =SUM(Z67:Z80)+U59 ->  | V82: =U82+SUM(V8:V10) ->  | W82: TOTAL FRENCH PART | Z82: =SUM(Z67:Z80) -> 0 | AE82: =SUM(AE67:AE80)+AE58 ->  | AG82: =SUM(AG67:AG80)+AG58 -> 
C83: TOTAL FILTRE 100% | U83: =SUM(U81:U82) ->  | V83: =U81+V82 ->  | W83: TOTAL : | Z83: =SUM(Z67:Z80)+Z59 ->  | AA83: =SUM(AA67:AA80)+AA59 ->  | AB83: =SUM(AB67:AB80)+AB59 ->  | AC83: =SUM(AC67:AC80)+AC58 ->  | AD83: =SUM(AD67:AE80)+AD59 ->  | AF83: =SUM(AF67:AF80)+AF59 -> 
A84: 24 | B84: Safety guard around filter | F84: o | G84: 304 | H84: 1 | J84: =Char!B92 -> 10500 | K84: =IF(G49="",'Séries 3-4-5'!$E$42,(VLOOKUP(G49,'Séries 3-4-5'!$D$26:$E$42,2,0))) -> 1.590909091 | L84: =I84*$L$65*H84 -> 0 | M84: =J84*$M$65*H84*K84 -> 16704.54545 | N84: ='Séries 3-4-5'!$I$3 -> 1 | O84: =(L84+M84)*N84 -> 16704.54545 | Q84: =P84*N84*$Q$7*H84 -> 0 | R84: =IF($F84="",$R$3,$S$3) -> 45 | S84: =Q84*R84 -> 0 | T84: =IF(F84="",$P$3,$Q$3) -> 1 | U84: =H84*(O84+S84)*T84 -> 16704.54545 | V84: =U84/2*1.1 -> 9187.5
A85: Engineering to be add to the filter price or with the accessories them self or in the item "Engineering and documentation"
B86: ETUDES :
A87: ENG | B87: Filtrate manifold | H87: 0 | L87: =I87*$L$65*H87 -> 0 | M87: =J87*$M$65*H87 -> 0 | N87: 1 | O87: =(L87+M87)*N87 -> 0 | P87: 50 | Q87: =P87*N87 -> 50 | R87: 44 | S87: =Q87*R87 -> 2200 | T87: =IF(F87="",$P$3,$Q$3) -> 1 | V87: =H87*(O87+S87)*T87 -> 0
A88: ENG | B88: Filtrate receiver | H88: 0 | L88: =I88*$L$65*H88 -> 0 | M88: =J88*$M$65*H88 -> 0 | N88: 1 | O88: =(L88+M88)*N88 -> 0 | P88: 30 | Q88: =P88*$Q$65*N88 -> 30 | R88: 44 | S88: =Q88*R88 -> 1320 | T88: =IF(F88="",$P$3,$Q$3) -> 1 | V88: =H88*(O88+S88)*T88 -> 0
A89: ENG | B89: Bac de récup. Anneau Liquid | H89: 0 | L89: =I89*$L$65*H89 -> 0 | M89: =J89*$M$65*H89 -> 0 | N89: 1 | O89: =(L89+M89)*N89 -> 0 | P89: 30 | Q89: =P89*$Q$65*N89 -> 30 | R89: 44 | S89: =Q89*R89 -> 1320 | T89: =IF(F89="",$P$3,$Q$3) -> 1 | V89: =H89*(O89+S89)*T89 -> 0
A90: ENG | B90: Bac de récup. Lavage Toile & Bande | H90: 0 | L90: =I90*$L$65*H90 -> 0 | M90: =J90*$M$65*H90 -> 0 | N90: 1 | O90: =(L90+M90)*N90 -> 0 | P90: 30 | Q90: =P90*$Q$65*N90 -> 30 | R90: 44 | S90: =Q90*R90 -> 1320 | T90: =IF(F90="",$P$3,$Q$3) -> 1 | V90: =H90*(O90+S90)*T90 -> 0
A91: ENG | B91: Cyclone | H91: 0 | L91: =I91*$L$65*H91 -> 0 | M91: =J91*$M$65*H91 -> 0 | N91: 1 | O91: =(L91+M91)*N91 -> 0 | P91: 30 | Q91: =P91*$Q$65*N91 -> 30 | R91: 44 | S91: =Q91*R91 -> 1320 | T91: =IF(F91="",$P$3,$Q$3) -> 1 | V91: =H91*(O91+S91)*T91 -> 0
A92: ENG | B92: Laveur de Gaz | H92: 0 | L92: 0 | M92: 0 | N92: 1 | O92: 0 | P92: 30 | Q92: 30 | R92: 44 | S92: 1320 | T92: 1 | V92: 0
A93: ENG | B93: Drip Pan | H93: 0 | L93: =I93*$L$65*H93 -> 0 | M93: =J93*$M$65*H93 -> 0 | N93: 1 | O93: =(L93+M93)*N93 -> 0 | P93: 30 | Q93: =P93*$Q$65*N93 -> 30 | R93: 44 | S93: =Q93*R93 -> 1320 | T93: =IF(F93="",$P$3,$Q$3) -> 1 | V93: =H93*(O93+S93)*T93 -> 0
A94: ENG | B94: Hotte | H94: 0 | L94: 0 | M94: 0 | N94: 1 | O94: 0 | P94: 80 | Q94: 80 | R94: 44 | S94: 3520 | T94: 1 | V94: 0
A95: ENG | B95: Lavage Acide ou Spé | H95: 0 | L95: 0 | M95: 0 | N95: 1 | O95: 0 | P95: 30 | Q95: 30 | R95: 44 | S95: 1320 | T95: 1 | V95: 0 | Z95: Prix longerons | AB95: longeur Nemaska (m) | AD95: Prix Nemaska | AF95: Prix au mètre
A96: ENG | B96: Etude Electrique | H96: 0 | L96: =I96*$L$65*H96 -> 0 | M96: =J96*$M$65*H96 -> 0 | N96: 1 | O96: =(L96+M96)*N96 -> 0 | P96: 0 | Q96: =P96*$Q$65*N96 -> 0 | R96: 44 | S96: =Q96*R96 -> 0 | T96: =IF(F96="",$P$3,$Q$3) -> 1 | V96: =H96*(O96+S96)*T96 -> 0 | AB96: 7 | AD96: 2300 | AF96: =AD96/AB96 -> 328.5714286
A97: ENG | B97: Engineering et documentation anglais | H97: 0 | L97: 0 | M97: 0 | N97: 1 | O97: 0 | P97: 200 | Q97: 200 | R97: 44 | S97: 8800 | T97: 1 | V97: 0 | AB97: ="longeur "&Calculations!C2&" (m)" -> longeur CARESTER (m) | AD97: ="Prix "&Calculations!C2 -> Prix CARESTER
A98: ENG | B98: documentation other linguage | H98: 0 | L98: 0 | M98: 0 | N98: 1 | O98: 0 | P98: 0 | Q98: 0 | R98: 44 | S98: 0 | T98: 1 | V98: 0 | AB98: =Calculations!G9/1000 -> 4 | AD98: =AB98*AF96*2 -> 2628.571429
A99: ENG | B99: Engineering globale process | H99: 0 | L99: 0 | M99: 0 | N99: 2 | O99: 0 | P99: 500 | Q99: 1000 | R99: 44 | S99: 44000 | T99: 1 | V99: 0
C100: TOTAL Engineering | T100: sub total | V100: =U100+SUM(V87:V99) -> 0
V101: =V83+V84+V100 -> 
A102: ACCESSORIES WILL HAVE TO BE CALCULATE ON THE BASIS OF UNIT PRICE AND ADAPTED TO THE NUMBER OF UNITS AND FILTERS | V102: =V101-U14+V14 -> 
A103: 21 | B103: Rouleau Presseur | E103: # | F103: o | H103: 0 | L103: =I103*$L$65*H103 -> 0 | M103: =J103*$M$65*H103 -> 0 | N103: ='Séries 3-4-5'!$I$3 -> 1 | O103: =(L103+M103)*N103 -> 0 | Q103: =P103*$Q$65*N103 -> 0 | R103: =IF($F103="",$R$3,$S$3) -> 45 | S103: =Q103*R103 -> 0 | T103: =IF(F103="",$P$3,$Q$3) -> 1 | U103: =(O103+S103)*T103*H103 -> 0
A105: 22 | B105: Floculateur (FEEDER) | E105: # | F105: o | H105: 0 | L105: =I105*$L$65*H105 -> 0 | M105: =J105*$M$65*H105 -> 0 | N105: ='Séries 3-4-5'!$I$3 -> 1 | O105: =(L105+M105)*N105 -> 0 | Q105: =P105*$Q$65*N105 -> 0 | R105: 45 | S105: =Q105*R105 -> 0 | T105: =IF(F105="",$P$3,$Q$3) -> 1 | U105: =(O105+S105)*T105*H105 -> 0
A107: 23 | B107: Manifold | D107: ='Manifold INOX'!L10 -> 65 | E107: # | F107: o | G107: SVR | H107: 1 | L107: =I107*$L$65*H107 -> 0 | M107: =J107*$M$65*H107 -> 0 | N107: ='Séries 3-4-5'!$I$3 -> 1 | O107: =(L107+M107)*N107 -> 0 | Q107: =P107*$Q$65*N107 -> 0 | R107: 45 | S107: =Q107*R107 -> 0 | T107: =IF(F107="",$P$3,$Q$3) -> 1 | U107: =(O107+S107)*T107*H107 -> 0
A109: 25 | B109: Outillage Spécial | C109: USWM | E109: # | F109: o | H109: 1 | J109: 6200 | L109: =I109*$L$65*H109 -> 0 | M109: =J109*$M$65*H109 -> 6200 | N109: 1 | O109: =(L109+M109)*N109 -> 6200 | Q109: =P109*$Q$65*N109 -> 0 | R109: 45 | S109: =Q109*R109 -> 0 | T109: =IF(F109="",$P$3,$Q$3) -> 1 | U109: =(O109+S109)*T109*H109 -> 6200
A111: 26 | B111: Fume hood | D111: 15 | E111: # | F111: o | G111: SS316L | H111: 0 | L111: =I111*$L$65*H111 -> 0 | M111: =J111*$M$65*H111 -> 0 | N111: ='Séries 3-4-5'!$I$3 -> 1 | O111: =(L111+M111)*N111 -> 0 | Q111: =P111*$Q$65*N111 -> 0 | R111: 45 | S111: =Q111*R111 -> 0 | T111: =IF(F111="",$P$3,$Q$3) -> 1 | U111: =(O111+S111)*T111*H111 -> 0
A113: 27 | B113: Rouleau Batteur | E113: # | F113: o | H113: 0 | L113: =I113*$L$65*H113 -> 0 | M113: =J113*$M$65*H113 -> 0 | N113: ='Séries 3-4-5'!$I$3 -> 1 | O113: =(L113+M113)*N113 -> 0 | Q113: =P113*$Q$65*N113 -> 0 | R113: 45 | S113: =Q113*R113 -> 0 | T113: =IF(F113="",$P$3,$Q$3) -> 1 | U113: =(O113+S113)*T113*H113 -> 0
A115: 28 | B115: Laveur de Toile Haute Pression | E115: # | F115: o | H115: 0 | L115: =I115*$L$65*H115 -> 0 | M115: =J115*$M$65*H115 -> 0 | N115: ='Séries 3-4-5'!$I$3 -> 1 | O115: =(L115+M115)*N115 -> 0 | Q115: =P115*$Q$65*N115 -> 0 | R115: 45 | S115: =Q115*R115 -> 0 | T115: =IF(F115="",$P$3,$Q$3) -> 1 | U115: =(O115+S115)*T115*H115 -> 0
A117: 29 | B117: Drip Pan (L du filtre) | D117: ='Séries 3-4-5'!L2 -> 2B5 | E117: # | F117: o | G117: SS316L | H117: =IF(Calculations!I30="Oui",1,0) -> 0 | L117: =I117*$L$65*H117 -> 0 | M117: =J117*$M$65*H117 -> 0 | N117: ='Séries 3-4-5'!$I$3 -> 1 | O117: =(L117+M117)*N117 -> 0 | Q117: =P117*$Q$65*N117 -> 0 | R117: 45 | S117: =Q117*R117 -> 0 | T117: =IF(F117="",$P$3,$Q$3) -> 1 | U117: =IF(H117=1,#REF!,0) -> 0
A119: 30 | B119: Vacuum pump & Motor | C119: 10500 | D119: 315 | E119: # | F119: o | G119: FT | H119: 1 | L119: =I119*$L$65*H119 -> 0 | M119: =J119*$M$65*H119 -> 0 | N119: ='Séries 3-4-5'!$I$3 -> 1 | O119: =(L119+M119)*N119 -> 0 | P119: 0 | Q119: =P119*$Q$65*N119 -> 0 | R119: 45 | S119: =Q119*R119 -> 0 | T119: =IF(F119="",$P$3,$Q$3) -> 1 | U119: =(O119+S119)*T119*H119 -> 0
A121: 31 | B121: Pompe à Filtrat | C121: K | D121: 90 | E121: # | F121: o | G121: SS316L | H121: 1 | L121: =I121*$L$65*H121 -> 0 | M121: =J121*$M$65*H121 -> 0 | N121: 4 | O121: =(L121+M121)*N121 -> 0 | P121: 0 | Q121: =P121*$Q$65*N121 -> 0 | R121: 45 | S121: =Q121*R121 -> 0 | T121: =IF(F121="",$P$3,$Q$3) -> 1 | U121: =(O121+S121)*T121*H121 -> 0
B122: Vanne + Instrumentration | E122: # | F122: o | H122: 0 | L122: =I122*$L$65*H122 -> 0 | M122: =J122*$M$65*H122 -> 0 | N122: 1 | O122: =(L122+M122)*N122 -> 0 | Q122: =P122*$Q$65*N122 -> 0 | R122: 45 | S122: =Q122*R122 -> 0 | T122: =IF(F122="",$P$3,$Q$3) -> 1 | U122: =(O122+S122)*T122*H122 -> 0
B123: Clapet anti - retour | E123: # | F123: o | H123: 0 | L123: =I123*$L$65*H123 -> 0 | M123: =J123*$M$65*H123 -> 0 | N123: 1 | O123: =(L123+M123)*N123 -> 0 | Q123: =P123*$Q$65*N123 -> 0 | R123: 45 | S123: =Q123*R123 -> 0 | T123: =IF(F123="",$P$3,$Q$3) -> 1 | U123: =(O123+S123)*T123*H123 -> 0
C124: Total | E124: # | F124: o | R124: 45 | U124: =SUM(U121:U123) -> 0
A126: 32 | B126: Bac de Pied Barométrique | D126: 2 | E126: # | F126: o | G126: PPH | H126: 0 | K126: 1.4 | L126: =I126*$L$66*H126 -> 0 | M126: =J126*K126 -> 0 | N126: 2 | O126: =(L126+M126)*N126 -> 0 | P126: 20 | Q126: =P126*$Q$66*N126 -> 0 | R126: 45 | S126: =Q126*R126 -> 0 | T126: =IF(F126="",$P$3,$Q$3) -> 1 | U126: =(O126+S126)*T126*H126 -> 0
B127: Level swicth E+H Liquifant | F127: o | H127: 0 | J127: 800 | L127: =I127*$L$66*H127 -> 0 | M127: =J127*$M$65*H127 -> 0 | N127: 1 | O127: =(L127+M127)*N127 -> 0 | P127: 0 | Q127: =P127*$Q$66*N127 -> 0 | R127: =IF($F127="",$R$3,$S$3) -> 45 | S127: =Q127*R127 -> 0 | T127: =IF(F127="",$P$3,$Q$3) -> 1 | U127: =(O127+S127)*T127*H127 -> 0
B128: Vanne flotteur | E128: # | F128: o | H128: 0 | J128: 1282 | L128: =I128*$L$66*H128 -> 0 | M128: =J128*$M$65*H128 -> 0 | N128: 1 | O128: =(L128+M128)*N128 -> 0 | P128: 0 | Q128: =P128*$Q$66*N128 -> 0 | R128: =IF($F128="",$R$3,$S$3) -> 45 | S128: =Q128*R128 -> 0 | T128: =IF(F128="",$P$3,$Q$3) -> 1 | U128: =(O128+S128)*T128*H128 -> 0
B129: Vanne DN 50 | E129: # | F129: o | H129: 0 | J129: 250 | L129: =I129*$L$66*H129 -> 0 | M129: =J129*$M$65*H129 -> 0 | N129: 1 | O129: =(L129+M129)*N129 -> 0 | P129: 0 | Q129: =P129*$Q$66*N129 -> 0 | R129: =IF($F129="",$R$3,$S$3) -> 45 | S129: =Q129*R129 -> 0 | T129: =IF(F129="",$P$3,$Q$3) -> 1 | U129: =(O129+S129)*T129*H129 -> 0
C130: Total | E130: # | F130: o | R130: =IF($F130="",$R$3,$S$3) -> 45 | U130: =SUM(U126:U129) -> 0
A132: 33 | B132: Station de Floculation | E132: # | F132: o | H132: 0 | L132: =I132*$L$65*H132 -> 0 | M132: =J132*$M$65*H132 -> 0 | N132: ='Séries 3-4-5'!$I$3 -> 1 | O132: =(L132+M132)*N132 -> 0 | Q132: =P132*$Q$65*N132 -> 0 | R132: 45 | S132: =Q132*R132 -> 0 | T132: =IF(F132="",$P$3,$Q$3) -> 1 | U132: =(O132+S132)*T132*H132 -> 0
A134: 34 | B134: Pompe de Lavage Toile & Bande | D134: 15 | F134: 0 | G134: SS316L | H134: 0 | L134: =I134*$L$66*H134 -> 0 | M134: =J134*$M$65*H134 -> 0 | N134: 2 | O134: =(L134+M134)*N134 -> 0 | P134: 0 | Q134: =P134*$Q$66*N134 -> 0 | R134: =IF($F134="",$R$3,$S$3) -> 45 | S134: =Q134*R134 -> 0 | T134: =IF(F134="",$P$3,$Q$3) -> 1 | U134: =(O134+S134)*T134*H134 -> 0
B135: Vanne + Instrumentration | E135: # | F135: o | H135: 0 | L135: =I135*$L$65*H135 -> 0 | M135: =J135*$M$65*H135 -> 0 | N135: 1 | O135: =(L135+M135)*N135 -> 0 | Q135: =P135*$Q$65*N135 -> 0 | R135: 45 | S135: =Q135*R135 -> 0 | T135: =IF(F135="",$P$3,$Q$3) -> 1 | U135: =(O135+S135)*T135*H135 -> 0
B136: Clapet anti - retour | E136: # | F136: o | H136: 0 | L136: =I136*$L$65*H136 -> 0 | M136: =J136*$M$65*H136 -> 0 | N136: 1 | O136: =(L136+M136)*N136 -> 0 | Q136: =P136*$Q$65*N136 -> 0 | R136: 45 | S136: =Q136*R136 -> 0 | T136: =IF(F136="",$P$3,$Q$3) -> 1 | U136: =(O136+S136)*T136*H136 -> 0
C137: Total | E137: # | F137: o | R137: 45 | U137: =SUM(U134:U136) -> 0
A139: 35 | B139: Bac récup. Anneau liquide 2 m3 | D139: 2 | E139: # | F139: o | G139: PPH | H139: 1 | K139: 1.4 | L139: =I139*$L$66*H139 -> 0 | M139: =J139*K139 -> 0 | N139: 2 | O139: =(L139+M139)*N139 -> 0 | P139: 0 | Q139: =P139*$Q$65*N139 -> 0 | R139: =IF($F139="",$R$3,$S$3) -> 45 | S139: =Q139*R139 -> 0 | T139: =IF(F139="",$P$3,$Q$3) -> 1 | U139: =(O139+S139)*T139*H139 -> 0
B140: Level swicth E+H Liquifant | F140: o | H140: 1 | J140: 800 | L140: =I140*$L$66*H140 -> 0 | M140: =J140*$M$65*H140 -> 800 | N140: 2 | O140: =(L140+M140)*N140 -> 1600 | P140: 0 | Q140: =P140*$Q$66*N140 -> 0 | R140: =IF($F140="",$R$3,$S$3) -> 45 | S140: =Q140*R140 -> 0 | T140: =IF(F140="",$P$3,$Q$3) -> 1 | U140: =(O140+S140)*T140*H140 -> 1600
B141: Vanne flotteur | E141: # | F141: o | H141: 1 | J141: 1282 | L141: =I141*$L$66*H141 -> 0 | M141: =J141*$M$65*H141 -> 1282 | N141: 2 | O141: =(L141+M141)*N141 -> 2564 | P141: 0 | Q141: =P141*$Q$66*N141 -> 0 | R141: =IF($F141="",$R$3,$S$3) -> 45 | S141: =Q141*R141 -> 0 | T141: =IF(F141="",$P$3,$Q$3) -> 1 | U141: =(O141+S141)*T141*H141 -> 2564
B142: Vanne DN50 | E142: # | F142: o | H142: 1 | J142: 250 | L142: =I142*$L$66*H142 -> 0 | M142: =J142*$M$65*H142 -> 250 | N142: 2 | O142: =(L142+M142)*N142 -> 500 | P142: 0 | Q142: =P142*$Q$66*N142 -> 0 | R142: =IF($F142="",$R$3,$S$3) -> 45 | S142: =Q142*R142 -> 0 | T142: =IF(F142="",$P$3,$Q$3) -> 1 | U142: =(O142+S142)*T142*H142 -> 500
C143: Total | E143: # | F143: o | R143: =IF($F143="",$R$3,$S$3) -> 45 | U143: =SUM(U139:U142) -> 4664
A145: 36 | B145: Pompe lavage gateau 1 | D145: 15 | F145: 0 | G145: SS316L | H145: 1 | L145: =I145*$L$66*H145 -> 0 | M145: =J145*$M$65*H145 -> 0 | N145: 2 | O145: =(L145+M145)*N145 -> 0 | P145: 0 | Q145: =P145*$Q$66*N145 -> 0 | R145: =IF($F145="",$R$3,$S$3) -> 45 | S145: =Q145*R145 -> 0 | T145: =IF(F145="",$P$3,$Q$3) -> 1 | U145: =(O145+S145)*T145*H145 -> 0
B146: Vanne + Instrumentration | E146: # | F146: o | H146: 0 | L146: =I146*$L$65*H146 -> 0 | M146: =J146*$M$65*H146 -> 0 | N146: 1 | O146: =(L146+M146)*N146 -> 0 | Q146: =P146*$Q$65*N146 -> 0 | R146: 45 | S146: =Q146*R146 -> 0 | T146: =IF(F146="",$P$3,$Q$3) -> 1 | U146: =(O146+S146)*T146*H146 -> 0
B147: Clapet anti - retour | E147: # | F147: o | H147: 0 | L147: =I147*$L$65*H147 -> 0 | M147: =J147*$M$65*H147 -> 0 | N147: 1 | O147: =(L147+M147)*N147 -> 0 | Q147: =P147*$Q$65*N147 -> 0 | R147: 45 | S147: =Q147*R147 -> 0 | T147: =IF(F147="",$P$3,$Q$3) -> 1 | U147: =(O147+S147)*T147*H147 -> 0
C148: Total | E148: # | F148: o | R148: 45 | U148: =SUM(U145:U147) -> 0
A150: 36 | B150: Pompe lavage gateau 2 | C150: Péristaltique | D150: 17 | F150: 0 | G150: PP | H150: 1 | L150: =I150*$L$66*H150 -> 0 | M150: =J150*$M$65*H150 -> 0 | N150: 2 | O150: =(L150+M150)*N150 -> 0 | P150: 0 | Q150: =P150*$Q$66*N150 -> 0 | R150: =IF($F150="",$R$3,$S$3) -> 45 | S150: =Q150*R150 -> 0 | T150: =IF(F150="",$P$3,$Q$3) -> 1 | U150: =(O150+S150)*T150*H150 -> 0
B151: Vanne + Instrumentration | E151: # | F151: o | H151: 0 | L151: =I151*$L$65*H151 -> 0 | M151: =J151*$M$65*H151 -> 0 | N151: 1 | O151: =(L151+M151)*N151 -> 0 | Q151: =P151*$Q$65*N151 -> 0 | R151: 45 | S151: =Q151*R151 -> 0 | T151: =IF(F151="",$P$3,$Q$3) -> 1 | U151: =(O151+S151)*T151*H151 -> 0
B152: Clapet anti - retour | E152: # | F152: o | H152: 0 | L152: =I152*$L$65*H152 -> 0 | M152: =J152*$M$65*H152 -> 0 | N152: 1 | O152: =(L152+M152)*N152 -> 0 | Q152: =P152*$Q$65*N152 -> 0 | R152: 45 | S152: =Q152*R152 -> 0 | T152: =IF(F152="",$P$3,$Q$3) -> 1 | U152: =(O152+S152)*T152*H152 -> 0
C153: Total | E153: # | F153: o | R153: 45 | U153: =SUM(U150:U152) -> 0
A155: 37 | B155: Bac récup. Lavage Toile & Bande | D155: 2 | E155: # | F155: o | G155: PPH | H155: 0 | K155: 1.4 | L155: =I155*$L$66*H155 -> 0 | M155: =J155*K155 -> 0 | N155: 2 | O155: =(L155+M155)*N155 -> 0 | P155: 20 | Q155: =P155*$Q$66*N155 -> 0 | R155: =IF($F155="",$R$3,$S$3) -> 45 | S155: =Q155*R155 -> 0 | T155: =IF(F155="",$P$3,$Q$3) -> 1 | U155: =(O155+S155)*T155*H155 -> 0
B156: Agitateur | F156: o | H156: 0 | L156: =I156*$L$66*H156 -> 0 | M156: =J156*$M$65*H156 -> 0 | N156: 1 | O156: =(L156+M156)*N156 -> 0 | P156: 0 | Q156: =P156*$Q$66*N156 -> 0 | R156: 45 | S156: =Q156*R156 -> 0 | T156: =IF(F156="",$P$3,$Q$3) -> 1 | U156: =(O156+S156)*T156*H156 -> 0
B157: Level swicth E+H Liquifant | F157: o | H157: 0 | J157: 800 | L157: =I157*$L$66*H157 -> 0 | M157: =J157*$M$65*H157 -> 0 | N157: 1 | O157: =(L157+M157)*N157 -> 0 | P157: 0 | Q157: =P157*$Q$66*N157 -> 0 | R157: 45 | S157: =Q157*R157 -> 0 | T157: =IF(F157="",$P$3,$Q$3) -> 1 | U157: =(O157+S157)*T157*H157 -> 0
B158: Vanne flotteur | E158: # | F158: o | H158: 0 | J158: 1282 | L158: =I158*$L$66*H158 -> 0 | M158: =J158*$M$65*H158 -> 0 | N158: 1 | O158: =(L158+M158)*N158 -> 0 | P158: 0 | Q158: =P158*$Q$66*N158 -> 0 | R158: 45 | S158: =Q158*R158 -> 0 | T158: =IF(F158="",$P$3,$Q$3) -> 1 | U158: =(O158+S158)*T158*H158 -> 0
B159: Vanne DN50 | E159: # | F159: o | H159: 0 | J159: 250 | L159: =I159*$L$66*H159 -> 0 | M159: =J159*$M$65*H159 -> 0 | N159: 1 | O159: =(L159+M159)*N159 -> 0 | P159: 0 | Q159: =P159*$Q$66*N159 -> 0 | R159: 45 | S159: =Q159*R159 -> 0 | T159: =IF(F159="",$P$3,$Q$3) -> 1 | U159: =(O159+S159)*T159*H159 -> 0
C160: Total | E160: # | F160: o | R160: 45 | U160: =SUM(U155:U159) -> 0
A162: 38 | B162: Lavage Acide ou Spécial | D162: ='Séries 3-4-5'!L1 -> B5 | E162: # | F162: o | G162: PPH | H162: 0 | I162: 675 | J162: 5800 | L162: =I162*$L$65*H162 -> 0 | M162: =J162*$M$65*H162 -> 0 | N162: ='Séries 3-4-5'!$I$3 -> 1 | O162: =(L162+M162)*N162 -> 0 | Q162: =P162*$Q$65*N162 -> 0 | R162: 45 | S162: =Q162*R162 -> 0 | T162: =IF(F162="",$P$3,$Q$3) -> 1 | U162: =(O162+S162)*T162*H162 -> 0
A164: 52 | B164: Automate - Armoire Electrique | E164: # | F164: o | H164: 1 | J164: 18750 | L164: =I164*$L$65*H164 -> 0 | M164: =J164*$M$65*H164 -> 18750 | N164: ='Séries 3-4-5'!$I$3 -> 1 | O164: =(L164+M164)*N164 -> 18750 | Q164: =P164*$Q$65*N164 -> 0 | R164: 45 | S164: =Q164*R164 -> 0 | T164: =IF(F164="",$P$3,$Q$3) -> 1 | U164: =(O164+S164)*T164*H164 -> 18750
A166: 53 | B166: Armoire Puissance | E166: # | F166: o | H166: 0 | L166: =I166*$L$65*H166 -> 0 | M166: =J166*$M$65*H166 -> 0 | N166: ='Séries 3-4-5'!$I$3 -> 1 | O166: =(L166+M166)*N166 -> 0 | Q166: =P166*$Q$65*N166 -> 0 | R166: 45 | S166: =Q166*R166 -> 0 | T166: =IF(F166="",$P$3,$Q$3) -> 1 | U166: =(O166+S166)*T166*H166 -> 0
A168: 54 | B168: Coffret de Commande Local | E168: # | F168: o | H168: 0 | L168: =I168*$L$65*H168 -> 0 | M168: =J168*$M$65*H168 -> 0 | N168: ='Séries 3-4-5'!$I$3 -> 1 | O168: =(L168+M168)*N168 -> 0 | Q168: =P168*$Q$65*N168 -> 0 | R168: 45 | S168: =Q168*R168 -> 0 | T168: =IF(F168="",$P$3,$Q$3) -> 1 | U168: =(O168+S168)*T168*H168 -> 0
A170: 61 | B170: Boite de Jonction Accessoires 1 | E170: # | F170: o | H170: 0 | L170: =I170*$L$65*H170 -> 0 | M170: =J170*$M$65*H170 -> 0 | N170: ='Séries 3-4-5'!$I$3 -> 1 | O170: =(L170+M170)*N170 -> 0 | Q170: =P170*$Q$65*N170 -> 0 | R170: 45 | S170: =Q170*R170 -> 0 | T170: =IF(F170="",$P$3,$Q$3) -> 1 | U170: =(O170+S170)*T170*H170 -> 0
A172: 62 | B172: Boite de Jonction Accessoires 2 | E172: # | F172: o | H172: 0 | L172: =I172*$L$65*H172 -> 0 | M172: =J172*$M$65*H172 -> 0 | N172: ='Séries 3-4-5'!$I$3 -> 1 | O172: =(L172+M172)*N172 -> 0 | Q172: =P172*$Q$65*N172 -> 0 | R172: 45 | S172: =Q172*R172 -> 0 | T172: =IF(F172="",$P$3,$Q$3) -> 1 | U172: =(O172+S172)*T172*H172 -> 0
A174: 69 | B174: Interconnextions - Chantier Electrique | E174: # | F174: o | H174: 1 | L174: =I174*$L$65*H174 -> 0 | M174: =J174*$M$65*H174 -> 0 | N174: ='Séries 3-4-5'!$I$3 -> 1 | O174: =(L174+M174)*N174 -> 0 | Q174: =P174*$Q$65*N174 -> 0 | R174: 45 | S174: =Q174*R174 -> 0 | T174: =IF(F174="",$P$3,$Q$3) -> 1 | U174: =(O174+S174)*T174*H174 -> 0
A176: 70 | B176: Ballon Séparateur 1 | C176: K | D176: =Calculations!E44 -> 500 | E176: # | F176: o | G176: =Calculations!C44 -> 304L | H176: =IF(Calculations!S31>0,1,0) -> 1 | J176: =IF(Calculations!D44="krogh",'Ballon Séparateur Flasqué'!G19,'Ballon Séparateur'!G19) -> 0 | L176: =I176*$L$65*H176 -> 0 | M176: =J176*$M$65*H176 -> 0 | N176: 1 | O176: =(L176+M176)*N176 -> 0 | P176: 0 | Q176: =P176*$Q$65*N176 -> 0 | R176: 45 | S176: =Q176*R176 -> 0 | T176: =IF(F176="",$P$3,$Q$3) -> 1 | U176: =(O176+S176)*T176*H176 -> 0
B177: Vanne | E177: # | F177: o | H177: 0 | L177: =I177*$L$65*H177 -> 0 | M177: =J177*$M$65*H177 -> 0 | N177: 1 | O177: =(L177+M177)*N177 -> 0 | Q177: =P177*$Q$65*N177 -> 0 | R177: 45 | S177: =Q177*R177 -> 0 | T177: =IF(F177="",$P$3,$Q$3) -> 1 | U177: =(O177+S177)*T177*H177 -> 0
B178: Level switch E+H liquifant | E178: # | F178: o | H178: =IF(H176=1,1,0) -> 1 | J178: 800 | L178: =I178*$L$65*H178 -> 0 | M178: =J178*$M$65*H178 -> 800 | N178: =N176*Calculations!P44 -> 1 | O178: =(L178+M178)*N178 -> 800 | Q178: =P178*$Q$65*N178 -> 0 | R178: 45 | S178: =Q178*R178 -> 0 | T178: =IF(F178="",$P$3,$Q$3) -> 1 | U178: =(O178+S178)*T178*H178 -> 800
B179: Vacuometre | E179: # | F179: o | H179: =IF(H176=1,1,0) -> 1 | J179: 300 | L179: =I179*$L$65*H179 -> 0 | M179: =J179*$M$65*H179 -> 300 | N179: =N176*Calculations!P44 -> 1 | O179: =(L179+M179)*N179 -> 300 | Q179: =P179*$Q$65*N179 -> 0 | R179: 45 | S179: =Q179*R179 -> 0 | T179: =IF(F179="",$P$3,$Q$3) -> 1 | U179: =(O179+S179)*T179*H179 -> 300
C180: Total | E180: # | F180: o | R180: 45 | U180: =SUM(U176:U179) -> 1100
A182: 71 | B182: Ballon Séparateur 2 | C182: BSB | D182: =Calculations!E44 -> 500 | E182: # | F182: o | G182: =Calculations!C44 -> 304L | H182: =IF(Calculations!S31>1,1,0) -> 1 | J182: =IF(Calculations!D44="krogh",'Ballon Séparateur Flasqué'!G19,'Ballon Séparateur'!G19) -> 0 | L182: =I182*$L$65*H182 -> 0 | M182: =J182*$M$65*H182 -> 0 | N182: 1 | O182: =(L182+M182)*N182 -> 0 | Q182: =P182*$Q$65*N182 -> 0 | R182: 45 | S182: =Q182*R182 -> 0 | T182: =IF(F182="",$P$3,$Q$3) -> 1 | U182: =(O182+S182)*T182*H182 -> 0
B183: Vanne | E183: # | F183: o | H183: 0 | L183: =I183*$L$65*H183 -> 0 | M183: =J183*$M$65*H183 -> 0 | N183: 1 | O183: =(L183+M183)*N183 -> 0 | Q183: =P183*$Q$65*N183 -> 0 | R183: 45 | S183: =Q183*R183 -> 0 | T183: =IF(F183="",$P$3,$Q$3) -> 1 | U183: =(O183+S183)*T183*H183 -> 0
B184: Level switch E+H liquifant | E184: # | F184: o | H184: =IF(H182=1,1,0) -> 1 | J184: 800 | L184: =I184*$L$65*H184 -> 0 | M184: =J184*$M$65*H184 -> 800 | N184: =N182*Calculations!P44 -> 1 | O184: =(L184+M184)*N184 -> 800 | Q184: =P184*$Q$65*N184 -> 0 | R184: 45 | S184: =Q184*R184 -> 0 | T184: =IF(F184="",$P$3,$Q$3) -> 1 | U184: =(O184+S184)*T184*H184 -> 800
B185: Vacuometre | E185: # | F185: o | H185: =IF(H182=1,1,0) -> 1 | J185: 300 | L185: =I185*$L$65*H185 -> 0 | M185: =J185*$M$65*H185 -> 300 | N185: =N182*Calculations!P44 -> 1 | O185: =(L185+M185)*N185 -> 300 | Q185: =P185*$Q$65*N185 -> 0 | R185: 45 | S185: =Q185*R185 -> 0 | T185: =IF(F185="",$P$3,$Q$3) -> 1 | U185: =(O185+S185)*T185*H185 -> 300
C186: Total | E186: # | F186: o | R186: 45 | U186: =SUM(U182:U185) -> 1100
A188: 72 | B188: Ballon Séparateur 3 | C188: BSK | D188: =Calculations!E44 -> 500 | E188: # | F188: o | G188: =Calculations!C44 -> 304L | H188: =IF(Calculations!S31>2,1,0) -> 1 | J188: =IF(Calculations!D44="krogh",'Ballon Séparateur Flasqué'!G19,'Ballon Séparateur'!G19) -> 0 | L188: =I188*$L$65*H188 -> 0 | M188: =J188*$M$65*H188 -> 0 | N188: 1 | O188: =(L188+M188)*N188 -> 0 | Q188: =P188*$Q$65*N188 -> 0 | R188: 45 | S188: =Q188*R188 -> 0 | T188: =IF(F188="",$P$3,$Q$3) -> 1 | U188: =(O188+S188)*T188*H188 -> 0
B189: Vanne | E189: # | F189: o | H189: 0 | L189: =I189*$L$65*H189 -> 0 | M189: =J189*$M$65*H189 -> 0 | N189: 1 | O189: =(L189+M189)*N189 -> 0 | Q189: =P189*$Q$65*N189 -> 0 | R189: 45 | S189: =Q189*R189 -> 0 | T189: =IF(F189="",$P$3,$Q$3) -> 1 | U189: =(O189+S189)*T189*H189 -> 0
B190: Level switch E+H liquifant | E190: # | F190: o | H190: =IF(H188=1,1,0) -> 1 | J190: 800 | L190: =I190*$L$65*H190 -> 0 | M190: =J190*$M$65*H190 -> 800 | N190: =N188*Calculations!P44 -> 1 | O190: =(L190+M190)*N190 -> 800 | Q190: =P190*$Q$65*N190 -> 0 | R190: 45 | S190: =Q190*R190 -> 0 | T190: =IF(F190="",$P$3,$Q$3) -> 1 | U190: =(O190+S190)*T190*H190 -> 800
B191: Vacuometre | E191: # | F191: o | H191: =IF(H188=1,1,0) -> 1 | J191: 300 | L191: =I191*$L$65*H191 -> 0 | M191: =J191*$M$65*H191 -> 300 | N191: =N188*Calculations!P44 -> 1 | O191: =(L191+M191)*N191 -> 300 | Q191: =P191*$Q$65*N191 -> 0 | R191: 45 | S191: =Q191*R191 -> 0 | T191: =IF(F191="",$P$3,$Q$3) -> 1 | U191: =(O191+S191)*T191*H191 -> 300
C192: Total | E192: # | F192: o | R192: 45 | U192: =SUM(U188:U191) -> 1100
A194: 73 | B194: Ballon Séparateur 4 | C194: BSK | D194: =Calculations!E44 -> 500 | E194: # | F194: o | G194: =Calculations!C44 -> 304L | H194: =IF(Calculations!S31>3,1,0) -> 0 | J194: =IF(Calculations!D44="krogh",'Ballon Séparateur Flasqué'!G19,'Ballon Séparateur'!G19) -> 0 | L194: =I194*$L$65*H194 -> 0 | M194: =J194*$M$65*H194 -> 0 | N194: 1 | O194: =(L194+M194)*N194 -> 0 | Q194: =P194*$Q$65*N194 -> 0 | R194: 45 | S194: =Q194*R194 -> 0 | T194: =IF(F194="",$P$3,$Q$3) -> 1 | U194: =(O194+S194)*T194*H194 -> 0
B195: Vanne | E195: # | F195: o | H195: 0 | L195: =I195*$L$65*H195 -> 0 | M195: =J195*$M$65*H195 -> 0 | N195: 1 | O195: =(L195+M195)*N195 -> 0 | Q195: =P195*$Q$65*N195 -> 0 | R195: 45 | S195: =Q195*R195 -> 0 | T195: =IF(F195="",$P$3,$Q$3) -> 1 | U195: =(O195+S195)*T195*H195 -> 0
B196: Level switch E+H liquifant | E196: # | F196: o | H196: =IF(H194=1,1,0) -> 0 | J196: 800 | L196: =I196*$L$65*H196 -> 0 | M196: =J196*$M$65*H196 -> 0 | N196: =Calculations!P44*'Cost list'!N194 -> 1 | O196: =(L196+M196)*N196 -> 0 | Q196: =P196*$Q$65*N196 -> 0 | R196: 45 | S196: =Q196*R196 -> 0 | T196: =IF(F196="",$P$3,$Q$3) -> 1 | U196: =(O196+S196)*T196*H196 -> 0
B197: Vacuometre | E197: # | F197: o | H197: =IF(H194=1,1,0) -> 0 | J197: 300 | L197: =I197*$L$65*H197 -> 0 | M197: =J197*$M$65*H197 -> 0 | N197: =Calculations!P44*'Cost list'!N194 -> 1 | O197: =(L197+M197)*N197 -> 0 | Q197: =P197*$Q$65*N197 -> 0 | R197: 45 | S197: =Q197*R197 -> 0 | T197: =IF(F197="",$P$3,$Q$3) -> 1 | U197: =(O197+S197)*T197*H197 -> 0
C198: Total | E198: # | F198: o | R198: 45 | U198: =SUM(U194:U197) -> 0
A200: 74 | B200: Ballon Séparateur 5 | C200: BSB | D200: =Calculations!E44 -> 500 | E200: # | F200: o | G200: =Calculations!C44 -> 304L | H200: =IF(Calculations!S31>4,1,0) -> 0 | J200: =IF(Calculations!D44="krogh",'Ballon Séparateur Flasqué'!G19,'Ballon Séparateur'!G19) -> 0 | L200: =I200*$L$65*H200 -> 0 | M200: =J200*$M$65*H200 -> 0 | N200: 1 | O200: =(L200+M200)*N200 -> 0 | Q200: =P200*$Q$65*N200 -> 0 | R200: 45 | S200: =Q200*R200 -> 0 | T200: =IF(F200="",$P$3,$Q$3) -> 1 | U200: =(O200+S200)*T200*H200 -> 0
B201: Vanne | E201: # | F201: o | H201: 0 | L201: =I201*$L$65*H201 -> 0 | M201: =J201*$M$65*H201 -> 0 | N201: 1 | O201: =(L201+M201)*N201 -> 0 | Q201: =P201*$Q$65*N201 -> 0 | R201: 45 | S201: =Q201*R201 -> 0 | T201: =IF(F201="",$P$3,$Q$3) -> 1 | U201: =(O201+S201)*T201*H201 -> 0
B202: Level switch E+H liquifant | E202: # | F202: o | H202: =IF(H200=1,1,0) -> 0 | J202: 800 | L202: =I202*$L$65*H202 -> 0 | M202: =J202*$M$65*H202 -> 0 | N202: =Calculations!P44*'Cost list'!N200 -> 1 | O202: =(L202+M202)*N202 -> 0 | Q202: =P202*$Q$65*N202 -> 0 | R202: 45 | S202: =Q202*R202 -> 0 | T202: =IF(F202="",$P$3,$Q$3) -> 1 | U202: =(O202+S202)*T202*H202 -> 0
B203: Vacuometre | E203: # | F203: o | H203: =IF(H200=1,1,0) -> 0 | J203: 300 | L203: =I203*$L$65*H203 -> 0 | M203: =J203*$M$65*H203 -> 0 | N203: =Calculations!P44*'Cost list'!N200 -> 1 | O203: =(L203+M203)*N203 -> 0 | Q203: =P203*$Q$65*N203 -> 0 | R203: 45 | S203: =Q203*R203 -> 0 | T203: =IF(F203="",$P$3,$Q$3) -> 1 | U203: =(O203+S203)*T203*H203 -> 0
C204: Total | E204: # | F204: o | R204: 45 | U204: =SUM(U200:U203) -> 0
A206: 75 | B206: Cyclone | D206: =Calculations!E46 -> 200 | E206: # | F206: o | G206: =Calculations!C46 -> 304L | H206: =IF(Calculations!C46="Exclu",0,1) -> 1 | J206: =#REF! ->  | L206: =I206*$L$65*H206 -> 0 | M206: =J206*$M$65*H206 ->  | N206: ='Séries 3-4-5'!$I$3 -> 1 | O206: =(L206+M206)*N206 ->  | Q206: =P206*$Q$65*N206 -> 0 | R206: 45 | S206: =Q206*R206 -> 0 | T206: =IF(F206="",$P$3,$Q$3) -> 1 | U206: =(O206+S206)*T206*H206 -> 
B207: Vanne | E207: # | F207: o | H207: 0 | L207: =I207*$L$65*H207 -> 0 | M207: =J207*$M$65*H207 -> 0 | N207: 1 | O207: =(L207+M207)*N207 -> 0 | Q207: =P207*$Q$65*N207 -> 0 | R207: 45 | S207: =Q207*R207 -> 0 | T207: =IF(F207="",$P$3,$Q$3) -> 1 | U207: =(O207+S207)*T207*H207 -> 0
B208: Vacuometre or transmitter E+H | E208: # | F208: o | H208: 0 | L208: =I208*$L$65*H208 -> 0 | M208: =J208*$M$65*H208 -> 0 | N208: 0 | O208: =(L208+M208)*N208 -> 0 | Q208: 0 | R208: 45 | S208: 0 | T208: =IF(F208="",$P$3,$Q$3) -> 1 | U208: =(O208+S208)*T208*H208 -> 0
C209: Total | E209: # | F209: o | R209: 45 | U209: =SUM(U206:U208) -> 
A211: 76 | B211: Laveur de Gaz | D211: =Calculations!E48 -> 200 | E211: # | F211: o | G211: =Calculations!C48 -> Exclu | H211: =IF(Calculations!C48="Exclu",0,1) -> 0 | J211: =#REF! ->  | L211: =I211*$L$65*H211 -> 0 | M211: =J211*$M$65*H211 ->  | N211: ='Séries 3-4-5'!$I$3 -> 1 | O211: =(L211+M211)*N211 ->  | Q211: 0 | R211: 45 | S211: 0 | T211: =IF(F211="",$P$3,$Q$3) -> 1 | U211: =(O211+S211)*T211*H211 -> 
B212: Sprayer | E212: # | F212: o | H212: 0 | L212: =I212*$L$65*H212 -> 0 | M212: =J212*$M$65*H212 -> 0 | N212: ='Séries 3-4-5'!$I$3 -> 1 | O212: =(L212+M212)*N212 -> 0 | Q212: 0 | R212: 45 | S212: 0 | T212: =IF(F212="",$P$3,$Q$3) -> 1 | U212: =(O212+S212)*T212*H212 -> 0
B213: Vanne | E213: # | F213: o | H213: 0 | L213: =I213*$L$65*H213 -> 0 | M213: =J213*$M$65*H213 -> 0 | N213: 1 | O213: =(L213+M213)*N213 -> 0 | Q213: =P213*$Q$65*N213 -> 0 | R213: 45 | S213: =Q213*R213 -> 0 | T213: =IF(F213="",$P$3,$Q$3) -> 1 | U213: =(O213+S213)*T213*H213 -> 0
B214: Débitmètre | E214: # | F214: o | H214: 0 | L214: =I214*$L$65*H214 -> 0 | M214: =J214*$M$65*H214 -> 0 | N214: 1 | O214: =(L214+M214)*N214 -> 0 | Q214: =P214*$Q$65*N214 -> 0 | R214: 45 | S214: =Q214*R214 -> 0 | T214: =IF(F214="",$P$3,$Q$3) -> 1 | U214: =(O214+S214)*T214*H214 -> 0
C215: Total | E215: # | F215: o | R215: 45 | U215: =SUM(U211:U214) -> 
A217: 77 | B217: Canne de Lavage de Gaz | D217: 200 | E217: # | F217: o | G217: SS316L | H217: 0 | L217: =I217*$L$65*H217 -> 0 | M217: =J217*$M$65*H217 -> 0 | N217: ='Séries 3-4-5'!$I$3 -> 1 | O217: =(L217+M217)*N217 -> 0 | Q217: =P217*$Q$65*N217 -> 0 | R217: 45 | S217: =Q217*R217 -> 0 | T217: =IF(F217="",$P$3,$Q$3) -> 1 | U217: =(O217+S217)*T217*H217 -> 0
A219: 79 | B219: Vis de Repulpage | D219: B30 | E219: # | F219: o | G219: SS316L | H219: 0 | L219: =I219*$L$65*H219 -> 0 | M219: =J219*$M$65*H219 -> 0 | N219: ='Séries 3-4-5'!$I$3 -> 1 | O219: =(L219+M219)*N219 -> 0 | Q219: =P219*$Q$65*N219 -> 0 | R219: 45 | S219: =Q219*R219 -> 0 | T219: =IF(F219="",$P$3,$Q$3) -> 1 | U219: =(O219+S219)*T219*H219 -> 0
A221: 80 | B221: Tauyauteries De Liaison | E221: # | F221: o | G221: SVR | H221: 1 | L221: =I221*$L$65*H221 -> 0 | M221: =J221*$M$65*H221 -> 0 | N221: ='Séries 3-4-5'!$I$3 -> 1 | O221: =(L221+M221)*N221 -> 0 | Q221: =P221*$Q$65*N221 -> 0 | R221: 45 | S221: =Q221*R221 -> 0 | T221: =IF(F221="",$P$3,$Q$3) -> 1 | U221: =(O221+S221)*T221*H221 -> 0
A223: 81 | B223: Passerelles | D223: ='Séries 3-4-5'!L2 -> 2B5 | E223: # | F223: o | H223: =IF(Calculations!I31="Avec caillebotis",1,IF(Calculations!I31="Sans caillebotis",1,0)) -> 0 | L223: =I223*$L$65*H223 -> 0 | M223: =J223*$M$65*H223 -> 0 | N223: ='Séries 3-4-5'!$I$3 -> 1 | O223: =(L223+M223)*N223 -> 0 | Q223: =P223*$Q$65*N223 -> 0 | R223: 45 | S223: =Q223*R223 -> 0 | T223: =IF(F223="",$P$3,$Q$3) -> 1 | U223: =IF(Calculations!I31="Avec caillebotis",#REF!,IF(Calculations!I31="Sans caillebotis",#REF!,0)) -> 0
A225: 82 | B225: Station d'HC Primaire | E225: # | F225: o | H225: 0 | L225: =I225*$L$65*H225 -> 0 | M225: =J225*$M$65*H225 -> 0 | N225: ='Séries 3-4-5'!$I$3 -> 1 | O225: =(L225+M225)*N225 -> 0 | Q225: =P225*$Q$65*N225 -> 0 | R225: 45 | S225: =Q225*R225 -> 0 | T225: =IF(F225="",$P$3,$Q$3) -> 1 | U225: =(O225+S225)*T225*H225 -> 0
A227: 83 | B227: Station d'HC Secondaire | E227: # | F227: o | H227: 0 | L227: =I227*$L$65*H227 -> 0 | M227: =J227*$M$65*H227 -> 0 | N227: ='Séries 3-4-5'!$I$3 -> 1 | O227: =(L227+M227)*N227 -> 0 | Q227: =P227*$Q$65*N227 -> 0 | R227: 45 | S227: =Q227*R227 -> 0 | T227: =IF(F227="",$P$3,$Q$3) -> 1 | U227: =(O227+S227)*T227*H227 -> 0
A229: 84 | B229: Filtre à Eau Lavage Toile & Bande | E229: # | F229: o | H229: 0 | L229: =I229*$L$65*H229 -> 0 | M229: =J229*$M$65*H229 -> 0 | N229: ='Séries 3-4-5'!$I$3 -> 1 | O229: =(L229+M229)*N229 -> 0 | Q229: =P229*$Q$65*N229 -> 0 | R229: 45 | S229: =Q229*R229 -> 0 | T229: =IF(F229="",$P$3,$Q$3) -> 1 | U229: =(O229+S229)*T229*H229 -> 0
G231: d/w | H231: pd/h | L231: car renting | N231: week | R231: external h. cost
B232: Supervisor | C232: erection | G232: 6 | H232: 10 | I232: 1 | N232: 3.5 | Q232: =G232*H232*N232*$Q$7 -> 210 | R232: 80 | S232: =Q232*R232 -> 16800 | T232: =IF(F232="",$P$3,$Q$3) -> 1 | U232: =(O232+S232)*T232 -> 16800
C233: hotel | G233: 7 | H233: 1 | J233: 120 | L233: 30 | N233: 3.5 | O233: =(J233+L233)*G233*H233*N233 -> 3675 | Q233: =P233*N233*$Q$7*H233 -> 0 | S233: =Q233*R233 -> 0 | T233: =IF(F233="",$P$3,$Q$3) -> 1 | U233: =(O233+S233)*T233 -> 3675
C234: travel | G234: 1 | H234: 1 | J234: 1200 | N234: 1 | O234: =(J234+L234)*G234*H234*N234 -> 1200 | Q234: =P234*N234*$Q$7*H234 -> 0 | S234: =Q234*R234 -> 0 | T234: =IF(F234="",$P$3,$Q$3) -> 1 | U234: =(O234+S234)*T234 -> 1200
L235: car renting | U235: =SUM(U232:U234) -> 21675
B236: Supervisor | C236: start up | G236: 6 | H236: 10 | I236: 1 | N236: 1 | Q236: =G236*H236*N236*$Q$7 -> 60 | R236: 80 | S236: =Q236*R236 -> 4800 | T236: =IF(F236="",$P$3,$Q$3) -> 1 | U236: =(O236+S236)*T236 -> 4800
C237: hotel | G237: 7 | H237: 1 | J237: 120 | L237: 30 | N237: 1 | O237: =(J237+L237)*G237*H237*N237 -> 1050 | Q237: =P237*N237*$Q$7*H237 -> 0 | S237: =Q237*R237 -> 0 | T237: =IF(F237="",$P$3,$Q$3) -> 1 | U237: =(O237+S237)*T237 -> 1050
C238: travel | G238: 1 | H238: 1 | J238: 1200 | N238: 1 | O238: =(J238+L238)*G238*H238*N238 -> 1200 | Q238: =P238*N238*$Q$7*H238 -> 0 | S238: =Q238*R238 -> 0 | T238: =IF(F238="",$P$3,$Q$3) -> 1 | U238: =(O238+S238)*T238 -> 1200
... 12 more rows

Sheet Cost List2.xls
N1: Managed your cost
O2: French GM | P2: (Local) GM | Q2: French Hour cost | R2: (local) Hour cost | T2: Coef Chine (interco) | U2: 1.35
A3: N° DU DEVIS : | B3: ='Série 2'!E1 -> 726789-rev4 | C3: ="- "&'Série 2'!B6&"B"&('Série 2'!B5/100) -> - 2B5 | F3: Client | H3: ='Série 2'!H1 -> CARESTER | L3: ='Série 2'!B10 -> RIGHT | N3: 1 | O3: 1 | P3: 1 | Q3: 60 | R3: 45 | S3: Rev. | T3: 0 | Z3: detail of cost sharing France / local
A4: Ph. LE BIGOT => | B4: ='Série 2'!E2 -> T. DUBRULLE | D4: local basic | E4: For | F4: Surface : | H4: ='Série 2'!B6 -> 2 | I4: Largeur | K4: ='Série 2'!B5 -> 500 | L4: Spécifications | N4: =CONCATENATE(F11,"+",F29,"+",F13,"+","T",C14,"+",G33,"G","+",C50,"KW","+",G51,"VF") -> 304L+304L+EPDM+T70+3G+0,37KW+1VF | T4: 2005-08-11 | Y4: French | Z4: Local | AA4: French | AB4: Local | AC4: French | AD4: Local | AE4: French | AF4: Local
C5: data | E5: local | H5: Material | I5: Buyout | J5: Corrective | K5: Updated | L5: Buyout | N5: Total (1) Material + buyout | O5: Labour | P5: Labour | R5: Total (2) | T5: Final cost without Engineering | U5: Final cost including engineering | W5: data | Y5: incl 1,149 | Z5: incl. 1,149 | AA5: Total (1) Material + buyout | AB5: Total (1) Material + buyout | AC5: Labour | AD5: Labour | AE5: Total (2) | AF5: Total (2)
A6: Désignation | C6: Spéc | E6: fill the | F6: Mat | G6: Qty | H6: Unit cost | I6: Unit cost | J6: factor | K6: material | M6: Qty | O6: Unit | P6: Total | Q6: Taux | R6: Labour | S6: Marg | V6: Désignation | W6: Spéc | X6: =F6 -> Mat | Y6: France | Z6: Local | AC6: Total | AD6: Total | AE6: labour | AF6: labour
C7: Dia. | E7: cell | F7: Spec | L7: 1 | P7: 1 | W7: Dia. | Y7: no engineering | AC7: hours | AD7: hours | AE7: cost | AF7: cost
A8: filter engineering basic | G8: 1 | I8: 11500 | K8: =H8*$K$65 -> 0 | L8: =I8*$L$7 -> 11500 | M8: 1 | N8: =(K8+L8)*M8 -> 11500 | O8: 80 | P8: =O8*M8 -> 80 | Q8: 44 | R8: =P8*Q8 -> 3520 | S8: =IF($E8="",$O$3,$P$3) -> 1 | V8: =A8 -> filter engineering basic | W8: =C8 -> 0 | X8: =F8 -> 0 | Y8: =T8 -> 0 | AA8: =N8 -> 11500 | AC8: =P8 -> 80 | AE8: =R8 -> 3520
A9: customisazion second filter and following | G9: 1 | I9: 3400 | K9: =H9*$K$65 -> 0 | L9: =I9*$L$7 -> 3400 | M9: ='Série 2'!$I$2-1 -> 0 | N9: =(K9+L9)*M9 -> 0 | O9: =IF(M9>0.5,40,0) -> 0 | P9: =O9*M9 -> 0 | Q9: 44 | R9: =P9*Q9 -> 0 | S9: =IF($E9="",$O$3,$P$3) -> 1 | T9: =(N9+R9)*S9 -> 0 | U9: =(R9)*S9 -> 0 | V9: customisazion second filter and following | W9: 0 | X9: =F9 -> 0 | Y9: =T9 -> 0 | Z9: =IF(E9="","",T9) ->  | AA9: =IF($E9="",N9,"") -> 0 | AB9: =IF($E9="","",N9) ->  | AC9: =IF($E9="",P9,"") -> 0 | AD9: =IF($E9="","",P9) ->  | AE9: =IF($E9="",R9,"") -> 0 | AF9: =IF($E9="","",R9) -> 
A10: other customisazion | G10: 0 | K10: =H10*$K$65 -> 0 | L10: =I10*$L$7 -> 0 | M10: ='Série 2'!$I$2 -> 1 | N10: =(K10+L10)*M10 -> 0 | O10: 0 | P10: =O10*M10 -> 0 | Q10: 44 | R10: =P10*Q10 -> 0 | S10: =IF($E10="",$O$3,$P$3) -> 1 | T10: =(N10)*S10 -> 0 | U10: =(R10)*S10 -> 0 | V10: other customisazion | W10: 0 | X10: 0 | Y10: =T10 -> 0 | Z10: =IF(E10="","",T10) ->  | AA10: =IF($E10="",N10,"") -> 0 | AB10: =IF($E10="","",N10) ->  | AC10: =IF($E10="",P10,"") -> 0 | AD10: =IF($E10="","",P10) ->  | AE10: =IF($E10="",R10,"") -> 0 | AF10: =IF($E10="","",R10) -> 
A11: frame incl. belt support steel beam | C11: =Char2!I27&" kg" -> 837 kg | D11: # | E11: o | F11: ='Série 2'!B16 -> 304L | G11: 1 | H11: =(HLOOKUP(F11,Char2!J6:N27,22,0))/6.55957 -> 2791.41773 | I11: =VLOOKUP(F11,Char2!A87:B90,2,0)/6.55957 -> 3811.225431 | J11: =IF(F11="",'Série 2'!$E$42,(VLOOKUP(F11,'Série 2'!$D$26:$E$42,2,0))) -> 1.590909091 | K11: =H11*J11 -> 4440.891843 | L11: =I11*$L$7 -> 3811.225431 | M11: ='Série 2'!$I$2 -> 1 | N11: =(K11+L11)*M11 -> 8252.117274 | O11: =Char2!O27 -> 245.3 | P11: =O11*M11*$P$7 -> 245.3 | Q11: =IF($E11="",$Q$3,$R$3) -> 45 | R11: =P11*Q11 -> 11038.5 | S11: =IF($E11="",$O$3,$P$3) -> 1 | T11: =(([35]CHASSIS!$J$28+3000)/U2)*1.136 -> 7386.524444 | V11: frame incl. belt support steel beam | W11: 837 kg | X11: 304L | Y11: =IF(E11="",T11,"") ->  | Z11: =IF(E11="","",T11) -> 7386.524444 | AA11: =IF($E11="",N11,"") ->  | AB11: =IF($E11="","",N11) -> 8252.117274 | AC11: =IF($E11="",P11,"") ->  | AD11: =IF($E11="","",P11) -> 245.3 | AE11: =IF($E11="",R11,"") ->  | AF11: =IF($E11="","",R11) -> 11038.5
A12: wear belt and plastic rail | C12: ='Série 2'!B17 -> DUNL | E12: 0 | F12: PLAS | G12: =LOOKUP(K4,Tabl2!A20:A43,Tabl2!B20:B43) -> 4 | H12: =(IF('Série 2'!B84=0,0,HLOOKUP(K4,Tabl2!I7:K12,6,0)))/6.55957 -> 0 | I12: =(HLOOKUP($C$12,Tabl2!$C$7:$G$20,12,0))/6.55957 -> 851.2143326 | J12: =IF(F12="",'Série 2'!$E$42,(VLOOKUP(F12,'Série 2'!$D$26:$E$42,2,0))) -> 1.3 | K12: =H12*J12 -> 0 | L12: =I12*$L$7 -> 851.2143326 | M12: ='Série 2'!$I$2 -> 1 | N12: =(K12+L12)*M12 -> 851.2143326 | O12: =HLOOKUP($C$12,Tabl2!$C$7:$G$20,13,0)+Tabl2!J14 -> 25.3 | P12: =O12*M12*$P$7 -> 25.3 | Q12: =IF($E12="",$Q$3,$R$3) -> 45 | R12: 1138.5 | S12: =IF(E12="",$O$3,$P$3) -> 1 | T12: =(N12+R12)*S12*0.8 -> 1591.771466 | V12: wear belt and plastic rail | W12: DUNL | X12: PLAS | Y12: =IF(E12="",T12,"") ->  | Z12: =IF(E12="","",T12) -> 1591.771466 | AA12: =IF($E12="",N12,"") ->  | AB12: =IF($E12="","",N12) -> 851.2143326 | AC12: =IF($E12="",P12,"") ->  | AD12: =IF($E12="","",P12) -> 25.3 | AE12: =IF($E12="",R12,"") ->  | AF12: =IF($E12="","",R12) -> 1138.5
A13: rubber belt + grooving + pinching | F13: ='Série 2'!B18 -> EPDM | G13: 1 | I13: =(VLOOKUP(F13,Band2!A25:H27,8,0)) -> 8609.4 | J13: =IF(F13="",'Série 2'!$E$42,(VLOOKUP(F13,'Série 2'!$D$26:$E$42,2,0))) -> 1.05 | K13: 0 | L13: 8609.4 | M13: ='Série 2'!$I$2 -> 1 | N13: 8609.4 | O13: =HLOOKUP(K4,Band2!B16:M30,15,0) -> 28.98 | P13: 28.98 | Q13: 60 | R13: 1738.8 | S13: 1 | T13: =[35]BANDE!$I$3+[35]BANDE!$J$3+1000 -> 19240 | V13: rubber belt + grooving + pinching | W13: 0 | X13: EPDM | Y13: 19240 | AA13: 8609.4 | AC13: 28.98 | AE13: 1738.8
A14: edge curb | C14: ='Série 2'!B19 -> 70 | F14: ='Série 2'!B20 -> EPDM | G14: 1 | I14: =(HLOOKUP(K4,Band2!B16:M29,IF(C14=Band2!A28,13,14),0))/6.55957 -> 1716.777167 | J14: =IF(F14="",'Série 2'!$E$42,(VLOOKUP(F14,'Série 2'!$D$26:$E$42,2,0))) -> 1.05 | K14: 0 | L14: 1716.777167 | M14: ='Série 2'!$I$2 -> 1 | N14: 1716.777167 | O14: 0 | P14: 0 | Q14: 60 | R14: 0 | S14: 1 | T14: =SUM([36]TALONS!$O$3:$O$5/2)*1.1 -> 2736.162 | V14: edge curb | W14: 70 | X14: EPDM | Y14: 2736.162 | AA14: 1716.777167 | AC14: 0 | AE14: 0
A15: ="drive pulley"&" "&'Série 2'!$B$22 -> drive pulley SBR | C15: ='Série 2'!$B$7 -> 630 | D15: # | E15: o | G15: 1 | H15: =(HLOOKUP($K$4,Tamb2!$B$3:$M$9,2,0))/6.55957 -> 152.4490172 | I15: =(HLOOKUP($K$4,Tamb2!$B$3:$M$9,3,0))/6.55957 -> 897.9247115 | J15: =IF(F15="",'Série 2'!$E$42,(VLOOKUP(F15,'Série 2'!$D$26:$E$42,2,0))) -> 1.3 | K15: 198.1837224 | L15: 897.9247115 | M15: ='Série 2'!$I$2 -> 1 | N15: 1096.108434 | O15: =HLOOKUP($K$4,Tamb2!$B$3:$M$9,6,0) -> 32 | P15: 32 | Q15: 45 | R15: 1440 | S15: 1 | T15: =('[35]TAMBOURS & ROULEAUX'!$R$5/U2)*1.136 -> 4544 | V15: drive pulley SBR | W15: 630 | X15: 0 | Z15: 4544 | AB15: 1096.108434 | AD15: 32 | AF15: 1440
A16: ="idler pulley"&" "&'Série 2'!$B$22 -> idler pulley SBR | C16: ='Série 2'!$B$7 -> 630 | D16: # | E16: o | G16: 1 | H16: =(HLOOKUP($K$4,Tamb2!$B$3:$M$9,4,0))/6.55957 -> 106.7143121 | I16: =(HLOOKUP($K$4,Tamb2!$B$3:$M$9,5,0))/6.55957 -> 708.8879302 | J16: =IF(F16="",'Série 2'!$E$42,(VLOOKUP(F16,'Série 2'!$D$26:$E$42,2,0))) -> 1.3 | K16: 138.7286057 | L16: 708.8879302 | M16: ='Série 2'!$I$2 -> 1 | N16: 847.6165358 | O16: =HLOOKUP($K$4,Tamb2!$B$3:$M$9,7,0) -> 28 | P16: 28 | Q16: 45 | R16: 1260 | S16: 1 | T16: =('[35]TAMBOURS & ROULEAUX'!$R$4/U2)*1.136 -> 4219.188148 | V16: idler pulley SBR | W16: 630 | X16: 0 | Z16: 4219.188148 | AB16: 847.6165358 | AD16: 28 | AF16: 1260
A17: pulleys bearing | G17: 1 | I17: =(HLOOKUP($K$4,Tamb2!$B$3:$M$10,8,0))/6.55957 -> 487.8368552 | J17: =IF(F17="",'Série 2'!$E$42,(VLOOKUP(F17,'Série 2'!$D$26:$E$42,2,0))) -> 1.3 | K17: 0 | L17: 487.8368552 | M17: ='Série 2'!$I$2 -> 1 | N17: 487.8368552 | O17: 5 | P17: 5 | Q17: 60 | R17: 300 | S17: 1 | T17: =(N17+R17)*S17*1.1 -> 866.6205407 | V17: pulleys bearing | W17: 0 | X17: 0 | Y17: 866.6205407 | AA17: 487.8368552 | AC17: 5 | AE17: 300
A18: belt guide rollers | G18: ='Série 2'!B23 -> 6 | I18: =(136*G18)/6.55957 -> 124.3983981 | J18: =IF(F18="",'Série 2'!$E$42,(VLOOKUP(F18,'Série 2'!$D$26:$E$42,2,0))) -> 1.3 | K18: 0 | L18: 124.3983981 | M18: ='Série 2'!$I$2 -> 1 | N18: 124.3983981 | P18: 0 | Q18: 60 | R18: 0 | S18: 1 | T18: =50*G18 -> 300 | V18: belt guide rollers | W18: 0 | X18: 0 | Y18: 300 | AA18: 124.3983981 | AC18: 0 | AE18: 0
A19: belt support rollers | C19: ='Série 2'!B24 -> 219 | D19: # | E19: o | F19: ='Série 2'!B25 -> 304L | G19: ='Série 2'!B26 -> 3 | H19: =((INDEX(Roul2!H5:AK9,MATCH(C19,Roul2!H6:H9,0)+1,MATCH(K4&F19,Roul2!I5:AK5,0)+1))*G19)/6.55957 -> 268.8743317 | I19: =((INDEX(Roul2!H10:AK14,MATCH(C19,Roul2!H11:H14,0)+1,MATCH(K4&F19,Roul2!I10:AK10,0)+1))*G19)/6.55957 -> 6.860205776 | J19: =IF(F19="",'Série 2'!$E$42,(VLOOKUP(F19,'Série 2'!$D$26:$E$42,2,0))) -> 1.590909091 | K19: 427.7546186 | L19: 6.860205776 | M19: ='Série 2'!$I$2 -> 1 | N19: 434.6148244 | O19: =(LOOKUP(C19,Roul2!$G$45:$G$51,Roul2!$H$45:$H$51))*G19 -> 21 | P19: 21 | Q19: 45 | R19: 945 | S19: 1 | T19: =(('[35]TAMBOURS & ROULEAUX'!$R$20/U2)*G19)*1.136 -> 1315.235556 | V19: belt support rollers | W19: 219 | X19: 304L | Z19: 1315.235556 | AB19: 434.6148244 | AD19: 21 | AF19: 945
A20: cloth support roller type 1 | C20: ='Série 2'!B27 -> 60 | D20: # | E20: o | F20: ='Série 2'!B28 -> 304L | G20: ='Série 2'!B29 -> 8 | H20: =((INDEX(Roul2!H15:AK20,MATCH(C20,Roul2!H16:H20,0)+1,MATCH(K4&F20,Roul2!I15:AK15,0)+1))*G20)/6.55957 -> 345.1201832 | I20: =((INDEX(Roul2!H21:AK26,MATCH(C20,Roul2!H22:H26,0)+1,MATCH(K4&F20,Roul2!I21:AK21,0)+1))*G20)/6.55957 -> 18.29388207 | J20: =IF(F20="",'Série 2'!$E$42,(VLOOKUP(F20,'Série 2'!$D$26:$E$42,2,0))) -> 1.590909091 | K20: 549.0548369 | L20: 18.29388207 | M20: ='Série 2'!$I$2 -> 1 | N20: 567.348719 | O20: =(LOOKUP(C20,Roul2!$G$45:$G$51,Roul2!$H$45:$H$51))*G20 -> 28 | P20: 28 | Q20: 45 | R20: 1260 | S20: 1 | T20: =(('[35]TAMBOURS & ROULEAUX'!$R$21/U2)*G20)*1.136 -> 2208.047407 | V20: cloth support roller type 1 | W20: 60 | X20: 304L | Z20: 2208.047407 | AB20: 567.348719 | AD20: 28 | AF20: 1260
A21: cloth support roller type 2 | C21: ='Série 2'!B30 -> 60 | D21: # | E21: o | F21: ='Série 2'!B31 -> 304L | G21: ='Série 2'!B32 -> 2 | H21: =(IF(G21=0,0,(INDEX(Roul2!H15:AK20,MATCH(C21,Roul2!H16:H20,0)+1,MATCH(K4&F21,Roul2!I15:AK15,0)+1))*G21))/6.55957 -> 86.2800458 | I21: =(IF(G21=0,0,(INDEX(Roul2!H21:AK26,MATCH(C21,Roul2!H22:H26,0)+1,MATCH(K4&F21,Roul2!I21:AK21,0)+1))*G21))/6.55957 -> 4.573470517 | J21: =IF(F21="",'Série 2'!$E$42,(VLOOKUP(F21,'Série 2'!$D$26:$E$42,2,0))) -> 1.590909091 | K21: 137.2637092 | L21: 4.573470517 | M21: ='Série 2'!$I$2 -> 1 | N21: 141.8371797 | O21: =IF(G21=0,0,(LOOKUP(C21,Roul2!$G$45:$G$51,Roul2!$H$45:$H$51))*G21) -> 7 | P21: 7 | Q21: 45 | R21: 315 | S21: 1 | T21: =(('[35]TAMBOURS & ROULEAUX'!$R$21/U2)*G21)*1.136 -> 552.0118519 | V21: cloth support roller type 2 | W21: 60 | X21: 304L | Z21: 552.0118519 | AB21: 141.8371797 | AD21: 7 | AF21: 315
A22: cloth discharge end support roller | C22: ='Série 2'!B33 -> 60 | D22: # | E22: o | F22: ='Série 2'!B34 -> 304L | G22: ='Série 2'!B35 -> 1 | H22: =((INDEX(Roul2!H15:AK20,MATCH(C22,Roul2!H16:H20,0)+1,MATCH(K4&F22,Roul2!I15:AK15,0)+1))*G22)/6.55957 -> 43.1400229 | I22: =((INDEX(Roul2!H21:AK26,MATCH(C22,Roul2!H22:H26,0)+1,MATCH(K4&F22,Roul2!I21:AK21,0)+1))*G22)/6.55957 -> 2.286735259 | J22: =IF(F22="",'Série 2'!$E$42,(VLOOKUP(F22,'Série 2'!$D$26:$E$42,2,0))) -> 1.590909091 | K22: 68.63185461 | L22: 2.286735259 | M22: ='Série 2'!$I$2 -> 1 | N22: 70.91858987 | O22: =(LOOKUP(C22,Roul2!$G$45:$G$51,Roul2!$H$45:$H$51))*G22 -> 3.5 | P22: 3.5 | Q22: 45 | R22: 157.5 | S22: 1 | T22: =(('[35]TAMBOURS & ROULEAUX'!$R$21/U2)*G22)*1.136 -> 276.0059259 | V22: cloth discharge end support roller | W22: 60 | X22: 304L | Z22: 276.0059259 | AB22: 70.91858987 | AD22: 3.5 | AF22: 157.5
A23: cake discharge roller | C23: ='Série 2'!B36 -> 60 | D23: # | E23: o | F23: ='Série 2'!B37 -> 304L | G23: ='Série 2'!B38 -> 1 | H23: =((INDEX(Roul2!H15:AK20,MATCH(C23,Roul2!H16:H20,0)+1,MATCH(K4&F23,Roul2!I15:AK15,0)+1))*G23)/6.55957 -> 43.1400229 | I23: =(INDEX(Roul2!H40:AK42,MATCH(C23,Roul2!H41:H42,0)+1,MATCH(K4&F23,Roul2!M40:AK40,0)+5))*G23/6.55957 -> 57.16838146 | J23: =IF(F23="",'Série 2'!$E$42,(VLOOKUP(F23,'Série 2'!$D$26:$E$42,2,0))) -> 1.590909091 | K23: 68.63185461 | L23: 57.16838146 | M23: ='Série 2'!$I$2 -> 1 | N23: 125.8002361 | O23: =(LOOKUP(C23,Roul2!$G$45:$G$51,Roul2!$H$45:$H$51))*G23 -> 3.5 | P23: 3.5 | Q23: 45 | R23: 157.5 | S23: 1 | T23: =(('[35]TAMBOURS & ROULEAUX'!$R$21/U2)*G23)*1.136 -> 276.0059259 | V23: cake discharge roller | W23: 60 | X23: 304L | Z23: 276.0059259 | AB23: 125.8002361 | AD23: 3.5 | AF23: 157.5
A24: entrance / cloth form roller | C24: ='Série 2'!B42 -> 219 | D24: # | E24: o | F24: ='Série 2'!B43 -> 304L | G24: ='Série 2'!B44 -> 1 | H24: =((INDEX(Roul2!H27:AK30,MATCH(C24,Roul2!H28:H30,0)+1,MATCH(K4&F24,Roul2!I27:AK27,0)+1))*G24)/6.55957 -> 219.1454623 | I24: =((INDEX(Roul2!H31:AK34,MATCH(C24,Roul2!H32:H34,0)+1,MATCH(K4&F24,Roul2!I31:AK31,0)+1))*G24)/6.55957 -> 2.286735259 | J24: =IF(F24="",'Série 2'!$E$42,(VLOOKUP(F24,'Série 2'!$D$26:$E$42,2,0))) -> 1.590909091 | K24: 348.6405082 | L24: 2.286735259 | M24: ='Série 2'!$I$2 -> 1 | N24: 350.9272434 | O24: =(LOOKUP(C24,Roul2!$G$45:$G$51,Roul2!$H$45:$H$51))*G24 -> 7 | P24: 7 | Q24: 45 | R24: 315 | S24: 1 | T24: =((1000/U2)*G24)*1.136 -> 841.4814815 | V24: entrance / cloth form roller | W24: 219 | X24: 304L | Z24: 841.4814815 | AB24: 350.9272434 | AD24: 7 | AF24: 315
A25: roller bearing | E25: 0 | G25: ='Série 2'!B45 -> 30 | I25: =((IF(K4<4000,G25*270,(G19*326+(G20+G21+G22+G23+#REF!)*270)*2)))/6.55957 -> 1234.83704 | J25: =IF(F25="",'Série 2'!$E$42,(VLOOKUP(F25,'Série 2'!$D$26:$E$42,2,0))) -> 1.3 | K25: 0 | L25: 1234.83704 | M25: ='Série 2'!$I$2 -> 1 | N25: 1234.83704 | O25: =G25*0.15 -> 4.5 | P25: 4.5 | Q25: 45 | R25: 202.5 | S25: 1 | T25: =(N25+R25)*S25 -> 1437.33704 | V25: roller bearing | W25: 0 | X25: 0 | Z25: 1437.33704 | AB25: 1234.83704 | AD25: 4.5 | AF25: 202.5
E26: 0 | J26: =IF(F26="",'Série 2'!$E$42,(VLOOKUP(F26,'Série 2'!$D$26:$E$42,2,0))) -> 1.3 | K26: 0 | Q26: 45 | S26: 1 | T26: 0 | V26: 0 | W26: 0 | X26: 0 | Z26: 0 | AB26: 0 | AD26: 0 | AF26: 0
A27: cloth guiding device | E27: 0 | F27: ='Série 2'!B16 -> 304L | G27: 1 | H27: =IF(F27="E24",0,(INDEX(Char2!A60:P64,MATCH(F27,Char2!A61:A64,0)+1,MATCH(K4,Char2!B60:P60,0)+1))/6.55957) -> 91.46941034 | I27: =IF(F27="E24",Char2!C65/6.56,Char2!C66/6.56) -> 736.2804878 | J27: =IF(F27="",'Série 2'!$E$42,(VLOOKUP(F27,'Série 2'!$D$26:$E$42,2,0))) -> 1.590909091 | K27: 145.5195165 | L27: 736.2804878 | M27: ='Série 2'!$I$2 -> 1 | N27: 881.8000043 | O27: =IF(F27="E24",0,Char2!C67) -> 40 | P27: 40 | Q27: 45 | R27: 1800 | S27: 1 | T27: 2681.800004 | V27: cloth guiding device | W27: 0 | X27: 304L | Z27: 2681.800004 | AB27: 881.8000043 | AD27: 40 | AF27: 1800
A28: cloth tensionning device | D28: # | E28: o | F28: ='Série 2'!B16 -> 304L | G28: 1 | H28: =(INDEX(Char2!A68:G73,MATCH(F28,Char2!A69:A73,0)+1,MATCH(K4,Char2!B68:G68,0)+1))/6.55957 -> 320.1429362 | I28: =(HLOOKUP(K4,Char2!B68:P75,7,0))/6.55957 -> 76.22450862 | J28: =IF(F28="",'Série 2'!$E$42,(VLOOKUP(F28,'Série 2'!$D$26:$E$42,2,0))) -> 1.590909091 | K28: 509.3183076 | L28: 76.22450862 | M28: ='Série 2'!$I$2 -> 1 | N28: 585.5428162 | O28: =HLOOKUP(K4,Char2!B68:P75,8,0) -> 40 | P28: 40 | Q28: 45 | R28: 1800 | S28: 1 | T28: 2385.542816 | V28: cloth tensionning device | W28: 0 | X28: 304L | Z28: 2385.542816 | AB28: 585.5428162 | AD28: 40 | AF28: 1800
A29: vacuum box | C29: ='Série 2'!B46 -> 110 | F29: ='Série 2'!B47 -> 304L | H29: =('B. à V.2'!B89)/6.55957 -> 2212.202934 | I29: =(LOOKUP(K4,'B. à V.2'!A92:A93,'B. à V.2'!B92:B93))/6.55957 -> 152.4490172 | J29: =IF(F29="",'Série 2'!$E$42,(VLOOKUP(F29,'Série 2'!$D$26:$E$42,2,0))) -> 1.590909091 | K29: 3519.413759 | L29: 152.4490172 | M29: ='Série 2'!$I$2 -> 1 | N29: =(K29+L29)*M29 -> 3671.862776 | O29: ='B. à V.2'!C89 -> 139.35 | P29: 139.35 | Q29: 60 | R29: =P29*Q29 -> 8361 | S29: 1 | T29: =((1600+1600+1600+2000)/U2)*1.136 -> 5722.074074 | V29: vacuum box | W29: 110 | X29: 304L | Y29: 5722.074074 | AA29: 3671.862776 | AC29: 139.35 | AE29: 8361
A30: V.Box support + dia + qty connection | C30: ='Série 2'!B49 -> 65 | F30: ='Série 2'!B48 -> 304L | G30: ='Série 2'!B50 -> 4 | J30: =IF(F30="",'Série 2'!$E$42,(VLOOKUP(F30,'Série 2'!$D$26:$E$42,2,0))) -> 1.590909091 | K30: 0 | Q30: 60 | S30: 1 | T30: 0 | V30: V.Box support + dia + qty connection | W30: 65 | X30: 304L | Y30: 0 | AA30: 0 | AC30: 0 | AE30: 0
A31: C & B wash device + discharge device | D31: # | E31: o | F31: ='Série 2'!B52 -> 304L | G31: 1 | H31: =(INDEX(Lavage2!A5:F16,MATCH('Cost List2.xls'!K4,Lavage2!A6:A16,0)+1,MATCH('Cost List2.xls'!F31,Lavage2!B5:F5,0)+1)) -> 762.2450862 | I31: =(INDEX(Lavage2!A18:F29,MATCH('Cost List2.xls'!K4,Lavage2!A19:A29,0)+1,MATCH('Cost List2.xls'!F31,Lavage2!B18:F18,0)+1)) -> 1509.245271 | J31: =IF(F31="",'Série 2'!$E$42,(VLOOKUP(F31,'Série 2'!$D$26:$E$42,2,0))) -> 1.590909091 | K31: 1212.662637 | L31: =I31*$L$7 -> 1509.245271 | M31: ='Série 2'!$I$2 -> 1 | N31: 2721.907908 | O31: =INDEX(Lavage2!A31:F42,MATCH('Cost List2.xls'!K4,Lavage2!A32:A42,0)+1,MATCH('Cost List2.xls'!F31,Lavage2!B31:F31,0)+1) -> 100 | P31: =O31*M31*$P$7 -> 100 | Q31: 45 | R31: 4500 | S31: 1 | T31: 7221.907908 | V31: C & B wash device + discharge device | W31: 0 | X31: 304L | Z31: 7221.907908 | AB31: 2721.907908 | AD31: 100 | AF31: 4500
A32: Form zone apron dam | C32: ='Série 2'!B54 -> EPDM | D32: # | E32: à | F32: ='Série 2'!B53 -> 316L | G32: 1 | H32: =(INDEX('Acc. sup2'!A4:L11,MATCH('Cost List2.xls'!F32,'Acc. sup2'!A5:A11,0)+1,MATCH('Cost List2.xls'!K4,'Acc. sup2'!B4:L4,0)+1))/6.55957 -> 19.05612715 | I32: =(INDEX('Acc. sup2'!A4:L11,MATCH('Cost List2.xls'!C32,'Acc. sup2'!A5:A11,0)+1,MATCH('Cost List2.xls'!K4,'Acc. sup2'!B4:L4,0)+1))/6.55957 -> 30.87092599 | J32: =IF(F32="",'Série 2'!$E$42,(VLOOKUP(F32,'Série 2'!$D$26:$E$42,2,0))) -> 2.068965517 | K32: 39.42646998 | L32: 30.87092599 | M32: ='Série 2'!$I$2 -> 1 | N32: 70.29739597 | O32: =HLOOKUP(K4,'Acc. sup2'!A4:L12,9,0) -> 4 | P32: 4 | Q32: 45 | R32: 180 | S32: 1 | T32: 250.297396 | V32: Form zone apron dam | W32: EPDM | X32: 316L | Z32: 250.297396 | AB32: 70.29739597 | AD32: 4 | AF32: 180
A33: cake wash feeder | C33: ='Série 2'!B55 -> OVER | D33: # | E33: o | F33: ='Série 2'!B56 -> 304L | G33: ='Série 2'!B57 -> 3 | H33: =(INDEX('Acc. sup2'!A15:G22,MATCH('Cost List2.xls'!F33,'Acc. sup2'!A15:A22,0),MATCH('Cost List2.xls'!K4,'Acc. sup2'!B15:G15,0)+1))/6.55957 -> 27.89817015 | I33: =HLOOKUP(K4,'Acc. sup2'!B15:G22,7,0)/6.56 -> 6.707317073 | J33: =IF(F33="",'Série 2'!$E$42,(VLOOKUP(F33,'Série 2'!$D$26:$E$42,2,0))) -> 1.590909091 | K33: =H33*J33*G33 -> 133.1503576 | L33: =I33*$L$7*G33 -> 20.12195122 | M33: ='Série 2'!$I$2 -> 1 | N33: 153.2723088 | O33: =(IF(F33="PPH",0,15))*G33 -> 45 | P33: =O33*M33*$P$7*G33 -> 135 | Q33: 45 | R33: 6075 | S33: 1 | T33: =(650*1.136)*G33 -> 2215.2 | V33: cake wash feeder | W33: OVER | X33: 304L | Z33: 2215.2 | AB33: 153.2723088 | AD33: 135 | AF33: 6075
A34: cake wash feeder carriages | C34: ='Série 2'!B58 -> PATI | D34: # | E34: o | F34: ='Série 2'!B59 -> 316L | G34: ='Série 2'!B60 -> 3 | H34: =(INDEX('Acc. sup2'!A25:G29,MATCH('Cost List2.xls'!F34,'Acc. sup2'!A25:A29,0),MATCH('Cost List2.xls'!K4,'Acc. sup2'!B25:G25,0)+1))/6.55957 -> 19.05612715 | J34: =IF(F34="",'Série 2'!$E$42,(VLOOKUP(F34,'Série 2'!$D$26:$E$42,2,0))) -> 2.068965517 | K34: =H34*J34*G34 -> 118.2794099 | L34: =I34*$L$7*G34 -> 0 | M34: ='Série 2'!$I$2 -> 1 | N34: 118.2794099 | O34: =HLOOKUP(K4,'Acc. sup2'!B25:G32,8,0)*G34 -> 12 | P34: =O34*M34*$P$7*G34 -> 36 | Q34: 45 | R34: 1620 | S34: 1 | T34: 1738.27941 | V34: cake wash feeder carriages | W34: PATI | X34: 316L | Z34: 1738.27941 | AB34: 118.2794099 | AD34: 36 | AF34: 1620
A35: wash zone pendulum apron dam | C35: ='Série 2'!B62 -> EPDM | D35: # | E35: o | F35: ='Série 2'!B61 -> 316L | G35: ='Série 2'!B63 -> 4 | H35: =H32 -> 19.05612715 | I35: =I32*1.2 -> 37.04511119 | J35: =IF(F35="",'Série 2'!$E$42,(VLOOKUP(F35,'Série 2'!$D$26:$E$42,2,0))) -> 2.068965517 | K35: =H35*J35*G35 -> 157.7058799 | L35: =I35*$L$7*G35 -> 148.1804448 | M35: ='Série 2'!$I$2 -> 1 | N35: 305.8863247 | O35: =O32*G35 -> 16 | P35: =O35*M35*$P$7*G35 -> 64 | Q35: 45 | R35: 2880 | S35: 1 | T35: 3185.886325 | V35: wash zone pendulum apron dam | W35: EPDM | X35: 316L | Z35: 3185.886325 | AB35: 305.8863247 | AD35: 64 | AF35: 2880
A36: pulp feeder | C36: ='Série 2'!B64 -> QDC | D36: # | E36: o | F36: ='Série 2'!B65 -> 304L | G36: ='Série 2'!B66 -> 1 | H36: =(IF(F36="POLYPROPYLENE",0,(INDEX('Acc. sup2'!A35:G39,MATCH('Cost List2.xls'!F36,'Acc. sup2'!A35:A39,0),MATCH('Cost List2.xls'!K4,'Acc. sup2'!B35:G35,0)+1)))/6.55957) -> 125.7704392 | I36: =(IF(F36="PPH",((HLOOKUP(K4,'Acc. sup2'!B35:G40,6,0))+'Acc. sup2'!B41),'Acc. sup2'!B41))/6.55957 -> 25.00163883 | J36: =IF(F36="",'Série 2'!$E$42,(VLOOKUP(F36,'Série 2'!$D$26:$E$42,2,0))) -> 1.590909091 | K36: =H36*J36*G36 -> 200.0893351 | L36: 25.00163883 | M36: ='Série 2'!$I$2 -> 1 | N36: =(K36+L36)*M36 -> 225.090974 | O36: =(IF(F36="PPH",0,25))*G36 -> 25 | P36: 25 | Q36: 45 | R36: 1125 | S36: 1 | T36: 1350.090974 | V36: pulp feeder | W36: QDC | X36: 304L | Z36: 1350.090974 | AB36: 225.090974 | AD36: 25 | AF36: 1125
A37: feeder carriage | C37: ='Série 2'!B58 -> PATI | D37: # | E37: o | F37: ='Série 2'!B59 -> 316L | G37: ='Série 2'!B66 -> 1 | H37: =(INDEX('Acc. sup2'!A45:G49,MATCH('Cost List2.xls'!F37,'Acc. sup2'!A46:A49,0)+1,MATCH('Cost List2.xls'!K4,'Acc. sup2'!B45:G45,0)+1))/6.55957 -> 86.59104179 | I37: =HLOOKUP(K4,'Acc. sup2'!B45:G51,6,0)/6.55957 -> 25.00163883 | J37: =IF(F37="",'Série 2'!$E$42,(VLOOKUP(F37,'Série 2'!$D$26:$E$42,2,0))) -> 2.068965517 | K37: =H37*J37*G37 -> 179.1538796 | L37: =I37*$L$7 -> 25.00163883 | M37: ='Série 2'!$I$2 -> 1 | N37: =(K37+L37)*M37 -> 204.1555184 | O37: =HLOOKUP(K4,'Acc. sup2'!B45:G51,7,0)*G37 -> 5 | P37: =O37*M37*$P$7 -> 5 | Q37: 45 | R37: =P37*Q37 -> 225 | S37: 1 | T37: 429.1555184 | V37: feeder carriage | W37: PATI | X37: 316L | Z37: 429.1555184 | AB37: 204.1555184 | AD37: 5 | AF37: 225
A38: pneumatic cabinet + pneumatic acc. | C38: ='Série 2'!B67 -> STD | D38: # | E38: o | G38: 1 | I38: =(Access2!C3)/6.55957 -> 914.6941034 | J38: =IF(F38="",'Série 2'!$E$42,(VLOOKUP(F38,'Série 2'!$D$26:$E$42,2,0))) -> 1.3 | K38: 0 | L38: 914.6941034 | M38: ='Série 2'!$I$2 -> 1 | N38: 914.6941034 | O38: =Access2!D3 -> 10 | P38: 10 | Q38: 45 | R38: 450 | S38: 1 | T38: 1364.694103 | V38: pneumatic cabinet + pneumatic acc. | W38: STD | X38: 0 | Z38: 1364.694103 | AB38: 914.6941034 | AD38: 10 | AF38: 450
A39: junction box + electrical set of equip. | C39: ='Série 2'!B68 -> STD | D39: # | E39: o | G39: 1 | H39: =HLOOKUP(C39,Access2!C5:D8,2) -> 300 | I39: =HLOOKUP(C39,Access2!C5:D8,3) -> 2500 | J39: =IF(F39="",'Série 2'!$E$42,(VLOOKUP(F39,'Série 2'!$D$26:$E$42,2,0))) -> 1.3 | K39: 390 | L39: 2500 | M39: ='Série 2'!$I$2 -> 1 | N39: 2890 | O39: =HLOOKUP(C39,Access2!C5:D8,4) -> 40 | P39: 40 | Q39: 45 | R39: 1800 | S39: 1 | T39: 4690 | V39: junction box + electrical set of equip. | W39: STD | X39: 0 | Z39: 4690 | AB39: 2890 | AD39: 40 | AF39: 1800
A40: bolting | D40: # | E40: o | F40: ='Série 2'!B69 -> 316 | G40: 1 | I40: =VLOOKUP(F40,Access2!C10:D12,2) -> 2500 | J40: =IF(F40="",'Série 2'!$E$42,(VLOOKUP(F40,'Série 2'!$D$26:$E$42,2,0))) -> 2.068965517 | K40: 0 | L40: 2500 | M40: ='Série 2'!$I$2 -> 1 | N40: 2500 | P40: 0 | Q40: 45 | R40: 0 | S40: 1 | T40: 2500 | V40: bolting | W40: 0 | X40: 316 | Z40: 2500 | AB40: 2500 | AD40: 0 | AF40: 0
A41: pneumetic bellow | C41: =IF('Série 2'!B70>1,"12x2","10x2") -> 10x2 | E41: 0 | G41: =IF(C41="10x2",'Série 2'!B71,'Série 2'!B70) -> 0 | H41: =((HLOOKUP(C41,Access2!C16:F18,2,0))*G41)/6.55957 -> 0 | I41: =((HLOOKUP(C41,Access2!C16:F18,3,0))*G41)/6.55957 -> 0 | J41: =IF(F41="",'Série 2'!$E$42,(VLOOKUP(F41,'Série 2'!$D$26:$E$42,2,0))) -> 1.3 | K41: 0 | L41: 0 | M41: ='Série 2'!$I$2 -> 1 | N41: 0 | P41: 0 | Q41: 45 | R41: 0 | S41: 1 | T41: 0 | V41: pneumetic bellow | W41: 10x2 | X41: 0 | Z41: 0 | AB41: 0 | AD41: 0 | AF41: 0
A42: pneumetic bellow | C42: =IF('Série 2'!B73>1,"8x2","6x2") -> 6x2 | E42: 0 | G42: =IF(C42="8x2",'Série 2'!B73,'Série 2'!B74) -> 5 | H42: =((HLOOKUP(C42,Access2!C16:F18,2,0))*G42)/6.55957 -> 449.7246009 | I42: =((HLOOKUP(C42,Access2!C16:F18,3,0))*G42)/6.55957 -> 346.0592691 | J42: =IF(F42="",'Série 2'!$E$42,(VLOOKUP(F42,'Série 2'!$D$26:$E$42,2,0))) -> 1.3 | K42: 584.6419811 | L42: 346.0592691 | M42: ='Série 2'!$I$2 -> 1 | N42: 930.7012502 | P42: 0 | Q42: 45 | R42: 0 | S42: 1 | T42: 930.7012502 | V42: pneumetic bellow | W42: 6x2 | X42: 0 | Z42: 930.7012502 | AB42: 930.7012502 | AD42: 0 | AF42: 0
A43: pneumetic bellow | C43: 8X3 | E43: 0 | G43: ='Série 2'!B72 -> 0 | H43: =Access2!G17*'Cost List2.xls'!G43/6.55957 -> 0 | I43: =Access2!G18*'Cost List2.xls'!G43/6.55957 -> 0 | J43: =IF(F43="",'Série 2'!$E$42,(VLOOKUP(F43,'Série 2'!$D$26:$E$42,2,0))) -> 1.3 | K43: 0 | L43: =I43*$L$7 -> 0 | M43: ='Série 2'!$I$2 -> 1 | N43: =(K43+L43)*M43 -> 0 | P43: =O43*M43*$P$7 -> 0 | Q43: 45 | R43: =P43*Q43 -> 0 | S43: 1 | T43: 0 | V43: pneumetic bellow | W43: 8X3 | X43: 0 | Z43: 0 | AB43: 0 | AD43: 0 | AF43: 0
A44: oil and grease | D44: # | E44: o | G44: 1 | I44: 100 | J44: =IF(F44="",'Série 2'!$E$42,(VLOOKUP(F44,'Série 2'!$D$26:$E$42,2,0))) -> 1.3 | K44: 0 | L44: 100 | M44: ='Série 2'!$I$2 -> 1 | N44: 100 | P44: 0 | Q44: 45 | R44: 0 | S44: 1 | T44: 100 | V44: oil and grease | W44: 0 | X44: 0 | Z44: 100 | AB44: 100 | AD44: 0 | AF44: 0
A45: Cartouche perma | D45: # | E45: o | G45: 1 | I45: =(G25+4)*32 -> 1088 | J45: =IF(F45="",'Série 2'!$E$42,(VLOOKUP(F45,'Série 2'!$D$26:$E$42,2,0))) -> 1.3 | K45: =H45*J45 -> 0 | L45: =I45*$L$7 -> 1088 | M45: ='Série 2'!$I$2 -> 1 | N45: =(K45+L45)*M45 -> 1088 | P45: =O45*M45*$P$7 -> 0 | Q45: 45 | R45: =P45*Q45 -> 0 | S45: =IF(E45="",$O$3,$P$3) -> 1 | T45: =(N45+R45)*S45 -> 1088 | V45: =A45 -> Cartouche perma | W45: =C45 -> 0 | X45: =F45 -> 0 | Y45: =IF(E45="",T45,"") ->  | Z45: =IF(E45="","",T45) -> 1088 | AA45: =IF($E45="",N45,"") ->  | AB45: =IF($E45="","",N45) -> 1088 | AC45: =IF($E45="",P45,"") ->  | AD45: =IF($E45="","",P45) -> 0 | AE45: =IF($E45="",R45,"") ->  | AF45: =IF($E45="","",R45) -> 0
A46: protection + painting french part | C46: =HLOOKUP(F46,Char2!B96:F98,2,0) -> 100 | E46: 0 | F46: ='Série 2'!B16 -> 304L | G46: 1 | I46: =C46*0.2 -> 20 | J46: =IF(F46="",'Série 2'!$E$42,(VLOOKUP(F46,'Série 2'!$D$26:$E$42,2,0))) -> 1.590909091 | K46: 0 | L46: 20 | M46: ='Série 2'!$I$2 -> 1 | N46: 20 | O46: =C47*0.2 -> 8 | P46: 8 | Q46: 45 | R46: 360 | S46: 1 | T46: 380 | V46: protection + painting french part | W46: 100 | X46: 304L | Z46: 380 | AB46: 20 | AD46: 8 | AF46: 360
A47: protection + painting local part | C47: =HLOOKUP(F46,Char2!B96:F98,3,0) -> 40 | D47: # | E47: o | I47: =C46*0.8 -> 80 | J47: =IF(F47="",'Série 2'!$E$42,(VLOOKUP(F47,'Série 2'!$D$26:$E$42,2,0))) -> 1.3 | K47: 0 | L47: =I47*$L$7 -> 80 | M47: ='Série 2'!$I$2 -> 1 | N47: =(K47+L47)*M47 -> 80 | O47: =C47*0.8 -> 32 | P47: =O47*M47*$P$7 -> 32 | Q47: 45 | R47: =P47*Q47 -> 1440 | S47: 1 | T47: 1520 | V47: protection + painting local part | W47: 40 | X47: 0 | Z47: 1520 | AB47: 80 | AD47: 32 | AF47: 1440
A48: reducer torque arm | D48: # | E48: o | F48: ='Série 2'!B16 -> 304L | G48: 1 | H48: =(INDEX(Char2!A77:G84,MATCH(F48,Char2!A78:A82,0)+1,MATCH(K4,Char2!B77:G77,0)+1))/6.55957 -> 38.8744994 | I48: =(HLOOKUP(K4,Char2!B77:P84,7,0))/6.55957 -> 30.48980345 | J48: =IF(F48="",'Série 2'!$E$42,(VLOOKUP(F48,'Série 2'!$D$26:$E$42,2,0))) -> 1.590909091 | K48: 61.84579449 | L48: 30.48980345 | M48: ='Série 2'!$I$2 -> 1 | N48: 92.33559794 | O48: =HLOOKUP(K4,Char2!B77:P84,8,0) -> 10 | P48: 10 | Q48: 45 | R48: 450 | S48: 1 | T48: 542.3355979 | V48: reducer torque arm | W48: 0 | X48: 304L | Z48: 542.3355979 | AB48: 92.33559794 | AD48: 10 | AF48: 450
A49: planetary reducer "BREVINI" | C49: ='Série 2'!B78 -> 2319.944184 | E49: 0 | G49: 1 | I49: ='Gr de Cde2'!C9 -> 1386 | J49: =IF(F49="",'Série 2'!$E$42,(VLOOKUP(F49,'Série 2'!$D$26:$E$42,2,0))) -> 1.3 | K49: 0 | L49: 1386 | M49: ='Série 2'!$I$2 -> 1 | N49: 1386 | P49: 0 | Q49: 45 | R49: 0 | S49: 1 | T49: =(N49+R49)*S49*2 -> 2772 | V49: planetary reducer "BREVINI" | W49: 2319.944184 | X49: 0 | Z49: 2772 | AB49: 1386 | AD49: 0 | AF49: 0
A50: Motor | C50: ='Gr de Cde2'!E26 -> 0.37 | D50: # | E50: o | G50: 1 | I50: =('Gr de Cde2'!H26) -> 168 | J50: =IF(F50="",'Série 2'!$E$42,(VLOOKUP(F50,'Série 2'!$D$26:$E$42,2,0))) -> 1.3 | K50: 0 | L50: 168 | M50: ='Série 2'!$I$2 -> 1 | N50: 168 | P50: 0 | Q50: 45 | R50: 0 | S50: 1 | T50: =(((N50+R50)*S50)+200)*1.15 -> 423.2 | V50: Motor | W50: 0.37 | X50: 0 | Z50: 423.2 | AB50: 168 | AD50: 0 | AF50: 0
A51: frequency variator | C51: =C50 -> 0.37 | D51: # | E51: o | G51: 1 | I51: =(G51*'Gr de Cde2'!H30) -> 321 | J51: =IF(F51="",'Série 2'!$E$42,(VLOOKUP(F51,'Série 2'!$D$26:$E$42,2,0))) -> 1.3 | K51: 0 | L51: 321 | M51: ='Série 2'!$I$2 -> 1 | N51: 321 | P51: 0 | Q51: 45 | R51: 0 | S51: 1 | T51: 321 | V51: frequency variator | W51: 0.37 | X51: 0 | Z51: 321 | AB51: 321 | AD51: 0 | AF51: 0
A52: filtering cloth | E52: 0 | G52: 1 | I52: =(Toile2!C10)/6.55957 -> 392.7086684 | J52: =IF(F52="",'Série 2'!$E$42,(VLOOKUP(F52,'Série 2'!$D$26:$E$42,2,0))) -> 1.3 | K52: 0 | L52: 392.7086684 | M52: ='Série 2'!$I$2 -> 1 | N52: 392.7086684 | P52: 0 | Q52: 45 | R52: 0 | S52: 1 | T52: 392.7086684 | V52: filtering cloth | W52: 0 | X52: 0 | Z52: 392.7086684 | AB52: 392.7086684 | AD52: 0 | AF52: 0
A53: labelling + shiping preparation France | G53: 1 | J53: =IF(F53="",'Série 2'!$E$42,(VLOOKUP(F53,'Série 2'!$D$26:$E$42,2,0))) -> 1.3 | K53: 0 | L53: =I53*$L$7 -> 0 | M53: ='Série 2'!$I$2 -> 1 | N53: =(K53+L53)*M53 -> 0 | O53: =IF(E57=63,"",Char2!B110) -> 50 | P53: =IF(E57=63,0,Char2!B110) -> 50 | Q53: =IF($E53="",$Q$3,$R$3) -> 60 | R53: =P53*Q53 -> 3000 | S53: 1 | T53: 3000 | V53: labelling + shiping preparation France | W53: 0 | X53: 0 | Y53: 3000 | AA53: 0 | AC53: 50 | AE53: 3000
A54: =Char2!A109 -> full erection in factory + reinforcement | D54: # | E54: =F54 -> MONT | F54: ='Série 2'!B83 -> MONT | G54: 1 | H54: =IF(F54="MONT",'Série 2'!E96,0) -> 819.9488 | J54: =IF(F54="",'Série 2'!$E$42,(VLOOKUP(F54,'Série 2'!$D$26:$E$42,2,0))) -> 1.3 | K54: 1065.93344 | L54: =I54*$L$7 -> 0 | M54: ='Série 2'!$I$2 -> 1 | N54: 1065.93344 | O54: =((18*2*8)+385)/2 -> 336.5 | P54: 336.5 | Q54: 50 | R54: 16825 | S54: 1 | T54: =((N54+R54)*S54+IF(F54="MONT",AA107,0))+2500 -> 23019.50487 | V54: full erection in factory + reinforcement | W54: 0 | X54: MONT | Z54: =IF(E54="PRE","",T54) -> 23019.50487 | AB54: 1065.93344 | AD54: 336.5 | AF54: 16825
A55: =IF((IF(E54<>"",1,0))+(IF(F54="MONT",1,0))=2,"ADD cost of supervisor","N/A") -> ADD cost of supervisor | E55: o | J55: =IF(F55="",'Série 2'!$E$42,(VLOOKUP(F55,'Série 2'!$D$26:$E$42,2,0))) -> 1.3 | K55: 0 | L55: =G55*I55*$L$7 -> 0 | M55: ='Série 2'!$I$2 -> 1 | N55: 0 | P55: =O55*M55 -> 0 | Q55: 45 | R55: =P55*Q55 -> 0 | S55: 1 | T55: =(N55+R55)*S55 -> 0 | V55: ADD cost of supervisor | W55: 0 | X55: 0 | Z55: 0 | AB55: 0 | AD55: 0 | AF55: 0
A56: Sourcing shipping up to erection site | E56: 0 | F56: ='Série 2'!B83 -> MONT | G56: 1 | I56: =IF(F56="MONT",T57*5/100,0) -> 4307.495704 | J56: 1 | K56: =H56*J56 -> 0 | L56: =G56*I56*$L$7 -> 4307.495704 | M56: ='Série 2'!$I$2 -> 1 | N56: =(K56+L56)*M56 -> 4307.495704 | P56: =O56*M56 -> 0 | Q56: 45 | R56: =P56*Q56 -> 0 | S56: =IF(E56="",$O$3,$P$3) -> 1 | T56: =(N56+R56)*S56 -> 4307.495704 | V56: Sourcing shipping up to erection site | W56: 0 | X56: MONT | Z56: 4307.495704 | AB56: 4307.495704 | AD56: 0 | AF56: 0
A57: TOTAL LOCAL PART | D57: # | E57: =COUNTBLANK(E11:F55) -> 27 | K57: =H57*$K$7 -> 0 | L57: =I57*$L$7 -> 0 | N57: =AB57 -> 35496.44183 | P57: =AD57 -> 1290.6 | R57: =AF57 -> 59759.5 | T57: =SUM(Z8:Z55) -> 86149.91409 | U57: =T57+T56 -> 90457.40979 | V57: TOTAL LOCAL PART | Z57: =SUM(Z8:Z56) -> 90457.40979 | AB57: =SUM(AB8:AB56) -> 35496.44183 | AD57: =SUM(AD8:AD56) -> 1290.6 | AF57: =SUM(AF8:AF56) -> 59759.5
A58: TOTAL FRENCH PART | K58: =H58*$K$7 -> 0 | L58: =I58*$L$7 -> 0 | N58: =AA58 -> 26110.2752 | P58: =AC58 -> 303.33 | R58: =AE58 -> 16919.8 | T58: =SUM(Y8:Y55) -> 31864.85661 | U58: =T58+SUM(U8:U10) -> 31864.85661 | V58: TOTAL FRENCH PART | Y58: =SUM(Y8:Y55) -> 31864.85661 | AA58: =SUM(AA8:AA55) -> 26110.2752 | AC58: =SUM(AC8:AC55) -> 303.33 | AE58: =SUM(AE8:AE55) -> 16919.8
A59: TOTAL : | H59: =SUM(H8:H56) -> 9348.317428 | I59: =SUM(I8:I56) -> 50187.24474 | K59: =SUM(K8:K56) -> 14694.92232 | L59: =SUM(L8:L56) -> 50311.79471 | N59: =SUM(N8:N56) -> 61606.71703 | P59: =SUM(P8:P56) -> 1593.93 | R59: =SUM(R8:R56) -> 76679.3 | T59: =SUM(T7:T55) -> 118014.7707 | U59: =U57+U58 -> 122322.2664 | V59: TOTAL : | Y59: =T59-T57 -> 31864.85661 | Z59: =T59-T58 -> 86149.91409
A60: =A3 -> N° DU DEVIS : | B60: =B3 -> 726789-rev4 | C60: =C3 -> - 2B5 | F60: =F3 -> Client | H60: =H3 -> CARESTER | S60: =S3 -> Rev. | T60: =T3 -> 0 | V60: =T57+T58 -> 118014.7707
A61: Ph. LE BIGOT => | B61: =B4 -> T. DUBRULLE | D61: local basic | E61: For | F61: =F4 -> Surface : | H61: 2 | I61: Largeur | K61: 500 | L61: Spécifications | N61: 304L+304L+EPDM+T70+3G+0,37KW+1VF | T61: 2005-08-11 | Y61: French | Z61: Local | AA61: French | AB61: Local | AC61: French | AD61: Local | AE61: French | AF61: Local
E62: local | H62: Material | I62: Buyout | J62: Corrective | K62: Updated | L62: Buyout | N62: Total (1) Material + buyout | O62: Labour | P62: Labour | R62: Total (2) | T62: Final cost without Engineering | U62: Final cost including engineering | W62: data | Y62: incl 1,149 | Z62: incl. 1,149 | AA62: Total (1) Material + buyout | AB62: Total (1) Material + buyout | AC62: Labour | AD62: Labour | AE62: Total (2) | AF62: Total (2)
A63: Désignation | C63: Spéc | E63: fill the | F63: Mat | G63: Qty | H63: Unit cost | I63: Unit cost | J63: factor | K63: material | M63: Qty | O63: Unit | P63: Total | Q63: Taux | R63: Labour | S63: Marg | V63: Désignation | W63: Spéc | X63: =F63 -> Mat | Y63: France | Z63: Local | AC63: Total | AD63: Total | AE63: labour | AF63: labour
E64: cell | F64: spec | K64: 1 | L64: 1 | P64: 1 | W64: Dia. | AC64: hours | AD64: hours | AE64: cost | AF64: cost
A65: Specific accessories / options to be add if required
A66: Cloth and belt flow meter | C66: Option | F66: ABB | G66: 0 | K66: =H66*$K$64*G66 -> 0 | L66: =I66*$L$64*G66 -> 0 | M66: ='Série 2'!$I$2 -> 1 | N66: =(K66+L66)*M66 -> 0 | P66: =O66*M66*$P$7*G66 -> 0 | Q66: =IF($E53="",$Q$3,$R$3) -> 60 | R66: =P66*Q66 -> 0 | S66: =IF(E66="",$O$3,$P$3) -> 1 | T66: =G66*(N66+R66)*S66 -> 0 | V66: =A66 -> Cloth and belt flow meter | W66: =C66 -> Option | X66: =F66 -> ABB | Y66: =IF(E66="",T66,"") -> 0 | Z66: =IF(E66="","",T66) ->  | AA66: =IF($E66="",N66,"") -> 0 | AB66: =IF($E66="","",N66) ->  | AC66: =IF($E66="",P66,"") -> 0 | AD66: =IF($E66="","",P66) ->  | AE66: =IF($E66="",R66,"") -> 0 | AF66: =IF($E66="","",R66) -> 
A67: Cake wash flowmeter | C67: Option | F67: ABB | G67: 0 | K67: =H67*$K$64*G67 -> 0 | L67: =I67*$L$64*G67 -> 0 | M67: ='Série 2'!$I$2 -> 1 | N67: 0 | P67: =O67*M67*$P$7*G67 -> 0 | Q67: =IF($E53="",$Q$3,$R$3) -> 60 | R67: 0 | S67: 1 | T67: =G67*(N67+R67)*S67 -> 0 | V67: Cake wash flowmeter | W67: Option | X67: =F67 -> ABB | Y67: =T67 -> 0 | AA67: =N67 -> 0 | AC67: =P67 -> 0 | AE67: =R67 -> 0
A68: Cloth run off | C68: Option | G68: 0 | K68: =H68*$K$64*G68 -> 0 | L68: =I68*$L$64*G68 -> 0 | M68: ='Série 2'!$I$2 -> 1 | N68: =(K68+L68)*M68 -> 0 | O68: 10 | P68: =O68*M68*$P$7*G68 -> 0 | Q68: =IF($E53="",$Q$3,$R$3) -> 60 | R68: =P68*Q68 -> 0 | S68: =IF(E68="",$O$3,$P$3) -> 1 | T68: =G68*(N68+R68)*S68 -> 0 | V68: =A68 -> Cloth run off | W68: Option | X68: 0 | Y68: =IF(E68="",T68,"") -> 0 | Z68: =IF(E68="","",T68) ->  | AA68: =IF($E68="",N68,"") -> 0 | AB68: =IF($E68="","",N68) ->  | AC68: =IF($E68="",P68,"") -> 0 | AD68: =IF($E68="","",P68) ->  | AE68: =IF($E68="",R68,"") -> 0 | AF68: =IF($E68="","",R68) -> 
A69: Overtorque | C69: Option | G69: 0 | K69: 0 | L69: 0 | M69: ='Série 2'!$I$2 -> 1 | N69: 0 | O69: 10 | P69: 0 | Q69: =IF($E53="",$Q$3,$R$3) -> 60 | R69: 0 | S69: 1 | T69: 0 | V69: Overtorque | W69: Option | X69: 0 | Y69: =IF(E69="",T69,"") -> 0 | Z69: =IF(E69="","",T69) ->  | AA69: =IF($E69="",N69,"") -> 0 | AB69: =IF($E69="","",N69) ->  | AC69: =IF($E69="",P69,"") -> 0 | AD69: =IF($E69="","",P69) ->  | AE69: =IF($E69="",R69,"") -> 0 | AF69: =IF($E69="","",R69) -> 
A70: skirting above curb (Per meter) | C70: Option | F70: PPH | G70: 0 | H70: 25 | I70: 10 | K70: 0 | L70: 0 | M70: ='Série 2'!$B$21*'Série 2'!$I$2 -> 0 | N70: =G70*(K70+L70)*M70 -> 0 | O70: 7 | P70: 0 | Q70: =IF($E53="",$Q$3,$R$3) -> 60 | R70: 0 | S70: 1 | T70: 0 | V70: skirting above curb (Per meter) | W70: Option | X70: PPH | Y70: =T70 -> 0 | AA70: =N70 -> 0 | AC70: =P70 -> 0 | AE70: =R70 -> 0
A71: water injection into the vacuum box | C71: Option | G71: 0 | K71: 0 | L71: 0 | M71: ='Série 2'!$I$2 -> 1 | N71: 0 | O71: 0 | P71: 0 | Q71: =IF($E53="",$Q$3,$R$3) -> 60 | R71: 0 | S71: 1 | T71: 0 | V71: water injection into the vacuum box | W71: Option | X71: 0 | Y71: =IF(E71="",T71,"") -> 0 | Z71: =IF(E71="","",T71) ->  | AA71: =IF($E71="",N71,"") -> 0 | AB71: =IF($E71="","",N71) ->  | AC71: =IF($E71="",P71,"") -> 0 | AD71: =IF($E71="","",P71) ->  | AE71: =IF($E71="",R71,"") -> 0 | AF71: =IF($E71="","",R71) -> 
A72: Double jacket vacuum box | C72: Option | G72: 0 | K72: 0 | L72: 0 | M72: ='Série 2'!$I$2 -> 1 | N72: 0 | O72: 0 | P72: 0 | Q72: =IF($E53="",$Q$3,$R$3) -> 60 | R72: 0 | S72: 1 | T72: 0 | V72: Double jacket vacuum box | W72: Option | X72: 0 | Y72: 0 | AA72: 0 | AC72: 0 | AE72: 0
A73: Vacuum box side hatch | C73: Option | G73: 0 | K73: =H73*$K$64*G73 -> 0 | L73: =I73*$L$64*G73 -> 0 | M73: ='Série 2'!$I$2 -> 1 | N73: =(K73+L73)*M73 -> 0 | O73: 0 | P73: =O73*M73*$P$7*G73 -> 0 | Q73: =IF($E53="",$Q$3,$R$3) -> 60 | R73: =P73*Q73 -> 0 | S73: =IF(E73="",$O$3,$P$3) -> 1 | T73: =G73*(N73+R73)*S73 -> 0 | V73: =A73 -> Vacuum box side hatch | W73: Option | X73: 0 | Y73: =IF(E73="",T73,"") -> 0 | Z73: =IF(E73="","",T73) ->  | AA73: =IF($E73="",N73,"") -> 0 | AB73: =IF($E73="","",N73) ->  | AC73: =IF($E73="",P73,"") -> 0 | AD73: =IF($E73="","",P73) ->  | AE73: =IF($E73="",R73,"") -> 0 | AF73: =IF($E73="","",R73) -> 
A74: Option straight filtrate pipes "Ucego" | C74: Option | G74: 0 | K74: 0 | L74: 0 | M74: ='Série 2'!$I$2 -> 1 | N74: 0 | O74: 0 | P74: 0 | Q74: =IF($E53="",$Q$3,$R$3) -> 60 | R74: 0 | S74: 1 | T74: 0 | V74: Option straight filtrate pipes "Ucego" | W74: Option | X74: 0 | Y74: 0 | AA74: 0 | AC74: 0 | AE74: 0
A75: Side gutter cost per step of frame | C75: Option | F75: 304L | G75: 0 | K75: 0 | L75: 0 | M75: ='Série 2'!$I$2 -> 1 | N75: 0 | O75: 10 | P75: 0 | Q75: =IF($E53="",$Q$3,$R$3) -> 60 | R75: 0 | S75: 1 | T75: 0 | V75: Side gutter cost per step of frame | W75: Option | X75: 304L | Y75: 0 | AA75: 0 | AC75: 0 | AE75: 0
A76: Stainless steel shaft lining | C76: Option | G76: 0 | K76: 0 | L76: 0 | M76: ='Série 2'!$I$2 -> 1 | N76: 0 | O76: 2 | P76: 0 | Q76: =IF($E53="",$Q$3,$R$3) -> 60 | R76: 0 | S76: 1 | T76: 0 | V76: Stainless steel shaft lining | W76: Option | X76: 0 | Y76: 0 | AA76: 0 | AC76: 0 | AE76: 0
A77: Pneumatic tubing made of SS | C77: Option | G77: 0 | K77: 0 | L77: 0 | M77: ='Série 2'!$I$2 -> 1 | N77: 0 | O77: 3 | P77: 0 | Q77: =IF($E53="",$Q$3,$R$3) -> 60 | R77: 0 | S77: 1 | T77: =G77*(N77+R77)*S77 -> 0 | V77: Pneumatic tubing made of SS | W77: Option | X77: 0 | Y77: 0 | AA77: 0 | AC77: 0 | AE77: 0
A78: Ultrasonic control cake thickeness | C78: Option | G78: 0 | K78: 0 | L78: 0 | M78: ='Série 2'!$I$2 -> 1 | N78: 0 | O78: 5 | P78: 0 | Q78: =IF($E53="",$Q$3,$R$3) -> 60 | R78: =P78*Q78 -> 0 | S78: 1 | T78: =G78*(N78+R78)*S78 -> 0 | V78: Ultrasonic control cake thickeness | W78: Option | X78: 0 | Y78: 0 | AA78: 0 | AC78: 0 | AE78: 0
A79: Wear belt breaking sensor | C79: Option | G79: 0 | K79: 0 | L79: 0 | M79: ='Série 2'!$I$2 -> 1 | N79: 0 | O79: 3 | P79: 0 | Q79: =IF($E53="",$Q$3,$R$3) -> 60 | R79: =P79*Q79 -> 0 | S79: 1 | T79: =G79*(N79+R79)*S79 -> 0 | V79: Wear belt breaking sensor | W79: Option | X79: 0 | Y79: 0 | AA79: 0 | AC79: 0 | AE79: 0
A80: Guiding roller (angular) | C80: Option | G80: 0 | K80: =H80*$K$64*G80 -> 0 | L80: =I80*$L$64*G80 -> 0 | M80: ='Série 2'!$I$2 -> 1 | N80: 0 | O80: 0 | P80: =O80*M80*$P$7*G80 -> 0 | Q80: =IF($E53="",$Q$3,$R$3) -> 60 | R80: =P80*Q80 -> 0 | S80: =IF(E80="",$O$3,$P$3) -> 1 | T80: =G80*(N80+R80)*S80 -> 0 | V80: Guiding roller (angular) | W80: Option | X80: 0 | Y80: 0 | AA80: 0 | AC80: 0 | AE80: 0
A81: Additional cost for "roller belt support | C81: Option | G81: 0 | K81: 0 | L81: 0 | M81: ='Série 2'!$I$2 -> 1 | N81: 0 | O81: 0 | P81: 0 | Q81: =IF($E53="",$Q$3,$R$3) -> 60 | R81: 0 | S81: 1 | T81: 0 | V81: Additional cost for "roller belt support | W81: Option | X81: 0 | Y81: 0 | AA81: 0 | AC81: 0 | AE81: 0
A82: Pulley wash ramp | C82: Option | G82: 0 | K82: =H82*$K$64*G82 -> 0 | L82: =I82*$L$64*G82 -> 0 | M82: ='Série 2'!$I$2 -> 1 | N82: 0 | O82: 3 | P82: =O82*M82*$P$7*G82 -> 0 | Q82: =IF($E53="",$Q$3,$R$3) -> 60 | R82: =P82*Q82 -> 0 | S82: =IF(E82="",$O$3,$P$3) -> 1 | T82: =G82*(N82+R82)*S82 -> 0 | V82: Pulley wash ramp | W82: Option | X82: 0 | Y82: 0 | AA82: 0 | AC82: 0 | AE82: 0
A83: Flocculator including divider | C83: Option | G83: 0 | K83: =H83*$K$64*G83 -> 0 | L83: =I83*$L$64*G83 -> 0 | M83: ='Série 2'!$I$2 -> 1 | N83: =(K83+L83)*M83 -> 0 | O83: 3 | P83: =O83*M83*$P$7*G83 -> 0 | Q83: =IF($E53="",$Q$3,$R$3) -> 60 | R83: =P83*Q83 -> 0 | S83: =IF(E83="",$O$3,$P$3) -> 1 | T83: =G83*(N83+R83)*S83 -> 0 | V83: Flocculator including divider | W83: Option | X83: =F83 -> 0 | Y83: =IF(E83="",T83,"") -> 0 | Z83: =IF(E83="","",T83) ->  | AA83: =IF($E83="",N83,"") -> 0 | AB83: =IF($E83="","",N83) ->  | AC83: =IF($E83="",P83,"") -> 0 | AD83: =IF($E83="","",P83) ->  | AE83: =IF($E83="",R83,"") -> 0 | AF83: =IF($E83="","",R83) -> 
S84: =IF(E84="",$O$3,$P$3) -> 1 | V84: 0 | W84: 0 | X84: =F84 -> 0 | Y84: =IF(E84="",T84,"") -> 0 | Z84: =IF(E84="","",T84) ->  | AA84: =IF($E84="",N84,"") -> 0 | AB84: =IF($E84="","",N84) ->  | AC84: =IF($E84="",P84,"") -> 0 | AD84: =IF($E84="","",P84) ->  | AE84: =IF($E84="",R84,"") -> 0 | AF84: =IF($E84="","",R84) -> 
A85: 1 | B85: GRAND TOTAL FILTRE LOCAL PART | T85: =SUM(Z66:Z84)+U57 -> 90457.40979 | U85: =T85 -> 90457.40979 | V85: TOTAL LOCAL PART | Z85: =SUM(Z66:Z84) -> 0 | AB85: =SUM(AB66:AB84)+AB57 -> 35496.44183 | AD85: =SUM(AD66:AD84)+AD57 -> 1290.6 | AF85: =SUM(AF66:AF84)+AF57 -> 59759.5
A86: 2 | B86: GRAND TOTAL FILTRE FRENCH PART | T86: =SUM(Y66:Y84)+T58 -> 31864.85661 | U86: =T86+SUM(U8:U10) -> 31864.85661 | V86: TOTAL FRENCH PART | Y86: =SUM(Y66:Y84) -> 0 | AA86: =SUM(AA66:AA82)+AA58 -> 26110.2752 | AC86: =SUM(AC66:AC84)+AC58 -> 303.33 | AE86: =SUM(AE66:AE84)+AE58 -> 16919.8
B87: TOTAL FILTRE 100% | T87: =SUM(T85:T86) -> 122322.2664 | U87: =T85+U86 -> 122322.2664 | V87: TOTAL : | Y87: =T87-T85 -> 31864.85661 | Z87: =T87-T86 -> 90457.40979
A88: Safety guard around filter | E88: o | F88: 304 | G88: 1 | I88: =Char2!C113 -> 4249.6 | J88: =IF(F40="",'Série 2'!$E$42,(VLOOKUP(F40,'Série 2'!$D$26:$E$42,2,0))) -> 2.068965517 | K88: =H88*$K$64*G88 -> 0 | L88: =I88*$L$64*G88*J88 -> 8792.275862 | M88: ='Série 2'!$I$2 -> 1 | N88: =(K88+L88)*M88 -> 8792.275862 | P88: =O88*M88*$P$7*G88 -> 0 | Q88: 30.55 | R88: =P88*Q88 -> 0 | S88: =IF(E88="",$O$3,$P$3) -> 1 | T88: =(N88+R88)*S88 -> 8792.275862 | U88: =(T88/2)*1.5 -> 6594.206897 | V88: =(AA86+AB85+AE86+AF85)*1.149 -> 158890.6336
A89: Engineering to be add to the filter price or with the accessories them self or in the item "Engineering and documentation"
A90: ETUDES :
A91: Filtrate manifold | G91: 1 | K91: =H91*$K$64*G91 -> 0 | L91: =I91*$L$64*G91 -> 0 | M91: 1 | N91: =(K91+L91)*M91 -> 0 | O91: 40 | P91: =O91*M91*$P$7*G91 -> 40 | Q91: 44 | R91: =P91*Q91 -> 1760 | S91: =IF(E91="",$O$3,$P$3) -> 1 | T91: =(N91)*S91 -> 0
A92: Filtrate receiver | G92: 1 | K92: =H92*$K$64*G92 -> 0 | L92: 0 | M92: 1 | N92: 0 | O92: 35 | P92: 35 | Q92: 44 | R92: 1540 | S92: 1 | T92: =(N92)*S92 -> 0
A93: scrubber | G93: 0 | K93: 0 | L93: 0 | M93: 1 | N93: 0 | O93: 35 | P93: 0 | Q93: 44 | R93: 0 | S93: 1 | T93: 0
A94: moisture trap | G94: 0 | K94: 0 | L94: 0 | M94: 1 | N94: 0 | O94: 35 | P94: 0 | Q94: 44 | R94: 0 | S94: 1 | T94: 0
A95: Fume hood | G95: 0 | K95: 0 | L95: 0 | M95: 1 | N95: 0 | O95: 80 | P95: 0 | Q95: 44 | R95: 0 | S95: 1 | T95: 0
A96: Engineering et documentation anglais | G96: 1 | I96: 850 | K96: 0 | L96: 850 | M96: 1 | N96: 850 | O96: 200 | P96: 200 | Q96: 44 | R96: 8800 | S96: 1
A97: documentation other linguage | G97: 0 | K97: 0 | L97: 0 | M97: 1 | N97: 0 | P97: 0 | Q97: 44 | R97: 0 | S97: 1 | T97: 0
A98: Engineering globale process | G98: 0 | K98: 0 | L98: 0 | M98: 1 | N98: 0 | P98: 0 | Q98: 44 | R98: 0 | S98: 1 | T98: 0
B99: TOTAL Engineering | P99: =SUM(P91:P98) -> 275 | S99: sub total | T99: =SUM(T91:T98) -> 0 | U99: =T99+SUM(U90:U98) -> 0
T100: =T87+T88+T99 -> 131114.5423 | U100: =U87+U88+U99 -> 128916.4733
A101: ACCESSORIES WILL HAVE TO BE CALCULATE ON THE BASIS OF UNIT PRICE AND ADAPTED TO THE NUMBER OF UNITS AND FILTERS
A102: Filtrate manifold 4,5+2+3,5 m, 8 DN 65 | C102: 150 | D102: # | E102: o | F102: SVR | G102: 1 | H102: 350 | I102: 3800 | J102: =IF(F102="",'Série 2'!$E$42,(VLOOKUP(F102,'Série 2'!$D$26:$E$42,2,0))) -> 1.3 | K102: =H102*$K$64*G102 -> 350 | L102: =I102*$L$64*G102*J102 -> 4940 | M102: 1 | N102: =(K102+L102)*M102 -> 5290 | O102: 25 | P102: =O102*M102*$P$7*G102 -> 25 | Q102: =IF($E102="",$Q$3,$R$3) -> 45 | R102: =P102*Q102 -> 1125 | S102: =IF(E102="",$O$3,$P$3) -> 1 | T102: =(N102+R102)*S102*G102 -> 6415
A103: Fume hood | E103: o | G103: 0 | K103: =H103*$K$64*G103 -> 0 | L103: =I103*$L$64*G103 -> 0 | M103: 1 | N103: =(K103+L103)*M103 -> 0 | P103: =O103*M103*$P$7*G103 -> 0 | Q103: 45 | R103: =P103*Q103 -> 0 | S103: =IF(E103="",$O$3,$P$3) -> 1 | T103: =(N103+R103)*S103*G103 -> 0
K104: 0 | L104: 0 | Q104: 60 | W104: Prix longerons | Y104: longeur Nemaska (m) | AA104: Prix Nemaska | AC104: Prix au mètre
A105: Filtrate receiver, baro type | C105: 600 | D105: # | E105: o | F105: SVR | G105: 1 | H105: 250 | I105: 3500 | J105: =IF(F105="",'Série 2'!$E$42,(VLOOKUP(F105,'Série 2'!$D$26:$E$42,2,0))) -> 1.3 | K105: 250 | L105: =I105*$L$64*G105*J105 -> 4550 | M105: 3 | N105: =(K105+L105)*M105 -> 14400 | O105: 5 | P105: =O105*M105*$P$7*G105 -> 15 | Q105: 45 | R105: =P105*Q105 -> 675 | S105: =IF(E105="",$O$3,$P$3) -> 1 | T105: =(N105+R105)*S105*G105 -> 15075 | Y105: 7 | AA105: 2300 | AC105: =AA105/Y105 -> 328.5714286
A106: Level switch E+H liquifant | D106: # | E106: o | G106: 0 | K106: 0 | L106: 0 | M106: 3 | N106: =(K106+L106)*M106 -> 0 | P106: =O106*M106*$P$7*G106 -> 0 | Q106: 45 | R106: =P106*Q106 -> 0 | S106: =IF(E106="",$O$3,$P$3) -> 1 | T106: =(N106+R106)*S106*G106 -> 0 | Y106: ="longeur "&Calculations!C2&" (m)" -> longeur CARESTER (m) | AA106: ="Prix "&Calculations!C2 -> Prix CARESTER
A107: Vacuometre | D107: # | E107: o | G107: 0 | K107: 0 | L107: 0 | M107: 1 | N107: =(K107+L107)*M107 -> 0 | P107: =O107*M107*$P$7*G107 -> 0 | Q107: 45 | R107: =P107*Q107 -> 0 | S107: =IF(E107="",$O$3,$P$3) -> 1 | T107: =(N107+R107)*S107*G107 -> 0 | Y107: =Calculations!G9/1000 -> 4 | AA107: =Y107*AC105*2 -> 2628.571429
B108: Total | D108: # | E108: o | Q108: 45 | T108: =T105+T106+T107 -> 15075
Q109: 60
A110: moisture trap | D110: # | E110: o | G110: 0 | K110: 0 | L110: 0 | M110: 1 | N110: =(K110+L110)*M110 -> 0 | P110: =O110*M110*$P$7*G110 -> 0 | Q110: 45 | R110: =P110*Q110 -> 0 | S110: =IF(E110="",$O$3,$P$3) -> 1 | T110: =(N110+R110)*S110*G110 -> 0
A111: Vacuometre or transmitter E+H | D111: # | E111: o | G111: 0 | K111: 0 | L111: 0 | M111: 1 | N111: =(K111+L111)*M111 -> 0 | P111: =O111*M111*$P$7*G111 -> 0 | Q111: 45 | R111: =P111*Q111 -> 0 | S111: =IF(E111="",$O$3,$P$3) -> 1 | T111: =(N111+R111)*S111*G111 -> 0
B112: Total | D112: # | E112: o | Q112: 45
Q113: 60
A114: Scrubber | D114: # | E114: o | G114: 0 | K114: 0 | L114: 0 | M114: 1 | N114: =(K114+L114)*M114 -> 0 | P114: =O114*M114*$P$7*G114 -> 0 | Q114: 45 | R114: =P114*Q114 -> 0 | S114: =IF(E114="",$O$3,$P$3) -> 1 | T114: =(N114+R114)*S114*G114 -> 0
A115: Sprayer | D115: # | E115: o | G115: 0 | K115: 0 | L115: 0 | M115: 1 | N115: =(K115+L115)*M115 -> 0 | P115: =O115*M115*$P$7*G115 -> 0 | Q115: 45 | R115: =P115*Q115 -> 0 | S115: =IF(E115="",$O$3,$P$3) -> 1 | T115: =(N115+R115)*S115*G115 -> 0
B116: Total | D116: # | E116: o | Q116: 45
Q117: 60
A118: Vacuum pump | D118: # | E118: 0 | G118: 0 | K118: 0 | L118: 0 | M118: 1 | N118: =(K118+L118)*M118 -> 0 | P118: =O118*M118*$P$7*G118 -> 0 | Q118: 45 | R118: =P118*Q118 -> 0 | S118: =IF(E118="",$O$3,$P$3) -> 1 | T118: =(N118+R118)*S118*G118 -> 0
A119: Electrical motor | D119: # | E119: 0 | G119: 0 | K119: 0 | L119: 0 | M119: 1 | N119: =(K119+L119)*M119 -> 0 | P119: =O119*M119*$P$7*G119 -> 0 | Q119: 45 | R119: =P119*Q119 -> 0 | S119: =IF(E119="",$O$3,$P$3) -> 1 | T119: =(N119+R119)*S119*G119 -> 0
B120: Total | D120: # | E120: 0 | Q120: 45
Q121: 60
A122: Filtrate pump | D122: # | E122: 0 | G122: 0 | K122: 0 | L122: 0 | M122: 1 | N122: =(K122+L122)*M122 -> 0 | P122: =O122*M122*$P$7*G122 -> 0 | Q122: 45 | R122: =P122*Q122 -> 0 | S122: =IF(E122="",$O$3,$P$3) -> 1 | T122: =(N122+R122)*S122*G122 -> 0
Q123: 60
Q124: 60
A125: Filtrate tank | E125: o | G125: 0 | K125: 0 | L125: 0 | Q125: 45 | T125: =(N125+R125)*S125*G125 -> 0
A126: Level switch E+H liquifant | D126: # | E126: o | G126: 0 | K126: 0 | L126: 0 | M126: 1 | N126: =(K126+L126)*M126 -> 0 | P126: =O126*M126*$P$7*G126 -> 0 | Q126: 45 | R126: =P126*Q126 -> 0 | S126: =IF(E126="",$O$3,$P$3) -> 1 | T126: =(N126+R126)*S126*G126 -> 0
D127: # | E127: o | G127: 0 | K127: 0 | L127: 0 | M127: 1 | N127: =(K127+L127)*M127 -> 0 | P127: =O127*M127*$P$7*G127 -> 0 | Q127: 45 | R127: =P127*Q127 -> 0 | S127: =IF(E127="",$O$3,$P$3) -> 1 | T127: =(N127+R127)*S127*G127 -> 0
B128: Total | D128: # | E128: o | Q128: 45 | T128: =T125+T126+T127 -> 0
Q129: 60
A130: Local panel 1 | D130: # | E130: o | G130: 0 | K130: 0 | L130: 0 | M130: 1 | N130: =(K130+L130)*M130 -> 0 | P130: =O130*M130*$P$7*G130 -> 0 | Q130: 45 | R130: =P130*Q130 -> 0 | S130: =IF(E130="",$O$3,$P$3) -> 1 | T130: =(N130+R130)*S130*G130 -> 0
A131: Local panel 2 | D131: # | E131: o | G131: 0 | K131: 0 | L131: 0 | M131: 1 | N131: 0 | P131: 0 | Q131: 45 | R131: 0 | S131: 1 | T131: 0
A132: High pressure washing ramp | D132: # | E132: o | G132: 0 | K132: 0 | L132: 0 | M132: 1 | N132: 0 | P132: 0 | Q132: 45 | R132: 0 | S132: 1 | T132: 0
A133: Acid cloth wash | D133: # | E133: o | G133: 0 | K133: 0 | L133: 0 | M133: 1 | N133: 0 | P133: 0 | Q133: 45 | R133: 0 | S133: 1 | T133: 0
A134: Cake padle cake reslurry | D134: # | E134: o | G134: 0 | K134: 0 | L134: 0 | M134: 1 | N134: 0 | P134: 0 | Q134: 45 | R134: 0 | S134: 1 | T134: 0
A135: Drip pan | D135: # | E135: o | G135: 0 | K135: =H135*$K$64*G135 -> 0 | L135: =I135*$L$64*G135 -> 0 | M135: 1 | N135: 0 | P135: 0 | Q135: 45 | R135: 0 | S135: 1 | T135: 0
F136: d/w | G136: pd/h | K136: car renting | M136: week | Q136: external h. cost
A137: Supervisor | B137: erection | F137: 0 | G137: 10 | H137: 1 | M137: 4 | P137: =F137*G137*M137*$P$7 -> 0 | Q137: 72 | R137: =P137*Q137 -> 0 | S137: =IF(E137="",$O$3,$P$3) -> 1 | T137: =(N137+R137)*S137 -> 0
B138: hotel | F138: 0 | G138: 1 | I138: 120 | K138: 30 | M138: 4 | N138: =(I138+K138)*F138*G138*M138 -> 0 | P138: =O138*M138*$P$7*G138 -> 0 | R138: =P138*Q138 -> 0 | S138: =IF(E138="",$O$3,$P$3) -> 1 | T138: =(N138+R138)*S138 -> 0
B139: travel | F139: 0 | G139: 1 | I139: 1200 | M139: ='Série 2'!$I$2 -> 1 | N139: =(I139+K139)*F139*G139*M139 -> 0 | P139: =O139*M139*$P$7*G139 -> 0 | R139: =P139*Q139 -> 0 | S139: =IF(E139="",$O$3,$P$3) -> 1 | T139: =(N139+R139)*S139 -> 0
K140: car renting | T140: =SUM(T137:T139) -> 0
A141: Supervisor | B141: start up | F141: 0 | G141: 10 | H141: 1 | M141: 1 | P141: =F141*G141*M141*$P$7 -> 0 | Q141: 72 | R141: =P141*Q141 -> 0 | S141: =IF(E141="",$O$3,$P$3) -> 1 | T141: =(N141+R141)*S141 -> 0
B142: hotel | F142: 0 | G142: 1 | I142: 120 | K142: 30 | M142: 1 | N142: =(I142+K142)*F142*G142*M142 -> 0 | P142: =O142*M142*$P$7*G142 -> 0 | R142: =P142*Q142 -> 0 | S142: =IF(E142="",$O$3,$P$3) -> 1 | T142: =(N142+R142)*S142 -> 0
B143: travel | F143: 0 | G143: 1 | I143: 1200 | M143: ='Série 2'!$I$2 -> 1 | N143: =(I143+K143)*F143*G143*M143 -> 0 | P143: =O143*M143*$P$7*G143 -> 0 | R143: =P143*Q143 -> 0 | S143: =IF(E143="",$O$3,$P$3) -> 1 | T143: =(N143+R143)*S143 -> 0
T144: =SUM(T141:T143) -> 0
A146: TC 40' part France | G146: 1 | I146: 1500 | K146: =H146*$K$65 -> 0 | L146: =I146*$L$64 -> 1500 | M146: 20 | N146: =(K146+L146)*M146 -> 30000 | P146: =O146*M146*$P$7*G146 -> 0 | Q146: 30.55 | R146: =P146*Q146 -> 0 | S146: =IF(E146="",$O$3,$P$3) -> 1 | T146: =(N146+R146)*S146*G146 -> 30000
A147: Fumigation | G147: 1 | I147: 300 | K147: =H147*$K$65 -> 0 | L147: =I147*$L$64 -> 300 | M147: 20 | N147: =(K147+L147)*M147 -> 6000 | P147: =O147*M147*$P$7*G147 -> 0 | Q147: 30.55 | R147: 0 | S147: =IF(E147="",$O$3,$P$3) -> 1 | T147: =(N147+R147)*S147*G147 -> 6000
A148: FCA our factory Douane | G148: 1 | I148: 100 | K148: =H148*$K$65 -> 0 | L148: =I148*$L$64 -> 100 | M148: 20 | N148: =(K148+L148)*M148 -> 2000 | P148: =O148*M148*$P$7*G148 -> 0 | Q148: 30.55 | R148: 0 | S148: =IF(E148="",$O$3,$P$3) -> 1 | T148: 2000
A149: insurance | B149: Ass 0,11% | G149: 1 | L149: =I149*$L$64 -> 0 | M149: 0 | N149: =(K149+L149)*M149 -> 0 | P149: =O149*M149*$P$7*G149 -> 0 | Q149: 30.55 | R149: =P149*Q149 -> 0 | S149: =IF(E149="",$O$3,$P$3) -> 1 | T149: 0
T150: 0
A151: Transportation | B151: ass 0,45% | G151: 1 | I151: ?? | K151: =H151*$K$65 -> 0 | L151: =I151*$L$64 ->  | M151: 1 | N151: =(K151+L151)*M151 ->  | P151: =O151*M151*$P$7*G151 -> 0 | Q151: 30.55 | R151: 0 | S151: =IF(E151="",$O$3,$P$3) -> 1
A152: insurance | G152: 1 | I152: ?? | K152: =H152*$K$65 -> 0 | L152: =I152*$L$64 ->  | M152: 1 | N152: =(K152+L152)*M152 ->  | P152: =O152*M152*$P$7*G152 -> 0 | Q152: 30.55 | R152: 0 | S152: =IF(E152="",$O$3,$P$3) -> 1

Sheet FabSpecification (hidden)
A1: CODE MATERIEL | B1: SERIE | C1: TALON | D1: SURFACE | E1: LONG /S VIDE | F1: LARG /S VIDE | G1: ø TAMBOUR | H1: NOMBRE DE PAS | I1: LONG /S VIDE | J1: Nbre pas | AG1: LgBaV | AH1: 4 | AI1: 3.5 | AJ1: 3 | AK1: 2.5 | AL1: NbrPas | AN1: NbrePas/LongPas
A2: 0,25 / 180 / 50 / SERIE 1 | B2: SERIE 1 | C2: 50 | D2: 0.25 | E2: 1400 | F2: 180 | G2: 410 | H2: 1 x 1,4 | I2: 1.4 | J2: 1 | AG2: 1.4 | AL2: 1 | AN2: 1 x 1,4
A3: 0,5 / 180 / 50 / SERIE 1 | B3: SERIE 1 | C3: 50 | D3: 0.5 | E3: 2800 | F3: 180 | G3: 410 | H3: 1 x 2,8 | I3: 2.8 | J3: 1 | AG3: 2 | AL3: 1 | AN3: 1 x 2
A4: 0,78 / 280 / 50 / SERIE 1 | B4: SERIE 1 | C4: 50 | D4: 0.78 | E4: 2800 | F4: 280 | G4: 410 | H4: 1 x 2,8 | I4: 2.8 | J4: 1 | L4: BANDE | M4: Serie 1 | N4: Serie 1 | O4: Serie 1 | P4: Serie 2 | T4: Serie3 | U4: Serie 2 | W4: Serie3 | AA4: Serie 4 | AE4: Serie 5 | AG4: 2.5 | AL4: 1 | AN4: 1 x 2,5
A5: 1,01 / 360 / 50 / SERIE 1 | B5: SERIE 1 | C5: 50 | D5: 1.01 | E5: 2800 | F5: 360 | G5: 410 | H5: 1 x 2,8 | I5: 2.8 | J5: 1 | L5: largeur | M5: 180 | N5: 280 | O5: 360 | P5: 500 | Q5: 750 | R5: 1000 | S5: 1250 | T5: 1251 | U5: 1500 | V5: 1501 | W5: 1750 | X5: 2000 | Y5: 2250 | Z5: 2500 | AA5: 3000 | AB5: 3500 | AC5: 4000 | AD5: 4200 | AE5: 5000 | AF5: 6000 | AG5: 2.8 | AL5: 1 | AN5: 1 x 2,8
A6: 1,4 / 500 / 50 / SERIE 1 | B6: SERIE 1 | C6: 50 | D6: 1.4 | E6: 2800 | F6: 500 | G6: 410 | H6: 1 x 2,8 | I6: 2.8 | J6: 1 | L6: EpaiSup | M6: 10 | N6: 10 | O6: 10 | P6: 10 | Q6: 13 | R6: 13 | S6: 13 | T6: 13 | U6: 16 | V6: 16 | W6: 16 | X6: 16 | Y6: 16 | Z6: 16 | AA6: 18 | AB6: 19 | AC6: 21 | AD6: 21 | AE6: 23 | AF6: 23 | AG6: 3 | AL6: 1 | AN6: 1 x 3
A7: 1 / 500 / 70 / SERIE 2 | B7: SERIE 2 | C7: 70 | D7: 1 | E7: 2000 | F7: 500 | G7: 630 | H7: 1 x 2 | I7: 2 | J7: 1 | L7: EpaisInf | M7: 4 | N7: 4 | O7: 4 | P7: 4 | Q7: 5 | R7: 5 | S7: 5 | T7: 5 | U7: 6 | V7: 6 | W7: 6 | X7: 6 | Y7: 6 | Z7: 6 | AA7: 7 | AB7: 7 | AC7: 8 | AD7: 8 | AE7: 10 | AF7: 10 | AG7: 3.5 | AL7: 1 | AN7: 1 x 3,5
A8: 1,25 / 500 / 70 / SERIE 2 | B8: SERIE 2 | C8: 70 | D8: 1.25 | E8: 2500 | F8: 500 | G8: 630 | H8: 1 x 2,5 | I8: 2.5 | J8: 1 | L8: EpaiTotal | M8: 18.5 | N8: 18.5 | O8: 18.5 | P8: 18.5 | Q8: 22.5 | R8: 24 | S8: 24 | T8: 24 | U8: 28 | V8: 28 | W8: 28 | X8: 28 | Y8: 28 | Z8: 28 | AA8: 31 | AB8: 32 | AC8: 35 | AD8: 35 | AE8: 39 | AF8: 39 | AG8: 4 | AL8: 2 | AN8: 2 x 2
A9: 1,5 / 500 / 70 / SERIE 2 | B9: SERIE 2 | C9: 70 | D9: 1.5 | E9: 3000 | F9: 500 | G9: 630 | H9: 1 x 3 | I9: 3 | J9: 1 | L9: NbrePli | M9: 3 | N9: 3 | O9: 3 | P9: 3 | Q9: 3 | R9: 4 | S9: 4 | T9: 4 | U9: 4 | V9: 4 | W9: 4 | X9: 4 | Y9: 4 | Z9: 4 | AA9: 4 | AB9: 4 | AC9: 4 | AD9: 4 | AE9: 4 | AF9: 4 | AG9: 4.5 | AL9: 2 | AN9: 2,5 + 2
A10: 1,75 / 500 / 70 / SERIE 2 | B10: SERIE 2 | C10: 70 | D10: 1.75 | E10: 3500 | F10: 500 | G10: 630 | H10: 1 x 3,5 | I10: 3.5 | J10: 1 | L10: PasRain | M10: 14 | N10: 14 | O10: 14 | P10: 14 | Q10: 18 | R10: 18 | S10: 18 | T10: 18 | U10: 22 | V10: 22 | W10: 22 | X10: 22 | Y10: 22 | Z10: 22 | AA10: 22 | AB10: 22 | AC10: 22 | AD10: 22 | AE10: 24 | AF10: 24 | AG10: 5 | AK10: 2 | AL10: 2 | AM10: 2,5 x 2 | AN10: 2,5 x 2 | AO10: 5
A11: 2 / 500 / 70 / SERIE 2 | B11: SERIE 2 | C11: 70 | D11: 2 | E11: 4000 | F11: 500 | G11: 630 | H11: 2 x 2 | I11: 4 | J11: 2 | L11: LargRain | M11: 7 | N11: 7 | O11: 7 | P11: 7 | Q11: 9 | R11: 9 | S11: 9 | T11: 9 | U11: 11 | V11: 11 | W11: 11 | X11: 11 | Y11: 11 | Z11: 11 | AA11: 11 | AB11: 11 | AC11: 11 | AD11: 11 | AE11: 12 | AF11: 12 | AG11: 5.5 | AJ11: 1 | AK11: 1 | AL11: 2 | AM11: & 1 x 3 & 1 x 2,5 | AN11: 1 x 3 & 1 x 2,5
A12: 2,25 / 500 / 70 / SERIE 2 | B12: SERIE 2 | C12: 70 | D12: 2.25 | E12: 4500 | F12: 500 | G12: 630 | H12: 2,5 + 2 | I12: 4.5 | J12: 2 | L12: ProfRain | M12: 7 | N12: 7 | O12: 7 | P12: 7 | Q12: 5 - 10 | R12: 5 - 10 | S12: 5 - 10 | T12: 5 - 10 | U12: 5 - 12 | V12: 5 - 12 | W12: 5 - 12 | X12: 5 - 12 | Y12: 5 - 12 | Z12: 5 - 12 | AA12: 5 - 14 | AB12: 5 - 15 | AC12: 5 - 17 | AD12: 5 - 17 | AE12: 5 - 19 | AF12: 5 - 19 | AG12: 6 | AJ12: 2 | AL12: 2 | AM12: & 2 x 3 | AN12: 2 x 3 | AO12: 6
A13: 2,5 / 500 / 70 / SERIE 2 | B13: SERIE 2 | C13: 70 | D13: 2.5 | E13: 5000 | F13: 500 | G13: 630 | H13: 2,5 x 2 | I13: 5 | J13: 2 | L13: TrouOblong | M13: 6 x 10 | N13: 6 x 10 | O13: 6 x 10 | P13: 6 x 10 | Q13: 8 x 22 | R13: 8 x 22 | S13: 8 x 22 | T13: 8 x 22 | U13: 10 x 26 | V13: 10 x 26 | W13: 10 x 26 | X13: 10 x 26 | Y13: 10 x 26 | Z13: 10 x 26 | AA13: 10 x 30 | AB13: 10 x 30 | AC13: 10 x 30 | AD13: 10 x 30 | AE13: 10 x 30 | AF13: 10 x 30 | AG13: 6.5 | AI13: 1 | AJ13: 1 | AL13: 2 | AM13: & 1 x 3,5 & 1 x 3 | AN13: 1 x 3,5 & 1 x 3
A14: 2,75 / 500 / 70 / SERIE 2 | B14: SERIE 2 | C14: 70 | D14: 2.75 | E14: 5500 | F14: 500 | G14: 630 | H14: 1 x 3 & 1 x 2,5 | I14: 5.5 | J14: 2 | L14: SUPPBANDTOILE | AG14: 7 | AI14: 2 | AL14: 2 | AM14: & 2 x 3,5 | AN14: 2 x 3,5 | AO14: 7
A15: 3 / 500 / 70 / SERIE 2 | B15: SERIE 2 | C15: 70 | D15: 3 | E15: 6000 | F15: 500 | G15: 630 | H15: 2 x 3 | I15: 6 | J15: 2 | L15: RailSuppBande | M15: 2 x 1 | N15: 2 x 1 | O15: 2 x 1 | P15: 2 x 2 | Q15: 2 x 2 | R15: 2 x 2 | S15: 2 x 3 | T15: 2 x 3 | U15: 2 x 3 | V15: 2 x 3 | W15: 2 x 4 | X15: 2 x 4 | Y15: 2 x 4 | Z15: 2 x 4 | AA15: 2 x 5 | AB15: 2 x 6 | AC15: 2 x 6 | AD15: 2 x 7 | AE15: 2 x 8 | AF15: 2 x 10 | AG15: 7.5 | AK15: 3 | AL15: 3 | AM15: & 3 x 2,5 | AN15: 3 x 2,5 | AO15: 7.5
A16: 1,5 / 750 / 70 / SERIE 2 | B16: SERIE 2 | C16: 70 | D16: 1.5 | E16: 2000 | F16: 750 | G16: 630 | H16: 1 x 2 | I16: 2 | J16: 1 | L16: RoulEmbaT70 | M16: 140 | N16: 140 | O16: 140 | P16: 219 | Q16: 219 | R16: 219 | S16: 219 | T16: 273 | U16: 219 | V16: 273 | W16: 273 | X16: 273 | Y16: 273 | Z16: 273 | AA16: 273 | AB16: 273 | AC16: 273 | AD16: 273 | AE16: 273 | AF16: 323 | AG16: 8 | AJ16: 1 | AK16: 2 | AL16: 3 | AM16: & 1 x 3 & 2 x 2,5 | AN16: 1 x 3 & 2 x 2,5
A17: 1,88 / 750 / 70 / SERIE 2 | B17: SERIE 2 | C17: 70 | D17: 1.88 | E17: 2500 | F17: 750 | G17: 630 | H17: 1 x 2,5 | I17: 2.5 | J17: 1 | L17: RoulEmbaT120 | M17: NA | N17: NA | O17: NA | P17: NA | Q17: NA | R17: NA | S17: NA | T17: 355 | U17: NA | V17: 355 | W17: 355 | X17: 355 | Y17: 355 | Z17: 355 | AA17: 355 | AB17: 355 | AC17: 355 | AD17: 355 | AE17: 355 | AF17: 355 | AG17: 8.5 | AJ17: 2 | AK17: 1 | AL17: 3 | AM17: & 2 x 3 & 1 x 2,5 | AN17: 2 x 3 & 1 x 2,5
A18: 2,25 / 750 / 70 / SERIE 2 | B18: SERIE 2 | C18: 70 | D18: 2.25 | E18: 3000 | F18: 750 | G18: 630 | H18: 1 x 3 | I18: 3 | J18: 1 | L18: RoulSuppBanT70 | M18: 140 | N18: 140 | O18: 140 | P18: 219 | Q18: 219 | R18: 219 | S18: 219 | T18: 273 | U18: 219 | V18: 273 | W18: 273 | X18: 273 | Y18: 273 | Z18: 273 | AA18: 273 | AB18: 273 | AC18: 355 | AD18: 355 | AE18: 355 | AF18: 355 | AG18: 9 | AJ18: 3 | AL18: 3 | AM18: & 3 x 3 | AN18: 3 x 3 | AO18: 9
A19: 2,63 / 750 / 70 / SERIE 2 | B19: SERIE 2 | C19: 70 | D19: 2.63 | E19: 3500 | F19: 750 | G19: 630 | H19: 1 x 3,5 | I19: 3.5 | J19: 1 | L19: RoulSuppBanT120 | M19: NA | N19: NA | O19: NA | P19: NA | Q19: NA | R19: NA | S19: NA | T19: 355 | U19: NA | V19: 355 | W19: 355 | X19: 355 | Y19: 355 | Z19: 355 | AA19: 355 | AB19: 355 | AC19: 406 | AD19: 406 | AE19: 406 | AF19: 406 | AG19: 9.5 | AI19: 1 | AJ19: 2 | AL19: 3 | AM19: & 1 x 3,5 & 2 x 3 | AN19: 1 x 3,5 & 2 x 3
A20: 3 / 750 / 70 / SERIE 2 | B20: SERIE 2 | C20: 70 | D20: 3 | E20: 4000 | F20: 750 | G20: 630 | H20: 2 x 2 | I20: 4 | J20: 2 | L20: RoulToilSortGat | M20: 34 | N20: 34 | O20: 34 | P20: 60.3 | Q20: 60.3 | R20: 60.3 | S20: 88.9 | T20: 168.3 | U20: 88.9 | V20: 168.3 | W20: 168.3 | X20: 168.3 | Y20: 168.3 | Z20: 168.3 | AA20: 168.3 | AB20: 168.3 | AC20: 273 | AD20: 273 | AE20: 273 | AF20: 273 | AG20: 10 | AI20: 2 | AJ20: 1 | AL20: 3 | AM20: & 2 x 3,5 & 1 x 3 | AN20: 2 x 3,5 & 1 x 3
A21: 3,38 / 750 / 70 / SERIE 2 | B21: SERIE 2 | C21: 70 | D21: 3.38 | E21: 4500 | F21: 750 | G21: 630 | H21: 2,5 + 2 | I21: 4.5 | J21: 2 | L21: RoulToilDechGat | M21: 34 | N21: 34 | O21: 34 | P21: 60.3 | Q21: 60.3 | R21: 60.3 | S21: 88.9 | T21: 168.3 | U21: 88.9 | V21: 168.3 | W21: 168.3 | X21: 168.3 | Y21: 168.3 | Z21: 168.3 | AA21: 168.3 | AB21: 168.3 | AC21: 168.3 | AD21: 168.3 | AE21: 273 | AF21: 323 | AG21: 10.5 | AI21: 3 | AL21: 3 | AM21: & 3 x 3,5 | AN21: 3 x 3,5 | AO21: 10.5
A22: 3,75 / 750 / 70 / SERIE 2 | B22: SERIE 2 | C22: 70 | D22: 3.75 | E22: 5000 | F22: 750 | G22: 630 | H22: 2,5 x 2 | I22: 5 | J22: 2 | M22: 180 | N22: 280 | O22: 360 | P22: 500 | Q22: 750 | R22: 1000 | S22: 1250 | T22: 1250 | U22: 1500 | V22: 1501 | W22: 1750 | X22: 2000 | Y22: 2250 | Z22: 2500 | AA22: 3000 | AB22: 3500 | AC22: 4000 | AD22: 4200 | AE22: 5000 | AF22: 6000 | AG22: 11 | AH22: 2 | AJ22: 1 | AL22: 3 | AM22: 2 x 4 & 1 x 3 | AN22: 2 x 4 & 1 x 3
A23: 4,13 / 750 / 70 / SERIE 2 | B23: SERIE 2 | C23: 70 | D23: 4.13 | E23: 5500 | F23: 750 | G23: 630 | H23: 1 x 3 & 1 x 2,5 | I23: 5.5 | J23: 2 | L23: RoulSuppToile | M23: 34 | N23: 34 | O23: 34 | P23: 60.3 | Q23: 60.3 | R23: 60.3 | S23: 88.9 | T23: 168.3 | U23: 114.3 | V23: 168.3 | W23: 168.3 | X23: 168.3 | Y23: 168.3 | Z23: 168.3 | AA23: 168.3 | AB23: 168.3 | AC23: 273 | AD23: 273 | AE23: 273 | AF23: 273 | AG23: 11.5 | AH23: 2 | AI23: 1 | AL23: 3 | AM23: 2 x 4 & 1 x 3,5 | AN23: 2 x 4 & 1 x 3,5
